Workbook

Sheet CAPA
B1: SPARTA | C1: Ver. | R1: DF | S1: Sudeste/Centro Oeste
B2: Helenístico LX | C2: 0.93 | M2: =C23 -> 140 | N2: =C22 -> 6611
C3: Macro Ver.
C4: 80.4 | D4: (Versão Sharepoint 17/12/21)
B6: EBO | C6: =VLOOKUP(B6,TabEmpresas[#Data],5,FALSE) -> NÃO SUPRIDA | L6: CodigoSamp | M6: Empresa | N6: Nome Completo | O6: IdSgtAg | P6: CodigoSamp | Q6: Supridora/suprida | R6: Financeiro 243 (TUSD) | S6: Databse Fin. 243
B7: =VLOOKUP(B6,TabEmpresas[#Data],2,FALSE) -> EBO - Energisa Borborema – Distribuidora de Energia S.A. | C7: Reajuste | G7: Últ. Atualização | L7: 396 | M7: AES SUL | N7: AES-SUL - AES SUL Distribuidora Gaúcha de Energia S/A. | O7: 101 | P7: 396 | Q7: NÃO SUPRIDA
B8: CÓDIGO DA EMPRESA | C8: ="D" & TEXT(C23-100,"00") -> D40 | F8: Info iniciais | G8: 2022-01-18T18:37:00 | L8: 7019 | M8: AME | N8: Amazonas Distribuidora de Energia S/A | O8: 102 | P8: 7019 | Q8: NÃO SUPRIDA
B9: Data do Reajuste/Revisão Anterior | C9: 44231 | F9: Energia do ano anterior (CM compra, MWh Mercado, R$ Mercado) | L9: 383 | M9: AMPLA | N9: AMPLA - Ampla Energia e Serviços S/A | O9: 103 | P9: 383 | Q9: NÃO SUPRIDA
B10: Data de Reajuste/Revisão em Processamento | C10: 44596 | F10: Perda de RB /Perdas Regulatórias /TUSDgONS-RB | L10: 391 | M10: BANDEIRANTE | N10: BANDEIRANTE - Bandeirante Energia S/A. | O10: 104 | P10: 391 | Q10: NÃO SUPRIDA
F11: Financeiros ano anterior (CVA 5º dia útil, RTE restante) | L11: 370 | M11: BOAVISTA | N11: Boa Vista - Boa Vista Energia S/A | O11: 105 | P11: 370 | Q11: NÃO SUPRIDA
F12: Encargos ano anterior (não RTE) | L12: 386 | M12: BRAGANTINA | N12: BRAGANTINA- Empresa Elétrica Bragantina S/A. | O12: 142 | P12: 386 | Q12: NÃO SUPRIDA
F13: Dados da Revisão, Fator X e DecFec | L13: 5216 | M13: CAIUA | N13: CAIUÁ-D - Caiuá Distribuição de Energia S/A | O13: 106 | P13: 5216 | Q13: NÃO SUPRIDA
F14: Previsão de Subsidios dos Processos Anteriores | L14: 31 | M14: CEA | N14: CEA - Companhia de Eletricidade do Amapá | O14: 107 | P14: 31 | Q14: NÃO SUPRIDA
B15: Período de Referencia final | C15: =DATE(YEAR($C$10),MONTH($C$10)-1,1) -> 44562 | F15: Conexão ano anterior | L15: 44 | M15: CEAL | N15: CEAL - Companhia Energética de Alagoas | O15: 108 | P15: 44 | Q15: NÃO SUPRIDA
B16: Período de Referencia inicial | C16: =DATE(YEAR($C$10)-1,MONTH($C$10),1) -> 44228 | F16: Energia (CCEAR, Bil., Itaipu) | G16: 2022-01-18T18:14:58 | L16: 5160 | M16: CEB | N16: CEB-DIS - CEB Distribuição S/A | O16: 109 | P16: 5160 | Q16: NÃO SUPRIDA
B17: Índice IGPM na data Revisão/Reajuste | C17: =VLOOKUP(C15,Índices!$B$7:$F$500,2,FALSE) -> 1108.724643 | F17: CCEAR | L17: 5707 | M17: CEEE | N17: CEEE-D - Companhia Estadual de Distribuição de Energia Elétrica | O17: 110 | P17: 5707 | Q17: NÃO SUPRIDA
B18: Índice IPCA na data Revisão/Reajuste | C18: =VLOOKUP(C15,Índices!$B$7:$F$500,3,FALSE) -> 6148.706267 | F18: Bilateral | L18: 5697 | M18: CELESC | N18: CELESC-DIS - Celesc Distribuição S.A. | O18: 111 | P18: 5697 | Q18: NÃO SUPRIDA
B19: IGPM para o período de Referência | C19: =VLOOKUP(DATE(YEAR($C$10),MONTH($C$10)-1,1),Índices!$B$7:$F$500,2,FALSE)/VLOOKUP(DATE(YEAR($C$9),MONTH($C$9)-1,1),Índices!$B$7:$F$500,2,FALSE)-1 -> 0.1563138974 | F19: Itaipu (Energia, Transporte, MUST) | L19: 6072 | M19: CELG | N19: CELG-D - Celg Distribuição S.A. | O19: 112 | P19: 6072 | Q19: NÃO SUPRIDA
B20: IPCA para o período de Referência | C20: =VLOOKUP(DATE(YEAR(C10),MONTH(C10)-1,1),Índices!$B$7:$F$500,3,FALSE)/VLOOKUP(DATE(YEAR($C$9),MONTH($C$9)-1,1),Índices!$B$7:$F$500,3,FALSE)-1 -> 0.1030078567 | F20: Cotas Lei/Angra | L20: 371 | M20: CELPA | N20: CELPA - Centrais Elétricas do Pará S/A. | O20: 113 | P20: 371 | Q20: NÃO SUPRIDA
B21: Dados Gerenciais | F21: Encargos DRP | G21: 2022-01-18T18:43:11 | L21: 43 | M21: CELPE | N21: CELPE - Companhia Energética de Pernambuco | O21: 114 | P21: 43 | Q21: NÃO SUPRIDA
B22: IdAgente | C22: =VLOOKUP(B6,TabEmpresas[#Data],4,FALSE) -> 6611 | F22: Indicadores Econômicos / Dólar | G22: 2022-01-25T14:02:40 | L22: 32 | M22: CELTINS | N22: CELTINS - Companhia de Energia Elétrica do Estado do Tocantins | O22: 115 | P22: 32 | Q22: NÃO SUPRIDA
B23: ID Concessão | C23: =VLOOKUP(B6,TabEmpresas[#Data],3,FALSE) -> 140 | F23: Tudo de Mercado | G23: 2022-01-18T08:51:08 | L23: 37 | M23: CEMAR | N23: CEMAR - Companhia Energética do Maranhão | O23: 116 | P23: 37 | Q23: NÃO SUPRIDA
F24: Rede Básica e Conexão | G24: 2022-01-18T18:35:13 | L24: 405 | M24: CEMAT | N24: CEMAT - Centrais Elétricas Matogrossenses S/A. | O24: 117 | P24: 405 | Q24: NÃO SUPRIDA
B25: Quadro para vínculos | F25: Histórico de Tarifas B1 Residencial | G25: 2021-12-17T11:15:32 | L25: 4950 | M25: CEMIG | N25: CEMIG-D - CEMIG Distribuição S/A | O25: 118 | P25: 4950 | Q25: NÃO SUPRIDA
B26: Descrição | C26: valor | F26: CVA | G26: 2022-01-24T15:34:08 | L26: 38 | M26: CEPISA | N26: CEPISA - Companhia Energética do Piauí | O26: 119 | P26: 38 | Q26: NÃO SUPRIDA
B27: (Exemplo) Efeito Consumidor Geral | C27: =LnkTxtEfeito -> 0.09724274863 | F27: CUSD | G27: 2022-01-18T18:20:19 | L27: 369 | M27: CERON | N27: CERON - Centrais Elétricas de Rondônia S/A. | O27: 120 | P27: 369 | Q27: NÃO SUPRIDA
B28: Contrato de concessão | C28: 08/2000 | L28: 28 | M28: CERR | N28: CERR - Companhia Energética de Roraima | O28: 121 | P28: 28 | Q28: NÃO SUPRIDA
C29: 48500.004911/2021-34 | L29: 103 | M29: CHESP | N29: CHESP - Companhia Hidroelétrica São Patrício | O29: 123 | P29: 103 | Q29: SUPRIDA
B30: Período de Referencia | C30: =TEXT(C16,"mmmm/aaaa")& " a "&TEXT(C15,"mmmm/aaaa") -> fevereiro/2021 a janeiro/2022 | L30: 75 | M30: CNEE | N30: CNEE - Companhia Nacional de Energia Elétrica | O30: 127 | P30: 75 | Q30: NÃO SUPRIDA
B31: Neutralidade Total | L31: 82 | M31: COCEL | N31: COCEL - Companhia Campolarguense de Energia | O31: 128 | P31: 82 | Q31: SUPRIDA
B32: CVA Saldo a Compensar | C32: =SUM(Financeiros!D27:D43) -> -54011.18951 | L32: 47 | M32: COELBA | N32: COELBA - Companhia de Eletricidade do Estado da Bahia | O32: 129 | P32: 47 | Q32: NÃO SUPRIDA
B33: Reversão CDE | L33: 39 | M33: COELCE | N33: COELCE - Companhia Energética do Ceará | O33: 130 | P33: 39 | Q33: NÃO SUPRIDA
L34: 2904 | M34: COOPERALIANÇA | N34: COOPERALIANÇA - Cooperativa Aliança | O34: 131 | P34: 2904 | Q34: SUPRIDA
L35: 2866 | M35: COPEL | N35: COPEL-DIS - Copel Distribuição S/A | O35: 132 | P35: 2866 | Q35: NÃO SUPRIDA
L36: 40 | M36: COSERN | N36: COSERN - Companhia Energética do Rio Grande do Norte | O36: 133 | P36: 40 | Q36: NÃO SUPRIDA
L37: 69 | M37: CPFL Jaguari | N37: CPFL Jaguari - Companhia Jaguari de Energia | O37: 124 | P37: 69 | Q37: NÃO SUPRIDA
L38: 71 | M38: CPFL Leste Paulista | N38: =TabEmpresas[[#This Row],[Empresa]]&" - Companhia Leste Paulista de Energia " -> CPFL Leste Paulista - Companhia Leste Paulista de Energia | O38: 134 | P38: 71 | Q38: NÃO SUPRIDA
L39: 70 | M39: CPFL Mococa | N39: =TabEmpresas[[#This Row],[Empresa]]&" - Companhia Luz e Força de Mococa " -> CPFL Mococa - Companhia Luz e Força de Mococa | O39: 125 | P39: 70 | Q39: NÃO SUPRIDA
L40: 72 | M40: CPFL Santa Cruz | N40: =TabEmpresas[[#This Row],[Empresa]]&" - Companhia Luz e Força Santa Cruz " -> CPFL Santa Cruz - Companhia Luz e Força Santa Cruz | O40: 126 | P40: 72 | Q40: NÃO SUPRIDA
L41: 73 | M41: CPFL Sul Paulista | N41: =TabEmpresas[[#This Row],[Empresa]]&" - Companhia Sul Paulista de Energia " -> CPFL Sul Paulista - Companhia Sul Paulista de Energia | O41: 137 | P41: 73 | Q41: NÃO SUPRIDA
L42: 63 | M42: CPFL Paulista | N42: CPFL-Paulista - Companhia Paulista de Força e Luz | O42: 136 | P42: 63 | Q42: NÃO SUPRIDA
L43: 2937 | M43: CPFL Piratininga | N43: CPFL- Piratininga - Companhia Piratininga de Força e Luz | O43: 135 | P43: 2937 | Q43: NÃO SUPRIDA
L44: 95 | M44: DEMEI | N44: DEMEI - Departamento Municipal de Energia de Ijuí | O44: 138 | P44: 95 | Q44: SUPRIDA
L45: 51 | M45: DMED | N45: =TabEmpresas[[#This Row],[Empresa]]&" - DME Distribuição S.A" -> DMED - DME Distribuição S.A | O45: 139 | P45: 51 | Q45: NÃO SUPRIDA
L46: 6611 | M46: EBO | N46: EBO - Energisa Borborema – Distribuidora de Energia S.A. | O46: 140 | P46: 6611 | Q46: NÃO SUPRIDA
B47: Deslocar mercado | C47: Não | L47: 5217 | M47: EDEVP | N47: EDEVP - Empresa de Distribuição de Energia Vale Paranapanema S/A | O47: 141 | P47: 5217 | Q47: NÃO SUPRIDA
B48: Data de processamento em simulação | C48: 43811 | L48: 385 | M48: ELEKTRO | N48: ELEKTRO - Elektro Eletricidade e Serviços S/A. | O48: 145 | P48: 385 | Q48: NÃO SUPRIDA
L49: 26 | M49: ELETROACRE | N49: ELETROACRE - Companhia de Eletricidade do Acre | O49: 146 | P49: 26 | Q49: NÃO SUPRIDA
L50: 398 | M50: ELETROCAR | N50: ELETROCAR - Centrais Elétricas de Carazinho S/A. | O50: 147 | P50: 398 | Q50: SUPRIDA
L51: 390 | M51: ELETROPAULO | N51: ELETROPAULO - Eletropaulo Metropolitana Eletricidade de São Paulo S/A | O51: 148 | P51: 390 | Q51: NÃO SUPRIDA
L52: 6585 | M52: EMG | N52: EMG - Energisa Minas Gerais - Distribuidora de Energia S.A. | O52: 150 | P52: 6585 | Q52: NÃO SUPRIDA
L53: 404 | M53: ENERSUL | N53: ENERSUL - Empresa Energética de Mato Grosso do Sul S/A. | O53: 151 | P53: 404 | Q53: NÃO SUPRIDA
L54: 6612 | M54: ENF | N54: ENF - Energisa Nova Friburgo - Distribuidora de Energia S.A. | O54: 152 | P54: 6612 | Q54: SUPRIDA
L55: 6600 | M55: EPB | N55: EPB - Energisa Paraíba - Distribuidora de Energia | O55: 153 | P55: 6600 | Q55: NÃO SUPRIDA
L56: 380 | M56: ESCELSA | N56: ESCELSA - Espírito Santo Centrais Elétricas S/A. | O56: 154 | P56: 380 | Q56: NÃO SUPRIDA
L57: 6587 | M57: ESE | N57: ESE - Energisa Sergipe - Distribuidora de Energia S.A. | O57: 155 | P57: 6587 | Q57: NÃO SUPRIDA
L58: 83 | M58: FORCEL | N58: FORCEL - Força e Luz Coronel Vivida Ltda | O58: 156 | P58: 83 | Q58: SUPRIDA
L59: 399 | M59: HIDROPAN | N59: HIDROPAN - Hidroelétrica Panambi S/A. | O59: 157 | P59: 399 | Q59: SUPRIDA
L60: 87 | M60: IENERGIA | N60: IENERGIA - Iguaçu Distribuidora de Energia Elétrica Ltda | O60: 158 | P60: 87 | Q60: NÃO SUPRIDA
L61: 213 | M61: JARI | N61: JARI - Jari Celulose S/A | O61: 159 | P61: 213 | Q61: NÃO SUPRIDA
L62: 88 | M62: JOÃO CESA | N62: JOÃO CESA - Empresa Força e Luz João Cesa Ltda | O62: 143 | P62: 88 | Q62: SUPRIDA
L63: 382 | M63: LIGHT | N63: LIGHT - Light Serviços de Eletricidade S/A. | O63: 160 | P63: 382 | Q63: NÃO SUPRIDA
L64: 401 | M64: MUX Energia | N64: MUX Energia - Muxfeldt Marin & Cia. Ltda | O64: 161 | P64: 401 | Q64: SUPRIDA
L65: 84 | M65: OESTE | N65: CFLO - Companhia Força e Luz do Oeste | O65: 122 | P65: 84 | Q65: SUPRIDA
L66: 397 | M66: RGE | N66: RGE - Rio Grande Energia S/A. | O66: 162 | P66: 397 | Q66: NÃO SUPRIDA
L67: 381 | M67: SANTA MARIA | N67: SANTA MARIA - Empresa Luz e Força Santa Maria S/A. | O67: 149 | P67: 381 | Q67: SUPRIDA
L68: 46 | M68: SULGIPE | N68: SULGIPE - Companhia Sul Sergipana de Eletricidade | O68: 163 | P68: 46 | Q68: SUPRIDA
L69: 400 | M69: UHENPAL | N69: UHENPAL - Usina Hidroelétrica Nova Palma Ltda. | O69: 164 | P69: 400 | Q69: SUPRIDA
L70: 86 | M70: URUSSANGA | N70: URUSSANGA - Empresa Força e Luz Urussanga Ltda | O70: 144 | P70: 86 | Q70: SUPRIDA
L71: 1000040 | M71: ENERGISA Sul Sudeste | N71: ENERGISA SUL SUDESTE | O71: 165 | P71: 1000040 | Q71: NÃO SUPRIDA
L72: 1000041 | M72: NOVA SANTA CRUZ | N72: NOVA SANTA CRUZ | O72: 166 | P72: 1000041 | Q72: NÃO SUPRIDA
L73: 1000042 | M73: RGE SUL | N73: RGE SUL | O73: 167 | P73: 1000042 | Q73: NÃO SUPRIDA

Sheet BD
B1: Banco de Dados | M1: Anexo II | N1: =Resultado!$D$6 -> 0.06616445566
B2: =CAPA!B6 -> EBO | M2: Anexo I | N2: =Resultado!$D$8 -> 0.09630665675
B5: Informações do ano anterior | G5: Dados de abertura (Neutralidade e CVA saldo a compensar) | L5: Dados de Energia | S5: Dados para Revisão
B7: Encargos | G7: Encargo | H7: Valor | I7: Norma | L7: Cotas | M7: Valor da "Cota" | N7: Ano | O7: Custo Médio da Cota | S7: item | T7: Descrição | U7: Detalhe | V7: Valor
B8: CDE Covid TE | C8: 3628710.49 | E8: =C8/($C$8+$C$9) -> 0.8027725223 | G8: CCC | K8: REH 2.998/2021 | L8: Angra | M8: 0.0018101 | N8: 2022 | O8: 349.15 | P8: 24215.755 | Q8: 24.215,755MWh(REH2.998/2021)
B9: CDE Covid TUSD | C9: 891512.1 | E9: =C9/($C$8+$C$9) -> 0.1972274777 | G9: CDE | H9: 12745276.74 | I9: REH 2.864/2021
B10: TFSEE | C10: 371751.4285 | G10: CFURH
B11: CDE | C11: 12905259.61 | D11: =C11+C8 -> 16533970.1 | G11: ESS/EER | H11: =K11 -> 7600610.51 | I11: =J11 -> DSP SGT | J11: DSP SGT | K11: =K15+212206 -> 7600610.51 | L11: Ano | M11: Cota Itaipu
G12: PROINFA | H12: 8961536.051 | I12: ReH 2.995/2021
B13: ESS/ERR | C13: 5084423.6 | G13: ONS | H13: 27638.03571 | I13: Contribuição 2021 | P13: 13378117.61 | Q13: =P13*M8 -> 24215.73069
B14: PROINFA | C14: 5615143.742 | G14: TFSEE
B15: P&D | C15: 2629585.501 | F15: =12*430000-C8-C9 -> 639777.41 | G15: EER | H15: =K15 -> 7388404.51 | I15: =J15 -> DSP SGT | J15: DSP SGT | K15: 7388404.51
B16: ONS | C16: 30020.57 | G16: TFSEE Fator de Carga | H16: 0.89
F17: =F15/12 -> 53314.78417 | G17: CDE Covid | H17: 5170849.457 | I17: Previsão-2022
B18: Pmix | C18: 207.2138653 | F18: =F17*SUM(Mercado!R54:R65) -> 658712.002 | G18: CDE Covid TE% | H18: =E8 -> 0.8027725223
B19: PN2021 | C19: 0.01694864806 | D19: REH 2832/2021 | G19: CDE Covid TUSD% | H19: =E9 -> 0.1972274777
B20: PN2022 | C20: 0.01694864806 | D20: REH 2832/2021
B21: PT2021 | C21: 0.05181427224 | D21: REH 2832/2021 | G21: Informações de Postergação
B22: Perda RB total | C22: 0.02065949492 | L22: Mês | M22: Potência | N22: Tarifa | O22: Perdas | P22: Energia
G23: Tipo | H23: Valor
B24: CVA RB | C24: 3840471.499 | G24: Data Postergada | H24: 44596
B25: CVA CCC | C25: 0 | G25: Data Anterior | H25: 44596
B26: CVA CDE | C26: 296560.5914 | G26: Diferença de Dias | H26: 0
B27: CVA CFURH | G27: MesesAdin | H27: 0
B28: CVA ESS\ERR | C28: -4336882.051 | G28: Reversão Subvenção CDE
B29: CVA PROINFA | C29: 88621.355 | G29: Data 4CRT | H29: 42770
B30: CVA TRANS. ITAIPU | C30: 0
B31: CVA ENERGIA | C31: 4329407.261
B32: CVA CDE E | C32: -3017192.784
G35: Nome | H35: Valor
G36: TUSDg Export DRP | H36: 0 | L36: Mês | M36: Potência | N36: Tarifa DRA | O36: Tarifa DRP | P36: Colunas1
G37: TUSDg ONS DRP | H37: 0
G38: TUSDg ONS DRA | H38: 0
B39: Rede Básica | G39: TUSDg Export DRA | H39: 0
C40: 469716.5916
G42: Fator X | H42: Valor
G43: fatorx_t | H43: 0.009935359261 | I43: REH 2832/2021
B44: Mercado | G44: fatorx_pd | H44: 0.003220845164 | I44: REH 2832/2021
C45: 713849.82
C46: 281475657 | G46: DecFec Processo Anterior | H46: Valor
G47: DEC A-2 | H47: 0
B48: 2022 | C48: 13104.63275 | D48: REH 2.995/2021 | G48: DEC A-1 | H48: 0
B49: Detalhamento de Encargos ESS e CDE | G49: FEC A-2 | H49: 0
G50: FEC A-1 | H50: 0 | L50: Dado | M50: Valor | N50: Início | O50: Fim
L51: MUST | M51: 9039 | N51: 44013 | O51: 44377
G52: Dados de dólar | H52: Valor | L52: MUST | M52: 7919 | N52: 44378 | O52: 44742
G53: Dólar médio | H53: 5.624731818 | L53: Potência Max | M53: 10935 | N53: 44197 | O53: 44561
G54: Data Inicial | H54: 44551 | L54: Potência Max | M54: 10935 | N54: 44562 | O54: 44926
G55: Data Final | H55: 44580
G56: Último Dado Diponível | H56: 44580 | L56: Dados de perda | M56: Valor | O56: Agente | P56: Ressarcimento P&D
B57: Subsídios Concedidos (sem ajuste) | L57: Perdas RB | M57: 12094.72
B58: Mês de Início | C58: Carga Fonte | D58: Geração | E58: Distribuição | F58: Água, Esgoto e Saneamento | G58: Rural | H58: Irrigante/Aquicultor | L58: Perdas DITs | M58: 0
B59: 2021-02-01 | C59: 287181.965 | D59: 0 | E59: 0 | F59: 25036.18167 | G59: 114658.8775 | H59: 57396.47583
B60: 2022-02-01 | C60: 422215.2508 | D60: 0 | E60: 0 | F60: 13696.245 | G60: 63293.145 | H60: 65502.85583
B65: Data | C65: Tipo | D65: Valor | E65: Valor IGPM | F65: Valor IPCA | G65: EixoRef
B66: =DATE(YEAR(CAPA!C10),MONTH(CAPA!C10),1) -> 2022-02-01 | C66: =IF(CAPA!C7="Revisão",1,0) -> 0 | D66: =Resultado!L11 -> 566.7342663 | E66: =IFERROR(VLOOKUP(EDATE($B66,-1),Índices!$B$6:$F$500,2,FALSE)/VLOOKUP(EDATE(MIN($B$67:$B$81),-1),Índices!$B$6:$F$500,2,FALSE)*VLOOKUP(MIN($B$67:$B$81),$B$67:$D$81,3,FALSE),0) -> 754.583088 | F66: =IFERROR(VLOOKUP(EDATE($B66,-1),Índices!$B$6:$F$500,3,FALSE)/VLOOKUP(EDATE(MIN($B$67:$B$81),-1),Índices!$B$6:$F$500,3,FALSE)*VLOOKUP(MIN($B$67:$B$81),$B$67:$D$81,3,FALSE),0) -> 580.0401914 | G66: =IF(B66<>"",150+1,"") -> 151
B67: 2021-02-01 | C67: Revisão | D67: 517.08
B68: 2020-02-01 | C68: Reajuste | D68: 497.66
B69: 2019-04-01 | C69: RTE | D69: 507.38
B70: 2019-02-01 | C70: Reajuste | D70: 520.29
B71: 2018-02-01 | C71: Reajuste | D71: 498.85
B72: 2017-04-01 | C72: RTE | D72: 427.08
B73: 2017-02-01 | C73: Revisão | D73: 428.37
B74: 2016-02-01 | C74: Reajuste | D74: 436.68
B75: 2015-04-01 | C75: RTE | D75: 407.03
B76: 2015-02-01 | C76: Reajuste | D76: 404.88
B77: 2014-02-01 | C77: Reajuste | D77: 289.8
B78: 2013-02-01 | C78: Revisão | D78: 274.55
B79: 2013-01-01 | C79: RTE | D79: 264.77
B80: 2012-02-01 | C80: Reajuste | D80: 322.89
B84: Tabela de Resumo de Montante DRP ano anterior/ Montante Apurado pelo Mercado
B85: detalhe_grupo | C85: GrupoTarifa | D85: tipoBase | E85: tipofatura | F85: ValorCTAnterior_Sum | G85: ValorAnt_Sum | L85: Processo Anterior | N85: RTE
L86: MWh | M86: R$ | N86: MWh | O86: R$ | S86: DthEfetivaPagamento | T86: VlrGarantiaFinanceira
I87: BILATERAL | K87: valor | L87: 89176.8 | M87: 32979364.18 | S87: 44197 | T87: 40631.94
I88: CCEAR-DISP | J88: Alternativa | K88: valor | L88: 15508.80236 | M88: 3782143.564 | S88: 44228 | T88: 40631.94
I89: CCEAR-DISP | J89: Nova | K89: valor | L89: 132334.1168 | M89: 37538217.59 | S89: 44256 | T89: 40329.13
H90: Belo Monte | I90: CCEAR-QTD | J90: =H90 -> Belo Monte | K90: valor | L90: 68650.062 | M90: 9631428.218 | S90: 44287 | T90: 40329.13
I91: CCEAR-QTD | J91: Alternativa | K91: valor | L91: 1135.969 | M91: 298318.9419 | S91: 44317 | T91: 40329.13
I92: CCEAR-QTD | J92: Madeira | K92: valor | L92: 45666.958 | M92: 6895190.718 | S92: 44348 | T92: 40329.13
I93: CCEAR-QTD | J93: Nova | K93: valor | L93: 90528.6614 | M93: 17740881.28 | S93: 44378 | T93: 87155.98
I94: CCEN | K94: valor | L94: 27571.75753 | M94: 6883013.55 | S94: 44440 | T94: 43577.99
I95: PROINFA | K95: valor | L95: 13438.82389 | S95: 44470 | T95: 43577.99
I96: SOBRA/EXPOSIÇÃO | K96: valor | L96: -31214.42939 | M96: -7677925.032 | P96: Tabela Sparta RTP 2021 - - BT286 | S96: 44501 | T96: 43577.99
P97: -31214.42939 | Q97: -7677925.032 | R97: (anteriores) | S97: 44531 | T97: 43577.99
I99: CCGF | J99: cota | K99: valor | L99: 164969.1578 | M99: 18927166.96 | P99: Aba Energia Sparta -
V105: Empresa | W105: AT | X105: MT | Y105: BT
V106: 167 | W106: 0.02134 | X106: 0.35825 | Y106: 0.62041
V107: 102 | W107: 0.064 | X107: 0.32003 | Y107: 0.61596
Q108: =L88+L89 -> 147842.9191 | V108: 103 | W108: 0.02996 | X108: 0.27106 | Y108: 0.69898
Q109: =L90+L92 -> 114317.02 | V109: 104 | W109: 0.07171 | X109: 0.2909 | Y109: 0.63739
Q110: =L91+L93 -> 91664.6304 | V110: 105 | W110: 0.00823 | X110: 0.24677 | Y110: 0.745
I111: Agente | J111: idagente | K111: indexador | L111: database | M111: RAP do ciclo | N111: Colunas1 | O111: RAP atualizada | V111: 165 | W111: 0.00795 | X111: 0.22554 | Y111: 0.76651
O112: =M112*VLOOKUP(CAPA!C15,Índices!$B$6:$F$626,IF(BD!K112="IPCA",3,2),FALSE)/VLOOKUP(L112,Índices!$B$6:$F$626,IF(BD!K112="IPCA",3,2),FALSE) ->  | V112: 108 | W112: 0.06098 | X112: 0.1711 | Y112: 0.76792
O113: =M113*VLOOKUP(CAPA!C16,Índices!$B$6:$F$626,IF(BD!K113="IPCA",3,2),FALSE)/VLOOKUP(L113,Índices!$B$6:$F$626,IF(BD!K113="IPCA",3,2),FALSE) ->  | V113: 109 | W113: 0.01034 | X113: 0.24366 | Y113: 0.746
O114: =M114*VLOOKUP(CAPA!C17,Índices!$B$6:$F$626,IF(BD!K114="IPCA",3,2),FALSE)/VLOOKUP(L114,Índices!$B$6:$F$626,IF(BD!K114="IPCA",3,2),FALSE) ->  | V114: 110 | W114: 0.01165 | X114: 0.24322 | Y114: 0.74513
O115: =M115*VLOOKUP(CAPA!C18,Índices!$B$6:$F$626,IF(BD!K115="IPCA",3,2),FALSE)/VLOOKUP(L115,Índices!$B$6:$F$626,IF(BD!K115="IPCA",3,2),FALSE) ->  | V115: 111 | W115: 0.03791 | X115: 0.37961 | Y115: 0.58248
O116: =M116*VLOOKUP(CAPA!C19,Índices!$B$6:$F$626,IF(BD!K116="IPCA",3,2),FALSE)/VLOOKUP(L116,Índices!$B$6:$F$626,IF(BD!K116="IPCA",3,2),FALSE) ->  | V116: 112 | W116: 0.02273 | X116: 0.26361 | Y116: 0.71367
O117: =M117*VLOOKUP(CAPA!C20,Índices!$B$6:$F$626,IF(BD!K117="IPCA",3,2),FALSE)/VLOOKUP(L117,Índices!$B$6:$F$626,IF(BD!K117="IPCA",3,2),FALSE) ->  | V117: 113 | W117: 0.01263 | X117: 0.23345 | Y117: 0.75392
O118: =M118*VLOOKUP(CAPA!C21,Índices!$B$6:$F$626,IF(BD!K118="IPCA",3,2),FALSE)/VLOOKUP(L118,Índices!$B$6:$F$626,IF(BD!K118="IPCA",3,2),FALSE) ->  | V118: 114 | W118: 0.01726 | X118: 0.23794 | Y118: 0.7448
O119: =M119*VLOOKUP(CAPA!C22,Índices!$B$6:$F$626,IF(BD!K119="IPCA",3,2),FALSE)/VLOOKUP(L119,Índices!$B$6:$F$626,IF(BD!K119="IPCA",3,2),FALSE) ->  | V119: 115 | W119: 0.00993 | X119: 0.23087 | Y119: 0.7592
O120: =M120*VLOOKUP(CAPA!C23,Índices!$B$6:$F$626,IF(BD!K120="IPCA",3,2),FALSE)/VLOOKUP(L120,Índices!$B$6:$F$626,IF(BD!K120="IPCA",3,2),FALSE) ->  | S120: iddet1 | T120: valor | V120: 116 | W120: 0.00806 | X120: 0.16835 | Y120: 0.82359
O121: =M121*VLOOKUP(CAPA!C24,Índices!$B$6:$F$626,IF(BD!K121="IPCA",3,2),FALSE)/VLOOKUP(L121,Índices!$B$6:$F$626,IF(BD!K121="IPCA",3,2),FALSE) ->  | S121: 56 | T121: 44572 | V121: 117 | W121: 0.03028 | X121: 0.29131 | Y121: 0.67841
O122: =M122*VLOOKUP(CAPA!C25,Índices!$B$6:$F$626,IF(BD!K122="IPCA",3,2),FALSE)/VLOOKUP(L122,Índices!$B$6:$F$626,IF(BD!K122="IPCA",3,2),FALSE) ->  | S122: 57 | T122: 44576 | V122: 118 | W122: 0.04215 | X122: 0.2081 | Y122: 0.74975
O123: =M123*VLOOKUP(CAPA!C26,Índices!$B$6:$F$626,IF(BD!K123="IPCA",3,2),FALSE)/VLOOKUP(L123,Índices!$B$6:$F$626,IF(BD!K123="IPCA",3,2),FALSE) ->  | S123: 58 | T123: 44531 | V123: 119 | W123: 0.01807 | X123: 0.11713 | Y123: 0.8648
O124: =M124*VLOOKUP(CAPA!C27,Índices!$B$6:$F$626,IF(BD!K124="IPCA",3,2),FALSE)/VLOOKUP(L124,Índices!$B$6:$F$626,IF(BD!K124="IPCA",3,2),FALSE) ->  | V124: 120 | W124: - | X124: 0.17688 | Y124: 0.82312
O125: =M125*VLOOKUP(CAPA!C28,Índices!$B$6:$F$626,IF(BD!K125="IPCA",3,2),FALSE)/VLOOKUP(L125,Índices!$B$6:$F$626,IF(BD!K125="IPCA",3,2),FALSE) ->  | V125: 123 | W125: - | X125: 0.13612 | Y125: 0.86388
O126: =M126*VLOOKUP(CAPA!C29,Índices!$B$6:$F$626,IF(BD!K126="IPCA",3,2),FALSE)/VLOOKUP(L126,Índices!$B$6:$F$626,IF(BD!K126="IPCA",3,2),FALSE) ->  | V126: 166 | W126: 0.04257 | X126: 0.29652 | Y126: 0.66092
O127: =M127*VLOOKUP(CAPA!C30,Índices!$B$6:$F$626,IF(BD!K127="IPCA",3,2),FALSE)/VLOOKUP(L127,Índices!$B$6:$F$626,IF(BD!K127="IPCA",3,2),FALSE) ->  | V127: 128 | W127: - | X127: 0.40427 | Y127: 0.59573
O128: =M128*VLOOKUP(CAPA!C31,Índices!$B$6:$F$626,IF(BD!K128="IPCA",3,2),FALSE)/VLOOKUP(L128,Índices!$B$6:$F$626,IF(BD!K128="IPCA",3,2),FALSE) ->  | V128: 129 | W128: 0.02905 | X128: 0.24895 | Y128: 0.722
O129: =M129*VLOOKUP(CAPA!C32,Índices!$B$6:$F$626,IF(BD!K129="IPCA",3,2),FALSE)/VLOOKUP(L129,Índices!$B$6:$F$626,IF(BD!K129="IPCA",3,2),FALSE) ->  | V129: 130 | W129: 0.0175 | X129: 0.14397 | Y129: 0.83853
O130: =M130*VLOOKUP(CAPA!C33,Índices!$B$6:$F$626,IF(BD!K130="IPCA",3,2),FALSE)/VLOOKUP(L130,Índices!$B$6:$F$626,IF(BD!K130="IPCA",3,2),FALSE) ->  | S130: Nível | T130: Mercado Faturado A-6 | V130: 131 | W130: - | X130: 0.30099 | Y130: 0.69901
O131: =M131*VLOOKUP(CAPA!C34,Índices!$B$6:$F$626,IF(BD!K131="IPCA",3,2),FALSE)/VLOOKUP(L131,Índices!$B$6:$F$626,IF(BD!K131="IPCA",3,2),FALSE) ->  | S131: AT | T131: 32517.185 | V131: 132 | W131: 0.02757 | X131: 0.26424 | Y131: 0.70819
O132: =M132*VLOOKUP(CAPA!C35,Índices!$B$6:$F$626,IF(BD!K132="IPCA",3,2),FALSE)/VLOOKUP(L132,Índices!$B$6:$F$626,IF(BD!K132="IPCA",3,2),FALSE) ->  | S132: BT | T132: 400455.039 | V132: 133 | W132: 0.01856 | X132: 0.19536 | Y132: 0.78608
S133: MT | T133: 235226.026 | V133: 135 | W133: 0.04788 | X133: 0.27054 | Y133: 0.68158
V134: 136 | W134: 0.06732 | X134: 0.35547 | Y134: 0.57721
V135: 138 | W135: - | X135: 0.07651 | Y135: 0.92349
V136: 139 | W136: - | X136: 0.35483 | Y136: 0.64517
V137: 140 | W137: 0.01004 | X137: 0.21058 | Y137: 0.77938
V138: 143 | W138: - | X138: 0.20409 | Y138: 0.79591
V139: 144 | W139: - | X139: 0.48131 | Y139: 0.51869
A140: NumBar | B140: Nome Conexão | C140: Tensão | D140: Posto Tarifário | E140: Tarifas Fronteiras - DRA | F140: Tarifa Fronteira - DRP | G140: Tarifas RB - DRA | H140: Tarifa RB - DRP | I140: M01 | J140: M02 | K140: M03 | L140: M04 | M140: M05 | N140: M06 | O140: M07 | P140: M08 | Q140: M09 | R140: M10 | S140: M11 | T140: M12 | V140: 145 | W140: 0.03725 | X140: 0.29306 | Y140: 0.66969
A141: 5226 | B141: C.GRANDE II - 69 kV (A) | C141: 69 | D141: Ponta | E141: 6380 | F141: 5536 | G141: 2200 | H141: 1474 | I141: 110 | J141: 110 | K141: 110 | L141: 110 | M141: 110 | N141: 110 | O141: 110 | P141: 110 | Q141: 110 | R141: 110 | S141: 110 | T141: 110 | V141: 146 | W141: - | X141: 0.14124 | Y141: 0.85876
A142: 5226 | B142: C.GRANDE II - 69 kV (A) | C142: 69 | D142: Fora Ponta | E142: 6310 | F142: 5248 | G142: 2200 | H142: 1474 | I142: 114.534 | J142: 114.534 | K142: 114.534 | L142: 114.534 | M142: 114.534 | N142: 114.534 | O142: 114.534 | P142: 114.534 | Q142: 114.534 | R142: 114.534 | S142: 114.534 | T142: 114.534 | V142: 147 | W142: - | X142: 0.20977 | Y142: 0.79023
V143: 148 | W143: 0.03455 | X143: 0.23757 | Y143: 0.72788
V144: 149 | W144: - | X144: 0.17399 | Y144: 0.82601
V145: 150 | W145: 0.03635 | X145: 0.17413 | Y145: 0.78952
V146: 151 | W146: 0.02735 | X146: 0.28351 | Y146: 0.68915
V147: 152 | W147: 0.00215 | X147: 0.1412 | Y147: 0.85665
V148: 153 | W148: 0.03606 | X148: 0.17601 | Y148: 0.78793
V149: 154 | W149: 0.12913 | X149: 0.26626 | Y149: 0.60462
V150: 155 | W150: 0.04008 | X150: 0.23225 | Y150: 0.72768
V151: 156 | W151: - | X151: 0.35985 | Y151: 0.64015
V152: 157 | W152: - | X152: 0.15963 | Y152: 0.84037
V153: 158 | W153: - | X153: 0.33049 | Y153: 0.66951
V154: 160 | W154: 0.1013 | X154: 0.22818 | Y154: 0.67051
V155: 161 | W155: - | X155: 0.28355 | Y155: 0.71645
V156: 163 | W156: 0.03507 | X156: 0.1664 | Y156: 0.79853
V157: 164 | W157: - | X157: 0.12897 | Y157: 0.87103
B441: Transmissora | C441: Indice de atualização | D441: ENCARGO DE CONEXÃO repassável | E441: Instalações com Estabelecimento de RAP que entraram em operação | F441: PA para repasse a tarifa | G441: PA Qualidade DIT | H441: ENCARGO DE CONEXÃO ou PA não rapassável a tarifa (REN 67/2004 ou 68/2004) | I441: PA Empreendimento Autorizado sem estabelecimento prévio de RAP | J441: Contrato
B442: CHESF | C442: IPCA | D442: 293698.86 | E442: 0 | F442: 35787.96 | G442: 0 | H442: 0 | I442: 0 | J442: 061/2001
B462: Empresa | C462: idsgtag | D462: dtConv | E462: VlrMontante | F462: VlrTarOutros | G462: VlrTarB4a | H462: VlrTarB4b
B463: EBO - ENERGISA Borborema | C463: 140 | D463: 20488 | E463: 0
B469: Tabela de Financeiros para o cálculo da Neutralidade | G469: Tabela de Financeiros para o cálculo da Neutralidade de RB | M469: Tabela de Financeiros para o cálculo da Neutralidade CVA processamento
B470: Grupo Tarifa | C470: Detalhe Grupo | D470: Valor | E470: Percentual | G470: Tipo | H470: Detalhe | I470: Posto | J470: Unidade | K470: Valor | M470: Grupo Tarifa | N470: Detalhe Grupo | O470: Valor | P470: Percentual
B471: ENCARGO | C471: CDE | D471: 2290809.531 | G471: CUSTO | H471: CONEXÃO D | J471: R$ | K471: 0 | M471: ENCARGO | N471: CDE | O471: 317497.7882
B472: ENCARGO | C472: CDE Energia | D472: -126435.0145 | G472: CUSTO | H472: CONEXÃO T | J472: R$ | K472: 469716.5916 | M472: ENCARGO | N472: CDE Energia | O472: -3048066.075
B473: ENCARGO | C473: ESS/ERR | D473: 2976397.438 | G473: CUSTO | H473: EUSD | J473: R$ | K473: 14591191.03 | M473: ENCARGO | N473: ESS/ERR | O473: -4708948.404
B474: ENCARGO | C474: ONS | D474: 498.2568212 | G474: CUSTO | H474: EUST - CI | J474: R$ | K474: 1e-06 | M474: ENCARGO | N474: PROINFA | O474: 89588.39129
B475: ENCARGO | C475: PROINFA | D475: 632.4395502 | G475: CUSTO | H475: EUST - FR | J475: R$ | K475: 5428557.2 | M475: ENERGIA | N475: ENERGIA REQUERIDA SEM PERDAS | O475: 1059871.312
B476: ENCARGO | C476: TFSEE | D476: 181.7919808 | G476: CUSTO | H476: EUST - ITAIPU | J476: R$ | K476: 0 | M476: ENERGIA | N476: PERDAS NA RB (sobre as perdas na D) | O476: 1863.265551
B477: ENERGIA | C477: ENERGIA REQUERIDA SEM PERDAS | D477: 778629.8429 | G477: CUSTO | H477: EUST - RB | J477: R$ | K477: 15653762.3 | M477: ENERGIA | N477: PERDAS NA RB (sobre o mercado cativo) | O477: 21896.406
B478: ENERGIA | C478: PERDAS NA RB (sobre as perdas na D) | D478: 1312.286367 | G478: CUSTO | H478: TRANSPORTE ITAIPU | J478: R$ | K478: 0 | M478: ENERGIA | N478: PERDAS NÃO TÉCNICAS | O478: 13968.58443
B479: ENERGIA | C479: PERDAS NA RB (sobre o mercado cativo) | D479: 15421.50289 | G479: CUSTO | H479: TUSDg ONS (A2) | J479: R$ | K479: 0 | M479: ENERGIA | N479: PERDAS TÉCNICAS | O479: 76220.72358
B480: ENERGIA | C480: PERDAS NÃO TÉCNICAS | D480: 10261.9597 | G480: CUSTO | H480: TUSDg T (A2) | J480: R$ | K480: 0 | M480: TRANSPORTE TERCEIROS | N480: EUST - RB | O480: 1321378.873
B481: ENERGIA | C481: PERDAS TÉCNICAS | D481: 55995.22256 | G481: PARÂMETRO | I481: FORA PONTA | J481: MW | K481: 1272.194
B482: TRANSPORTE TERCEIROS | C482: EUSD | D482: 1039627.13 | G482: PARÂMETRO | I482: PONTA | J482: MW | K482: 1195.332
B483: TRANSPORTE TERCEIROS | C483: EUST - RB | D483: -987891.4611 | G483: PARÂMETRO | H483: EUST - FR | I483: FORA PONTA | J483: R$ | K483: 2798826.8
B484: Parcela B | D484: -228944.7567 | G484: PARÂMETRO | H484: EUST - FR | I484: PONTA | J484: R$ | K484: 2629730.4
G485: PARÂMETRO | H485: EUST - RB | I485: FORA PONTA | J485: R$ | K485: 8027544.14
G486: PARÂMETRO | H486: EUST - RB | I486: PONTA | J486: R$ | K486: 7626218.16
B561: Grupo Tarifa | C561: Detalhe Grupo | D561: Det3 | E561: Valor | G561: Grupo Tarifa | H561: Detalhe Grupo | I561: Det3 | J561: Valor
B562: ENCARGO | C562: CDE | D562: Covid CVA Saldo a Compensar | E562: 2572894.369 | G562: ENCARGO | H562: CDE | I562: Covid CVA | J562: 17902.65365
B563: ENCARGO | C563: CDE | D563: Covid Neutralidade | E563: -491317.7807 | G563: ENCARGO | H563: ESS/ERR | I563: Covid CVA | J563: -327689.3983
B564: ENCARGO | C564: ESS/ERR | D564: Covid CVA Saldo a Compensar | E564: 3216734.226 | G564: ENCARGO | H564: PROINFA | I564: Covid CVA | J564: 60.22218712
B565: ENCARGO | C565: ESS/ERR | D565: Covid Neutralidade | E565: -153867.1068 | G565: ENERGIA | H565: ENERGIA REQUERIDA SEM PERDAS | I565: Covid CVA | J565: -2889257.343
B566: ENCARGO | C566: ONS | D566: Covid Neutralidade | E566: 843.4192668 | G566: ENERGIA | H566: PERDAS NA RB (sobre as perdas na D) | I566: Covid CVA | J566: -5079.346531
B567: ENCARGO | C567: PROINFA | D567: Covid CVA Saldo a Compensar | E567: 55966.95056 | G567: ENERGIA | H567: PERDAS NA RB (sobre o mercado cativo) | I567: Covid CVA | J567: -59690.5974
B568: ENCARGO | C568: PROINFA | D568: Covid Neutralidade | E568: -89717.84839 | G568: ENERGIA | H568: PERDAS NÃO TÉCNICAS | I568: Covid CVA | J568: -38078.99569
B569: ENCARGO | C569: TFSEE | D569: Covid Neutralidade | E569: 307.7265633 | G569: ENERGIA | H569: PERDAS TÉCNICAS | I569: Covid CVA | J569: -207781.1549
B570: ENERGIA | C570: ENERGIA REQUERIDA SEM PERDAS | D570: Covid CVA Saldo a Compensar | E570: -7084115.021 | G570: TRANSPORTE TERCEIROS | H570: EUST - RB | I570: Covid CVA | J570: -2558390.081
B571: ENERGIA | C571: ENERGIA REQUERIDA SEM PERDAS | D571: Covid Demais Componentes | E571: -3100954.745
B572: ENERGIA | C572: PERDAS NA RB (sobre as perdas na D) | D572: Covid CVA Saldo a Compensar | E572: -12453.95297
B573: ENERGIA | C573: PERDAS NA RB (sobre as perdas na D) | D573: Covid Demais Componentes | E573: -5451.512918
B574: ENERGIA | C574: PERDAS NA RB (sobre o mercado cativo) | D574: Covid CVA Saldo a Compensar | E574: -146354.2383
B575: ENERGIA | C575: PERDAS NA RB (sobre o mercado cativo) | D575: Covid Demais Componentes | E575: -64064.15881
B576: ENERGIA | C576: PERDAS NÃO TÉCNICAS | D576: Covid CVA Saldo a Compensar | E576: -93365.16388
B577: ENERGIA | C577: PERDAS NÃO TÉCNICAS | D577: Covid Demais Componentes | E577: -40869.06369
B578: ENERGIA | C578: PERDAS TÉCNICAS | D578: Covid CVA Saldo a Compensar | E578: -509454.654
B579: ENERGIA | C579: PERDAS TÉCNICAS | D579: Covid Demais Componentes | E579: -223005.3892
B580: TRANSPORTE TERCEIROS | C580: EUST - RB | D580: Covid CVA Saldo a Compensar | E580: -1021491.614

Sheet Entrada
A1: Entrada de parâmetros para cálculo tarifário
B4: Energia | D4: Últ. Atulização | F4: Parâmetros para Revisão | P4: ="Caso de OR para a empresa é: " &IF(BD!C53=4,"caso 1","caso 3") -> Caso de OR para a empresa é: caso 3
D6: 44547 | F6: CAPEX - Ativos de Distribuição | J6: Custo Operacional Real do(s) último(s) ano(s) | P6: Outras Receitas
B7: Montante de Geração Própria | D7: 44547 | F7: (1) Ativo Imobilizado em Serviço (Valor Novo de Reposição) | G7: =G71*VLOOKUP(DATE(YEAR(CAPA!$C$10),MONTH(CAPA!$C$10)-1,1),Índices!$B$135:$D$638,3,0)/VLOOKUP(DATE(YEAR($G$70),MONTH($G$70)-1,1),Índices!$B$135:$D$638,3,0) ->  | J7: Ano do Custo Operacional | L7: 2018 | M7: 2019 | P7: Tipo de Receita | Q7: ='VPB e Fator X'!G163 -> 2021-07-01 | R7: ='VPB e Fator X'!H163 -> 2021-06-01 | S7: ='VPB e Fator X'!I163 -> 2021-05-01 | T7: ='VPB e Fator X'!J163 -> 2021-04-01 | U7: ='VPB e Fator X'!K163 -> 2021-03-01 | V7: ='VPB e Fator X'!L163 -> 2021-02-01 | W7: ='VPB e Fator X'!M163 -> 2021-01-01 | X7: ='VPB e Fator X'!N163 -> 2020-12-01 | Y7: ='VPB e Fator X'!O163 -> 2020-11-01 | Z7: ='VPB e Fator X'!P163 -> 2020-10-01 | AA7: ='VPB e Fator X'!Q163 -> 2020-09-01 | AB7: ='VPB e Fator X'!R163 -> 2020-08-01 | AC7: ='VPB e Fator X'!S163 -> 2020-07-01 | AD7: ='VPB e Fator X'!T163 -> 2020-06-01 | AE7: ='VPB e Fator X'!U163 -> 2020-05-01 | AF7: ='VPB e Fator X'!V163 -> 2020-04-01 | AG7: ='VPB e Fator X'!W163 -> 2020-03-01 | AH7: ='VPB e Fator X'!X163 -> 2020-02-01 | AI7: ='VPB e Fator X'!Y163 -> 2020-01-01 | AJ7: ='VPB e Fator X'!Z163 -> 2019-12-01 | AK7: ='VPB e Fator X'!AA163 -> 2019-11-01 | AL7: ='VPB e Fator X'!AB163 -> 2019-10-01 | AM7: ='VPB e Fator X'!AC163 -> 2019-09-01 | AN7: ='VPB e Fator X'!AD163 -> 2019-08-01 | AO7: ='VPB e Fator X'!AE163 -> 2019-07-01 | AP7: ='VPB e Fator X'!AF163 -> 2019-06-01 | AQ7: ='VPB e Fator X'!AG163 -> 2019-05-01 | AR7: ='VPB e Fator X'!AH163 -> 2019-04-01 | AS7: ='VPB e Fator X'!AI163 -> 2019-03-01 | AT7: ='VPB e Fator X'!AJ163 -> 2019-02-01 | AU7: ='VPB e Fator X'!AK163 -> 2019-01-01 | AV7: ='VPB e Fator X'!AL163 -> 2018-12-01 | AW7: ='VPB e Fator X'!AM163 -> 2018-11-01 | AX7: ='VPB e Fator X'!AN163 -> 2018-10-01 | AY7: ='VPB e Fator X'!AO163 -> 2018-09-01 | AZ7: ='VPB e Fator X'!AP163 -> 2018-08-01 | BA7: ='VPB e Fator X'!AQ163 -> 2018-07-01 | BB7: ='VPB e Fator X'!AR163 -> 2018-06-01 | BC7: ='VPB e Fator X'!AS163 -> 2018-05-01 | BD7: ='VPB e Fator X'!AT163 -> 2018-04-01
B8: Custo médio da Geração Própria | D8: 44547 | F8: (2) Índice de Aproveitamento Integral | G8: =G72*VLOOKUP(DATE(YEAR(CAPA!$C$10),MONTH(CAPA!$C$10)-1,1),Índices!$B$135:$D$638,3,0)/VLOOKUP(DATE(YEAR($G$70),MONTH($G$70)-1,1),Índices!$B$135:$D$638,3,0) ->  | J8: CONTA PESSOAL | P8: Serviços Cobráveis
D9: 44547 | F9: (3) Obrigações Especiais Bruta | G9: =G73*VLOOKUP(DATE(YEAR(CAPA!$C$10),MONTH(CAPA!$C$10)-1,1),Índices!$B$135:$D$638,3,0)/VLOOKUP(DATE(YEAR($G$70),MONTH($G$70)-1,1),Índices!$B$135:$D$638,3,0) ->  | J9: BMP - 610530501; 610550501; 610532501; 610552501 | K9: Remuneração | P9: Arrecadação de convênios ou valores pela fatura
D10: 44547 | F10: (4) Bens Totalmente Depreciados | G10: =G74*VLOOKUP(DATE(YEAR(CAPA!$C$10),MONTH(CAPA!$C$10)-1,1),Índices!$B$135:$D$638,3,0)/VLOOKUP(DATE(YEAR($G$70),MONTH($G$70)-1,1),Índices!$B$135:$D$638,3,0) ->  | J10: BMP - 610530502; 610550502; 610532502; 610552502 | K10: Encargos | P10: Arrecadação de faturas de terceiros por estrutura própria
F11: (5) Base de Remuneração Bruta = (1)-(2)-(3)-(4) | G11: =G7-G8-G9-G10 ->  | J11: BMP - 610530503; 610550503; 610532503; 610552503 | K11: Previdência Privada - Corrente | P11: Veiculação de publicidade
F12: (6) Depreciação Acumulada | G12: =G76*VLOOKUP(DATE(YEAR(CAPA!$C$10),MONTH(CAPA!$C$10)-1,1),Índices!$B$135:$D$638,3,0)/VLOOKUP(DATE(YEAR($G$70),MONTH($G$70)-1,1),Índices!$B$135:$D$638,3,0) ->  | J12: BMP - 610530508; 610550508; 610532508; 610552508 | K12: Outros Benefícios | P12: Aluguel ou cessão onerosa de imóveis e espaços físicos
F13: (7) AIS Líquido (Valor de Mercado em Uso) | G13: =G7-G12 ->  | J13: BMP - 610530506; 610550506; 610532506; 610552506 | K13: Despesas Rescisórias | P13: Compartilhamento de infraestrutura
F14: (8) Índice de Aproveitamento Depreciado | G14: =G78*VLOOKUP(DATE(YEAR(CAPA!$C$10),MONTH(CAPA!$C$10)-1,1),Índices!$B$135:$D$638,3,0)/VLOOKUP(DATE(YEAR($G$70),MONTH($G$70)-1,1),Índices!$B$135:$D$638,3,0) ->  | J14: BMP - 610530507; 610550507; 610532507; 610552507 | K14: Participação nos Lucros e Resultados - PLR | P14: Serviços de avaliação técnica e aferição de medidores.
F15: (9) Valor da Base de Remuneração (VBR) | G15: =G13-G14 ->  | J15: BMP - 610530599; 610550599; 610532599; 610552599 | K15: Outros | P15: Operacionalização de serviço de créditos tributários
F16: (10) Almoxarifado em Operação | G16: =G80*VLOOKUP(DATE(YEAR(CAPA!$C$10),MONTH(CAPA!$C$10)-1,1),Índices!$B$135:$D$638,3,0)/VLOOKUP(DATE(YEAR($G$70),MONTH($G$70)-1,1),Índices!$B$135:$D$638,3,0) ->  | J16: BMP - 610530510; 610550510; 610532510; 610552510 | K16: (-) Créditos de Tributos Recuperáveis | P16: Elaboração de projeto, construção, operação, manutenção ou reforma de:
F17: (11) Ativo Diferido | G17: =G81*VLOOKUP(DATE(YEAR(CAPA!$C$10),MONTH(CAPA!$C$10)-1,1),Índices!$B$135:$D$638,3,0)/VLOOKUP(DATE(YEAR($G$70),MONTH($G$70)-1,1),Índices!$B$135:$D$638,3,0) ->  | J17: BMP - 6105306; 6105506; 6105326; 6105526 | K17: Administradores | P17: (1) redes de distribuição de energia elétrica destinadas à regularização fundiária de interesse específico e ao atendimento dos empreendimentos de múltiplas unidades consumidoras;
F18: (12) Obrigações Especiais Líquida | G18: =G82*VLOOKUP(DATE(YEAR(CAPA!$C$10),MONTH(CAPA!$C$10)-1,1),Índices!$B$135:$D$638,3,0)/VLOOKUP(DATE(YEAR($G$70),MONTH($G$70)-1,1),Índices!$B$135:$D$638,3,0) ->  | K18: Subtotal | L18: =SUM(L9:L17) -> 0 | M18: =SUM(M9:M17) -> 0 | P18: (2) redes de energia elétrica destinadas ao acesso dos sistemas de distribuição ou transmissão;
F19: (13) Terrenos e Servidões | G19: =G83*VLOOKUP(DATE(YEAR(CAPA!$C$10),MONTH(CAPA!$C$10)-1,1),Índices!$B$135:$D$638,3,0)/VLOOKUP(DATE(YEAR($G$70),MONTH($G$70)-1,1),Índices!$B$135:$D$638,3,0) ->  | J19: CONTA MATERIAIS | P19: (3) subestações de energia;
F20: (14) Base de Rem. Líquida Total = (1)-(6)-(8)+(10)+(11)-(12)+(13) | G20: =G15+G16+G17-G18+G19 ->  | J20: BMP - 610530701; 610550701; 610532701; 610552701 | K20: Materiais | P20: (4) instalações elétricas internas de unidades consumidoras;
F21: (15) Saldo RGR PLPT | G21: =G85*VLOOKUP(DATE(YEAR(CAPA!$C$10),MONTH(CAPA!$C$10)-1,1),Índices!$B$135:$D$638,3,0)/VLOOKUP(DATE(YEAR($G$70),MONTH($G$70)-1,1),Índices!$B$135:$D$638,3,0) ->  | J21: BMP - 610530799; 610550799; 610532799; 610552799 | K21: Outros | P21: (5) banco de capacitores:
F22: (16) Saldo RGR Demais Investimentos | G22: =G86*VLOOKUP(DATE(YEAR(CAPA!$C$10),MONTH(CAPA!$C$10)-1,1),Índices!$B$135:$D$638,3,0)/VLOOKUP(DATE(YEAR($G$70),MONTH($G$70)-1,1),Índices!$B$135:$D$638,3,0) ->  | J22: BMP - 610530710; 610550710; 610532710; 610552710 | K22: (-) Créditos de Tributos Recuperáveis | P22: (6) padrões de entrada de unidades consumidoras atendidas em baixa tensão;
F23: (17) Taxa de Depreciação | G23: =G87 -> 0 | K23: Subtotal | L23: =SUM(L20:L22) -> 0 | M23: =SUM(M20:M22) -> 0 | P23: (7) sistemas de medição de energia elétrica;
F24: (18) Quota de Reintegração Regulatória = (5) * (17) | G24: =G23*G11 ->  | J24: CONTA TERCEIROS | P24: (8) geradores, incluindo-se unidades de microgeração e minigeração distribuída;
J25: RIT - RP 800 - Célula F20 | K25: Manut. e Conserv. Bens e Instalações vinculadas ao Serviço Concedido | P25: (9) sistemas de iluminação pública.
F26: Gasto do Conselho de Consumidores | J26: RIT - RP 800 - Célula F21 | K26: Auditoria e Consultoria | P26: Eficientização do consumo de energia elétrica e instalação de cogeração qualificada, desde que não enquadráveis nos projetos de Pesquisa e Desenvolvimento (P&D) ou de Eficiência Energética estabelecidos em lei
F27: =Indexador!D132 -> Despesa 2021 | H27: 44547 | J27: RIT - RP 800 - Célula F22 | K27: Serviços Jurídicos | P27: Serviços de comunicação de dados
F28: =Indexador!E132 -> Despesa 2020 | H28: 44547 | J28: RIT - RP 800 - Célula F23 | K28: Serviços de Informática | P28: Serviços de consultoria
F29: =Indexador!F132 -> Despesa 2019 | H29: 44547 | J29: RIT - RP 800 - Célula F26 | K29: Viagens (Passagens Aéreas, etc) | P29: Receita proveniente da comercialização de resultados de projetos de P&D
F30: =Indexador!G132 -> Despesa 2018 | H30: 44547 | J30: RIT - RP 800 - Célula F27 | K30: Transportes (inclui Fretes)
F31: =Indexador!H132 -> Despesa 2017 | H31: 44547 | J31: RIT - RP 800 - Célula F28 | K31: Propaganda e Publicidade (exceto Publicações Oficiais) | P31: Ultrapassagem de demanda e Excedente de reativos
F32: Perdas Regulatórias | J32: RIT - RP 800 - Célula F29 | K32: Publicações Oficiais | P32: Tipo de Receita | Q32: 2020-10-01 | R32: 2020-09-01 | S32: 2020-08-01 | T32: 2020-07-01 | U32: 2020-06-01 | V32: 2020-05-01 | W32: 2020-04-01 | X32: 2020-03-01 | Y32: 2020-02-01 | Z32: 2020-01-01 | AA32: 2019-12-01 | AB32: 2019-11-01 | AC32: 2019-10-01 | AD32: 2019-09-01 | AE32: 2019-08-01 | AF32: 2019-07-01 | AG32: 2019-06-01 | AH32: 2019-05-01 | AI32: 2019-04-01 | AJ32: 2019-03-01 | AK32: 2019-02-01 | AL32: 2019-01-01 | AM32: 2018-12-01 | AN32: 2018-11-01 | AO32: 2018-10-01 | AP32: 2018-09-01 | AQ32: 2018-08-01 | AR32: 2018-07-01 | AS32: 2018-06-01 | AT32: 2018-05-01 | AU32: 2018-04-01 | AV32: 2018-03-01 | AW32: 2018-02-01 | AX32: 2018-01-01 | AY32: 2017-12-01 | AZ32: 2017-11-01 | BA32: 2017-10-01 | BB32: 2017-09-01 | BC32: 2017-08-01 | BD32: 2017-07-01 | BE32: 2017-06-01 | BF32: 2017-05-01 | BG32: 2017-04-01 | BH32: 2017-03-01 | BI32: 2017-02-01 | BJ32: 2017-01-01 | BK32: 2016-12-01 | BL32: 2016-11-01
F33: Perdas Não Técnicas | H33: 44301 | J33: RIT - RP 800 - Célula F30 | K33: Serviço de Engenharia e Supervisão de Obras | P33: Ultrapassagem de demanda
F34: Perdas Técnicas | H34: 44301 | J34: RIT - RP 800 - Célula F31 | K34: Gestão Comercial | P34: Excedente de reativos
J35: RIT - RP 800 - Célula F32 | K35: Outros Serviços Terceirizados
F36: Dados da Revisão Anterior - Componente Pd | J36: RIT - RP 800 - Célula F33 | K36: (-) Créditos de Tributos Recuperáveis | P36: Receitas Irrecuperáveis | Q36: Meses
F37: Data Base Ativos e Consumidores | H37: 44301 | J37: RIT - RP 800 - Célula F34 | K37: Transferências da Administração Central | P37: Faturamento Total | Q37: 49 | R37: 50 | S37: 51 | T37: 52 | U37: 53 | V37: 54 | W37: 55 | X37: 56 | Y37: 57 | Z37: 58 | AA37: 59 | AB37: 60
F38: Mercado AT (MWh) | H38: 44301 | K38: Subtotal | L38: =SUM(L25:L37) -> 0 | M38: =SUM(M25:M37) -> 0 | P38: 1.Residencial
F39: Mercado MT (MWh) | H39: 44301 | J39: CONTA SEGUROS | P39: 2.Industrial
F40: Mercado BT (MWh) | H40: 44301 | J40: BMP - 610531001; 610551001; 610533001; 610553001 | K40: Seguros | P40: 3.Comercial
F41: Número de unidades consumidoras | H41: 44301 | J41: BMP - 610531099; 610551099; 610533099; 610553099 | K41: Outros | P41: 4.Rural
J42: BMP - 610531010; 610551010; 610533010; 610553010 | K42: (-) Créditos de Tributos Recuperáveis | P42: 5.Poder Público
F43: OPEX | K43: Subtotal | L43: =SUM(L40:L42) -> 0 | M43: =SUM(M40:M42) -> 0 | P43: 6.Iluminação Pública
F44: Extensão de redes subterrâneas (Km) | H44: 44301 | J44: CONTA TRIBUTOS | P44: 7.Serviço Público
F45: Extensão de rede de distribuição aérea (Km) | H45: 44301 | J45: BMP - 6105316; 6105516; 6105336; 6105536 | K45: Tributos
F46: Extensão de rede de alta tensão (Km) | H46: 44301 | K46: (+) Créditos de Tributos Recuperáveis | L46: =L45 -> 0 | M46: =M45 -> 0 | P46: Receitas Irrecuperáveis | Q46: Meses
F47: ="% PNT / BT Real de "&IF(MONTH(LnkTxtDRPData)>6,YEAR(LnkTxtDRPData)-1,YEAR(LnkTxtDRPData)-2) & " (Medido)" -> % PNT / BT Real de 2020 (Medido) | H47: 44301 | J47: CONTA OUTROS | P47: Faturamento não recebido até dez do ano anterior | Q47: 49 | R47: 50 | S47: 51 | T47: 52 | U47: 53 | V47: 54 | W47: 55 | X47: 56 | Y47: 57 | Z47: 58 | AA47: 59 | AB47: 60
F48: ="% PNT / BT Real de "&IF(MONTH(LnkTxtDRPData)>6,YEAR(LnkTxtDRPData)-1,YEAR(LnkTxtDRPData)-2)-1 & " (Medido)" -> % PNT / BT Real de 2019 (Medido) | H48: 44301 | J48: BMP - 610531901; 610551901; 610533901; 610553901 | K48: Indenização por Perdas e Danos | P48: 1.Residencial
F49: ="% PNT / BT Real de "&IF(MONTH(LnkTxtDRPData)>6,YEAR(LnkTxtDRPData)-1,YEAR(LnkTxtDRPData)-2)-2 & " (Medido)" -> % PNT / BT Real de 2018 (Medido) | H49: 44301 | J49: BMP - 610531902; 610551902; 610533902; 610553902 | K49: Consumo Próprio de Energia | P49: 2.Industrial
F50: ="DEC Apurado "&IF(MONTH(LnkTxtDRPData)>3,YEAR(LnkTxtDRPData)-1,YEAR(LnkTxtDRPData)-2) -> DEC Apurado 2020 | H50: 44301 | J50: BMP - 610531905 | K50: Despesas com Conselho de Consumidores | P50: 3.Comercial
F51: ="DEC Apurado "&IF(MONTH(LnkTxtDRPData)>3,YEAR(LnkTxtDRPData)-1,YEAR(LnkTxtDRPData)-2)-1 -> DEC Apurado 2019 | H51: 44301 | J51: BMP - 610531903; 610551903; 610533903; 610553903 | K51: Taxa de Arrecadação | P51: 4.Rural
F52: ="DEC Apurado "&IF(MONTH(LnkTxtDRPData)>3,YEAR(LnkTxtDRPData)-1,YEAR(LnkTxtDRPData)-2)-2 -> DEC Apurado 2018 | H52: 44301 | J52: BMP - 610531904; 610551904; 610533904; 610553904 | K52: Taxas Bancárias | P52: 5.Poder Público
F53: Meta de % PNT / BT (Medido) | H53: 44301 | J53: BMP - 610531910; 610551910; 610533910; 610553910 | K53: (-) Créditos de Tributos Recuperáveis | P53: 6.Iluminação Pública
F54: DEC 8 anos (Limite V8) | H54: 44301 | K54: Subtotal | L54: =SUM(L48:L53) -> 0 | M54: =SUM(M48:M53) -> 0 | P54: 7.Serviço Público
J55: Demais
K56: Condenações Trabalhistas | P56: Previsão CCEE | Q56: =DATE(YEAR(LnkTxtDRPData),MONTH(LnkTxtDRPData),DAY(1)) -> 2022-02-01 | R56: =DATE(YEAR(Q56),MONTH(Q56)+1,DAY(1)) -> 2022-03-01 | S56: =DATE(YEAR(R56),MONTH(R56)+1,DAY(1)) -> 2022-04-01 | T56: 2022-05-01 | U56: 2022-06-01 | V56: 2022-07-01 | W56: 2022-08-01 | X56: 2022-09-01 | Y56: 2022-10-01 | Z56: 2022-11-01 | AA56: 2022-12-01 | AB56: 2023-01-01
F57: Dados da última Revisão Tarifária | K57: Gastos com CCEE | P57: GSF | AC57: PMO abril/21
F58: Custos Operacionais (CO3) | H58: 44301 | J58: BMP - 611511401 | K58: Perdas na Alienação e Desativação | P58: PLD
F59: Receitas Irrecuperáveis - Encargos Setoriais (Vi) | H59: 44301 | J59: BMP - 611112103 | K59: Ganhos na Alienação de Materiais
F60: Demais Receitas Irrecuperáveis (Vse) | H60: 44301
F61: Remuneração do Capital (RC) | H61: 44301
F62: Quota de Reintegração Regulatória (QRR) | H62: 44301
F63: Custo anual das instalações móveis e imóveis (CAIMI) | H63: 44301
H64: 44309
F65: Índice de Produtividade + Mecanismo de Qualidade (Pd+Q) | H65: 44301
F66: Outras Receitas (OR) (inserir o valor positivo) | H66: 44301
F67: Componente T - Última Revisão | H67: 44301
F70: Base de Ativios - SFF
F71: (1) Ativo Imobilizado em Serviço (Valor Novo de Reposição)
F72: (2) Índice de Aproveitamento Integral
F73: (3) Obrigações Especiais Bruta
F74: (4) Bens Totalmente Depreciados
F75: (5) Base de Remuneração Bruta = (1)-(2)-(3)-(4) | G75: =G71-G72-G73-G74 -> 0 | H75: =G75*(Índices!$D$389/Índices!$D$341)/1000 -> 0
F76: (6) Depreciação Acumulada
F77: (7) AIS Líquido (Valor de Mercado em Uso) | G77: =G71-G76 -> 0
F78: (8) Índice de Aproveitamento Depreciado
F79: (9) Valor da Base de Remuneração (VBR) | G79: =G77-G78 -> 0
F80: (10) Almoxarifado em Operação
F81: (11) Ativo Diferido
F82: (12) Obrigações Especiais Líquida
F83: (13) Terrenos e Servidões
F84: (14) Base de Rem. Líquida Total = (9)+(10)+(11)-(12)+(13) | G84: =G79+G80+G81-G82+G83 -> 0 | H84: =G84*(Índices!$D$389/Índices!$D$341)/1000 -> 0
F85: (15) Saldo RGR PLPT | G85: =G106*F112 -> 0
F86: (16) Saldo RGR Demais Investimentos
F87: (17) Taxa de Depreciação
F88: (18) Quota de Reintegração Regulatória = (5) * (17) | G88: =G87*G75 -> 0
F91: Base de Ativios - Ciclo anterior
F92: (1) Ativo Imobilizado em Serviço (Valor Novo de Reposição) | H92: =G7/G92-1 -> 
F93: (2) Índice de Aproveitamento Integral | H93: =G8/G93-1 -> 
F94: (3) Obrigações Especiais Bruta
F95: (4) Bens Totalmente Depreciados
F96: (5) Base de Remuneração Bruta = (1)-(2)-(3)-(4) | G96: =G92-G93-G94-G95 -> 0 | J96: =G96*(Índices!$D$389/Índices!$D$341)/1000 -> 0
F97: (6) Depreciação Acumulada
F98: (7) AIS Líquido (Valor de Mercado em Uso) | G98: =G92-G97 -> 0
F99: (8) Índice de Aproveitamento Depreciado
F100: (9) Valor da Base de Remuneração (VBR) | G100: =G98-G99 -> 0
F101: (10) Almoxarifado em Operação
F102: (11) Ativo Diferido
F103: (12) Obrigações Especiais Líquida
F104: (13) Terrenos e Servidões
F105: (14) Base de Rem. Líquida Total = (1)-(6)-(8)+(10)+(11)-(12)+(13) | G105: =G100+G101+G102-G103+G104 -> 0 | J105: =G105*(Índices!$D$389/Índices!$D$341)/1000 -> 0
F106: (15) Saldo RGR PLPT
F107: (16) Saldo RGR Demais Investimentos
F108: (17) Taxa de Depreciação
F109: (18) Quota de Reintegração Regulatória = (5) * (17) | G109: =G96*G108 -> 0

Sheet Resultado
B1: =CAPA!C7&" "&CAPA!B6&"/"&YEAR(CAPA!$C$10) -> Reajuste EBO/2022 | Q1: RTP 2021 | R1: =(((1+LnkTxtIndiceEconomico+LnkTxtIndiceFinanceiro)*(1+R5))/(1+R5+R6))-1 -> 0.09630665639 | S1: EFEITO MÉDIO - CALCULO APROXIMADO (MH):
B2: Resultado | F2: Parâmetros a serem considerados para os Reajustes subsequentes | P2: Resultado
B4: RA1 | D4: =D39+D44 -> 307789282.3 | F4: FATOR X | K4: Última versão enviada: | L4: 27 | P4: RA1 | R4: 281475657
B5: RA0 | D5: =Mercado!D24 -> 288688373.2 | F5: Componente T do Fator X | G5: ='VPB e Fator X'!C36 ->  | K5: Data de envio | L5: 2022-01-25T14:37:31 | P5: RA0 | R5: 259299556.8
B6: Índice de Reposição/Reajuste (Anexo II) | D6: =D4/D5-1 -> 0.06616445566 | F6: Componente Pd do Fator X | G6: ='VPB e Fator X'!C33 -> 0.005003312345 | P6: Índice de Reposição/Reajuste (Anexo II) | R6: 0.08552309323
B7: Componentes Financeiros | D7: =Financeiros!E8 -> 0.03014220109 | K7: Efeito Consumidor | P7: Componentes Financeiros | R7: 0.003747661767
B8: Índice de Reposição/Reajuste com Financeiros (Anexo I) | D8: =D6+D7 -> 0.09630665675 | F8: PERDAS | K8: Efeito Grupo A - Alta tensão | L8: 0.09353356046 | P8: Índice de Reposição/Reajuste com Financeiros (Anexo I) | R8: 0.089270755
F9: Perdas Não Técnicas | G9: =Entrada!G33 -> 0 | K9: Efeito Grupo B - Baixa tensão | L9: 0.09850804248 | R9: 8.97
C10: DRA | D10: DRP | F10: Perdas Técnicas | G10: =Entrada!G34 -> 0 | K10: Efeito tarifário médio AT+BT | L10: 0.09724274863 | Q10: DRA | R10: DRP
B11: TOTAL (Parcela A + Parcela B) | C11: =C44+C39 -> 288688373.2 | D11: =D44+D39 -> 307789282.3 | K11: Tarifa B1 - Residencial (R$) | L11: 566.7342663 | P11: TOTAL (Parcela A + Parcela B) | Q11: 170938779 | R11: 281475657
D13: =Financeiros!D8 -> 9161587.246 | K13: Subvenção da CDE para descontos tarifários (Valores anuais)
D14: =D13+D11 -> 316950869.5 | K14: Subsídio Carga Fonte Incentivada | L14: 4929684.887
K15: Subsídio Geração Fonte Incentivada | L15: 0
B16: Parcela A | F16: Formação da Parcela B e Reposicionamento (Resumo) | K16: Subsídio Distribuição | L16: 0 | P16: Parcela A
K17: Subsídio Água, Esgoto e Saneamento | L17: 169255.7276
C18: DRA | D18: DRP | K18: Subsídio Rural | L18: 757237.3003 | Q18: DRA | R18: DRP
B19: ENCARGOS | C19: =SUM(C20:C28) -> 32205378.7 | D19: =SUM(D20:D28) -> 45436406.96 | E19: =(D19-C19)/$C$11 -> 0.04583152455 | F19: Custo de Administração, Operação e Manutenção (CAOM) | G19: =SUM(G20:G22) ->  | K19: Subsídio Irrigante/Aquicultor | L19: 778517.2094 | P19: ENCARGOS | Q19: 23936977.03 | R19: 31156407.04
B20: Reserva Global de Reversão – RGR | C20: 0 | D20: =Encargos!C16 -> 0 | F20: Custos Operacionais (CO) | G20: ='VPB e Fator X'!C121 ->  | P20: Reserva Global de Reversão – RGR | Q20: 0 | R20: 0
B21: Conta de Consumo de Combustíveis – CCC | C21: 0 | D21: =Encargos!C9 -> 0 | F21: Receitas Irrecuperáveis - Encargos Setoriais (Vi) | G21: ='VPB e Fator X'!C201 -> 0 | K21: Versão de Mercado | P21: Conta de Consumo de Combustíveis – CCC | Q21: 0 | R21: 0
B22: Taxa de Fisc. de Serviços de E.E. – TFSEE | C22: =Mercado!I66 -> 386232.3714 | D22: =Encargos!C17 -> 430118.8979 | F22: Demais Receitas Irrecuperáveis (Vse) | G22: ='VPB e Fator X'!C205 -> 0 | K22: Status de Sincronização de BDL | L22: Sincronizado | P22: Taxa de Fisc. de Serviços de E.E. – TFSEE | Q22: 396534.7757 | R22: 371751.4285
B23: Conta de Desenvolvimento Energético – CDE | C23: =Mercado!H66+Mercado!AC66+Mercado!AD66 -> 18052569.31 | D23: =Encargos!C10 -> 25529369.65 | E23: =(D23-C23)/$C$11 -> 0.02589920839 | F23: Custo Anual dos Ativos (CAA) | G23: =SUM(G24:G26) ->  | I23: ...Mercado!H66+Mercado!AC66+Mercado!AD66 | K23: Última Sincronização | L23: 2022-01-03T13:24:02 | P23: Conta de Desenvolvimento Energético – CDE | Q23: 11240537.49 | R23: 17425482.2
B24: Compensação financeira - CFURH | C24: =Mercado!J66 -> 0 | D24: =Encargos!C11 -> 0 | F24: Remuneração do Capital (RC) | G24: ='VPB e Fator X'!C95 ->  | P24: Compensação financeira - CFURH | Q24: 0 | R24: 0
B25: Encargos Serv. Sist. - ESS e Energ. Reserv. - EER | C25: =Mercado!F66 -> 5158028.228 | D25: =LnkTxtESS -> 7600610.51 | E25: =(D25-C25)/$C$11 -> 0.008460965209 | F25: Quota de Reintegração Regulatória (QRR) | G25: ='VPB e Fator X'!C77 ->  | P25: Encargos Serv. Sist. - ESS e Energ. Reserv. - EER | Q25: 5301150.681 | R25: 5084423.6
B26: PROINFA | C26: =Mercado!G66 -> 5875211.666 | D26: =Encargos!C13 -> 8961536.051 | E26: =(D26-C26)/$C$11 -> 0.010690851 | F26: Custo anual das instalações móveis e imóveis (CAIMI) | G26: ='VPB e Fator X'!C67 ->  | P26: PROINFA | Q26: 4407417.251 | R26: 5615143.742
B27: P&D e Eficiência Energética | C27: =Mercado!D66 -> 2701737.292 | D27: =Encargos!C15 -> 2887133.82 | F27: Parcela B (VPB) | G27: =SUM(G23,G19) ->  | P27: P&D e Eficiência Energética | Q27: 2562615.808 | R27: 2629585.501
B28: Contribuição ONS | C28: =Mercado!E66 -> 31599.83074 | D28: =Encargos!C14 -> 27638.03571 | F28: Índice de Produtividade da Parcela B | G28: ='VPB e Fator X'!C33 -> 0.005003312345 | P28: Contribuição ONS | Q28: 28721.02461 | R28: 30020.57
B29: TRANSPORTE | C29: =SUM(C30:C37) -> 38178103.8 | D29: =SUM(D30:D37) -> 32820707.52 | F29: Mecanismo de Incentivo à Qualidade | G29: ='VPB1'!F42 -> -0.002273726272 | P29: TRANSPORTE | Q29: 27162914.3 | R29: 36143227.12
B30: Rede Básica | C30: ='RB e Conexão'!D6 -> 17094114.48 | D30: ='RB e Conexão'!E6 -> 14520413.18 | F30: Parcela B com ajustes | G30: =(1-G28-G29)*G27 ->  | P30: Rede Básica | Q30: 10559789.43 | R30: 15653762.3
B31: Rede Básica Fronteira | C31: ='RB e Conexão'!D7 -> 5927697.6 | D31: ='RB e Conexão'!E7 -> 3971557.392 | F31: 2. Outras Receitas (OR) | G31: ='VPB e Fator X'!D186 -> 0 | P31: Rede Básica Fronteira | Q31: 4113365.842 | R31: 5428557.2
B32: Rede Básica ONS (A2) | C32: =VLOOKUP("TUSDg ONS DRA",TUSDG[],2,FALSE) -> 0 | D32: =VLOOKUP("TUSDg ONS DRP",TUSDG[],2,FALSE) -> 0 | F32: Ultrapassagem de Demanda | G32: ='VPB e Fator X'!D193 -> 0 | P32: Rede Básica ONS (A2) | Q32: 0 | R32: 0
B33: Rede Básica Export. (A2) | C33: =VLOOKUP("TUSDg Export DRA",TUSDG[],2,FALSE) -> 0 | D33: =VLOOKUP("TUSDg Export DRP",TUSDG[],2,FALSE) -> 0 | F33: Excedente de Reativos | G33: ='VPB e Fator X'!D194 -> 0 | P33: Rede Básica Export. (A2) | Q33: 0 | R33: 0
B34: MUST Itaipu | C34: ='RB e Conexão'!D8 -> 0 | D34: ='RB e Conexão'!E8 -> 0 | F34: Parcela B deduzidas as outras receitas | G34: =G30-G31-G32-G33 ->  | P34: MUST Itaipu | Q34: 0 | R34: 0
B35: Transporte de Itaipu | C35: =SUMPRODUCT(itaiputransporte[Potência],itaiputransporte[Tarifa DRA]) -> 0 | D35: =SUMPRODUCT(itaiputransporte[Potência],itaiputransporte[Tarifa DRP]) -> 0 | P35: Transporte de Itaipu | Q35: 0 | R35: 0
B36: Conexão | C36: =IF(YEAR(CAPA!C10)=2013,Entrada!C46,BD!C40) -> 469716.5916 | D36: ='RB e Conexão'!E9 -> 352974.3874 | F36: Receita Requerida (RR) | G36: =G30+D39 ->  | P36: Conexão | Q36: 329932.0659 | R36: 469716.5916
B37: Uso do sistema de distribuição e CCD | C37: =CUSD!C14 -> 14686575.13 | D37: =CUSD!D14+CUSD!E14 -> 13975762.56 | F37: Outras Receitas (OR) | G37: =G31 -> 0 | P37: Uso do sistema de distribuição e CCD | Q37: 12159826.96 | R37: 14591191.03
B38: ENERGIA | C38: =Energia!C15 -> 127971057.1 | D38: =Energia!D15 -> 126060956.5 | F38: Receita Verificada (RV) | G38: =Mercado!D24 -> 288688373.2 | P38: ENERGIA | Q38: 119838887.7 | R38: 125742308.1
B39: VPA (ENCARGO + TRANSPORTE + ENERGIA) | C39: =C38+C29+C19 -> 198354539.6 | D39: =D19+D29+D38 -> 204318071 | E39: =(D39-C39)/$C$11 -> 0.02065733153 | P39: VPA (ENCARGO + TRANSPORTE + ENERGIA) | Q39: 170938779 | R39: 193041942.3
B41: Parcela B | P41: Parcela B
C43: VPB0 | D43: VPB1 | Q43: VPB0 | R43: VPB1
B44: ="Parcela B "&IF(CAPA!C7="Revisão","(menos Outras Receitas)",) -> Parcela B | C44: ='VPB1'!C10 -> 90333833.63 | D44: ='VPB1'!C12 -> 103471211.3 | E44: =(D44-C44)/$C$11 -> 0.04550712413 | P44: Parcela B (menos Outras Receitas) | Q44: 0 | R44: 88433714.68

Sheet Votos e NTs (hidden)
B2: Tabelas | D2: Gráficos
B4: Consumidores | D4: Análise de Impacto da RTA na Tarfia | K4: Composição da Receita | O4: Composição da Receita com Tributos | T4: Composição da Receita com detalhamento de Encargos | X4: Evolução da Tarifa B1 Residencial
B5: Mercado
B6: Encargos
B7: Custo do Transporte de Energia
B8: Perdas
B9: Energia Requerida
B10: Energia na DRA
B11: Contratos
B12: Fator X
B13: Parcela B
B14: CVA em Processamento
B15: Financeiros
B16: Subsídios
B17: Efeito Médio AT + BT
B18: Avaliação RTA
B19: Variação do Custo de Energia
B20: Dados dos Gráficos
E24: Impacto da RTA na Tarifa | H24: Valores (R$) | K24: Composição da Receita | L24: Valores (R$) | O24: Composição da Receita com Tributos | T24: Composição da Receita com detalhamento de Encargos | X24: Ano | Y24: Tipo | Z24: Tipo Ano | AA24: B1 - Residencial | AB24: IGPM | AC24: IPCA | AD24: Data
E25: Encargos Setoriais | H25: =IF(CAPA!C7="Reajuste",BO245,'NT Revisao'!AX203) -> 0.04583152455 | K25: Custo de Distribuição | L25: =Resultado!D44 -> 103471211.3 | O25: Custo de Distribuição | Q25: =L25/$Q$33 -> 0.2323642569 | T25: Custo de Distribuição | V25: =Resultado!D44 -> 103471211.3 | X25: =YEAR(BD!B80) -> 2012 | Y25: =BD!C80 -> Reajuste | Z25: =CONCATENATE(Y25," ",X25) -> Reajuste 2012 | AA25: =BD!D80 -> 322.89 | AB25: =AA25 -> 322.89 | AC25: =AA25 -> 322.89 | AD25: =DATE(YEAR(BD!B80),(MONTH(BD!B80))-1,1) -> 2012-01-01
E26: Custos de Transmissão | H26: =IF(CAPA!C7="Reajuste",BO255,'NT Revisao'!AX213) -> -0.01855771405 | K26: Custo de Energia | L26: =Resultado!D38 -> 126060956.5 | O26: Custo de Energia | Q26: =L26/$Q$33 -> 0.2830938202 | T26: Custo de Energia | V26: =Resultado!D38 -> 126060956.5 | X26: =YEAR(BD!B79) -> 2013 | Y26: =BD!C79 -> RTE | Z26: RTE 2013 | AA26: =BD!D79 -> 264.77 | AB26: =AB25*VLOOKUP(AD26,Índices!$B$147:$D$495,2,0)/VLOOKUP(AD25,Índices!$B$147:$D$495,2,0) -> 347.2706523 | AC26: =AC25*VLOOKUP(AD26,Índices!$B$147:$D$495,3,0)/VLOOKUP(AD25,Índices!$B$147:$D$495,3,0) -> 339.8392275 | AD26: =DATE(YEAR(BD!B79),(MONTH(BD!B79))-1,1) -> 2012-12-01
E27: Custos de Aquisição de Energia | H27: =IF(CAPA!C7="Reajuste",BO264,'NT Revisao'!AX222) -> -0.006616478968 | K27: Custo de Transmissão | L27: =Resultado!D29 -> 32820707.52 | O27: Custo de Transmissão | Q27: =L27/$Q$33 -> 0.07370513228 | T27: Custo de Transmissão | V27: =Resultado!D29 -> 32820707.52 | X27: =YEAR(BD!B78) -> 2013 | Y27: =BD!C78 -> Revisão | Z27: =CONCATENATE(Y27," ",X27) -> Revisão 2013 | AA27: =BD!D78 -> 274.55 | AB27: =AB26*VLOOKUP(AD27,Índices!$B$147:$D$495,2,0)/VLOOKUP(AD26,Índices!$B$147:$D$495,2,0) -> 348.4446641 | AC27: =AC26*VLOOKUP(AD27,Índices!$B$147:$D$495,3,0)/VLOOKUP(AD26,Índices!$B$147:$D$495,3,0) -> 342.7617358 | AD27: =DATE(YEAR(BD!B78),(MONTH(BD!B78))-1,1) -> 2013-01-01
E28: Distribuição | H28: =IF(CAPA!C7="Reajuste",BO265,'NT Revisao'!AX223) -> 0.04550712413 | K28: Encargos Setoriais | L28: =Resultado!D19 -> 45436406.96 | O28: Encargos Setoriais | Q28: =L28/$Q$33 -> 0.1020360814 | T28: PROINFA | V28: =Resultado!D26 -> 8961536.051 | X28: =YEAR(BD!B77) -> 2014 | Y28: =BD!C77 -> Reajuste | Z28: =CONCATENATE(Y28," ",X28) -> Reajuste 2014 | AA28: =BD!D77 -> 289.8 | AB28: =AB27*VLOOKUP(AD28,Índices!$B$147:$D$495,2,0)/VLOOKUP(AD27,Índices!$B$147:$D$495,2,0) -> 368.1694237 | AC28: =AC27*VLOOKUP(AD28,Índices!$B$147:$D$495,3,0)/VLOOKUP(AD27,Índices!$B$147:$D$495,3,0) -> 361.9061462 | AD28: =DATE(YEAR(BD!B77),(MONTH(BD!B77))-1,1) -> 2014-01-01
E29: Componentes Financeiros | H29: =IF(CAPA!C7="Reajuste",BO268,'NT Revisao'!AX232) -> 0.03014220109 | O29: ICMS | Q29: =Mercado!G9 -> 0.2755008872 | T29: CDE | V29: =Resultado!D23 -> 25529369.65 | X29: =YEAR(BD!B76) -> 2015 | Y29: =BD!C76 -> Reajuste | Z29: =CONCATENATE(Y29," ",X29) -> Reajuste 2015 | AA29: =BD!D76 -> 404.88 | AB29: =AB28*VLOOKUP(AD29,Índices!$B$147:$D$495,2,0)/VLOOKUP(AD28,Índices!$B$147:$D$495,2,0) -> 382.8176882 | AC29: =AC28*VLOOKUP(AD29,Índices!$B$147:$D$495,3,0)/VLOOKUP(AD28,Índices!$B$147:$D$495,3,0) -> 387.7370443 | AD29: =DATE(YEAR(BD!B76),(MONTH(BD!B76))-1,1) -> 2015-01-01
E30: Retirada dos Financeiros Anteriores | H30: =IF(CAPA!C7="Reajuste",BO320,'NT Revisao'!AX284) -> 0.000936091879 | O30: PIS/COFINS | Q30: =Mercado!$G$10 -> 0.03329982195 | T30: ESS/EER | V30: =Resultado!D25 -> 7600610.51 | X30: =YEAR(BD!B75) -> 2015 | Y30: =BD!C75 -> RTE | Z30: =CONCATENATE(Y30," ",X30) -> RTE 2015 | AA30: =BD!D75 -> 407.03 | AB30: =AB29*VLOOKUP(AD30,Índices!$B$147:$D$495,2,0)/VLOOKUP(AD29,Índices!$B$147:$D$495,2,0) -> 387.6185457 | AC30: =AC29*VLOOKUP(AD30,Índices!$B$147:$D$495,3,0)/VLOOKUP(AD29,Índices!$B$147:$D$495,3,0) -> 397.6479134 | AD30: =DATE(YEAR(BD!B75),(MONTH(BD!B75))-1,1) -> 2015-03-01
E31: Efeito Médio Consumidor | H31: =SUM(H25:H30) -> 0.09724274863 | O31: Imposto por dentro | Q31: =LnkTxtPisCofins+LnkTxtICMS -> 0.3088007092 | T31: Outros | V31: =Resultado!D27+Resultado!D28+Resultado!D24+Resultado!D22 -> 3344890.753 | X31: =YEAR(BD!B74) -> 2016 | Y31: =BD!C74 -> Reajuste | Z31: =CONCATENATE(Y31," ",X31) -> Reajuste 2016 | AA31: =BD!D74 -> 436.68 | AB31: =AB30*VLOOKUP(AD31,Índices!$B$147:$D$495,2,0)/VLOOKUP(AD30,Índices!$B$147:$D$495,2,0) -> 424.7268472 | AC31: =AC30*VLOOKUP(AD31,Índices!$B$147:$D$495,3,0)/VLOOKUP(AD30,Índices!$B$147:$D$495,3,0) -> 429.2474165 | AD31: =DATE(YEAR(BD!B74),(MONTH(BD!B74))-1,1) -> 2016-01-01
O32: Tributos Totais por Fora | Q32: =(Q29+Q30)/(1-Q29-Q30) -> 0.4467607437 | X32: =YEAR(BD!B73) -> 2017 | Y32: =BD!C73 -> Revisão | Z32: Revisão 2017 | AA32: =BD!D73 -> 428.37 | AB32: =AB31*VLOOKUP(AD32,Índices!$B$147:$D$495,2,0)/VLOOKUP(AD31,Índices!$B$147:$D$495,2,0) -> 452.9589388 | AC32: =AC31*VLOOKUP(AD32,Índices!$B$147:$D$495,3,0)/VLOOKUP(AD31,Índices!$B$147:$D$495,3,0) -> 452.2293879 | AD32: =DATE(YEAR(BD!B73),(MONTH(BD!B73))-1,1) -> 2017-01-01
O33: Receita com Tributos | Q33: =SUM(V25:V31)/(1-Q29-Q30) -> 445297450.9 | X33: =YEAR(BD!B72) -> 2017 | Y33: =BD!C72 -> RTE | Z33: RTE 2017 | AA33: =BD!D72 -> 427.08 | AB33: =AB32*VLOOKUP(AD33,Índices!$B$147:$D$495,2,0)/VLOOKUP(AD32,Índices!$B$147:$D$495,2,0) -> 453.404723 | AC33: =AC32*VLOOKUP(AD33,Índices!$B$147:$D$495,3,0)/VLOOKUP(AD32,Índices!$B$147:$D$495,3,0) -> 454.8556833 | AD33: =DATE(YEAR(BD!B72),(MONTH(BD!B72))-1,1) -> 2017-03-01
X34: =YEAR(BD!B71) -> 2018 | Y34: =BD!C71 -> Reajuste | Z34: Reajuste 2018 | AA34: =BD!D71 -> 498.85 | AB34: =AB33*VLOOKUP(AD34,Índices!$B$147:$D$495,2,0)/VLOOKUP(AD33,Índices!$B$147:$D$495,2,0) -> 451.1104657 | AC34: =AC33*VLOOKUP(AD34,Índices!$B$147:$D$495,3,0)/VLOOKUP(AD33,Índices!$B$147:$D$495,3,0) -> 465.1410635 | AD34: =DATE(YEAR(BD!B71),(MONTH(BD!B71))-1,1) -> 2018-01-01
X35: =YEAR(BD!B70) -> 2019 | Y35: =BD!C70 -> Reajuste | Z35: Reajuste 2019 | AA35: =BD!D70 -> 520.29 | AB35: =AB34*VLOOKUP(AD35,Índices!$B$147:$D$495,2,0)/VLOOKUP(AD34,Índices!$B$147:$D$495,2,0) -> 481.5068226 | AC35: =AC34*VLOOKUP(AD35,Índices!$B$147:$D$495,3,0)/VLOOKUP(AD34,Índices!$B$147:$D$495,3,0) -> 482.707244 | AD35: =DATE(YEAR(BD!B70),(MONTH(BD!B70))-1,1) -> 2019-01-01
X36: =YEAR(BD!B69 ) -> 2019 | Y36: =BD!C69 -> RTE | Z36: RTE 2019 | AA36: =BD!D69 -> 507.38 | AB36: =AB35*VLOOKUP(AD36,Índices!$B$147:$D$495,2,0)/VLOOKUP(AD35,Índices!$B$147:$D$495,2,0) -> 491.8646694 | AC36: =AC35*VLOOKUP(AD36,Índices!$B$147:$D$495,3,0)/VLOOKUP(AD35,Índices!$B$147:$D$495,3,0) -> 488.4183045 | AD36: =DATE(YEAR(BD!B69),(MONTH(BD!B69))-1,1) -> 2019-03-01
X37: =YEAR(BD!B68) -> 2020 | Y37: =BD!C68 -> Reajuste | Z37: Reajuste 2020 | AA37: =(BD!D68) -> 497.66 | AB37: =AB36*VLOOKUP(AD37,Índices!$B$147:$D$495,2,0)/VLOOKUP(AD36,Índices!$B$147:$D$495,2,0) -> 519.1058269 | AC37: =AC36*VLOOKUP(AD37,Índices!$B$147:$D$495,3,0)/VLOOKUP(AD36,Índices!$B$147:$D$495,3,0) -> 502.9412274 | AD37: =DATE(YEAR(BD!B68),(MONTH(BD!B68))-1,1) -> 2020-01-01
X38: =YEAR(BD!B67) -> 2021 | Y38: Reajuste | Z38: Reajuste 2021 | AA38: =BD!D67 -> 517.08 | AB38: =AB37*VLOOKUP(AD38,Índices!$B$147:$D$495,2,0)/VLOOKUP(AD37,Índices!$B$147:$D$495,2,0) -> 610.1492519 | AC38: =AC37*VLOOKUP(AD38,Índices!$B$147:$D$495,3,0)/VLOOKUP(AD37,Índices!$B$147:$D$495,3,0) -> 513.0068064 | AD38: =DATE(YEAR(BD!B67),(MONTH(BD!B67))-4,1) -> 2020-10-01
B39: TabCons | E39: Voltar | X39: =YEAR(BD!B66) -> 2022 | Y39: Revisão | Z39: Revisão 2022 | AA39: =BD!D66 -> 566.7342663 | AB39: =AB38*VLOOKUP(AD39,Índices!$B$147:$D$495,2,0)/VLOOKUP(AD38,Índices!$B$147:$D$495,2,0) -> 754.583088 | AC39: =AC38*VLOOKUP(AD39,Índices!$B$147:$D$495,3,0)/VLOOKUP(AD38,Índices!$B$147:$D$495,3,0) -> 580.0401914 | AD39: =DATE(YEAR(BD!B66),(MONTH(BD!B66))-1,1) -> 2022-01-01
B40: Classe de Consumo | C40: Nº de Unidades Consumidoras* | D40: Consumo de Energia (MWh) | E40: Participação no Consumo (%) | AA40: =AA39/AA25-1 -> 0.7551929953 | AB40: =AB39/AB25-1 -> 1.336966422 | AC40: =AC39/AC25-1 -> 0.7964018439
B41: Residencial | C41: =Mercado!F41 -> 195847 | D41: =Mercado!G41 -> 24818.109 | E41: =D41/$D$49 -> 0.37863726
B42: Industrial | C42: =Mercado!F42 -> 580 | D42: =Mercado!G42 -> 17326.236 | E42: 0.264337566
B43: Comercial | C43: =Mercado!F43 -> 15727 | D43: =Mercado!G43 -> 10696.944 | E43: 0.1631978313
B44: Rural | C44: =Mercado!F44 -> 14759 | D44: =Mercado!G44 -> 2205.289 | E44: 0.03364497208
B45: Iluminação Pública | C45: =Mercado!F45 -> 76 | D45: =Mercado!G45 -> 2795.016 | E45: 0.04264213683
B46: Poder Público | C46: =Mercado!F46 -> 1496 | D46: =Mercado!G46 -> 2664.841 | E46: 0.0406561231
B47: Serviço Público | C47: =Mercado!F47 -> 82 | D47: =Mercado!G47 -> 1133.823 | E47: 0.01729816055
B48: Demais classes | C48: =Mercado!F48 -> 15 | D48: =Mercado!G48 -> 3905.613 | E48: 0.05958595012
B49: Total | C49: =SUM(C41:C48) -> 228582 | D49: =SUM(D41:D48) -> 65545.871 | E49: =SUM(E41:E48) -> 1
B50: *Nota: dados do último mês informado pela empresa
G51: TabMercado | I51: Voltar
G52: Subgrupos | H52: Mercado (MWh) | I52: Receita (R$) | J52: Colunas1
G53: Fornecimento | H53: =SUM(H54:H60) -> 556155.106 | I53: =SUM(I54:I60) -> 266617470.3 | J53: =IF(ABS(H53)+ABS(I53)>0,1,0) -> 1
G54: A1 (230 kV ou mais) | H54: =Mercado!C10 -> 0 | I54: =Mercado!D10 -> 0 | J54: 0
G55: A2 (88 a 138 kV) | H55: =Mercado!C11 -> 0 | I55: =Mercado!D11 -> 0 | J55: 0
G56: A3 (69 kV) | H56: =Mercado!C12 -> 0 | I56: =Mercado!D12 -> 0 | J56: 0
G57: A3a (30 kV a 44 kV) | H57: =Mercado!C13 -> 0 | I57: =Mercado!D13 -> 0 | J57: 0
G58: A4 (2,3 kV a 25 kV) | H58: =Mercado!C14 -> 116797.516 | I58: =Mercado!D14 -> 50464146.06 | J58: 1
G59: As | H59: =Mercado!C15 -> 0 | I59: =Mercado!D15 -> 0 | J59: 0
G60: BT (menor que 2,3 kV) | H60: =Mercado!C16 -> 439357.59 | I60: =Mercado!D16 -> 216153324.2 | J60: 1
G61: Suprimento | H61: =Mercado!C17 -> 0 | I61: =Mercado!D17 -> 0 | J61: 0
G62: Livres A1 | H62: =Mercado!C18 -> 0 | I62: =Mercado!D18 -> 0 | J62: 0
G63: Demais Livres | H63: =Mercado!C19 -> 152719.131 | I63: =Mercado!D19 -> 17618625.4 | J63: 1
G64: Distribuição | H64: =Mercado!C20 -> 42702.484 | I64: =Mercado!D20 -> 4452277.483 | J64: 1
G65: Geração | H65: =Mercado!C21 -> 0 | I65: =Mercado!D21 -> 0 | J65: 0
G66: Total | H66: =SUM(H54:H65) -> 751576.721 | I66: =SUM(I54:I65) -> 288688373.2
K68: TabEnc | N68: Voltar
K69: Encargos Setoriais | L69: DRA (R$) | M69: DRP (R$) | N69: Dispositivo Legal | O69: Colunas1
K70: Taxa de Fisc. de Serviços de E.E. – TFSEE | L70: =Resultado!C22 -> 386232.3714 | M70: =Resultado!D22 -> 430118.8979 | N70: =Encargos!D17 -> Conforme módulo 5.5 do PRORET | O70: =IF(ABS(L70)+ABS(M70)>0,1,0) -> 1
K71: Conta de Desenvolvimento Energético – CDE | L71: =Resultado!C23 -> 18052569.31 | M71: =Resultado!D23 -> 25529369.65 | N71: =Encargos!D10 -> REH 2.864/2021 e Previsão-2022 | O71: 1
K72: Compensação financeira - CFURH | L72: =Resultado!C24 -> 0 | M72: =Resultado!D24 -> 0 | N72: =Encargos!D11 -> 0 | O72: 0
K73: Encargos Serv. Sist. - ESS e Energ. Reserv. - EER | L73: =Resultado!C25 -> 5158028.228 | M73: =Resultado!D25 -> 7600610.51 | N73: =Encargos!D12 -> DSP SGT | O73: 1
K74: PROINFA | L74: =Resultado!C26 -> 5875211.666 | M74: =Resultado!D26 -> 8961536.051 | N74: =Encargos!$D$13 -> ReH 2.995/2021 | O74: 1
K75: P&D e Eficiência Energética | L75: =Resultado!C27 -> 2701737.292 | M75: =Resultado!D27 -> 2887133.82 | N75: Res. Normativa nº 316/2008 | O75: 1
K76: Contribuição ONS | L76: =Resultado!C28 -> 31599.83074 | M76: =Resultado!D28 -> 27638.03571 | N76: =Encargos!$D$14 -> Contribuição 2021 | O76: 1
K77: Total de Encargos Tarifários | L77: =SUM(L70:L76) -> 32205378.7 | M77: =SUM(M70:M76) -> 45436406.96
P79: TabTrans | R79: Voltar
P80: Componente | Q80: DRA (R$) | R80: DRP (R$) | S80: Colunas1
P81: Rede Básica | Q81: =Resultado!C30 -> 17094114.48 | R81: =Resultado!D30 -> 14520413.18 | S81: =IF(ABS(Q81)+ABS(R81)>0,1,0) -> 1
P82: Rede Básica Fronteira | Q82: =Resultado!C31 -> 5927697.6 | R82: =Resultado!D31 -> 3971557.392 | S82: 1
P83: Rede Básica ONS (A2) | Q83: =Resultado!C32 -> 0 | R83: =Resultado!D32 -> 0 | S83: 0
P84: Rede Básica Export. (A2) | Q84: =Resultado!C33 -> 0 | R84: =Resultado!D33 -> 0 | S84: 0
P85: MUST Itaipu | Q85: =Resultado!C34 -> 0 | R85: =Resultado!D34 -> 0 | S85: 0
P86: Transporte de Itaipu | Q86: =Resultado!C35 -> 0 | R86: =Resultado!D35 -> 0 | S86: 0
P87: Conexão | Q87: =Resultado!C36 -> 469716.5916 | R87: =Resultado!D36 -> 352974.3874 | S87: 1
P88: Uso do sistema de distribuição | Q88: =Resultado!C37 -> 14686575.13 | R88: =Resultado!D37 -> 13975762.56 | S88: 1
P89: Total dos Custos de Transporte | Q89: =SUM(Q81:Q88) -> 38178103.8 | R89: =SUM(R81:R88) -> 32820707.52
T91: TabPerdas | V91: Voltar
T92: Perdas | U92: DRA | V92: DRP | W92: Referência
T93: Não Técnica (s/ Baixa Tensão) | U93: =Energia!H13 -> 0.01694864806 | V93: =Energia!I13 -> 0.01694864806 | W93: REH 2.832/2021
T94: Técnica (s/ merc. injetado) | U94: =Energia!H14 -> 0.05181427224 | V94: =Energia!I14 -> 0.05181427224 | W94: =W93 -> REH 2.832/2021
T95: Rede Básica (s/ merc. Injetado) | U95: =Energia!H15 -> 0.02065949492 | V95: =Energia!I15 -> 0.01998866334 | W95: CCEE (últimos 12 meses)
T96: Mercado Baixa Tensão (MWh) | U96: =Mercado!$C$16 -> 439357.59 | V96: =Mercado!$C$16 -> 439357.59 | W96: SAMP
Y98: TabEnergia | AA98: Voltar
Y99: Descrição | Z99: DRA (MWh) | AA99: DRP (MWh)
Y100: Mercado Total | Z100: =AA100 -> 556155.106 | AA100: =Z101+Z102 -> 556155.106 | AB100: Colunas1
Y101: Fornecimento | Z101: =Energia!H5 -> 556155.106 | AA101: =Z101 -> 556155.106 | AB101: =IF(Z101<>0,1,0) -> 1
Y102: Suprimento | Z102: =Energia!C8 -> 0 | AA102: =Z102 -> 0 | AB102: =IF(Z102<>0,1,0) -> 0
Y103: Consumidores Livres | Z103: =Energia!H7 -> 195421.615 | AA103: =Z103 -> 195421.615 | AB103: =IF(Z103<>0,1,0) -> 1
Y104: Consumidores Rede Básica | Z104: =Energia!H8 -> 0 | AA104: =Z104 -> 0 | AB104: =IF(Z104<>0,1,0) -> 0
Y105: Perdas Totais | Z105: =Z106+Z107 -> 61424.49895 | AA105: =AA106+AA107 -> 61018.59286
Y106: Perdas Rede Básica | Z106: =SUM(Energia!H18:H19) -> 12500.62609 | AA106: =SUM(Energia!I18:I19) -> 12094.72
Y107: Perdas na Distribuição | Z107: =SUM(Z108:Z109) -> 48923.87286 | AA107: =SUM(AA108:AA109) -> 48923.87286
Y108: Perda Não Técnica | Z108: =Energia!H16 -> 7446.517167 | AA108: =Energia!I16 -> 7446.517167
Y109: Perda Técnica | Z109: =Energia!H17 -> 41477.3557 | AA109: =Energia!I17 -> 41477.3557
Y110: Energia Requerida | Z110: =Z100+Z105 -> 617579.605 | AA110: =AA100+AA105 -> 617173.6989
AC112: TabEDRA | AE112: Voltar
AC113: Energia Requerida (MWh) | AD113: Tarifa Média (R$/MWh) | AE113: Energia Requerida (R$)
AC114: ='Votos e NTs'!Z110 -> 617579.605 | AD114: =Energia!C14 -> 207.2138653 | AE114: =AD114*AC114 -> 127971057.1
AG116: TabContratos | AK116: Voltar
AG117: Contratos | AH117: Contratado (MWh) | AI117: Considerado (MWh) | AJ117: Tarifa (R$/MWh) | AK117: Despesa (R$) | AL117: Colunas1
AG118: Bilateral | AH118: =SUM(Energia!H145:H191) -> 0 | AI118: =SUM(Energia!M145:M191) -> 0 | AJ118: =AK118/AI118 ->  | AK118: =SUM(Energia!N145:N191) -> 0 | AL118: =IF(AI118=0,0,1) -> 0
AG119: AMBIENTE REGULADO - CCEAR | AH119: =SUM(AH120:AH124) -> 361539.2861 | AI119: =SUM(AI120:AI124) -> 394880.7865 | AJ119: =IFERROR(AK119/AI119,0) -> 239.2397313 | AK119: =SUM(AK120:AK124) -> 94471173.25 | AL119: =IF(AI119=0,0,1) -> 1
AG120: Existente - CCEAR-DSP | AH120: =SUMPRODUCT((Energia!$J$49:$J$140),(Energia!$T$49:$T$140=18)*(INT(Energia!$S$49:$S$140/10000)=2)) -> 0 | AI120: =SUMPRODUCT((Energia!$K$49:$K$140),(Energia!$T$49:$T$140=18)*(INT(Energia!$S$49:$S$140/10000)=2)) -> 0 | AJ120: 0 | AK120: =IFERROR(SUMPRODUCT((Energia!$U$49:$U$140),(Energia!$T$49:$T$140=18)*(INT(Energia!$S$49:$S$140/10000)=2))*AI120/AH120,0) -> 0 | AL120: 0
AG121: Existente - CCEAR-QTD | AH121: =SUMPRODUCT((Energia!$J$49:$J$140),(Energia!$T$49:$T$140=1)*(INT(Energia!$S$49:$S$140/10000)=2)) -> 0 | AI121: =SUMPRODUCT((Energia!$K$49:$K$140),(Energia!$T$49:$T$140=1)*(INT(Energia!$S$49:$S$140/10000)=2)) -> 0 | AJ121: 0 | AK121: =IFERROR(SUMPRODUCT((Energia!$U$49:$U$140),(Energia!$T$49:$T$140=1)*(INT(Energia!$S$49:$S$140/10000)=2))*AI121/AH121,0) -> 0 | AL121: 0
AG122: Nova e Alternativa- CCEAR-DSP | AH122: =SUMPRODUCT((Energia!$J$49:$J$140),(Energia!$T$49:$T$140=18)*(INT(Energia!$S$49:$S$140/10000)=1))+SUMPRODUCT((Energia!$J$49:$J$140),(Energia!$T$49:$T$140=18)*(INT(Energia!$S$49:$S$140/10000)=3)) -> 154713.903 | AI122: =SUMPRODUCT((Energia!$K$49:$K$140),(Energia!$T$49:$T$140=18)*(INT(Energia!$S$49:$S$140/10000)=1))+SUMPRODUCT((Energia!$K$49:$K$140),(Energia!$T$49:$T$140=18)*(INT(Energia!$S$49:$S$140/10000)=3)) -> 168981.7678 | AJ122: 296.9516337 | AK122: =(SUMPRODUCT((Energia!$U$49:$U$140),(Energia!$T$49:$T$140=18)*(INT(Energia!$S$49:$S$140/10000)=1))+SUMPRODUCT((Energia!$U$49:$U$140),(Energia!$T$49:$T$140=18)*(INT(Energia!$S$49:$S$140/10000)=3)))*AI122/AH122 -> 50179412 | AL122: 1
AG123: Nova e Alternativa- CCEAR-QTD | AH123: =SUMPRODUCT((Energia!$J$49:$J$140),(Energia!$T$49:$T$140=1)*(INT(Energia!$S$49:$S$140/10000)=1))+SUMPRODUCT((Energia!$J$49:$J$140),(Energia!$T$49:$T$140=1)*(INT(Energia!$S$49:$S$140/10000)=3)) -> 92508.36315 | AI123: =SUMPRODUCT((Energia!$K$49:$K$140),(Energia!$T$49:$T$140=1)*(INT(Energia!$S$49:$S$140/10000)=1))+SUMPRODUCT((Energia!$K$49:$K$140),(Energia!$T$49:$T$140=1)*(INT(Energia!$S$49:$S$140/10000)=3)) -> 101039.5733 | AJ123: 241.5496703 | AK123: =(SUMPRODUCT((Energia!$U$49:$U$140),(Energia!$T$49:$T$140=1)*(INT(Energia!$S$49:$S$140/10000)=1))+SUMPRODUCT((Energia!$U$49:$U$140),(Energia!$T$49:$T$140=1)*(INT(Energia!$S$49:$S$140/10000)=3)))*AI123/AH123 -> 24406075.62 | AL123: 1
AG124: Madeira e Belo Monte | AH124: =SUMPRODUCT((Energia!$J$49:$J$140)*(INT(Energia!$S$49:$S$140/10000)=5)) -> 114317.02 | AI124: =SUMPRODUCT((Energia!$K$49:$K$140)*(INT(Energia!$S$49:$S$140/10000)=5)) -> 124859.4454 | AJ124: 159.2645679 | AK124: =(SUMPRODUCT((Energia!U49:U140)*(INT(Energia!S49:S140/10000)=5)))*AI124/AH124 -> 19885685.63 | AL124: 1
AG125: =Energia!B20 -> Energia Base | AH125: =SUM(AH126:AH130) -> 204630.2371 | AI125: =SUM(AI126:AI130) -> 222292.9124 | AJ125: 142.108819 | AK125: =SUM(AK126:AK130) -> 31589783.25 | AL125: 1
AG126: =Energia!B21 -> Geração Própria | AH126: =Energia!H33 -> 0 | AI126: =Energia!C21 -> 0 | AJ126: =Energia!D21 -> 0 | AK126: =AJ126*AI126 -> 0 | AL126: 0
AG127: =Energia!B22 -> Cota Angra I/Angra II | AH127: =Energia!H34 -> 24215.755 | AI127: =Energia!C22 -> 26448.95519 | AJ127: =Energia!D22 -> 349.15 | AK127: =AJ127*AI127 -> 9234652.706 | AL127: 1
AG128: =Energia!B23 -> Cotas Lei n º 12783/2013 | AH128: =Energia!H35 -> 167309.8494 | AI128: =Energia!C23 -> 182739.3245 | AJ128: =Energia!D23 -> 122.333442 | AK128: =AJ128*AI128 -> 22355130.55 | AL128: 1
AG129: =Energia!B24 -> Itaipu (tirando as perdas) | AH129: =Energia!H36 -> 0 | AI129: =Energia!C24 -> 0 | AJ129: =Energia!D24 -> 0 | AK129: =AJ129*AI129 -> 0 | AL129: 0
AG130: =Energia!B25 -> PROINFA | AH130: =Energia!C25 -> 13104.63275 | AI130: =Energia!C25 -> 13104.63275 | AJ130: =Energia!D25 -> 0 | AK130: =AJ130*AI130 -> 0 | AL130: 1
AG131: Total | AH131: =AH119+AH125 -> 566169.5233 | AI131: =AI119+AI125+AI118 -> 617173.6989 | AJ131: =AK131/AI131 -> 204.2552311 | AK131: =AK119+AK125+AK118 -> 126060956.5
AM133: TabFatorX | AN133: Voltar
AM134: Componentes | AN134: Valor
AM135: Componente Pd do Fator X | AN135: ='VPB1'!F40 -> 0.003220845164
AM136: Componente T do Fator X | AN136: ='VPB1'!F41 -> 0.009935359261
AM137: Componente Q do Fator X | AN137: ='VPB1'!F42 -> -0.002273726272
AM138: Fator X | AN138: ='VPB1'!F43 -> 0.01088247815
AP140: TabParcelaB | AQ140: Voltar
AP141: Descrição | AQ141: Valores | AR141: Referência
AP142: (1) Parcela B - DRA (R$) | AQ142: =Resultado!C44 -> 90333833.63 | AR142: TUSD aplicada ao Mercado
AP143: (2) IGP-M | AQ143: ='VPB1'!F38 -> 0.1563138974 | AR143: SGT/ANEEL
AP144: (3) Fator X | AQ144: =LnkTxtFatorX -> 0.01088247815
AP145: (3.1) Componente Pd do Fator X | AQ145: =+LnkTxtPD -> 0.005003312345 | AR145: REH 2.832/2021
AP146: (3.2) Componente T do Fator X | AQ146: =LnkTxtFatorT -> 0.009935359261 | AR146: REH 2.832/2021
AP147: (3.3) Componente Q do Fator X | AQ147: =LnkTxtFatorQ -> -0.002273726272 | AR147: PRORET 2.5 A
AP148: Parcela B - DRP (R$) = [(1)*((2)-(3))] | AQ148: =Resultado!D44 -> 103471211.3
AT150: TabCVA | AW150: Voltar
AT151: Descrição | AU151: Delta (R$) | AV151: 5° Dia Útil Anterior (R$) | AW151: 12 Meses Subseqüentes (R$) | AX151: Colunas1
AT152: ="CVA "&CVA!B9 -> CVA CCC | AU152: =CVA!C9 -> 0 | AV152: =CVA!D9 -> 0 | AW152: =CVA!E9 -> 0 | AX152: =IF(AU152<>0,1,0) -> 0
AT153: ="CVA "&CVA!B10 -> CVA CDE | AU153: =CVA!C10 -> -24769.1251 | AV153: =CVA!D10 -> -9290.4197 | AW153: =CVA!E10 -> -9738.5385 | AX153: 1
AT154: ="CVA "&CVA!B11 -> CVA CDE COVID | AU154: =CVA!C11 -> 582548.1719 | AV154: =CVA!D11 -> 602453.8478 | AW154: =CVA!E11 -> 631512.9128 | AX154: 1
AT155: ="CVA "&CVA!B12 -> CVA Rede Básica | AU155: =CVA!C12 -> 940833.877 | AV155: =CVA!D12 -> 1020568.773 | AW155: =CVA!E12 -> 1069795.406 | AX155: 1
AT156: ="CVA "&CVA!B13 -> CVA Compra Energia | AU156: =CVA!C13 -> 20245697.42 | AV156: =CVA!D13 -> 21047799.96 | AW156: =CVA!E13 -> 22063030.24 | AX156: 1
AT157: ="CVA "&CVA!B14 -> CVA CFURH | AU157: =CVA!C14 -> 0 | AV157: =CVA!D14 -> 0 | AW157: =CVA!E14 -> 0 | AX157: 0
AT158: ="CVA "&CVA!B15 -> CVA Transporte Itaipu | AU158: =CVA!C15 -> 0 | AV158: =CVA!D15 -> 0 | AW158: =CVA!E15 -> 0 | AX158: 0
AT159: ="CVA "&CVA!B16 -> CVA Proinfa | AU159: =CVA!C16 -> 289324.579 | AV159: =CVA!D16 -> 292193.4423 | AW159: =CVA!E16 -> 306287.2492 | AX159: 1
AT160: ="CVA "&CVA!B17 -> CVA ESS/ERR | AU160: =CVA!C17 -> 13887267.07 | AV160: =CVA!D17 -> 14311122.41 | AW160: =CVA!E17 -> 15001412.36 | AX160: 1
AT161: Total | AU161: =SUM(AU152:AU160) -> 35920901.99 | AV161: =SUM(AV152:AV160) -> 37264848.02 | AW161: =SUM(AW152:AW160) -> 39062299.63
AY163: TabFin | BA163: Voltar
AY164: Componentes Financeiros | AZ164: Valor (R$) | BA164: Participação | BB164: Colunas1 | BC164: Colunas2
AY165: CVA em processamento - Energia | AZ165: =SUMIFS(Financeiros[Valor],Financeiros[idDet1],19,Financeiros[id_Grupo_TARIFA],2,Financeiros[idDet2],60,Financeiros[idDet3],999) -> 22063030.24 | BA165: =AZ165/Financeiros!$D$6 -> 0.07258876396 | BB165: =IF(AZ165<>0,1,0) -> 1
AY166: CVA em processamento -Transporte | AZ166: =SUMIFS(Financeiros[Valor],Financeiros[idDet1],19,Financeiros[id_Grupo_TARIFA],1,Financeiros[idDet2],60,Financeiros[idDet3],999) -> 1069795.406 | BA166: =AZ166/Financeiros!$D$6 -> 0.003519694501 | BB166: 1
AY167: CVA em processamento - Encargos Setoriais | AZ167: =SUMIFS(Financeiros[Valor],Financeiros[idDet1],19,Financeiros[id_Grupo_TARIFA],3,Financeiros[idDet2],60,Financeiros[idDet3],999)+SUMIFS(Financeiros[Valor],Financeiros[idDet1],19,Financeiros[id_Grupo_TARIFA],3,Financeiros[idDet2],60,Financeiros[idDet3],73)+SUMIFS(Financeiros[Valor],Financeiros[idDet1],19,Financeiros[id_Grupo_TARIFA],3,Financeiros[idDet2],60,Financeiros[idDet3],74) -> 15929473.98 | BA167: =AZ167/Financeiros!$D$6 -> 0.05240897623 | BB167: 1
AY168: Saldo a Compensar CVA-Ano Anterior + Ajustes | AZ168: =SUMIFS(Financeiros[Valor],Financeiros[idDet1],19,Financeiros[idDet2],64, Financeiros[idDet3],999) -> -54011.18951 | BA168: =AZ168/Financeiros!$D$6 -> -0.0001777002273 | BB168: =IF(AZ168<>0,1,0) -> 1
AY169: Neutralidade de Parcela A - Encargos Setoriais | AZ169: =SUMIFS(Financeiros[Valor],Financeiros[idDet1],20,Financeiros[idDet2],60, Financeiros[idDet3],999)+SUMIFS(Financeiros[Valor],Financeiros[idDet1],20,Financeiros[idDet2],60, Financeiros[idDet3],73)+SUMIFS(Financeiros[Valor],Financeiros[idDet1],20,Financeiros[idDet2],60, Financeiros[idDet3],74)-AZ194 -> -913235.708 | BA169: =AZ169/Financeiros!$D$6 -> -0.0030046032 | BB169: =IF(AZ169<>0,1,0) -> 1
AY170: Sobrecontratação/exposição de energia | AZ170: =SUMIFS(Financeiros[Valor],Financeiros[idDet1],22,Financeiros[id_Grupo_TARIFA],2,Financeiros[idDet2],60, Financeiros[idDet3],106)+SUMIFS(Financeiros[Valor],Financeiros[idDet1],22,Financeiros[id_Grupo_TARIFA],2,Financeiros[idDet2],60, Financeiros[idDet3],101) -> -8193602.117 | BA170: =AZ170/Financeiros!$D$6 -> -0.02695746884 | BB170: 1
AY171: Garantias financeiras na contratação regulada de energia (CCEAR) | AZ171: =SUMIFS(Financeiros[Valor],Financeiros[idDet1],22,Financeiros[id_Grupo_TARIFA],2,Financeiros[idDet2],60, Financeiros[idDet3],102) -> 522922.8799 | BA171: =AZ171/Financeiros!$D$6 -> 0.001720449326 | BB171: 1
AY172: Previsão de Risco Hidrológico | AZ172: =SUMIFS(Financeiros[Valor],Financeiros[idDet1],22,Financeiros[id_Grupo_TARIFA],2,Financeiros[idDet2],60, Financeiros[idDet3],220) -> 7692220.565 | BA172: =AZ172/Financeiros!$D$6 -> 0.02530789184 | BB172: 1
AY173: Reversão do Risco Hidrológico | AZ173: =SUMIFS(Financeiros[Valor],Financeiros[idDet1],22,Financeiros[id_Grupo_TARIFA],2,Financeiros[idDet2],62, Financeiros[idDet3],220) -> -8863039.204 | BA173: =AZ173/Financeiros!$D$6 -> -0.02915995917 | BB173: 1
AY174: Ajuste ref. equilíbrio econômico-financeiro TUSDg | AZ174: =SUMIFS(Financeiros[Valor],Financeiros[idDet1],22,Financeiros[id_Grupo_TARIFA],4,Financeiros[idDet2],60, Financeiros[idDet3],137) -> 0 | BA174: =AZ174/Financeiros!$D$6 -> 0 | BB174: 0
AY175: Repasse de ultrapassagem de Supridas/Permissionárias de Energia | AZ175: =SUMIFS(Financeiros[Valor],Financeiros[idDet1],22,Financeiros[id_Grupo_TARIFA],2,Financeiros[idDet2],60, Financeiros[idDet3],187) -> 0 | BA175: =AZ175/Financeiros!$D$6 -> 0 | BB175: 0
AY176: Ajuste CUSD | AZ176: =SUMIFS(Financeiros[Valor],Financeiros[idDet1],22,Financeiros[id_Grupo_TARIFA],1,Financeiros[idDet2],60, Financeiros[idDet3],119) -> -307886.9791 | BA176: =AZ176/Financeiros!$D$6 -> -0.001012967621 | BB176: 1
AY177: Repasse de compensação DIC/FIC | AZ177: =SUMIFS(Financeiros[Valor],Financeiros[idDet1],22,Financeiros[id_Grupo_TARIFA],1,Financeiros[idDet2],60, Financeiros[idDet3],178) -> 0 | BA177: =AZ177/Financeiros!$D$6 -> 0 | BB177: 0
AY178: Compensação ref. acordos bilaterais de CCEAR | AZ178: =SUMIFS(Financeiros[Valor],Financeiros[idDet1],22,Financeiros[id_Grupo_TARIFA],2,Financeiros[idDet2],60, Financeiros[idDet3],230) -> 37418.05563 | BA178: =AZ178/Financeiros!$D$6 -> 0.000123107768 | BB178: 1
AY179: Conselho de Consumidores | AZ179: =SUMIFS(Financeiros[Valor],Financeiros[idDet1],22,Financeiros[id_Grupo_TARIFA],4,Financeiros[idDet2],60, Financeiros[idDet3],188) -> 0 | BA179: =AZ179/Financeiros!$D$6 -> 0 | BB179: 0
BB180: 0
AY181: Ressarcimento de P&D | AZ181: =SUMIFS(Financeiros[Valor],Financeiros[idDet1],22,Financeiros[id_Grupo_TARIFA],3,Financeiros[idDet2],60, Financeiros[idDet3],231) -> 0 | BA181: =AZ181/Financeiros!$D$6 -> 0 | BB181: 0
AY182: Modicidade Tarifária (RENs 414/2010 e 376/2009) | AZ182: =Financeiros!D78 -> -679111.3372 | BA182: =AZ182/Financeiros!$D$6 -> -0.002234319222 | BB182: 1
AY183: ICMS não compesando na compra de energia | AZ183: =SUMIFS(Financeiros[Valor],Financeiros[idDet1],22,Financeiros[idDet2],60,Financeiros[idDet3],300) -> 0 | BA183: =AZ183/Financeiros!$D$6 -> 0 | BB183: 0 | BC183: =SUMIFS(Financeiros[Valor],Financeiros[idDet1],22,Financeiros[idDet2],60,Financeiros[idDet3],999)-AZ182 -> -9653527.379
AY184: Reperfilamento de custos de Transporte | BA184: =AZ184/Financeiros!$D$6 -> 0 | BB184: 0
AY185: Reversão Conta-Covid - CVA em processamento - Energia | AZ185: =SUMIFS(Financeiros[Valor],Financeiros[idDet1],19,Financeiros[id_Grupo_TARIFA],2,Financeiros[idDet2],60,Financeiros[idDet3],233) -> 0 | BA185: =AZ185/Financeiros!$D$6 -> 0 | BB185: 0
AY186: Reversão Conta-Covid - CVA em processamento -Transporte | AZ186: =SUMIFS(Financeiros[Valor],Financeiros[idDet1],19,Financeiros[id_Grupo_TARIFA],1,Financeiros[idDet2],60,Financeiros[idDet3],233) -> 0 | BA186: =AZ186/Financeiros!$D$6 -> 0 | BB186: 0
AY187: Reversão Conta-Covid - CVA em processamento - Encargos Setoriais | AZ187: =SUMIFS(Financeiros[Valor],Financeiros[idDet1],19,Financeiros[id_Grupo_TARIFA],3,Financeiros[idDet2],60,Financeiros[idDet3],233) -> 0 | BA187: =AZ187/Financeiros!$D$6 -> 0 | BB187: 0
AY188: Reversão Conta-Covid - Saldo a Compensar CVA-Ano Anterior + Ajustes | AZ188: =SUMIFS(Financeiros[Valor],Financeiros[idDet1],19,Financeiros[idDet2],64, Financeiros[idDet3],236) -> 0 | BA188: =AZ188/Financeiros!$D$6 -> 0 | BB188: 0
AY189: Reversão Conta-Covid - Neutralidade de Parcela A | AZ189: =SUMIFS(Financeiros[Valor],Financeiros[idDet1],20,Financeiros[idDet2],60, Financeiros[idDet3],234) -> 0 | BA189: =AZ189/Financeiros!$D$6 -> 0 | BB189: 0
AY190: Reversão Conta-Covid - Sobrecontratação | AZ190: =SUMIFS(Financeiros[Valor],Financeiros[idDet1],22,Financeiros[idDet2],60, Financeiros[idDet3],235)-SUMIFS(Financeiros[Valor],Financeiros[idDet1],22,Financeiros[id_Grupo_TARIFA],4,Financeiros[idDet2],60, Financeiros[idDet3],235) -> 0 | BA190: =AZ190/Financeiros!$D$6 -> 0 | BB190: 0
AY191: Reversão Conta Covid - Parcela B | AZ191: =SUMIFS(Financeiros[Valor],Financeiros[idDet1],22,Financeiros[id_Grupo_TARIFA],4,Financeiros[idDet2],60, Financeiros[idDet3],235) -> 0 | BA191: =AZ191/Financeiros!$D$6 -> 0 | BB191: 0
AY192: Reversão Conta Covid - Diferimento | BA192: =AZ192/Financeiros!$D$6 -> 0 | BB192: 0
AY193: Reversão Conta Covid - Postergação | BA193: =AZ193/Financeiros!$D$6 -> 0 | BB193: 0
AY194: Neutralidade de Financeiros e Encargo Covid | AZ194: =SUM(Financeiros!D210:D237) -> -62206.81608 | BA194: =AZ194/Financeiros!$D$6 -> -0.0002046643567 | BB194: 1
AY195: Diferimento (lastreado nos créditos de Pis/COFINS) | BA195: =AZ195/Financeiros!$D$6 -> 0 | BB195: 0
AY196: ='Mitigação Efeito 2022'!C43 -> Arrecadação de encargo CDE Covid dos consumidores migrantes (Ofício Circular 20/2021) | AZ196: =Financeiros!D251 -> -12042.2693 | BA196: =AZ196/Financeiros!$D$6 -> -3.961982713e-05 | BB196: 1
AY197: ='Mitigação Efeito 2022'!C62 -> Custo Distribuidora - Conta Covid - Art 4º - REN 952/2021 | AZ197: =SUM(Financeiros!D248:D249) -> -49696.45 | BA197: =AZ197/Financeiros!$D$6 -> -0.0001635044615 | BB197: 1
AY198: Finaceiro de Bandeira Escassez Hídrica - Energia | AZ198: =SUM(Financeiros!D242:D246) -> 1145778.42 | BA198: =AZ198/Financeiros!$D$6 -> 0.00376968342 | BB198: 1
AY199: Finaceiro de Bandeira Escassez Hídrica - ESS/EER | AZ199: =Financeiros!D247 -> -10737567.08 | BA199: =AZ199/Financeiros!$D$6 -> -0.03532727436 | BB199: 1
BA200: =AZ200/Financeiros!$D$6 -> 0 | BB200: 0
AY201: Ressarcimemento de créditos de PIS/COFINS | AZ201: =SUMIFS(Financeiros[Valor],Financeiros[idDet1],22,Financeiros[idDet2],60,Financeiros[idDet3],179) -> -9426653.15 | BA201: =AZ201/Financeiros!$D$6 -> -0.03101428467 | BB201: 1
BA202: =AZ202/Financeiros!$D$6 -> 0 | BB202: 0
BA203: =AZ203/Financeiros!$D$6 -> 0 | BB203: 0
BA204: =AZ204/Financeiros!$D$6 -> 0 | BB204: 0
BA205: =AZ205/Financeiros!$D$6 -> 0 | BB205: 0
BA206: =AZ206/Financeiros!$D$6 -> 0 | BB206: 0
BA207: =AZ207/Financeiros!$D$6 -> 0 | BB207: 0
BA208: =AZ208/Financeiros!$D$6 -> 0 | BB208: 0
BA209: =AZ209/Financeiros!$D$6 -> 0 | BB209: 0
BA210: =AZ210/Financeiros!$D$6 -> 0 | BB210: 0
BA211: =AZ211/Financeiros!$D$6 -> 0 | BB211: 0
BA212: =AZ212/Financeiros!$D$6 -> 0 | BB212: 0
BA213: =AZ213/Financeiros!$D$6 -> 0 | BB213: 0
BA214: =AZ214/Financeiros!$D$6 -> 0 | BB214: 0
BA215: =AZ215/Financeiros!$D$6 -> 0 | BB215: 0
... 140 more rows

Sheet NT Revisao (hidden)
B2: Tabelas
B4: Custo Operacional
B5: Receitas Irrecuperáveis
B6: Remuneração do Capital e Quota de Reintegração
B7: CAIMI
B8: Parcela B Ajustada
B9: Outras Receitas
B10: Cálculo das Perdas
B11: Energia Requerida
B12: Transmissão
B13: Encargos Setoriais
B18: Custo Operacional | E18: Voltar
B19: Limites de Eficiência
B20: Descrição | C20: Limite Inferior | D20: Centro | E20: Limite Superior
B21: 1. Eficiência | C21: ='VPB e Fator X'!C133 ->  | D21: ='VPB e Fator X'!C131 ->  | E21: ='VPB e Fator X'!C132 -> 
B22: 2. OPEX Benchmarking (Atualizado) - R$ | C22: ='VPB e Fator X'!C136 ->  | D22: =(E22+C22)/2 ->  | E22: ='VPB e Fator X'!C135 -> 
B24: Comparação com intervalo de CO eficientes
B25: Descrição | C25: Valor
B26: 3. OPEX nas tarifas - R$ | C26: ='VPB e Fator X'!C111 -> 
B27: 4. Meta estudo de eficiência - R$ | C27: ='VPB e Fator X'!C114 -> 
B28: 5. Variação Anual (%) | C28: ='VPB e Fator X'!C115 -> 
B29: 6. Meta da eficiência aplicado o limite de 5% a.a. | C29: ='VPB e Fator X'!C117 -> 
B31: Avaliação do prêmio de eficiência
B32: Descrição | C32: Reais
B33: 7. OPEX Real - R$ | C33: ='VPB e Fator X'!C118 -> 0
B34: 8. Meta OPEX | C34: ='VPB e Fator X'!C114 -> 
B35: 9. Relação OPEX Real / Meta OPEX | C35: ='VPB e Fator X'!C119 -> 
B36: 10. Meta OPEX aplicada a regra de compartilhamento | C36: ='VPB e Fator X'!C120 -> 
B38: 11. Número de anos no ciclo | C38: 4
B39: 12. OPEX na revisão [ = 3. + (10. - 3.) / 11.] | C39: ='VPB e Fator X'!C121 -> 
G41: Receitas Irrecuperáveis | J41: Voltar
G42: Descrição | H42: Receita Base (R$) | I42: % RI | J42: RI (R$)
G43: Encargos Setoriais | H43: ='VPB e Fator X'!C202/(1-'VPB e Fator X'!C203) -> 65735609.93 | I43: ='VPB e Fator X'!C204 ->  | J43: =Resultado!G21 -> 0
G44: Restante da Receita | H44: =SUM('VPB e Fator X'!C206:C208,'VPB e Fator X'!C26)/(1-'VPB e Fator X'!C203) ->  | I44: ='VPB e Fator X'!C209 ->  | J44: =Resultado!G22 -> 0
G45: Total | H45: =SUM(H43:H44) ->  | I45: =J45/H45 ->  | J45: =SUM(J43:J44) -> 0
L47: Remuneração do Capital e Quota de Reintegração | M47: Voltar
L48: Descrição | N48: Colunas1
L49: (1) Ativo Imobilizado em Serviço (Valor Novo de Reposição) | M49: ='VPB e Fator X'!C71 ->  | N49: =IF(M49=0,0,1) -> 
L50: (2) Índice de Aproveitamento Integral | M50: ='VPB e Fator X'!C72 -> 
L51: (3) Obrigações Especiais Bruta | M51: ='VPB e Fator X'!C73 -> 
L52: (4) Bens Totalmente Depreciados | M52: ='VPB e Fator X'!C74 -> 
L53: (5) Base de Remuneração Bruta = (1)-(2)-(3)-(4) | M53: ='VPB e Fator X'!C75 -> 
L54: (6) Depreciação Acumulada | M54: ='VPB e Fator X'!C82 -> 
L55: (7) AIS Líquido (Valor de Mercado em Uso) | M55: ='VPB e Fator X'!C83 -> 
L56: (8) Índice de Aproveitamento Depreciado | M56: ='VPB e Fator X'!C84 -> 
L57: (9) Valor da Base de Remuneração (VBR) = (1)-(6)-(8) | M57: ='VPB e Fator X'!C85 -> 
L58: (10) Almoxarifado em Operação | M58: ='VPB e Fator X'!C86 -> 
L59: (11) Ativo Diferido | M59: ='VPB e Fator X'!C87 -> 
L60: (12) Obrigações Especiais Líquida | M60: ='VPB e Fator X'!C88 -> 
L61: (13) Terrenos e Servidões | M61: ='VPB e Fator X'!C89 -> 
L62: (14) Base de Remuneração Líquida Total = (9)+(10)+(11)-(12)+(13) | M62: ='VPB e Fator X'!C90 -> 
L63: (15) Base de Remuneração Ativos Concessionária | M63: =M62-M69-M72 ->  | N63: =IF(M63=0,0,1) -> 
L64: (16) WACC | M64: ='VPB e Fator X'!F81 -> 0.1063543545 | N64: =IF(M63=0,0,1) -> 
L65: (17) Remuneração Ativos Concessionária | M65: =M63*M64 -> 
L66: (18) Base Obrigações Especiais | M66: ='VPB e Fator X'!G91 ->  | N66: =IF(M66=0,0,1) -> 
L67: (19) Taxa de Remuneração das Obrigações Especiais | M67: ='VPB e Fator X'!G95/'VPB e Fator X'!G91 ->  | N67: =IF(M66=0,0,1) -> 
L68: (20) Remuneração de Obrigações Especiais | M68: =M66*M67 ->  | N68: =IF(M68=0,0,1) -> 
L69: (21) Saldo RGR/PLPT | M69: ='VPB e Fator X'!C91 -> 
L70: (22) Taxa RGR/PLPT | M70: ='VPB e Fator X'!F82 -> 0.02168624234 | N70: =IF(M69=0,0,1) -> 
L71: (23) Remuneração RGR/PLPT | M71: =M69*M70 ->  | N71: =IF(M71=0,0,1) -> 
L72: (24) Saldo RGR/Demais Investimentos | M72: ='VPB e Fator X'!C92 ->  | N72: =IF(M72=0,0,1) -> 
L73: (25) Saldo RGR/Demais Investimentos | M73: ='VPB e Fator X'!H83 -> 0 | N73: =IF(M72=0,0,1) -> 
L74: (26) Remuneração RGR Demais Investimentos | M74: =M72*M73 ->  | N74: =IF(M74=0,0,1) -> 
L75: (21) Remuneração do Capital = (17)+(20) | M75: =M65+M68++M71+M74 -> 
L76: (16) Saldo RGR Demais Investimentos | M76: ='VPB e Fator X'!C92 -> 
L77: (22) Taxa de Depreciação | M77: ='VPB e Fator X'!C76 -> 0 | N77: 0
L78: (23) Quota de Reintegração Regulatória = (5) * (22) | M78: ='VPB e Fator X'!C77 -> 
O80: CAIMI | P80: Voltar
O81: Descrição | P81: Valores (R$)
O82: ='VPB e Fator X'!B60 -> (1) Base de Anuidade Regulatória (BAR) | P82: ='VPB e Fator X'!C60 -> 
O83: ='VPB e Fator X'!B61 -> (2) Base de Anuidade - Infraestrutura de imóveis e móveis administrativos (BARA) | P83: ='VPB e Fator X'!C61 -> 
O84: ='VPB e Fator X'!B62 -> (3) Base de Anuidade - Veículos (BARV) | P84: ='VPB e Fator X'!C62 -> 
O85: ='VPB e Fator X'!B63 -> (4) Base de Anuidade - Sistemas de Informática (BARI) | P85: ='VPB e Fator X'!C63 -> 
O86: ='VPB e Fator X'!B64 -> (5) Anuidade - Infraestrutura de imóveis e móveis administrativos (CAL) | P86: ='VPB e Fator X'!C64 -> 
O87: ='VPB e Fator X'!B65 -> (6) Anuidade - Veículos (CAV) | P87: ='VPB e Fator X'!C65 -> 
O88: ='VPB e Fator X'!B66 -> (7) Anuidade - Sistemas de Informática (CAI) | P88: ='VPB e Fator X'!C66 -> 
O89: ='VPB e Fator X'!B67 -> (8) CAIMI = (5)+(6)+(7) | P89: ='VPB e Fator X'!C67 -> 
R91: Parcela B ajustada | S91: Voltar
R92: Descrição | S92: Valores
R93: =Resultado!F19 -> Custo de Administração, Operação e Manutenção (CAOM) | S93: =Resultado!G19 -> 
R94: =Resultado!F20 -> Custos Operacionais (CO) | S94: =Resultado!G20 -> 
R95: =Resultado!F21 -> Receitas Irrecuperáveis - Encargos Setoriais (Vi) | S95: =Resultado!G21 -> 0
R96: =Resultado!F22 -> Demais Receitas Irrecuperáveis (Vse) | S96: =Resultado!G22 -> 0
R97: =Resultado!F23 -> Custo Anual dos Ativos (CAA) | S97: =Resultado!G23 -> 
R98: =Resultado!F24 -> Remuneração do Capital (RC) | S98: =Resultado!G24 -> 
R99: =Resultado!F25 -> Quota de Reintegração Regulatória (QRR) | S99: =Resultado!G25 -> 
R100: =Resultado!F26 -> Custo anual das instalações móveis e imóveis (CAIMI) | S100: =Resultado!G26 -> 
R101: =Resultado!F27 -> Parcela B (VPB) | S101: =Resultado!G27 -> 
R102: =Resultado!F28 -> Índice de Produtividade da Parcela B | S102: =Resultado!G28 -> 0.005003312345
R103: =Resultado!F29 -> Mecanismo de Incentivo à Qualidade | S103: =Resultado!G29 -> -0.002273726272
R104: =Resultado!F30 -> Parcela B com ajustes | S104: =Resultado!G30 -> 
U106: Outras Receitas | W106: Voltar | X106: Colunas1
U107: Descrição das atividades | V107: Compartilhamento | W107: Receita Regulatória | X107: =IF(W107=0,0,1) -> 1
U108: Serviços Cobráveis | V108: 0.6 | W108: ='VPB e Fator X'!D165 -> 0 | X108: 0
U109: ='VPB e Fator X'!B166 -> Arrecadação de convênios ou valores pela fatura e arredação por terceiros | V109: 0.6 | W109: ='VPB e Fator X'!D166 -> 0 | X109: 0
U110: ='VPB e Fator X'!B167 -> Receita proveniente da comercialização de resultados de projetos de P&D | V110: 0.5 | W110: ='VPB e Fator X'!D167 -> 0 | X110: 0
U111: ='VPB e Fator X'!B168 -> Veiculação de publicidade | V111: 0.6 | W111: ='VPB e Fator X'!D168 -> 0 | X111: 0
U112: ='VPB e Fator X'!B169 -> Aluguel ou cessão onerosa de imóveis e espaços físicos | V112: 0.6 | W112: ='VPB e Fator X'!D169 -> 0 | X112: 0
U113: ='VPB e Fator X'!B170 -> Compartilhamento de infraestrutura (Média 24 meses) | V113: 0.6 | W113: ='VPB e Fator X'!D170 -> 0 | X113: 0
U114: ='VPB e Fator X'!B171 -> Serviços de avaliação técnica e aferição de medidores. | V114: 0.6 | W114: ='VPB e Fator X'!D171 -> 0 | X114: 0
U115: ='VPB e Fator X'!B172 -> Operacionalização de serviço de créditos tributários | V115: 0.6 | W115: ='VPB e Fator X'!D172 -> 0 | X115: 0
U116: Elaboração de projeto, construção, operação, manutenção ou reforma de: | X116: 1
U117: (1) redes de distribuição de energia elétrica destinadas à regularização fundiária de interesse específico e ao atendimento dos empreendimentos de múltiplas unidades consumidoras; | V117: 0.6 | W117: ='VPB e Fator X'!D174 -> 0 | X117: 0
U118: (2) redes de energia elétrica destinadas ao acesso dos sistemas de distribuição ou transmissão; | V118: 0.6 | W118: ='VPB e Fator X'!D175 -> 0 | X118: 0
U119: (3) subestações de energia; | V119: 0.6 | W119: ='VPB e Fator X'!D176 -> 0 | X119: 0
U120: (4) instalações elétricas internas de unidades consumidoras; | V120: 0.6 | W120: ='VPB e Fator X'!D177 -> 0 | X120: 0
U121: (5) banco de capacitores: | V121: 0.6 | W121: ='VPB e Fator X'!D178 -> 0 | X121: =IF(W121=0,0,1) -> 0
U122: (6) padrões de entrada de unidades consumidoras atendidas em baixa tensão; | V122: 0.6 | W122: ='VPB e Fator X'!D179 -> 0 | X122: =IF(W121=0,0,1) -> 0
U123: (7) sistemas de medição de energia elétrica; | V123: 0.6 | W123: ='VPB e Fator X'!D180 -> 0 | X123: 0
U124: (8) geradores, incluindo-se unidades de microgeração e minigeração distribuída; | V124: 0.3 | W124: ='VPB e Fator X'!D181 -> 0 | X124: =IF(W124=0,0,1) -> 0
U125: (9) sistemas de iluminação pública. | V125: 0.6 | W125: ='VPB e Fator X'!D182 -> 0 | X125: =IF(W124=0,0,1) -> 0
U126: Eficientização do consumo de energia elétrica e instalação de cogeração qualificada, desde que não enquadráveis nos projetos de Pesquisa e Desenvolvimento (P&D) ou de Eficiência Energética estabelecidos em lei | V126: 0.3 | W126: ='VPB e Fator X'!D183 -> 0 | X126: =IF(W126=0,0,1) -> 0
U127: Serviços de comunicação de dados | V127: 0.3 | W127: ='VPB e Fator X'!D184 -> 0 | X127: 0
U128: Serviços de consultoria | V128: 0.6 | W128: ='VPB e Fator X'!D185 -> 0 | X128: =IF(W127=0,0,1) -> 0
U129: Total | W129: =SUM(W108:W128) -> 0 | X129: =IF(W129=0,0,1) -> 0
Y131: UDER | AA131: Voltar
Y132: Descrição | Z132: Média Anual | AA132: Média Anual Corrigido SELIC
Y133: Ultrapassagem de Demanda - UD | Z133: =SUM(Entrada!Q33:BL33)/4 -> 0 | AA133: ='VPB e Fator X'!D193 -> 0
Y134: Excedente de Reativos - ER | Z134: =SUM(Entrada!Q34:BL34)/4 -> 0 | AA134: ='VPB e Fator X'!D194 -> 0
Y135: UDER | Z135: =SUM(Z133:Z134) -> 0 | AA135: =SUM(AA133:AA134) -> 0
X136: =IF(W136=0,0,1) -> 0
X137: =IF(W137=0,0,1) -> 0
AC138: Calculo das Perdas | AD138: Voltar
AC139: Cálculo do Ponto de Partida
AC140: Descrição | AD140: Perda Não Técnica (% BT)
AC141: Meta Ciclo Anterior Faturada | AD141: 0.1317
AC142: Ajuste Medido x Faturado | AD142: 0.02633245462
X143: =IF(W143=0,0,1) -> 0 | AC143: Meta Ciclo anterior Medida | AD143: 0.1580324546
AC144: Média Histórica Medida | AD144: 0.1975119271
AC145: Ponto de Partida Medido | AD145: 0.1580324546
AC147: Cálculo do Ponto de Partida e Chegada após análise de flexibilização
AC148: Descrição | AD148: Modelo C | AE148: Modelo G | AF148: Modelo K
AC149: Empresa Benchmark | AD149: CEMAR | AE149: CEMAR | AF149: CEMAR
AC150: PNT/BT Benchmark | AD150: 0.124338444 | AE150: 0.124338444 | AF150: 0.124338444
AC151: PNT/BT CELPE - Referência ciclo anterior | AD151: 0.1739783884 | AE151: 0.1739783884 | AF151: 0.1739783884
AC152: Probabilidade de Comparação | AD152: 0.524485392 | AE152: 0.7610241883 | AF152: 0.2585737374
AC153: PNT/BT Meta baseada em cada Benchmark | AD153: 0.1479429627 | AE153: 0.13620119 | AF153: 0.1611428025
AC154: PNT/BT Média dos Benchmarks (medido) | AE154: =AVERAGE(AD153:AF153) -> 0.1484289851
AC155: Ponto de Partida | AE155: 0.1580324546
AC156: Ponta de Chegada | AE156: 0.1580324546
AC157: PNT/BT Meta (medido) | AE157: =MIN(AE156:AF156) -> 0.1580324546
AC159: Trajetória
AC160: Descrição | AD160: Ponto Partida | AE160: =YEAR(CAPA!C10) -> 2022 | AF160: =AE160+1 -> 2023 | AG160: =AF160+1 -> 2024 | AH160: =AG160+1 -> 2025
AC161: Trajetória PNT/BT Medido | AD161: 0.1580324546 | AE161: 0.1580324546 | AF161: 0.1580324546 | AG161: 0.1580324546 | AH161: 0.1580324546
AC162: Velocidade de Redução (a.a) | AD162: 0 | AE162: 0 | AF162: 0 | AG162: 0 | AH162: 0
AC163: Limite de Redução (a.a) | AD163: Não se aplica | AE163: Não se aplica | AF163: Não se aplica | AG163: Não se aplica | AH163: Não se aplica
AC164: Diferença entre medido e faturado | AD164: =AD142 -> 0.02633245462 | AE164: =AD164 -> 0.02633245462 | AF164: =AE164 -> 0.02633245462 | AG164: =AF164 -> 0.02633245462 | AH164: =AG164 -> 0.02633245462
AC165: Referencial Regulatório PNT/BT | AD165: =AD161-AD164 -> 0.1317 | AE165: =AE161-AE164 -> 0.1317 | AF165: =AF161-AF164 -> 0.1317 | AG165: =AG161-AG164 -> 0.1317 | AH165: =AH161-AH164 -> 0.1317
AC166: Referencial Regulatório PT/Einj | AD166: =LnkTxtPT -> 0 | AE166: =LnkTxtPT -> 0 | AF166: =LnkTxtPT -> 0 | AG166: =LnkTxtPT -> 0 | AH166: =LnkTxtPT -> 0
AJ168: Energia Requerida | AK168: Voltar
AJ169: Descrição | AK169: Energia (MWh)
AJ170: Perdas na Rede Básica | AK170: =Energia!I18+Energia!I19 -> 12094.72
AJ171: Perdas na Distribuição | AK171: =AK172+AK173 -> 48923.87286
AJ172: Perdas Técnicas | AK172: =Energia!I17 -> 41477.3557
AJ173: Perdas Não Técnicas | AK173: =Energia!I16 -> 7446.517167
AJ174: Energia Vendida | AK174: =Energia!D6 -> 556155.106
AJ175: Energia Requerida | AK175: =SUM(AK170:AK171,AK174) -> 617173.6989
AM177: Transmissão | AN177: Voltar
AM178: Descrição | AN178: Valor (R$) | AO178: Colunas1
AM179: Rede Básica | AN179: =Resultado!D30 -> 14520413.18 | AO179: =IF(AN179=0,0,1) -> 1
AM180: Rede Básica Fronteira | AN180: =Resultado!D31 -> 3971557.392 | AO180: =IF(AN180=0,0,1) -> 1
AM181: Rede Básica ONS (A2) | AN181: =Resultado!D32 -> 0 | AO181: 0
AM182: Rede Básica Export. (A2) | AN182: =Resultado!D33 -> 0 | AO182: 0
AM183: MUST Itaipu | AN183: =Resultado!D34 -> 0 | AO183: 0
AM184: Transporte de Itaipu | AN184: =Resultado!D35 -> 0 | AO184: 0
AM185: Conexão | AN185: =Resultado!D36 -> 352974.3874 | AO185: 1
AM186: Uso do sistema de distribuição | AN186: =Resultado!D37 -> 13975762.56 | AO186: 1
AM187: Total | AN187: =SUM(AN179:AN186) -> 32820707.52
AP189: Encargos Setoriais | AQ189: Voltar
AP190: Descrição | AQ190: Valor (R$) | AR190: Dispositivo Legal | AS190: Colunas1
AP191: Taxa de Fisc. de Serviços de E.E. – TFSEE | AQ191: =Resultado!D22 -> 430118.8979 | AR191: Conforme módulo 5.5 do PRORET | AS191: =IF(AQ191=0,0,1) -> 1
AP192: Conta de Desenvolvimento Energético – CDE | AQ192: =Resultado!D23 -> 25529369.65 | AR192: =Encargos!D10 -> REH 2.864/2021 e Previsão-2022 | AS192: 1
AP193: Compensação financeira - CFURH | AQ193: =Resultado!D24 -> 0 | AR193: =Encargos!D11 -> 0 | AS193: 0
AP194: Encargos Serv. Sist. - ESS e Energ. Reserv. - EER | AQ194: =Resultado!D25 -> 7600610.51 | AR194: =Encargos!D12 -> DSP SGT | AS194: 1
AP195: PROINFA | AQ195: =Resultado!D26 -> 8961536.051 | AR195: =Encargos!D13 -> ReH 2.995/2021 | AS195: 1
AP196: P&D, Efic.Energ e Ressarc.ICMS Sist.Isol. | AQ196: =Resultado!D27 -> 2887133.82 | AR196: Res. Normativa nº 316/2008 | AS196: 1
AP197: ONS | AQ197: =Resultado!D28 -> 27638.03571 | AR197: =Encargos!D14 -> Contribuição 2021 | AS197: 1
AP198: Total | AQ198: =SUM(AQ191:AQ197) -> 45436406.96
AT200: TabRevAvalRTE
AT201: Descrição | AU201: Receita Verificada (R$) | AV201: Receita Requerida (R$) | AW201: Variação | AX201: Participação na Revisão | AY201: Participação na Receita
AT202: PARCELA A | AU202: =AU203+AU213+AU222 -> 193744659.6 | AV202: =AV203+AV213+AV222 -> 204318071 | AW202: =IF(ISERROR(AV202/AU202-1),0,AV202/AU202-1) -> 0.05457395004 | AX202: =IF(ISERROR((AV202-AU202)/$AU$230),0,(AV202-AU202)/$AU$230) -> 0.03662569177 | AY202: =IF(ISERROR(AV202/($AV$230)),0,AV202/($AV$230)) -> 0.6638245149
AT203: Encargos Setoriais | AU203: =SUM(AU204:AU212) -> 27595498.76 | AV203: =SUM(AV204:AV212) -> 45436406.96 | AW203: =IF(ISERROR(AV203/AU203-1),0,AV203/AU203-1) -> 0.6465151567 | AX203: 0.06179988479 | AY203: 0.1476217971 | AZ203: Colunas1 | BA203: =SUM(AU204:AU205,AU209:AU212) -> 27595498.76 | BB203: =SUM(AV204:AV205,AV209:AV212) -> 40265557.5 | BC203: =BB203/BA203-1 -> 0.4591349792
AT204: Taxa de Fisc. de Serviços de E.E. – TFSEE | AU204: =SUM(DADOS_MercadoBase[TFSEE]) -> 386232.3714 | AV204: =Resultado!D22 -> 430118.8979 | AW204: =IF(ISERROR(AV204/AU204-1),0,AV204/AU204-1) -> 0.1136272609 | AX204: 0.0001520204155 | AY204: 0.001397445989 | AZ204: =IF(SUM(AU204:AV204)<>0,1,0) -> 1
AT205: Conta de Desenvolvimento Energético – CDE (USO) | AU205: =SUM(DADOS_MercadoBase[CDE],DADOS_MercadoBase[RTE_CDE_E]) -> 13442689.37 | AV205: =Encargos!G22 -> 20358520.19 | AW205: =IF(ISERROR(AV205/AU205-1),0,AV205/AU205-1) -> 0.5144677997 | AX205: 0.0239560421 | AY205: 0.06614434408 | AZ205: 1
AT206: Conta de Desenv. Energético – CDE Conta-Covid (TUSD) | AU206: =SUM(DADOS_MercadoBase[CDE_E_Dec],DADOS_MercadoBase[RTE_CDE_E_Dec]) -> 0 | AV206: =Encargos!G23 -> 1032973.801 | AW206: 0 | AX206: 0.003578162117 | AY206: 0.003356107117 | AZ206: 1
AT207: Conta de Desenv. Energético – CDE Conta-Covid (TE) | AU207: =SUM(DADOS_MercadoBase[CDE_E_ACR],DADOS_MercadoBase[RTE_CDE_E_ACR]) -> 0 | AV207: =Encargos!G24 -> 4137875.656 | AW207: =IF(ISERROR(AV207/AU207-1),0,AV207/AU207-1) -> 0 | AX207: 0.01433336442 | AY207: 0.01344385882 | AZ207: 1
AT208: Compensação financeira - CFURH | AU208: =SUM(DADOS_MercadoBase[CFURH]) -> 0 | AV208: =Resultado!D24 -> 0 | AW208: 0 | AX208: 0 | AY208: 0 | AZ208: 0
AT209: Encargos Serv. Sist. - ESS e Energ. Reserv. - EER | AU209: =SUM(DADOS_MercadoBase[ESSERR]) -> 5158028.228 | AV209: =Resultado!D25 -> 7600610.51 | AW209: 0.473549615 | AX209: 0.008460965209 | AY209: 0.02469420135 | AZ209: 1
AT210: PROINFA | AU210: =SUM(DADOS_MercadoBase[PROINFA]) -> 5875211.666 | AV210: =Resultado!D26 -> 8961536.051 | AW210: 0.525312884 | AX210: 0.010690851 | AY210: 0.02911581581 | AZ210: 1
AT211: P&D, Efic.Energ e Ressarc.ICMS Sist.Isol. | AU211: =SUM(DADOS_MercadoBase[PeD],DADOS_MercadoBase[RTE_PeD]) -> 2701737.292 | AV211: =Resultado!D27 -> 2887133.82 | AW211: 0.06862122696 | AX211: 0.0006422029604 | AY211: 0.009380228572 | AZ211: 1
AT212: ONS | AU212: =Resultado!C28 -> 31599.83074 | AV212: =Resultado!D28 -> 27638.03571 | AW212: -0.125373932 | AX212: -1.372343121e-05 | AY212: 8.979531552e-05 | AZ212: 1
AT213: Custos de Transmissão | AU213: =SUM(AU214:AU221) -> 38178103.8 | AV213: =SUM(AV214:AV221) -> 32820707.52 | AW213: -0.1403264109 | AX213: -0.01855771405 | AY213: 0.106633692 | AZ213: 1
AT214: Rede Básica | AU214: ='RB e Conexão'!D6 -> 17094114.48 | AV214: =Resultado!D30 -> 14520413.18 | AW214: -0.1505606681 | AX214: -0.008915153969 | AY214: 0.04717647437 | AZ214: 1
AT215: Rede Básica Fronteira | AU215: ='RB e Conexão'!D7 -> 5927697.6 | AV215: =Resultado!D31 -> 3971557.392 | AW215: -0.33 | AX215: -0.00677595771 | AY215: 0.01290349476 | AZ215: 1
AT216: Rede Básica ONS (A2) | AU216: =VLOOKUP("TUSDg ONS DRA",TUSDG[#Data],2,FALSE) -> 0 | AV216: =Resultado!D32 -> 0 | AW216: 0 | AX216: 0 | AY216: 0 | AZ216: 0
AT217: Rede Básica Export. (A2) | AU217: =VLOOKUP("TUSDg Export DRA",TUSDG[#Data],2,FALSE) -> 0 | AV217: =Resultado!D33 -> 0 | AW217: 0 | AX217: 0 | AY217: 0 | AZ217: 0
AT218: MUST Itaipu | AU218: =SUM(DADOS_MercadoBase[TUST_ITAIPU]) -> 0 | AV218: =Resultado!D34 -> 0 | AW218: 0 | AX218: 0 | AY218: 0 | AZ218: 0
AT219: Transporte de Itaipu | AU219: =SUMPRODUCT(itaiputransporte[Potência],itaiputransporte[Tarifa DRA]) -> 0 | AV219: =Resultado!D35 -> 0 | AW219: 0 | AX219: 0 | AY219: 0 | AZ219: 0
AT220: Conexão | AU220: ='RB e Conexão'!D9 -> 469716.5916 | AV220: =Resultado!D36 -> 352974.3874 | AW220: -0.2485375357 | AX220: -0.0004043883129 | AY220: 0.001146805324 | AZ220: 1
AT221: Uso do sistema de distribuição | AU221: =CUSD!C14 -> 14686575.13 | AV221: =Resultado!D37 -> 13975762.56 | AW221: -0.04839879721 | AX221: -0.00246221406 | AY221: 0.04540691754 | AZ221: 1
... 69 more rows

Sheet Apresentação (hidden)
B2: Efeito Médio | L2: Efeito Médio CP x Final | U2: Composição Tarifária - Tributos | Z2: Composição Tarifária - ICMS & PIS/COFINS | AD2: Composição Tarifária - sem Tributos
Z18: Composição da Receita com Tributos | AD18: Composição da Receita sem Tributos - Encargos Segregados
U19: =Z19 -> Custo de Distribuição | W19: =AB19 -> 0.2323642569 | Z19: =AD19 -> Custo de Distribuição | AB19: =AF19/$AB$25 -> 0.2323642569 | AD19: Custo de Distribuição | AF19: =IF(CAPA!C8="Reajuste",'Votos e NTs'!BO265,'NT Revisao'!AV223) -> 103471211.3
U20: =Z20 -> Custo de Energia | W20: =AB20 -> 0.2830938202 | Z20: =AD20 -> Custo de Energia | AB20: =AF20/AB25 -> 0.2830938202 | AD20: Custo de Energia | AF20: =IF(CAPA!C8="Reajuste",'Votos e NTs'!BO264,'NT Revisao'!AV222) -> 126060956.5 | AN20: ='NT Revisao'!AT224 -> Custos Operacionais | AQ20: ='NT Revisao'!AX224 -> 0
U21: =Z21 -> Custo de Transporte | W21: =AB21 -> 0.07370513228 | Z21: =AD21 -> Custo de Transporte | AB21: =AF21/$AB$25 -> 0.07370513228 | AD21: Custo de Transporte | AF21: =IF(CAPA!C8="Reajuste",'Votos e NTs'!BO255,'NT Revisao'!AV213) -> 32820707.52 | AN21: ='NT Revisao'!AT225 -> Anuidades | AQ21: ='NT Revisao'!AX225 -> 0
U22: =Z22 -> Encargos Setoriais | W22: =AB22 -> 0.1020360814 | Z22: Encargos Setoriais | AB22: =SUM(AF22:AF25/$AB$25) -> 0.1020360814 | AD22: PROINFA | AF22: =IF(CAPA!C9="Reajuste",'Votos e NTs'!BO252,'NT Revisao'!AV210) -> 8961536.051 | AN22: ='NT Revisao'!AT226 -> Remuneração | AQ22: ='NT Revisao'!AX226 -> 0
C23: Impacto da RTA na Tarifa | M23: Impacto da RTA na Tarifa | P23: CP 003/21 | Q23: Final | U23: Tributos | W23: =AB23+AB24 -> 0.3088007092 | Z23: ='Votos e NTs'!O29 -> ICMS | AB23: =Mercado!G9 -> 0.2755008872 | AD23: CDE | AF23: =IF(CAPA!C10="Reajuste",SUM('Votos e NTs'!BL247:BL249),SUM('NT Revisao'!AV205:AV207)) -> 25529369.65 | AN23: ='NT Revisao'!AT227 -> Depreciação | AQ23: ='NT Revisao'!AX227 -> 0
C24: Encargos Setoriais | F24: =IF(CAPA!C7="Reajuste",'Votos e NTs'!BO245,'NT Revisao'!AX203) -> 0.04583152455 | M24: Encargos Setoriais | P24: ='AP x Final'!I4 ->  | Q24: =F24 -> 0.04583152455 | Z24: ='Votos e NTs'!O30 -> PIS/COFINS | AB24: =Mercado!G10 -> 0.03329982195 | AD24: ESS/EER | AF24: =IF(CAPA!C11="Reajuste",'Votos e NTs'!BO251,'NT Revisao'!AV209) -> 7600610.51 | AN24: ='NT Revisao'!AT228 -> Receitas Irrecuperáveis | AQ24: ='NT Revisao'!AX228 -> 0
C25: Transporte | F25: =IF(CAPA!C7="Reajuste",'Votos e NTs'!BO255,'NT Revisao'!AX213) -> -0.01855771405 | M25: Custos de Transporte | P25: ='AP x Final'!I14 ->  | Q25: -0.01855771405 | Z25: TOTAL com Impostos | AB25: =AF26/(1-AB23-AB24) -> 445297450.9 | AD25: Outros | AF25: =AF26-SUM(AF19:AF24) -> 3344890.753 | AN25: ='NT Revisao'!AT229 -> Outras Receitas + Exc. Reativos + Ult. Demanda | AQ25: ='NT Revisao'!AX229 -> 0
C26: Compra de Energia | F26: =IF(CAPA!C7="Reajuste",'Votos e NTs'!BO264,'NT Revisao'!AX222) -> -0.006616478968 | M26: Custos de Compra de Energia | P26: ='AP x Final'!I23 ->  | Q26: -0.006616478968 | AD26: TOTAL | AF26: =IF(CAPA!C13="Reajuste",'Votos e NTs'!BO266,'NT Revisao'!AV230) -> 307789282.3 | AN26: Parcela B | AQ26: =SUM(AQ20:AQ25) -> 0
C27: Distribuição | F27: =IF(CAPA!C7="Reajuste",'Votos e NTs'!BO265,'NT Revisao'!AX223) -> 0.04550712413 | M27: Distribuição | P27: ='AP x Final'!I24 ->  | Q27: 0.04550712413
C28: Componentes Financeiros | F28: =IF(CAPA!C7="Reajuste",'Votos e NTs'!BO268,'NT Revisao'!AX232) -> 0.03014220109 | M28: Componentes Financeiros | P28: ='AP x Final'!I34 ->  | Q28: 0.03014220109
C29: Retirada dos Financeiros Anteriores | F29: =F30-SUM(F24:F28) -> 0.000936091879 | M29: Retirada dos Financeiros Anteriores | P29: =P30-SUM(P24:P28) ->  | Q29: 0.000936091879
C30: Efeito Médio Consumidor | F30: =Resultado!L10 -> 0.09724274863 | M30: Efeito Médio Consumidor | P30: ='AP x Final'!I73 -> 0 | Q30: =SUM(Q24:Q29) -> 0.09724274863
C34: Efeito Subgrupo
C35: GRUPO | D35: EFEITO
C36: Grupo A | D36: =Resultado!L8 -> 0.09353356046
C37: Grupo B | D37: =Resultado!L9 -> 0.09850804248
C38: Grupos A+B | D38: =Resultado!L10 -> 0.09724274863
F40: Compra de Energia
F41: Contratos | G41: Montantes (MWh) | J41: Preço (R$/MWh) | M41: Impacto Processo
G42: Processo Anterior | H42: Processo Atual | I42: Variação | J42: Processo Anterior | K42: Processo Atual | L42: Variação | N42: Colunas1
F43: CCEAR | G43: =(SUM('Votos e NTs'!BS326:BS329)+'Votos e NTs'!BS$338*SUM('Votos e NTs'!BS326:BS329)/SUM('Votos e NTs'!BS$326:BS$337)) -> 244572.043 | H43: =(SUM('Votos e NTs'!BT326:BT329)+'Votos e NTs'!BT$338*SUM('Votos e NTs'!BT326:BT329)/SUM('Votos e NTs'!BT$326:BT$337)) -> 253080.0905 | I43: =IFERROR(H43/G43-1,"") -> 0.03478748988 | J43: =IFERROR(SUM('Votos e NTs'!BY326:BY329)/SUM('Votos e NTs'!BS326:BS329),"") -> 247.840043 | K43: =IFERROR(SUM('Votos e NTs'!BZ326:BZ329)/SUM('Votos e NTs'!BT326:BT329),"") -> 276.220714 | L43: =IFERROR(K43/J43-1,"") -> 0.1145120483 | M43: =SUM('Votos e NTs'!CE345:CE348) -> 0.02207328375 | N43: =IF(G43+H43=0,0,1) -> 1
F44: Ajuste - CCEAR | G44: =('Votos e NTs'!BS333+'Votos e NTs'!BS$338*'Votos e NTs'!BS333/SUM('Votos e NTs'!BS$326:BS$337)) -> 0 | H44: =('Votos e NTs'!BT333+'Votos e NTs'!BT$338*'Votos e NTs'!BT333/SUM('Votos e NTs'!BT$326:BT$337)) -> 0 | J44: =IFERROR('Votos e NTs'!BY333/'Votos e NTs'!BS333,"") ->  | K44: =IFERROR('Votos e NTs'!BZ333/'Votos e NTs'!BT333,"") ->  | L44: =IFERROR(K44/J44-1,"") ->  | M44: ='Votos e NTs'!CE352 -> 0 | N44: 0
F45: Madeira e Belo Monte | G45: =('Votos e NTs'!BS330+'Votos e NTs'!BS$338*'Votos e NTs'!BS330/SUM('Votos e NTs'!BS$326:BS$337)) -> 116734.3042 | H45: =('Votos e NTs'!BT330+'Votos e NTs'!BT$338*'Votos e NTs'!BT330/SUM('Votos e NTs'!BT$326:BT$337)) -> 117025.7122 | I45: 0.002496336072 | J45: =IFERROR('Votos e NTs'!BY330/'Votos e NTs'!BS330,"") -> 144.5683148 | K45: =IFERROR('Votos e NTs'!BZ330/'Votos e NTs'!BT330,"") -> 159.2645679 | L45: =IFERROR(K45/J45-1,"") -> 0.1016561141 | M45: ='Votos e NTs'!CE349 -> 0.00503487513 | N45: 1
F46: Cota Angra I e Angra II | G46: =('Votos e NTs'!BS331+'Votos e NTs'!BS$338*'Votos e NTs'!BS331/SUM('Votos e NTs'!BS$326:BS$337)) -> 28154.77459 | H46: =('Votos e NTs'!BT331+'Votos e NTs'!BT$338*'Votos e NTs'!BT331/SUM('Votos e NTs'!BT$326:BT$337)) -> 24789.53681 | I46: -0.1195263619 | J46: =IFERROR('Votos e NTs'!BY331/'Votos e NTs'!BS331,"") -> 249.64 | K46: =IFERROR('Votos e NTs'!BZ331/'Votos e NTs'!BT331,"") -> 349.15 | L46: =IFERROR(K46/J46-1,"") -> 0.3986140042 | M46: ='Votos e NTs'!CE350 -> 0.00684713707 | N46: 1
F47: Cotas Lei n º 12.783/2013 | G47: =('Votos e NTs'!BS332+'Votos e NTs'!BS$338*'Votos e NTs'!BS332/SUM('Votos e NTs'!BS$326:BS$337)) -> 168457.5039 | H47: =('Votos e NTs'!BT332+'Votos e NTs'!BT$338*'Votos e NTs'!BT332/SUM('Votos e NTs'!BT$326:BT$337)) -> 171274.1837 | I47: 0.01672041766 | J47: =IFERROR('Votos e NTs'!BY332/'Votos e NTs'!BS332,"") -> 114.7315487 | K47: =IFERROR('Votos e NTs'!BZ332/'Votos e NTs'!BT332,"") -> 122.333442 | L47: =IFERROR(K47/J47-1,"") -> 0.06625809033 | M47: ='Votos e NTs'!CE351 -> 0.003124540531 | N47: 1
F48: Itaipu | G48: =('Votos e NTs'!BS334+'Votos e NTs'!BS$338*'Votos e NTs'!BS334/SUM('Votos e NTs'!BS$326:BS$337)) -> 0 | H48: =('Votos e NTs'!BT334+'Votos e NTs'!BT$338*'Votos e NTs'!BT334/SUM('Votos e NTs'!BT$326:BT$337)) -> 0 | J48: =IFERROR('Votos e NTs'!BY334/'Votos e NTs'!BS334,"") ->  | K48: =IFERROR('Votos e NTs'!BZ334/'Votos e NTs'!BT334,"") ->  | M48: ='Votos e NTs'!CE353 -> 0 | N48: 0
F49: Bilateral | G49: =('Votos e NTs'!BS335+'Votos e NTs'!BS$338*'Votos e NTs'!BS335/SUM('Votos e NTs'!BS$326:BS$337)) -> 91062.48304 | H49: =('Votos e NTs'!BT335+'Votos e NTs'!BT$338*'Votos e NTs'!BT335/SUM('Votos e NTs'!BT$326:BT$337)) -> 0 | I49: -1 | J49: =IFERROR('Votos e NTs'!BY335/'Votos e NTs'!BS335,"") -> 369.82 | K49: =IFERROR('Votos e NTs'!BZ335/'Votos e NTs'!BT335,"") ->  | M49: ='Votos e NTs'!CE354 -> -0.0439002522 | N49: 1
F50: Geração Própria | G50: =('Votos e NTs'!BS336+'Votos e NTs'!BS$338*'Votos e NTs'!BS336/SUM('Votos e NTs'!BS$326:BS$337)) -> 0 | H50: =('Votos e NTs'!BT336+'Votos e NTs'!BT$338*'Votos e NTs'!BT336/SUM('Votos e NTs'!BT$326:BT$337)) -> 0 | J50: =IFERROR('Votos e NTs'!BY336/'Votos e NTs'!BS336,"") ->  | K50: =IFERROR('Votos e NTs'!BZ336/'Votos e NTs'!BT336,"") ->  | M50: ='Votos e NTs'!CE355 -> 0 | N50: 0
F51: Montante de Reposição | G51: =('Votos e NTs'!BS337+'Votos e NTs'!BS$338*'Votos e NTs'!BS337/SUM('Votos e NTs'!BS$326:BS$337)) -> 0 | H51: =('Votos e NTs'!BT337+'Votos e NTs'!BT$338*'Votos e NTs'!BT337/SUM('Votos e NTs'!BT$326:BT$337)) -> 0 | J51: =IFERROR('Votos e NTs'!BY337/'Votos e NTs'!BS337,"") ->  | K51: =IFERROR('Votos e NTs'!BZ337/'Votos e NTs'!BT337,"") ->  | M51: ='Votos e NTs'!CE356 -> 0 | N51: 0
F52: Proinfa | G52: ='Votos e NTs'!BS338 -> 13438.82389 | H52: ='Votos e NTs'!BT338 -> 13104.63275 | I52: -0.02486758846 | J52: =IFERROR('Votos e NTs'!BY338/'Votos e NTs'!BS338,"") -> 0 | K52: =IFERROR('Votos e NTs'!BZ338/'Votos e NTs'!BT338,"") -> 0 | M52: ='Votos e NTs'!CE357 -> 0.0002039367486 | N52: 1
F53: Total | G53: =SUM(G43:G52) -> 662419.9326 | H53: =SUM(H43:H52) -> 579274.156 | I53: -0.1255182287 | J53: ='Votos e NTs'!BV340 -> 207.2138653 | K53: ='Votos e NTs'!BW340 -> 204.2552311 | L53: -0.01427816687 | M53: =SUM(M43:M52) -> -0.006616478968
O55: Encargos Setoriais
O56: Encargos Setoriais | P56: Processo Anterior (mil R$) | Q56: Processo Atual (mil R$) | R56: Impacto Processo | S56: Colunas1
O57: TFSEE | P57: ='Votos e NTs'!BL246/1000 -> 386.2323714 | Q57: ='Votos e NTs'!BM246/1000 -> 430.1188979 | R57: ='Votos e NTs'!BO246 -> 0.0001520204155 | S57: =IF(P57+Q57=0,0,1) -> 1
O58: CDE (USO) | P58: ='Votos e NTs'!BL247/1000 -> 13442.68937 | Q58: ='Votos e NTs'!BM247/1000 -> 20358.52019 | R58: ='Votos e NTs'!BO247 -> 0.0239560421 | S58: 1
O59: CDE Conta Covid (TUSD) | P59: ='Votos e NTs'!BL248/1000 -> 928.638446 | Q59: ='Votos e NTs'!BM248/1000 -> 1032.973801 | R59: ='Votos e NTs'!BO248 -> 0.0003614116962 | S59: 1
O60: CDE Conta Covid (TE) | P60: ='Votos e NTs'!BL249/1000 -> 3681.241496 | Q60: ='Votos e NTs'!BM249/1000 -> 4137.875656 | R60: ='Votos e NTs'!BO249 -> 0.001581754593 | S60: 1
O61: Compensação financeira - CFURH | P61: ='Votos e NTs'!BL250/1000 -> 0 | Q61: ='Votos e NTs'!BM250/1000 -> 0 | R61: ='Votos e NTs'!BO250 -> 0 | S61: 0
O62: ESS/EER | P62: ='Votos e NTs'!BL251/1000 -> 5158.028228 | Q62: ='Votos e NTs'!BM251/1000 -> 7600.61051 | R62: ='Votos e NTs'!BO251 -> 0.008460965209 | S62: 1
O63: PROINFA | P63: ='Votos e NTs'!BL252/1000 -> 5875.211666 | Q63: ='Votos e NTs'!BM252/1000 -> 8961.536051 | R63: ='Votos e NTs'!BO252 -> 0.010690851 | S63: 1
O64: P&D | P64: ='Votos e NTs'!BL253/1000 -> 2701.737292 | Q64: ='Votos e NTs'!BM253/1000 -> 2887.13382 | R64: ='Votos e NTs'!BO253 -> 0.0006422029604 | S64: 1
O65: ONS | P65: ='Votos e NTs'!BL254/1000 -> 31.59983074 | Q65: ='Votos e NTs'!BM254/1000 -> 27.63803571 | R65: ='Votos e NTs'!BO254 -> -1.372343121e-05 | S65: 1
O66: Total de Encargos | P66: =SUM(P57:P65) -> 32205.3787 | Q66: =SUM(Q57:Q65) -> 45436.40696 | R66: =SUM(R57:R65) -> 0.04583152455
T68: Custos de Transporte
T69: Custos de Transporte | U69: Processo Anterior (mil R$) | V69: Processo Atual (mil R$) | W69: Impacto Processo | X69: Colunas1
T70: Rede Básica | U70: ='Votos e NTs'!BL256/1000 -> 17094.11448 | V70: ='Votos e NTs'!BM256/1000 -> 14520.41318 | W70: ='Votos e NTs'!BO256 -> -0.008915153969 | X70: =IF(U70+V70=0,0,1) -> 1
T71: Rede Básica Fronteira | U71: ='Votos e NTs'!BL257/1000 -> 5927.6976 | V71: ='Votos e NTs'!BM257/1000 -> 3971.557392 | W71: ='Votos e NTs'!BO257 -> -0.00677595771 | X71: 1
T72: Rede Básica ONS (A2) | U72: ='Votos e NTs'!BL258/1000 -> 0 | V72: ='Votos e NTs'!BM258/1000 -> 0 | W72: ='Votos e NTs'!BO258 -> 0 | X72: 0
T73: Rede Básica Export. (A2) | U73: ='Votos e NTs'!BL259/1000 -> 0 | V73: ='Votos e NTs'!BM259/1000 -> 0 | W73: ='Votos e NTs'!BO259 -> 0 | X73: 0
T74: MUST Itaipu | U74: ='Votos e NTs'!BL260/1000 -> 0 | V74: ='Votos e NTs'!BM260/1000 -> 0 | W74: ='Votos e NTs'!BO260 -> 0 | X74: 0
T75: Transporte de Itaipu | U75: ='Votos e NTs'!BL261/1000 -> 0 | V75: ='Votos e NTs'!BM261/1000 -> 0 | W75: ='Votos e NTs'!BO261 -> 0 | X75: 0
T76: Conexão | U76: ='Votos e NTs'!BL262/1000 -> 469.7165916 | V76: ='Votos e NTs'!BM262/1000 -> 352.9743874 | W76: ='Votos e NTs'!BO262 -> -0.0004043883129 | X76: 1
T77: Uso do sistema de distribuição | U77: ='Votos e NTs'!BL263/1000 -> 14686.57513 | V77: ='Votos e NTs'!BM263/1000 -> 13975.76256 | W77: ='Votos e NTs'!BO263 -> -0.00246221406 | X77: 1
T78: Total do Transporte | U78: =SUM(U70:U77) -> 38178.1038 | V78: =SUM(V70:V77) -> 32820.70752 | W78: =SUM(W70:W77) -> -0.01855771405
Y80: Parcela B - Reajuste
Y81: Descrição | AA81: Valor | AB81: Referência
Y82: (1) Parcela B Processo Anterior (mil R$) | AA82: ='Votos e NTs'!AQ142/1000 -> 90333.83363 | AB82: TUSD fio B aplicada ao Mercado
Y83: (2) Fator DR1/Fator PB | AA83: ='VPB1'!C38 -> 32205378.7 | AB83: SGT/ANEEL
Y84: (3) Parcela B Processo Anterior sem UDEROR (mil R$) | AA84: =AA82*AA83 -> 2.909235321e+12 | AB84: SGT/ANEEL
Y85: (4) IPCA | AA85: =LnkTxtIPCA -> 0.1030078567 | AB85: Indicador econômico oficial
Y86: (5) Fator X | AA86: =SUM(AA87:AA89) -> 0.01088247815 | AB86: Pd + T + Q
Y87: (5.1) Componente Pd do Fator X | AA87: ='VPB1'!F40 -> 0.003220845164 | AB87: ='Votos e NTs'!AR146 -> REH 2.832/2021
Y88: (5.2) Componente T do Fator X | AA88: ='VPB1'!F41 -> 0.009935359261 | AB88: ='Votos e NTs'!AR147 -> PRORET 2.5 A
Y89: (5.3) Componente Q do Fator X | AA89: ='VPB1'!F42 -> -0.002273726272 | AB89: ='Votos e NTs'!AR148 -> 0
Y90: (6) UDEROR | AA90: =SUM(AA91:AA93) -> 0 | AB90: UD + ER + OR
Y91: (6.1) Outras Receitas (OR) | AA91: ='Votos e NTs'!AQ169/1000 -> 0 | AB91: Valores fiscalizados - SFF
Y92: (6.2) Excedente de Reativos (ER) | AA92: ='Votos e NTs'!AQ170/1000 -> 0 | AB92: Valores fiscalizados - SFF
Y93: (6.3) Ultrapassagem de Demanda (UD) | AA93: ='Votos e NTs'!AQ171/1000 -> 0 | AB93: Valores fiscalizados - SFF
Y94: (7) ONS | AB94: 0
Y95: Parcela B Atual (mil R$) | AA95: =AA84*(1+AA85-AA86)-AA90 -> 3.177249727e+12
AD97: Financeiros
AD98: Componentes Financeiros | AF98: Valor (mil R$) | AG98: Impacto Processo
AD99: CVA em processamento - Energia | AF99: =SUMIFS(Financeiros[Valor],Financeiros[idDet1],19,Financeiros[id_Grupo_TARIFA],2,Financeiros[idDet2],60,Financeiros[idDet3],999)/1000 -> 22063.03024 | AG99: =1000*AF99/Financeiros!$D$5 -> 0.07642507383
AD100: CVA em processamento -Transporte | AF100: =SUMIFS(Financeiros[Valor],Financeiros[idDet1],19,Financeiros[id_Grupo_TARIFA],1,Financeiros[idDet2],60,Financeiros[idDet3],999)/1000 -> 1069.795406 | AG100: =1000*AF100/Financeiros!$D$5 -> 0.00370571005
AD101: CVA em processamento - Encargos Setoriais | AF101: =SUMIFS(Financeiros[Valor],Financeiros[idDet1],19,Financeiros[id_Grupo_TARIFA],3,Financeiros[idDet2],60,Financeiros[idDet3],999)/1000 -> 15297.96107 | AG101: =1000*AF101/Financeiros!$D$5 -> 0.05299126149
AD102: Saldo a Compensar CVA-Ano Anterior + Ajustes | AF102: =SUMIFS(Financeiros[Valor],Financeiros[idDet1],19,Financeiros[idDet2],64, Financeiros[idDet3],999)/1000 -> -54.01118951 | AG102: =1000*AF102/Financeiros!$D$5 -> -0.0001870916688
AD103: Neutralidade de Parcela A - Encargos Setoriais | AF103: =SUMIFS(Financeiros[Valor],Financeiros[idDet1],20,Financeiros[idDet2],60,Financeiros[idDet3],999)/1000 -> -883.1438327 | AG103: =1000*AF103/Financeiros!$D$5 -> -0.003059159685
AD104: Sobrecontratação/exposição de energia | AF104: =SUMIFS(Financeiros[Valor],Financeiros[idDet1],22,Financeiros[id_Grupo_TARIFA],2,Financeiros[idDet2],60,Financeiros[idDet3],106)/1000+SUMIFS(Financeiros[Valor],Financeiros[idDet1],22,Financeiros[id_Grupo_TARIFA],2,Financeiros[idDet2],60,Financeiros[idDet3],101)/1000 -> -8193.602117 | AG104: =1000*AF104/Financeiros!$D$5 -> -0.02838216873
AD105: Previsão de Risco Hidrológico | AF105: =SUMIFS(Financeiros[Valor],Financeiros[idDet1],22,Financeiros[id_Grupo_TARIFA],2,Financeiros[idDet2],60,Financeiros[idDet3],220)/1000 -> 7692.220565 | AG105: =1000*AF105/Financeiros!$D$5 -> 0.02664541173
AD106: Reversão do Risco Hidrológico | AF106: =SUMIFS(Financeiros[Valor],Financeiros[idDet1],22,Financeiros[id_Grupo_TARIFA],2,Financeiros[idDet2],62,Financeiros[idDet3],220)/1000 -> -8863.039204 | AG106: =1000*AF106/Financeiros!$D$5 -> -0.03070106048
AD107: Reperfilamento de RBSE | AF107: =SUMIFS(Financeiros[Valor],Financeiros[idDet1],22,Financeiros[id_Grupo_TARIFA],1,Financeiros[idDet2],60,Financeiros[idDet3],999)/1000 -> 0 | AG107: =1000*AF107/Financeiros!$D$5 -> 0
AD108: ICMS não compesando na compra de energia | AF108: ='Votos e NTs'!AZ183/1000 -> 0 | AG108: =1000*AF108/Financeiros!$D$5 -> 0
AD109: Reversão Conta-Covid - CVA em processamento | AF109: =SUMIFS(Financeiros[Valor],Financeiros[idDet1],19,Financeiros[idDet2],60,Financeiros[idDet3],233)/1000 -> 0 | AG109: =1000*AF109/Financeiros!$D$5 -> 0
AD110: Reversão Conta-Covid - Saldo a Compensar | AF110: =SUMIFS(Financeiros[Valor],Financeiros[idDet1],19,Financeiros[idDet2],64,Financeiros[idDet3],236)/1000 -> 0 | AG110: =1000*AF110/Financeiros!$D$5 -> 0
AD111: Reversão Conta-Covid - Neutralidade de Parcela A | AF111: =SUMIFS(Financeiros[Valor],Financeiros[idDet1],20,Financeiros[idDet2],60,Financeiros[idDet3],234)/1000 -> 0 | AG111: =1000*AF111/Financeiros!$D$5 -> 0
AD112: Reversão Conta-Covid - Sobrecontratação | AF112: =SUMIFS(Financeiros[Valor],Financeiros[idDet1],22,Financeiros[idDet2],60,Financeiros[idDet3],235)/1000 -> 0 | AG112: =1000*AF112/Financeiros!$D$5 -> 0
AD113: Reversão Conta Covid - Postergação | AF113: =SUMIFS(Financeiros[Valor],Financeiros[idDet1],22,Financeiros[idDet2],60,Financeiros[idDet3],196)/1000-AF114-AF115 ->  | AG113: =1000*AF113/Financeiros!$D$5 -> 
AD114: Prorrogação de Tarifas (abr/20 a jun/20) | AF114: =(#REF!+#REF!)/1000 ->  | AG114: =1000*AF114/Financeiros!$D$5 -> 
AD115: Diferimento CELPE | AF115: ='Votos e NTs'!AZ195/1000 -> 0 | AG115: =1000*AF115/Financeiros!$D$5 -> 0
AD116: Demais Financeiros | AF116: =AF117-SUM(AF99:AF115) ->  | AG116: =1000*AF116/Financeiros!$D$5 -> 
AD117: Total | AF117: ='Votos e NTs'!AZ223/1000 -> 9161.587246 | AG117: =SUM(AG99:AG116) -> 
AI119: B1 x Inflação
AJ120: Variação
AI121: IGP-M | AJ121: ='Votos e NTs'!$AB$40 -> 1.336966422
AI122: IPCA | AJ122: ='Votos e NTs'!$AC$40 -> 0.7964018439
AI123: Tarifa B1 | AJ123: ='Votos e NTs'!$AA$40 -> 0.7551929953
AL125: Financeiros
AL126: Resultado Bandeiras Tarifárias | AM126: Valor (mil R$) | AN126: Impacto Processo
AL127: Usinas com contrato por disponibilidade - CCEAR-D | AM127: -66519.46164 | AN127: -0.01144423021
AL128: Risco Hidrológico das usinas que repactuaram | AM128: 128197.3185 | AN128: 0.02205549458
AL129: Risco Hidrológico das usinas cotistas - CCGF | AM129: 103147.5557 | AN129: 0.01774584977
AL130: Risco Hidrológico da UHE ITAIPU | AM130: 87452.43744 | AN130: 0.01504560924
AL131: Encargos de Energia de Reserva - EER e de Serviço do Sistema - ESS | AM131: -102050.9453 | AN131: -0.01755718527
AL132: Resultado Mercado de Curto Prazo - MCP | AM132: 28529.54764 | AN132: 0.004908318602
AL133: Custo Total | AM133: 178756.4523 | AN133: 0.03075385671
AL134: Recolhimento pelas Bandeiras Tarifárias | AM134: -162443.7101 | AN134: -0.0279473581
AL135: Previsão do Risco Hidrológico no Processo Tarifário de 2018 | AM135: -162780.8718 | AN135: -0.02800536451
AL136: Receita Total | AM136: =AM134+AM135 -> -325224.5819 | AN136: =AN135+AN134 -> -0.05595272261
AL137: Custo não coberto antecipadamente | AM137: -146468.1296 | AN137: -0.0251988659
AP139: Remuneração do Capital
AP140: Descrição | AQ140: Ciclo Anterior | AR140: Ciclo Atual
AP141: Base Líquida (mil R$) | AQ141: ='Avaliação Parcela B'!J125/1000 ->  | AR141: ='Avaliação Parcela B'!K125/1000 -> 
AP142: Remuneração | AQ142: ='Avaliação Parcela B'!G126 ->  | AR142: ='Avaliação Parcela B'!H126 -> 
AT144: Quota de Reintegração
AT145: Descrição | AU145: Ciclo Anterior | AV145: Ciclo Atual
AT146: Base Bruta (mil R$) | AU146: ='Avaliação Parcela B'!J158/1000 ->  | AV146: ='Avaliação Parcela B'!K158/1000 -> 
AT147: Depreciação | AU147: ='Avaliação Parcela B'!G159 ->  | AV147: ='Avaliação Parcela B'!H159 -> 
AX149: Parcela B - Revisão
AX150: Descrição | AY150: Processo Anterior (mil R$) | AZ150: Processo Atual (mil R$) | BA150: Variação | BB150: Participação na Revisão
AX151: ='NT Revisao'!AT224 -> Custos Operacionais | AY151: ='NT Revisao'!AU224 ->  | AZ151: ='NT Revisao'!AV224 ->  | BA151: ='NT Revisao'!AW222 -> -0.01492603557 | BB151: ='NT Revisao'!AX224 -> 0
AX152: ='NT Revisao'!AT225 -> Anuidades | AY152: ='NT Revisao'!AU225 ->  | AZ152: ='NT Revisao'!AV225 ->  | BA152: ='NT Revisao'!AW223 -> 0.08981634878 | BB152: ='NT Revisao'!AX225 -> 0
AX153: ='NT Revisao'!AT226 -> Remuneração | AY153: ='NT Revisao'!AU226 ->  | AZ153: ='NT Revisao'!AV226 ->  | BA153: ='NT Revisao'!AW224 -> 0 | BB153: ='NT Revisao'!AX226 -> 0
AX154: ='NT Revisao'!AT227 -> Depreciação | AY154: ='NT Revisao'!AU227 ->  | AZ154: ='NT Revisao'!AV227 ->  | BA154: ='NT Revisao'!AW225 -> 0 | BB154: ='NT Revisao'!AX227 -> 0
AX155: ='NT Revisao'!AT228 -> Receitas Irrecuperáveis | AY155: ='NT Revisao'!AU228 ->  | AZ155: ='NT Revisao'!AV228 -> 0 | BA155: ='NT Revisao'!AW226 -> 0 | BB155: ='NT Revisao'!AX228 -> 0
AX156: Out.Receitas+Exc.Reativos+Ult.Demanda | AY156: ='NT Revisao'!AU229 ->  | AZ156: ='NT Revisao'!AV229 -> 0 | BA156: ='NT Revisao'!AW227 -> 0 | BB156: ='NT Revisao'!AX229 -> 0
AX157: ='NT Revisao'!AN220 -> 0 | AY157: ='NT Revisao'!AP220/1000 -> 0 | AZ157: ='NT Revisao'!AQ220/1000 -> 0 | BA157: ='NT Revisao'!AR220 -> 0 | BB157: ='NT Revisao'!AS220 -> 0
AX158: PARCELA B | AY158: =SUM(AY151:AY157) ->  | AZ158: =SUM(AZ151:AZ157) ->  | BA158: ='NT Revisao'!AW229 -> 0 | BB158: =SUM(BB151:BB156) -> 0
BD162: Enel RJ | BE162: 683.87 | BG162: 1 | BH162: Enel RJ | BJ162: 714.44
BD163: Celpa | BE163: 683.6 | BG163: 2 | BH163: Celpa | BJ163: 703.21
BD164: AmE | BE164: 664.84 | BG164: =BG163+1 -> 3 | BH164: EMS | BJ164: 700.36
BD165: Light | BE165: 663.1 | BG165: =BG164+1 -> 4 | BH165: Light | BJ165: 694.05
BD166: ENF | BE166: 649.89 | BG166: 5 | BH166: AmE | BJ166: 693.49
BD167: Eflul | BE167: 648.12 | BG167: 6 | BH167: EMT | BJ167: 690.12
BD168: EFLJC | BE168: 639.05 | BG168: 7 | BH168: ENF | BJ168: 662.44
BD169: Sulgipe | BE169: 636.31 | BG169: 8 | BH169: Forcel | BJ169: 654.63
BD170: Cemar | BE170: 630.18 | BG170: 9 | BH170: ETO | BJ170: 647.35
BD171: Cemig-D | BE171: 628.33 | BG171: 10 | BH171: Cemig | BJ171: 644.23
BD172: EMT | BE172: 626.84 | BG172: 11 | BH172: Eflul | BJ172: 641.69
BD173: Forcel | BE173: 619.01 | BG173: 12 | BH173: EFLJC | BJ173: 639.85
BD174: Roraima Energia | BE174: 617.77 | BG174: 13 | BH174: Celpe 2021 | BI174: Celpe 2021 | BJ174: 628.4189439
BD175: EMS | BE175: 608.65 | BG175: 14 | BH175: Cemar | BJ175: 628.21
BD176: Hidropan | BE176: 600.74 | BG176: 15 | BH176: EMG | BJ176: 627.73
BD177: ETO | BE177: 600.08 | BG177: 16 | BH177: Coelba | BJ177: 624.64
BD178: EMG | BE178: 595.83 | BG178: 17 | BH178: Sulgipe | BJ178: 619.22
BD179: Ceron | BE179: 576.82 | BG179: 18 | BH179: Hidropan | BJ179: 602.62
BD180: Chesp | BE180: 573.14 | BG180: 19 | BH180: CPFL Paulista | BJ180: 601.57
BD181: Uhenpal | BE181: 572.49 | BG181: 20 | BH181: Chesp | BJ181: 599.53
BD182: Eletroacre | BE182: 569.84 | BG182: 21 | BH182: Enel CE | BJ182: 594.36
BD183: Cepisa | BE183: 569.48 | BG183: 22 | BH183: ELFSM | BJ183: 593.39
BD184: RGE | BE184: 560.27 | BG184: 23 | BH184: RGE (agrupada) | BJ184: 589.57
BD185: Cocel | BE185: 557.12 | BG185: 24 | BH185: ESE | BJ185: 585.6
BD186: Coelba | BE186: 552.13 | BG186: 25 | BH186: Ceal | BJ186: 583.31
BD187: Celpe | BE187: 549.33 | BG187: 26 | BH187: Eletroacre | BJ187: 581.91
BD188: CPFL Santa Cruz | BE188: 547.69 | BG188: 27 | BH188: Cepisa | BJ188: 581.82
BD189: EPB | BE189: 545.4 | BG189: 28 | BH189: Roraima Energia | BJ189: 574.69
BD190: Eletrocar | BE190: 541.57 | BG190: 29 | BH190: Celpe 2020 | BI190: Celpe 2020 | BJ190: 574.34
BD191: CEA | BE191: 537.18 | BG191: 30 | BH191: Uhenpal | BJ191: 571.71
BD192: Ceal | BE192: 535.25 | BG192: 31 | BH192: CPFL Santa Cruz | BJ192: 564.97
BD193: Celg-D | BE193: 533.68 | BG193: 32 | BH193: Cosern | BJ193: 563.55
BD194: Elektro | BE194: 531.87 | BG194: 33 | BH194: EPB | BJ194: 562.11
BD195: ESE | BE195: 530.72 | BG195: 34 | BH195: Cocel | BJ195: 561.58
BD196: Enel CE | BE196: 529.49 | BG196: 35 | BH196: Eletrocar | BJ196: 561.45
BD197: EDP ES | BE197: 525.81 | BG197: 36 | BH197: EDP ES | BJ197: 557
BD198: EDP SP | BE198: 525.73 | BG198: 37 | BH198: Elektro | BJ198: 555.05
BD199: CPFL Paulista | BE199: 523.02 | BG199: 38 | BH199: CEEE-D | BJ199: 548.97
BD200: CEB-DIS | BE200: 518.01 | BG200: 39 | BH200: Enel GO | BJ200: 547.39
BD201: ELFSM | BE201: 517.96 | BG201: 40 | BH201: EDP SP | BJ201: 546.11
BD202: Copel-DIS | BE202: 517.61 | BG202: 41 | BH202: Demei | BJ202: 537.88
BD203: Eletropaulo | BE203: 515.59 | BG203: 42 | BH203: Enel SP | BJ203: 534.19
BD204: CEEE-D | BE204: 515.07 | BG204: 43 | BH204: CPFL Piratininga | BJ204: 533.55
BD205: Ienergia | BE205: 510.62 | BG205: 44 | BH205: MuxEnergia | BJ205: 527.79
BD206: DMED | BE206: 507.42 | BG206: 45 | BH206: DMED | BJ206: 525.57
BD207: Demei | BE207: 507.03 | BG207: 46 | BH207: CEB-DIS | BJ207: 514.78
BD208: Cosern | BE208: 505.53 | BG208: 47 | BH208: Ceron | BJ208: 514.38
BD209: EBO | BE209: 497.66 | BG209: =BG208+1 -> 48 | BH209: ESS (agrupada) | BJ209: 513.89
BD210: Sul Sudeste | BE210: 497.35 | BG210: 49 | BH210: Copel-DIS | BJ210: 512.77
BD211: CPFL Piratininga | BE211: 490.18 | BG211: 50 | BH211: Ienergia | BJ211: 512.48
BD212: MuxEnergia | BE212: 485.22 | BG212: 51 | BH212: Cooperaliança | BJ212: 512
BD213: Celesc-DIS | BE213: 469.78 | BG213: 52 | BH213: Celesc-DIS | BJ213: 505.99
BD214: Cooperaliança | BE214: 467.6 | BG214: 53 | BH214: CEA | BJ214: 505.25
BG215: 54 | BH215: EBO | BJ215: 497.66
CE218: DEC | CV218: FEC
CG219: =CH219-1 -> 2013 | CH219: 2014 | CI219: 2015 | CJ219: 2016 | CK219: 2017 | CL219: 2018 | CM219: 2019 | CN219: 2020 | CO219: =CP219-1 -> 2021 | CP219: =YEAR(CAPA!$C$10) -> 2022 | CQ219: =CP219+1 -> 2023 | CR219: =CQ219+1 -> 2024 | CS219: =CR219+1 -> 2025 | CT219: =CS219+1 -> 2026 | CX219: =CY219-1 -> 2013 | CY219: 2014 | CZ219: 2015 | DA219: 2016 | DB219: 2017 | DC219: 2018 | DD219: 2019 | DE219: 2020 | DF219: =DG219-1 -> 2021 | DG219: =YEAR(CAPA!$C$10) -> 2022 | DH219: =DG219+1 -> 2023 | DI219: =DH219+1 -> 2024 | DJ219: =DI219+1 -> 2025 | DK219: =DJ219+1 -> 2026
CE220: DEC Apurado | CH220: 23.76 | CI220: 25.51 | CJ220: 19.31 | CK220: 15.8 | CL220: 16.98 | CM220: 12.51 | CN220: 11.96 | CO220: 12.41 | CV220: FEC Apurado | CY220: 8.87 | CZ220: 8.84 | DA220: 8.12 | DB220: 7.13 | DC220: 7.56 | DD220: 8.97 | DE220: 5.69 | DF220: 5.56
CE221: DEC Limite | CH221: 16.39 | CI221: 16.39 | CJ221: 15.48 | CK221: 14.71 | CL221: 13.91 | CM221: 13.82 | CN221: 13.67 | CO221: 13.35 | CP221: 13.22 | CV221: FEC Limite | CY221: 12.48 | CZ221: 12.05 | DA221: 11.04 | DB221: 10.19 | DC221: 9.35 | DD221: 9.26 | DE221: 8.7 | DF221: 8.33 | DG221: 8.1
CE222: DEC Limite Proposto | CQ222: 12.92 | CR222: 12.33 | CS222: 11.86 | CT222: 11.48 | CV222: FEC Limite Proposto | DH222: 8.05 | DI222: 7.25 | DJ222: 7.05 | DK222: 6.68
DM242: Parcela B / Mercado
DM244: Grandes
DM245: Reg | DN245: Distribuidora | DO245: PB/Mcdo | DP245: Média | DQ245: Parcela B | DR245: Mercado | DS245: Proc.Tar
DM246: N | DN246: ETO | DO246: =DQ246/DR246 -> 265.4071894 | DP246: =$DP$282 -> 157.1340272 | DQ246: 639963261.2 | DR246: 2411250.662 | DS246: 2020
DM247: N | DN247: Eletroacre | DO247: 262.1465373 | DP247: 157.1340272 | DQ247: 287816729.4 | DR247: 1097923.064 | DS247: 2020
DM248: CO | DN248: EMT | DO248: 246.7591507 | DP248: 157.1340272 | DQ248: 2384063093 | DR248: 9661498.209 | DS248: 2021
DM249: N | DN249: Equatorial PA | DO249: 238.5668194 | DP249: 157.1340272 | DQ249: 2059159218 | DR249: 8631373.062 | DS249: 2020
DM250: N | DN250: Cemar | DO250: 234.2860346 | DP250: 157.1340272 | DQ250: 1473020968 | DR250: 6287276.026 | DS250: 2020
DM251: CO | DN251: EMS | DO251: 233.1547235 | DP251: 157.1340272 | DQ251: 1338673092 | DR251: 5741565.396 | DS251: 2021
DM252: NE | DN252: Equatorial PI | DO252: 225.4201543 | DP252: 157.1340272 | DQ252: 847371044 | DR252: 3759074.012 | DS252: 2020
DM253: NE | DN253: Coelba | DO253: 223.125744 | DP253: 157.1340272 | DQ253: 4496925221 | DR253: 20154219.5 | DS253: 2021
DM254: N | DN254: CEA | DO254: =DQ254/DR254 -> 202.1486891 | DP254: 157.1340272 | DQ254: 208334410.9 | DR254: 1030599.861 | DS254: 2020
... 49 more rows

Sheet Mitigação Efeito 2022
G1: Valor Base | H1: Valor corrigido | K1: Observação
C2: Reperfilamento dos custos de Transmissão - RBSE (NA)
C3: Financeiro de Reperfilamento de custos da RBSE - ciclo 2021/2022 - RB | H3: 0
C4: Financeiro de Reperfilamento de custos da RBSE - ciclo 2021/2022 - RB Fronteira | H4: 0
C5: Financeiro de Reperfilamento de custos da RBSE - ciclo 2021/2022 - Must Itaipu | H5: 0
C6: Financeiro de Reperfilamento de custos da RBSE - ciclo 2021/2022 - Conexão | H6: 0
C7: Financeiro de Reperfilamento de custos da RBSE - ciclo 2021/2022 - Transporte de Itaipu | H7: 0
C8: Subtotal | H8: 0 | J8: 0
C11: Antecipação da reversão dos créditos de Ultrapassagem de Demanda e Excedente de Reativos | M11: Cálculo Sparta CN | N11: 1172828.907
M12: (OF 09/2021 p/2021) | N12: =N11/LnkTxtRA -> 0.004062612199
C14: Reversão de créditos de rescisão contratual e migração de consumidores (REN 376 e 414)
C15: Artigo | D15: REN | E15: Créditos | F15: Data Base | G15: R$ (Líquida) | H15: Valor Corrigido | K15: Ref.: Planilha auxiliar
C16: 70 | D16: 414/2010 | E16: Rescisão Contratual | F16: 2020-12-01 | G16: 613361.3 | H16: =G16*VLOOKUP(DATE(YEAR(LnkTxtDRPData),MONTH(LnkTxtDRPData)-1,1),Índices!$B$7:$F$405,5)/VLOOKUP(EDATE('Mitigação Efeito 2022'!F16,-1),Índices!$B$7:$F$405,5) -> 646209.2263
C17: 9 | D17: 376/2009 | E17: Migração Frustrada | F17: 2020-12-01
C18: 9/70 | D18: 414/2010 e 376/2009 | E18: Rescisão Contratual / Migração Frustrada | F18: 2020-12-01
C19: 88 | D19: 414/2010 | E19: Créditos com mais de 60 meses | F19: 2020-12-01 | G19: 31229.64 | H19: =G19*VLOOKUP(DATE(YEAR(LnkTxtDRPData),MONTH(LnkTxtDRPData)-1,1),Índices!$B$7:$F$405,5)/VLOOKUP(EDATE('Mitigação Efeito 2022'!F19,-1),Índices!$B$7:$F$405,5) -> 32902.11088
C20: Subtotal | F20: 2020-12-01 | G20: 644590.94 | H20: =-SUM(H16:H19) -> -679111.3372 | I20: =H20/LnkTxtRA -> -0.002352402799
C23: Diferimento Itaipu TUSD (Decreto 10.665/2021) | F23: 2021-07-01
C24: Diferimento Itaipu TE (Decreto 10.665/2021) | F24: 2021-10-01 | K24: Carta
C27: Ressarcimemento de créditos de PIS/COFINS | F27: 2022-02-01 | H27: =-N28 -> -9426653.15 | I27: =H27/LnkTxtRA -> -0.03265338692 | K27: PIC/COFINS: Trânsito em julgado habilitado (ref. mai/2021) | N27: 76226000
M28: Previsão 17/01/2022 | N28: 9426653.15
C29: Diferimento do RTA de 2021 - Parcela B | F29: 2021-10-01 | H29: 0
C31: Diferimento do RTA de 2021 | F31: 2021-10-01 | H31: 0
C33: Financeiro de Bandeira Escassez Hídrica
C34: Financeiro de Bandeira Escassez Hídrica - Energia | G34: -5663393.52 | H34: -5663393.52
C35: Financeiro de Bandeira Escassez Hídrica - ESS/EER | G35: -10737567.08 | H35: -10737567.08
C36: Financeiro de Bandeira Escassez Hídrica - Sobrecontratção/Exposição | G36: 6809171.94 | H36: 6809171.94
C37: Subtotal | G37: =SUM(G34:G36) -> -9591788.66 | H37: =SUM(H34:H36) -> -9591788.66 | I37: =H37/LnkTxtRA -> -0.03322540688
C38: Total
C42: Obs. Os valores indicados na tabela abaixo correspondem aos montantes arrecadados do encargo de CDE Covid dos consumidores migrantes do grupo A.
C43: Arrecadação de encargo CDE Covid dos consumidores migrantes (Ofício Circular 20/2021)
C44: COMPETÊNCIA | D44: QUANTIDADE DE NUC | E44: MERCADO DE ENERGIA FATURADA MWh | F44: RECEITA DE ENCARGO CONTA COVID | G44: Obs.
C45: 202102 | D45: 0 | E45: 0 | F45: 0
C46: 202103 | D46: 0 | E46: 0 | F46: 0
C47: 202104 | D47: 0 | E47: 0 | F47: 0
C48: 202105 | D48: 0 | E48: 0 | F48: 0
C49: 202106 | D49: 0 | E49: 0 | F49: 0
C50: 202107 | D50: 2 | E50: 236.535 | F50: 1613.16 | G50: mês fechado
C51: 202108 | D51: 2 | E51: 263.049 | F51: 1793.99 | G51: mês fechado
C52: 202109 | D52: 2 | E52: 267.138 | F52: 1821.89 | G52: mês fechado
C53: 202110 | D53: 3 | E53: 306.821 | F53: 2092.52 | G53: mês fechado
C54: 202111 | D54: 3 | E54: 319.382 | F54: 2178.18 | G54: mês fechado
C55: 202112 | D55: 1 | E55: 138.519 | F55: 944.69 | G55: mês fechado
C56: 202201 | D56: 1 | E56: 138.519 | F56: 944.69 | G56: replicado
C58: Total não atualizado | F58: =SUM(F45:F56) -> 11389.12
C59: Total Atualizado (SELIC) | F59: =Indexador!F117 -> 12042.2693
C61: O valor indicado na tabela abaixo corresponde aos custos assessórios que devem ser arcados pela distribuidora, conforme previsto no Art. 4º da REN 952/2021.
C62: Custo Distribuidora - Conta Covid - Art 4º - REN 952/2021 | F62: 49696.45

Sheet AP x Final (hidden)
C1: Prencher valores conforme CP | F1: Prencher valores conforme CP
B2: Descrição | C2: CP 003/21 Receita Verificada (R$) | D2: Final Receita Verificada (R$) | E2: Variação Receita Verificada Final/CP | F2: CP 003/21 Receita Requerida (R$) | G2: Final Receita Requerida (R$) | H2: Variação Receita Requerida Final/CP | I2: CP 003/21 Participação na Revisão % | J2: Final Participação na Revisão % | K2: Variação Total | M2: Variação de Custos | N2: Variação de Receita Verificada | O2: Simulação sem var. mercado
B3: PARCELA A [Encargos+Transmissão+Energia] | C3: =C4+C14+C23 -> 0 | D3: =D4+D14+D23 -> 193744659.6 | E3: =IF(ISERROR(D3/C3-1),"-",D3/C3-1) -> - | F3: =F4+F14+F23 -> 0 | G3: =G4+G14+G23 -> 204318071 | H3: =IF(ISERROR(G3/F3-1),"-",G3/F3-1) -> - | I3: =IFERROR((F3-C3)/$C$32,"") ->  | J3: =IFERROR((G3-D3)/$D$32,"") ->  | K3: =J3-I3 ->  | L3: =IF(G3+D3<>0,1,0) -> 1 | M3: =(G3-C3)/$C$32-I3 ->  | N3: =K3-M3 ->  | O3: =(G3-C3)/$C$32 -> 
B4: Encargos Setoriais | C4: =SUM(C5:C13) -> 0 | D4: =SUM(D5:D13) -> 27595498.76 | E4: =IF(ISERROR(D4/C4-1),"-",D4/C4-1) -> - | F4: =SUM(F5:F13) -> 0 | G4: =SUM(G5:G13) -> 45436406.96 | H4: =IF(ISERROR(G4/F4-1),"-",G4/F4-1) -> - | L4: 1 | N4: =K4-M4 -> 
B5: Taxa de Fisc. de Serviços de E.E. – TFSEE | D5: ='NT Revisao'!AU204 -> 386232.3714 | E5: =IF(ISERROR(D5/C5-1),"-",D5/C5-1) -> - | G5: ='NT Revisao'!AV204 -> 430118.8979 | H5: =IF(ISERROR(G5/F5-1),"-",G5/F5-1) -> - | L5: 1 | N5: =K5-M5 -> 
B6: Conta de Desenvolvimento Energético – CDE (USO) | D6: ='NT Revisao'!AU205 -> 13442689.37 | E6: =IF(ISERROR(D6/C6-1),"-",D6/C6-1) -> - | G6: ='NT Revisao'!AV205 -> 20358520.19 | H6: =IF(ISERROR(G6/F6-1),"-",G6/F6-1) -> - | L6: 1
B7: Conta de Desenvolvimento Energético – CDE Conta-Covid (TUSD) | D7: ='NT Revisao'!AU206 -> 0 | E7: - | G7: ='NT Revisao'!AV206 -> 1032973.801 | H7: =IF(ISERROR(G7/F7-1),"-",G7/F7-1) -> - | L7: 1
B8: Conta de Desenvolvimento Energético – CDE Conta-Covid (TE) | D8: ='NT Revisao'!AU207 -> 0 | G8: ='NT Revisao'!AV207 -> 4137875.656 | H8: =IF(ISERROR(G8/F8-1),"-",G8/F8-1) -> - | L8: 1
B9: Compensação financeira - CFURH | D9: ='NT Revisao'!AU208 -> 0 | E9: - | G9: ='NT Revisao'!AV208 -> 0 | H9: =IF(ISERROR(G9/F9-1),"-",G9/F9-1) -> - | L9: 0
B10: Encargos Serv. Sist. - ESS e Energ. Reserv. - EER | D10: ='NT Revisao'!AU209 -> 5158028.228 | E10: - | G10: ='NT Revisao'!AV209 -> 7600610.51 | H10: - | K10: =J10-I10 ->  | L10: 1
B11: PROINFA | D11: ='NT Revisao'!AU210 -> 5875211.666 | E11: - | G11: ='NT Revisao'!AV210 -> 8961536.051 | H11: - | K11: =J11-I11 ->  | L11: 1
B12: P&D, Efic.Energ | D12: ='NT Revisao'!AU211 -> 2701737.292 | E12: - | G12: ='NT Revisao'!AV211 -> 2887133.82 | H12: - | K12: =J12-I12 ->  | L12: 1
B13: ONS | D13: ='NT Revisao'!AU212 -> 31599.83074 | E13: - | G13: ='NT Revisao'!AV212 -> 27638.03571 | H13: - | L13: 1
B14: Custos de Transmissão | C14: =SUM(C15:C22) -> 0 | D14: =SUM(D15:D22) -> 38178103.8 | E14: - | F14: =SUM(F15:F22) -> 0 | G14: =SUM(G15:G22) -> 32820707.52 | H14: - | K14: =J14-I14 ->  | L14: 1
B15: Rede Básica | D15: ='NT Revisao'!AU214 -> 17094114.48 | E15: =IF(ISERROR(D15/C15-1),"-",D15/C15-1) -> - | G15: ='NT Revisao'!AV214 -> 14520413.18 | H15: - | K15: =J15-I15 ->  | L15: 1
B16: Rede Básica Fronteira | D16: ='NT Revisao'!AU215 -> 5927697.6 | E16: - | G16: ='NT Revisao'!AV215 -> 3971557.392 | H16: - | K16: =J16-I16 ->  | L16: 1
B17: Rede Básica ONS (A2) | D17: ='NT Revisao'!AU216 -> 0 | E17: - | G17: ='NT Revisao'!AV216 -> 0 | H17: - | L17: 0
B18: Rede Básica Export. (A2) | D18: ='NT Revisao'!AU217 -> 0 | E18: - | G18: ='NT Revisao'!AV217 -> 0 | H18: - | L18: 0
B19: MUST Itaipu | D19: ='NT Revisao'!AU218 -> 0 | E19: - | G19: ='NT Revisao'!AV218 -> 0 | H19: - | K19: =J19-I19 ->  | L19: 0
B20: Transporte de Itaipu | D20: ='NT Revisao'!AU219 -> 0 | E20: - | G20: ='NT Revisao'!AV219 -> 0 | H20: - | K20: =J20-I20 ->  | L20: 0
B21: Conexão | D21: ='NT Revisao'!AU220 -> 469716.5916 | E21: - | G21: ='NT Revisao'!AV220 -> 352974.3874 | H21: - | K21: =J21-I21 ->  | L21: 1
B22: Uso do sistema de distribuição | D22: ='NT Revisao'!AU221 -> 14686575.13 | E22: - | G22: ='NT Revisao'!AV221 -> 13975762.56 | H22: =IF(ISERROR(G22/F22-1),"-",G22/F22-1) -> - | K22: =J22-I22 ->  | L22: 1 | U22: mix CP | V22: mix Final | W22: D preço
B23: Custo de Aquisição de Energia | D23: ='NT Revisao'!AU222 -> 127971057.1 | E23: - | G23: ='NT Revisao'!AV222 -> 126060956.5 | H23: - | L23: 1 | M23: =(G23-C23)/$C$32-I23 ->  | Q23: =M23-R23 ->  | R23: =W24-I23 ->  | S23: =N23 ->  | U23: =C77 -> 0 | V23: =Energia!D14 -> 204.2552311 | W23: =V23/U23-1 -> 
B24: PARCELA B | C24: =SUM(C25:C30) -> 0 | D24: =SUM(D25:D30) ->  | E24: - | F24: =SUM(F25:F30) -> 0 | G24: =SUM(G25:G30) ->  | H24: =IF(ISERROR(G24/F24-1),"-",G24/F24-1) -> - | Q24: D mcdo Custo | R24: D mix Custo | S24: D mcdo RA0 | W24: =(F23*(1+W23)-C23)/C32 -> 
B25: Custos Operacionais | D25: ='NT Revisao'!AU224 ->  | E25: - | G25: ='NT Revisao'!AV224 ->  | H25: -
B26: Anuidades | D26: ='NT Revisao'!AU225 ->  | E26: - | G26: ='NT Revisao'!AV225 ->  | H26: -
B27: Remuneração | D27: ='NT Revisao'!AU226 ->  | E27: - | G27: ='NT Revisao'!AV226 ->  | H27: - | K27: =J27-I27 ->  | M27: =(G27-C27)/$C$32-I27 -> 
B28: Depreciação | D28: ='NT Revisao'!AU227 ->  | E28: - | G28: ='NT Revisao'!AV227 ->  | H28: -
B29: Receitas Irrecuperáveis | D29: ='NT Revisao'!AU228 ->  | E29: =IF(ISERROR(D29/C29-1),"-",D29/C29-1) -> - | G29: ='NT Revisao'!AV228 -> 0 | H29: =IF(ISERROR(G29/F29-1),"-",G29/F29-1) -> - | K29: =J29-I29 ->  | L29: =IF(G29+D29<>0,1,0) ->  | N29: =K29-M29 -> 
B30: Outras ReceitasOR, UD e ER | D30: ='NT Revisao'!AU229 ->  | E30: =IF(ISERROR(D30/C30-1),"-",D30/C30-1) -> - | G30: ='NT Revisao'!AV229 -> 0 | H30: -
B32: Reposicionamento Tarifário | C32: =C24+C3 -> 0 | D32: =D24+D3 ->  | E32: =IF(ISERROR(D32/C32-1),"-",D32/C32-1) -> - | F32: =F24+F3 -> 0 | G32: =G24+G3 ->  | H32: - | I32: =IFERROR((F32-C32)/$C$32,"") ->  | J32: =IFERROR((G32-D32)/$D$32,"") ->  | K32: =J32-I32 ->  | M32: =(G32-C32)/$C$32-I32 ->  | O32: =(G32-C32)/$C$32 -> 
L33: 0
B34: Componentes Financeiros do Processo Atual | F34: =SUM(F35:F71) -> 0 | G34: =SUM(G35:G71) -> 9173629.515 | I34: =SUM(I35:I71) ->  | J34: =SUM(J35:J71) ->  | K34: =J34-I34 ->  | L34: 1 | M34: =G34/$C$32-I34 ->  | N34: =K34-M34 ->  | O34: =G34/$C$32 -> 
B35: ='NT Revisao'!AT233 -> CVA em processamento - Energia | G35: ='NT Revisao'!AV233 -> 22063030.24 | I35: =F35/$C$75 ->  | J35: =G35/$D$32 ->  | L35: 1 | M35: =G35/$C$32-I35 ->  | N35: =K35-M35 ->  | O35: =G35/$C$32 -> 
B36: ='NT Revisao'!AT234 -> CVA em processamento -Transporte | G36: ='NT Revisao'!AV234 -> 1069795.406 | L36: 1 | O36: =G36/$C$32 -> 
B37: ='NT Revisao'!AT235 -> CVA em processamento - Encargos Setoriais | G37: ='NT Revisao'!AV235 -> 15929473.98 | L37: 1
B38: ='NT Revisao'!AT236 -> Saldo a Compensar CVA-Ano Anterior + Ajustes | G38: ='NT Revisao'!AV236 -> -54011.18951 | L38: 1
B39: ='NT Revisao'!AT237 -> Neutralidade de Parcela A - Encargos Setoriais | G39: ='NT Revisao'!AV237 -> -913235.708 | L39: 1
B40: ='NT Revisao'!AT238 -> Sobrecontratação/exposição de energia | G40: ='NT Revisao'!AV238 -> -8193602.117 | L40: 1
B41: ='NT Revisao'!AT239 -> Garantias financeiras na contratação regulada de energia (CCEAR) | G41: ='NT Revisao'!AV239 -> 522922.8799 | J41: =G41/$D$32 ->  | K41: =J41-I41 ->  | L41: 1
B42: ='NT Revisao'!AT240 -> Previsão de Risco Hidrológico | G42: ='NT Revisao'!AV240 -> 7692220.565 | L42: 1
B43: ='NT Revisao'!AT241 -> Ajuste ref. equilíbrio econômico-financeiro TUSDg | G43: ='NT Revisao'!AV241 -> 0 | L43: 0
B44: ='NT Revisao'!AT242 -> Repasse de ultrapassagem de Supridas/Permissionárias de Energia | G44: ='NT Revisao'!AV242 -> 0 | L44: 0
B45: ='NT Revisao'!AT243 -> Ajuste CUSD | G45: ='NT Revisao'!AV243 -> -307886.9791 | L45: 1
B46: ='NT Revisao'!AT244 -> Repasse de compensação DIC/FIC | G46: ='NT Revisao'!AV244 -> 0 | L46: 0
B47: ='NT Revisao'!AT245 -> Compensação ref. acordos bilaterais de CCEAR | G47: ='NT Revisao'!AV245 -> 37418.05563 | L47: 1
B48: ='NT Revisao'!AT246 -> Conselho de Consumidores | G48: ='NT Revisao'!AV246 -> 0 | L48: 0
B49: ='NT Revisao'!AT247 -> Reversão do Risco Hidrológico | G49: ='NT Revisao'!AV247 -> -8863039.204 | J49: =G49/$D$32 ->  | K49: =J49-I49 ->  | L49: 1
B50: ='NT Revisao'!AT248 -> Ressarcimento de P&D | G50: ='NT Revisao'!AV248 -> 0 | L50: 0
B51: ='NT Revisao'!AT249 -> Modicidade Tarifária (RENs 414/2010 e 376/2009) | G51: ='NT Revisao'!AV249 -> -679111.3372 | L51: 1
B52: ='NT Revisao'!AT250 -> ICMS não compesando na compra de energia | G52: ='NT Revisao'!AV250 -> 0 | L52: 0
B53: ='NT Revisao'!AT251 -> Reperfilamento de custos de Transporte | G53: ='NT Revisao'!AV251 -> 0 | L53: 0
B54: ='NT Revisao'!AT252 -> Reversão Conta-Covid - CVA em processamento - Energia | G54: ='NT Revisao'!AV252 -> 0 | J54: =G54/$D$32 ->  | K54: =J54-I54 ->  | L54: 0 | M54: =G54/$C$32-I54 ->  | N54: =K54-M54 ->  | O54: =G54/$C$32 -> 
B55: ='NT Revisao'!AT253 -> Reversão Conta-Covid - CVA em processamento -Transporte | G55: ='NT Revisao'!AV253 -> 0 | L55: =IF(G56+D55<>0,1,0) -> 0 | M55: =G56/$C$32-I55 ->  | O55: =G56/$C$32 -> 
B56: ='NT Revisao'!AT254 -> Reversão Conta-Covid - CVA em processamento - Encargos Setoriais | G56: ='NT Revisao'!AV254 -> 0 | L56: =IF(G57+D56<>0,1,0) -> 0 | M56: =G57/$C$32-I56 ->  | O56: =G57/$C$32 -> 
B57: ='NT Revisao'!AT255 -> Reversão Conta-Covid - Saldo a Compensar CVA-Ano Anterior + Ajustes | G57: ='NT Revisao'!AV255 -> 0 | J57: =G57/$D$32 ->  | K57: =J57-I57 ->  | L57: =IF(G58+D57<>0,1,0) -> 0 | M57: =G58/$C$32-I57 ->  | O57: =G58/$C$32 -> 
B58: ='NT Revisao'!AT256 -> Reversão Conta-Covid - Neutralidade de Parcela A | G58: ='NT Revisao'!AV256 -> 0 | L58: =IF(G59+D58<>0,1,0) -> 0 | M58: =G59/$C$32-I58 ->  | O58: =G59/$C$32 -> 
B59: ='NT Revisao'!AT257 -> Reversão Conta-Covid - Sobrecontratação | G59: ='NT Revisao'!AV257 -> 0 | L59: =IF(G60+D59<>0,1,0) -> 0 | M59: =G60/$C$32-I59 ->  | N59: =K59-M59 ->  | O59: =G60/$C$32 -> 
B60: ='NT Revisao'!AT258 -> Reversão Conta Covid - Parcela B | G60: ='NT Revisao'!AV258 -> 0 | L60: 0
B61: ='NT Revisao'!AT259 -> Reversão Conta Covid - Diferimento | G61: ='NT Revisao'!AV258 -> 0 | L61: 0
B62: ='NT Revisao'!AT260 -> Reversão Conta Covid - Postergação | G62: ='NT Revisao'!AV260 -> 0 | L62: 1
B63: ='NT Revisao'!AT261 -> Neutralidade de Financeiros e Encargo Covid | G63: ='NT Revisao'!AV261 -> -62206.81608 | L63: 0
B64: ='NT Revisao'!AT262 -> Diferimento (lastreado nos créditos de Pis/COFINS) | G64: ='NT Revisao'!AV262 -> 0 | L64: 1
B65: ='NT Revisao'!AT263 -> Arrecadação de encargo CDE Covid dos consumidores migrantes (Ofício Circular 20/2021) | F65: 0 | G65: ='NT Revisao'!AV264 -> -49696.45 | L65: 1
B66: ='NT Revisao'!AT264 -> Custo Distribuidora - Conta Covid - Art 4º - REN 952/2021 | F66: 0 | G66: ='NT Revisao'!AV265 -> 1145778.42 | L66: 1 | O66: =K66-N66 -> 
B67: ='NT Revisao'!AT265 -> Finaceiro de Bandeira Escassez Hídrica - Energia | F67: 0 | G67: ='NT Revisao'!AV266 -> -10737567.08 | L67: 0 | O67: =K67-N67 -> 
B68: ='NT Revisao'!AN257 -> 0 | F68: 0 | G68: ='NT Revisao'!AV267 -> 0 | L68: =IF(G68+D68<>0,1,0) -> 0 | O68: =K68-N68 -> 
B69: ='NT Revisao'!AN258 -> 0 | F69: 0 | G69: ='NT Revisao'!AV268 -> -9426653.15 | L69: =IF(G69+D69<>0,1,0) -> 1 | O69: =K69-N69 -> 
B70: ='NT Revisao'!AN259 -> 0 | F70: 0 | G70: ='NT Revisao'!AV269 -> 0 | L70: =IF(G70+D70<>0,1,0) -> 0
B72: Efeito da retirada dos Componentes Financeiros do Processo Anterior | I72: =I73-I32-I34 ->  | J72: =J73-J32-J34 ->  | K72: =J72-I72 ->  | L72: 1 | O72: =J72-I72 -> 
B73: Efeito Médio a ser percebido pelos Consumidores | I73: =I75 -> 0 | J73: =LnkTxtEfeito -> 0.09724274863 | K73: =J73-I73 -> 0.09724274863 | L73: 1 | M73: =((G32+G34)/C32-1)-((F32+F34)/C32-1) ->  | N73: =K73-M73 ->  | O73: =K73-N73 -> 
B75: Base de Financeiros CP | F75: Efeito médio versão CP
B77: Mix Compra de Energia CP

Sheet Mercado
B2: DADOS DE MERCADO DE ENERGIA E RECEITA VERIFICADA | G2: Anexo II | H2: =Resultado!$D$6 -> 0.06616445566
G3: Anexo I | H3: =Resultado!$D$8 -> 0.09630665675
M5: TipoMercado | R5: AnoMes
D6: Dados de Mercado | M6: Regular | R6: =DATE(YEAR(R8),MONTH(R8)-1,1) -> 44228
R7: AnoMes
B8: Descrição | C8: MERCADO (MWh) | D8: RECEITA (R$) | F8: DESCRIÇÃO | G8: POR DENTRO | J8: Critérios | L8: Para º de consumidores | R8: =DATE(YEAR(R10),MONTH(R10)-1,1) -> 44256
B9: FORNECIMENTO | C9: =SUM(C10:C16) -> 556155.106 | D9: =SUM(D10:D16) -> 266617470.3 | F9: ICMS | G9: =SUM(INDIRECT("DADOS_MercadoBase[ICMS]"))/SUM(INDIRECT("DADOS_MercadoBase[ICMS]"),INDIRECT("DADOS_MercadoBase[PisPasep]"),INDIRECT("DADOS_MercadoBase[Cofins]"),INDIRECT("DADOS_MercadoBase[FinTotAj]")) -> 0.2755008872 | J9: Subgrupo | K9: OPÇÃO | M9: AnoMes | N9: Subgrupo | O9: OPÇÃO | R9: AnoMes
B10: A1 | C10: =DSUM(Mercado_Receita!A:AAA,"TUSD_E",J9:K10) -> 0 | D10: =DSUM(Mercado_Receita!A:AAA,"total",J9:K10) -> 0 | F10: PIS/COFINS | G10: =SUM( INDIRECT("DADOS_MercadoBase[Cofins]"), INDIRECT("DADOS_MercadoBase[PisPasep]"))/SUM( INDIRECT("DADOS_MercadoBase[ICMS]"), INDIRECT("DADOS_MercadoBase[PisPasep]"), INDIRECT("DADOS_MercadoBase[Cofins]"), INDIRECT("DADOS_MercadoBase[FinTotAj]")) -> 0.03329982195 | J10: A1 | K10: Cativo | M10: =DMAX(MercadoBase,"AnoMes",M5:M6) -> 44531 | N10: A1 | O10: Suprimento | R10: =DATE(YEAR(R12),MONTH(R12)-1,1) -> 44287
B11: A2 | C11: =DSUM(Mercado_Receita!A:AAA,"TUSD_E",J11:K12) -> 0 | D11: =DSUM(Mercado_Receita!A:AAA,"total",J11:K12) -> 0 | J11: Subgrupo | K11: OPÇÃO | M11: AnoMes | N11: Subgrupo | O11: OPÇÃO | P11: Subgrupo | R11: AnoMes
B12: A3 | C12: =DSUM(Mercado_Receita!A:AAA,"TUSD_E",J13:K14) -> 0 | D12: =DSUM(Mercado_Receita!A:AAA,"total",J13:K14) -> 0 | F12: MWh Ano Anterior | G12: =BD!C45 -> 713849.82 | J12: A2 | K12: Cativo | M12: =$M$10 -> 44531 | N12: A2 | O12: Livre | P12: A1 | R12: =DATE(YEAR(R14),MONTH(R14)-1,1) -> 44317
B13: A3a | C13: =DSUM(Mercado_Receita!A:AAA,"TUSD_E",J15:K16) -> 0 | D13: =DSUM(Mercado_Receita!A:AAA,"total",J15:K16) -> 0 | F13: Variação | G13: =C24/G12-1 -> 0.05284991317 | J13: Subgrupo | K13: OPÇÃO | M13: AnoMes | N13: Subgrupo | O13: OPÇÃO | R13: AnoMes
B14: A4 | C14: =DSUM(Mercado_Receita!A:AAA,"TUSD_E",J17:K18) -> 116797.516 | D14: =DSUM(Mercado_Receita!A:AAA,"total",J17:K18) -> 50464146.06 | F14: R$ Ano Anterior | G14: =BD!C46 -> 281475657 | J14: ="=A3" -> =A3 | K14: Cativo | M14: =$M$10 -> 44531 | N14: ="=A3" -> =A3 | O14: Distribuição | R14: =DATE(YEAR(R16),MONTH(R16)-1,1) -> 44348
B15: As | C15: =DSUM(Mercado_Receita!A:AAA,"TUSD_E",J19:K20) -> 0 | D15: =DSUM(Mercado_Receita!A:AAA,"total",J19:K20) -> 0 | F15: Variação | G15: =D24/G14-1 -> 0.0256246536 | J15: Subgrupo | K15: OPÇÃO | M15: AnoMes | N15: Subgrupo | O15: OPÇÃO | R15: AnoMes
B16: BT | C16: =DSUM(Mercado_Receita!A:AAA,"TUSD_E",J21:K22) -> 439357.59 | D16: =DSUM(Mercado_Receita!A:AAA,"total",J21:K22) -> 216153324.2 | J16: ="=A3a" -> =A3a | K16: Cativo | M16: =$M$10 -> 44531 | N16: ="=A3a" -> =A3a | O16: Geração | R16: =DATE(YEAR(R18),MONTH(R18)-1,1) -> 44378
B17: SUPRIMENTO (Mercado TE) | C17: =DSUM(Mercado_Receita!A:AAA,"TE_E",O9:P10) -> 0 | D17: =DSUM(Mercado_Receita!A:AAA,"total",O9:P10) -> 0 | F17: Itens RTE (Anualizado) | J17: Subgrupo | K17: OPÇÃO | M17: AnoMes | N17: Subgrupo | O17: OPÇÃO | R17: AnoMes
B18: LIVRES A1 | C18: =DSUM(Mercado_Receita!A:AAA,"TUSD_E",O11:P12) -> 0 | D18: =DSUM(Mercado_Receita!A:AAA,"total",O11:P12) -> 0 | F18: Energia | J18: A4 | K18: Cativo | M18: =$M$10 -> 44531 | N18: A4 | O18: Livre | R18: =DATE(YEAR(R20),MONTH(R20)-1,1) -> 44409
B19: DEMAIS LIVRES | C19: =DSUM(Mercado_Receita!A:AAA,"TUSD_E",O19:P20)+DSUM(Mercado_Receita!A:AAA,"TUSD_E",O17:P18)-C18 -> 152719.131 | D19: =DSUM(Mercado_Receita!A:AAA,"total",O19:P20)+DSUM(Mercado_Receita!A:AAA,"TOTAL",O17:P18)-D18 -> 17618625.4 | F19: CDE Uso | J19: Subgrupo | K19: OPÇÃO | M19: AnoMes | N19: Subgrupo | O19: OPÇÃO | R19: AnoMes
B20: DISTRIBUIÇÃO | C20: =DSUM(Mercado_Receita!A:AAA,"TUSD_E",O13:P14) -> 42702.484 | D20: =DSUM(Mercado_Receita!A:AAA,"total",O13:P14) -> 4452277.483 | F20: CDE Energia | J20: AS | K20: Cativo | M20: =$M$10 -> 44531 | N20: AS | O20: erc | R20: =DATE(YEAR(R22),MONTH(R22)-1,1) -> 44440
B21: GERADOR | D21: =DSUM(Mercado_Receita!A:AAA,"total",O15:P16) -> 0 | F21: CUSD | J21: Subgrupo | K21: OPÇÃO | M21: AnoMes | N21: Subgrupo | R21: AnoMes
B22: CDE Baixa Renda | F22: P&D | J22: ="=B*" -> =B* | K22: Cativo | M22: =$M$10 -> 44531 | N22: ="=B*" -> =B* | R22: =DATE(YEAR(R24),MONTH(R24)-1,1) -> 44470
B23: AJUSTE ECONÔMICO - BOLHA | J23: Subclasse | K23: OPÇÃO | R23: AnoMes
B24: TOTAL | C24: =SUM(C10:C23) -> 751576.721 | D24: =SUM(D10:D23) -> 288688373.2 | J24: ="=Residencial baixa renda*" -> =Residencial baixa renda* | K24: Cativo | R24: =DATE(YEAR(R26),MONTH(R26)-1,1) -> 44501
B25: ENERGIA DESTINADA APE/PIE | F25: 1 | J25: Classe | L25: AnoMes | R25: AnoMes
B26: MERCADO TOTAL BAIXA RENDA | C26: =DSUM(Mercado_Receita!A:AAA,"TUSD_E",J23:K24) -> 69252.96 | J26: Residencial | L26: =$M$10 -> 44531 | R26: =DATE(YEAR(R28),MONTH(R28)-1,1) -> 44531
J27: Classe | L27: AnoMes | R27: AnoMes
J28: Industrial | L28: 44531 | R28: =B65 -> 44562
B29: DESCRIÇÃO - Tipo | C29: RECEITA (R$) | D29: % Total | J29: Classe | L29: AnoMes
B30: Residencial | C30: =DSUM(Mercado_Receita!A:AAA,"total",J25:K26) -> 145183784.1 | D30: =IFERROR(C30/$C$38,0) -> 0.5029083176 | J30: Comercial | L30: 44531
B31: Industrial | C31: =DSUM(Mercado_Receita!A:AAA,"total",J27:K28) -> 37684123.83 | D31: =IFERROR(C31/$C$38,0) -> 0.1305356479 | J31: Classe | L31: AnoMes
B32: Comercial | C32: =DSUM(Mercado_Receita!A:AAA,"total",J29:K30) -> 59248446.89 | D32: 0.2052332286 | J32: Rural | L32: 44531
B33: Rural | C33: =DSUM(Mercado_Receita!A:AAA,"total",J31:K32) -> 12814481.47 | D33: 0.04438863031 | J33: Classe | L33: AnoMes
B34: Iluminação Pública | C34: =DSUM(Mercado_Receita!A:AAA,"total",J33:K34) -> 10094870.71 | D34: 0.03496805431 | J34: Iluminação Pública | L34: 44531
B35: Poder Público | C35: =DSUM(Mercado_Receita!A:AAA,"total",J35:K36) -> 14037230.41 | D35: 0.04862416263 | J35: Classe | L35: AnoMes
B36: Serviço Público | C36: =DSUM(Mercado_Receita!A:AAA,"total",J37:K38) -> 5058296.051 | D36: 0.01752164798 | J36: Poder Público | L36: 44531
B37: Demais | C37: =D24-SUM(C30:C36) -> 4567139.738 | D37: 0.01582031063 | J37: Classe | L37: AnoMes
B38: TOTAL | C38: =SUM(C30:C37) -> 288688373.2 | D38: =SUM(D30:D37) -> 1 | J38: Serviço público | L38: 44531
J39: Classe | L39: AnoMes
B40: nº de consumidores | E40: Classe | F40: nº de consumidores | G40: MWh mensal | J40: * | L40: 44531
B41: A1 | C41: =DSUM(Mercado_Receita!A:AAA,"UC",L9:N10) -> 0 | E41: Residencial | F41: =DSUM(Mercado_Receita!$A:$AAA,"UC",$J$25:$L$26) -> 195847 | G41: =DSUM(Mercado_Receita!$A:$AAA,"TUSD_E",$J$25:$L$26) -> 24818.109
B42: A2 | C42: =DSUM(Mercado_Receita!A:AAA,"UC",L11:N12) -> 0 | E42: Industrial | F42: =DSUM(Mercado_Receita!$A:$AAA,"UC",$J$27:$L$28) -> 580 | G42: =DSUM(Mercado_Receita!$A:$AAA,"TUSD_E",$J$27:$L$28) -> 17326.236
B43: A3 | C43: =DSUM(Mercado_Receita!A:AAA,"UC",L13:N14) -> 1 | E43: Comercial | F43: =DSUM(Mercado_Receita!$A:$AAA,"UC",$J$29:$L$30) -> 15727 | G43: =DSUM(Mercado_Receita!$A:$AAA,"TUSD_E",$J$29:$L$30) -> 10696.944
B44: A3a | C44: =DSUM(Mercado_Receita!A:AAA,"UC",L15:N16) -> 0 | E44: Rural | F44: =DSUM(Mercado_Receita!$A:$AAA,"UC",$J$31:$L$32) -> 14759 | G44: =DSUM(Mercado_Receita!$A:$AAA,"TUSD_E",$J$31:$L$32) -> 2205.289
B45: A4 | C45: =DSUM(Mercado_Receita!A:AAA,"UC",L17:N18) -> 396 | E45: Iluminação Pública | F45: =DSUM(Mercado_Receita!$A:$AAA,"UC",$J$33:$L$34) -> 76 | G45: =DSUM(Mercado_Receita!$A:$AAA,"TUSD_E",$J$33:$L$34) -> 2795.016
B46: As | C46: =DSUM(Mercado_Receita!A:AAA,"UC",L19:N20) -> 0 | E46: Poder Público | F46: =DSUM(Mercado_Receita!$A:$AAA,"UC",$J$35:$L$36) -> 1496 | G46: =DSUM(Mercado_Receita!$A:$AAA,"TUSD_E",$J$35:$L$36) -> 2664.841
B47: BT | C47: =DSUM(Mercado_Receita!A:AAA,"UC",L21:N22) -> 228185 | E47: Serviço Público | F47: =DSUM(Mercado_Receita!$A:$AAA,"UC",$J$37:$L$38) -> 82 | G47: =DSUM(Mercado_Receita!$A:$AAA,"TUSD_E",$J$37:$L$38) -> 1133.823
E48: Demais | F48: =DSUM(Mercado_Receita!A:AAA,"UC",$J$39:$L$40)-SUM(F$41:F$47) -> 15 | G48: =DSUM(Mercado_Receita!B:AAB,"TUSD_E",$J$39:$L$40)-SUM(G$41:G$47) -> 3905.613
E49: ="Fonte: SAMP - "&TEXT(L26,"mmmm/aa") -> Fonte: SAMP - dezembro/21
B52: Arrecadação dos Encargos
B53: Competência | D53: PeD | E53: ONS | F53: ESSERR | G53: PROINFA | H53: CDE | I53: TFSEE | J53: CFURH | K53: CVA_Energia | L53: CVA_RB | M53: CVA_CDE | N53: CVA_CFURH | O53: CVA_TranItaipu | P53: CVA_ESSERR | Q53: CVA_PROINFA | R53: Fator Selic | S53: RTE_Energia | T53: RTE_CDE_USO | U53: RTE_CDE_E | V53: RTE_CUSD | W53: RTE_PeD | X53: CVA_CDE_E | Y53: CVA_CCC | Z53: DISTRIBUICAO | AA53: cDE_E_ACR | AB53: CDE_E_Dec | AC53: covidteeco | AD53: covidtusdeco | AE53: CVA_CovidTe_ou_CVA_CDE_E
B54: =DATE(YEAR(B55),MONTH(B55)-1,1) -> 44228 | D54: =DSUM(MercadoBase,D$53,INDIRECT("r"&5+2*(ROW()-54)&":r"&6+2*(ROW()-54))) -> 223207.1421 | E54: 2593.426102 | F54: 426549.534 | G54: 482347.3746 | H54: 1105522.943 | I54: 31873.09857 | J54: 0 | K54: 97349.37525 | L54: 110492.0297 | M54: 26824.82684 | N54: 0 | O54: 0 | P54: -389625.0639 | Q54: 7590.073608 | R54: =VLOOKUP(CAPA!$C$15,Índices!B:F,5,FALSE)/VLOOKUP(DATE(YEAR(B54),MONTH(B54),1),Índices!B:F,5,FALSE) -> 1.048843302 | S54: =DSUM(MercadoBase,S$53,INDIRECT("r"&5+2*(ROW()-54)&":r"&6+2*(ROW()-54))) -> 0 | T54: 0 | U54: 0 | V54: 0 | W54: 0 | X54: =AE54 -> -252201.3065 | Y54: 0 | Z54: =DSUM(MercadoBase,Z$53,INDIRECT("r"&5+2*(ROW()-54)&":r"&6+2*(ROW()-54))) -> 7561180.242 | AA54: =DSUM(MercadoBase,AA$53,INDIRECT("r"&5+2*(ROW()-54)&":r"&6+2*(ROW()-54))) -> 0 | AB54: 0 | AC54: 304424.8257 | AD54: 76370.96115 | AE54: -252201.3065
B55: 44256 | D55: 237096.2334 | E55: 2708.196173 | F55: 453235.2809 | G55: 502642.711 | H55: 1155997.35 | I55: 33736.0089 | J55: 0 | K55: 103457.6151 | L55: 113905.1093 | M55: 28049.55694 | N55: 0 | O55: 0 | P55: -414000.7461 | Q55: 7909.434934 | R55: =VLOOKUP(CAPA!$C$15,Índices!B:F,5,FALSE)/VLOOKUP(DATE(YEAR(B55),MONTH(B55),1),Índices!B:F,5,FALSE) -> 1.046738521 | S55: 0 | T55: 0 | U55: 0 | V55: 0 | W55: 0 | X55: =AE55 -> -267979.498 | Y55: 0 | Z55: 7974041.033 | AA55: 0 | AB55: 0 | AC55: 323470.2196 | AD55: 79857.79875 | AE55: -267979.498
B56: 44287 | D56: 236135.0299 | E56: 2702.67205 | F56: 450034.5653 | G56: 500930.0472 | H56: 1150872.499 | I56: 33566.61541 | J56: 0 | K56: 102713.2456 | L56: 114282.975 | M56: 27925.20563 | N56: 0 | O56: 0 | P56: -411077.1019 | Q56: 7882.484971 | R56: =VLOOKUP(CAPA!$C$15,Índices!B:F,5,FALSE)/VLOOKUP(DATE(YEAR(B56),MONTH(B56),1),Índices!B:F,5,FALSE) -> 1.044568068 | S56: 0 | T56: 0 | U56: 0 | V56: 0 | W56: 0 | X56: -266087.0456 | Y56: 0 | Z56: 7969063.174 | AA56: 0 | AB56: 0 | AC56: 321185.8956 | AD56: 79503.76741 | AE56: -266087.0456
B57: 44317 | D57: 224965.9107 | E57: 2601.964791 | F57: 431682.122 | G57: 483592.7404 | H57: 1109177.635 | I57: 32080.73082 | J57: 0 | K57: 98426.04467 | L57: 110050.1843 | M57: 26913.50569 | N57: 0 | O57: 0 | P57: -394313.3469 | Q57: 7609.670311 | R57: =VLOOKUP(CAPA!$C$15,Índices!B:F,5,FALSE)/VLOOKUP(DATE(YEAR(B57),MONTH(B57),1),Índices!B:F,5,FALSE) -> 1.041751939 | S57: 0 | T57: 0 | U57: 0 | V57: 0 | W57: 0 | X57: -255235.996 | Y57: 0 | Z57: 7582269.923 | AA57: 0 | AB57: 0 | AC57: 308087.9107 | AD57: 76623.43206 | AE57: -255235.996
B58: 44348 | D58: 213632.0613 | E58: 2511.556815 | F58: 408220.4283 | G58: 467391.0496 | H58: 1067543.312 | I58: 30541.23646 | J58: 0 | K58: 93211.26608 | L58: 107197.6742 | M58: 25903.27472 | N58: 0 | O58: 0 | P58: -372882.6262 | Q58: 7354.725364 | R58: =VLOOKUP(CAPA!$C$15,Índices!B:F,5,FALSE)/VLOOKUP(DATE(YEAR(B58),MONTH(B58),1),Índices!B:F,5,FALSE) -> 1.038555483 | S58: 0 | T58: 0 | U58: 0 | V58: 0 | W58: 0 | X58: -241364.0554 | Y58: 0 | Z58: 7256155.145 | AA58: 0 | AB58: 0 | AC58: 291343.4967 | AD58: 73747.27894 | AE58: -241364.0554
B59: 44378 | D59: 222415.8545 | E59: 2578.811952 | F59: 424903.914 | G59: 479048.0278 | H59: 1097644.116 | I59: 31682.69531 | J59: 0 | K59: 96980.49278 | L59: 109994.2038 | M59: 26633.65201 | N59: 0 | O59: 0 | P59: -388121.8979 | Q59: 7538.156077 | R59: =VLOOKUP(CAPA!$C$15,Índices!B:F,5,FALSE)/VLOOKUP(DATE(YEAR(B59),MONTH(B59),1),Índices!B:F,5,FALSE) -> 1.034875299 | S59: 0 | T59: 0 | U59: 0 | V59: 0 | W59: 0 | X59: -251228.3187 | Y59: 0 | Z59: 7531581.156 | AA59: 0 | AB59: 0 | AC59: 303250.3606 | AD59: 75826.68157 | AE59: -251228.3187
B60: 44409 | D60: 210345.5943 | E60: 2523.349686 | F60: 402016.8352 | G60: 470151.3215 | H60: 1069543.484 | I60: 30211.65747 | J60: 0 | K60: 91828.46193 | L60: 106721.437 | M60: 25951.80766 | N60: 0 | O60: 0 | P60: -367216.0503 | Q60: 7398.160175 | R60: =VLOOKUP(CAPA!$C$15,Índices!B:F,5,FALSE)/VLOOKUP(DATE(YEAR(B60),MONTH(B60),1),Índices!B:F,5,FALSE) -> 1.030465397 | S60: 0 | T60: 0 | U60: 0 | V60: 0 | W60: 0 | X60: -237696.1243 | Y60: 0 | Z60: 7152134.708 | AA60: 0 | AB60: 0 | AC60: 286916.0443 | AD60: 73885.45343 | AE60: -237696.1243
B61: 44440 | D61: 212402.0082 | E61: 2536.664129 | F61: 405861.8287 | G61: 472822.7594 | H61: 1077141.507 | I61: 30504.95689 | J61: 0 | K61: 92673.31304 | L61: 107450.7982 | M61: 26136.16896 | N61: 0 | O61: 0 | P61: -370728.2 | Q61: 7440.197121 | R61: =VLOOKUP(CAPA!$C$15,Índices!B:F,5,FALSE)/VLOOKUP(DATE(YEAR(B61),MONTH(B61),1),Índices!B:F,5,FALSE) -> 1.02593079 | S61: 0 | T61: 0 | U61: 0 | V61: 0 | W61: 0 | X61: -239969.5119 | Y61: 0 | Z61: 7222125.821 | AA61: 0 | AB61: 0 | AC61: 289660.184 | AD61: 74410.33471 | AE61: -239969.5119
B62: 44470 | D62: 224076.5478 | E62: 2644.230288 | F62: 429236.415 | G62: 491798.1053 | H62: 1123460.469 | I62: 32111.12856 | J62: 0 | K62: 97908.24711 | L62: 111306.3307 | M62: 27260.06977 | N62: 0 | O62: 0 | P62: -392079.3537 | Q62: 7738.787472 | R62: =VLOOKUP(CAPA!$C$15,Índices!B:F,5,FALSE)/VLOOKUP(DATE(YEAR(B62),MONTH(B62),1),Índices!B:F,5,FALSE) -> 1.021025765 | S62: 0 | T62: 0 | U62: 0 | V62: 0 | W62: 0 | X62: -253789.9494 | Y62: 0 | Z62: 7579727.571 | AA62: 0 | AB62: 0 | AC62: 306342.4302 | AD62: 77610.10879 | AE62: -253789.9494
B63: 44501 | D63: 226041.432 | E63: 2689.306916 | F63: 431969.4056 | G63: 500488.821 | H63: 1141757.052 | I63: 32496.05159 | J63: 0 | K63: =DSUM(MercadoBase,K$53,INDIRECT("r"&5+2*(ROW()-54)&":r"&6+2*(ROW()-54)))*IF(VLOOKUP("MesesAdin",TabPostergacao[#All],2,FALSE)>2,0,1) -> 98608.86653 | L63: =DSUM(MercadoBase,L$53,INDIRECT("r"&5+2*(ROW()-54)&":r"&6+2*(ROW()-54)))*IF(VLOOKUP("MesesAdin",TabPostergacao[#All],2,FALSE)>2,0,1) -> 112289.4137 | M63: =DSUM(MercadoBase,M$53,INDIRECT("r"&5+2*(ROW()-54)&":r"&6+2*(ROW()-54)))*IF(VLOOKUP("MesesAdin",TabPostergacao[#All],2,FALSE)>2,0,1) -> 27704.02498 | N63: =DSUM(MercadoBase,N$53,INDIRECT("r"&5+2*(ROW()-54)&":r"&6+2*(ROW()-54)))*IF(VLOOKUP("MesesAdin",TabPostergacao[#All],2,FALSE)>2,0,1) -> 0 | O63: =DSUM(MercadoBase,O$53,INDIRECT("r"&5+2*(ROW()-54)&":r"&6+2*(ROW()-54)))*IF(VLOOKUP("MesesAdin",TabPostergacao[#All],2,FALSE)>2,0,1) -> 0 | P63: =DSUM(MercadoBase,P$53,INDIRECT("r"&5+2*(ROW()-54)&":r"&6+2*(ROW()-54)))*IF(VLOOKUP("MesesAdin",TabPostergacao[#All],2,FALSE)>2,0,1) -> -394575.7617 | Q63: =DSUM(MercadoBase,Q$53,INDIRECT("r"&5+2*(ROW()-54)&":r"&6+2*(ROW()-54)))*IF(VLOOKUP("MesesAdin",TabPostergacao[#All],2,FALSE)>2,0,1) -> 7875.541968 | R63: =VLOOKUP(CAPA!$C$15,Índices!B:F,5,FALSE)/VLOOKUP(DATE(YEAR(B63),MONTH(B63),1),Índices!B:F,5,FALSE) -> 1.015069852 | S63: 0 | T63: 0 | U63: 0 | V63: 0 | W63: 0 | X63: -255405.855 | Y63: 0 | Z63: 7655967.044 | AA63: 0 | AB63: 0 | AC63: 308292.9427 | AD63: 78874.0605 | AE63: -255405.855
B64: 44531 | D64: 235709.7387 | E64: 2754.82592 | F64: 447158.9497 | G64: 511999.3542 | H64: 1172014.5 | I64: 33714.09572 | J64: 0 | K64: =DSUM(MercadoBase,K$53,INDIRECT("r"&5+2*(ROW()-54)&":r"&6+2*(ROW()-54)))*IF(VLOOKUP("MesesAdin",TabPostergacao[#All],2,FALSE)>1,0,1) -> 102202.7464 | L64: =DSUM(MercadoBase,L$53,INDIRECT("r"&5+2*(ROW()-54)&":r"&6+2*(ROW()-54)))*IF(VLOOKUP("MesesAdin",TabPostergacao[#All],2,FALSE)>1,0,1) -> 116323.1436 | M64: =DSUM(MercadoBase,M$53,INDIRECT("r"&5+2*(ROW()-54)&":r"&6+2*(ROW()-54)))*IF(VLOOKUP("MesesAdin",TabPostergacao[#All],2,FALSE)>1,0,1) -> 28438.20314 | N64: =DSUM(MercadoBase,N$53,INDIRECT("r"&5+2*(ROW()-54)&":r"&6+2*(ROW()-54)))*IF(VLOOKUP("MesesAdin",TabPostergacao[#All],2,FALSE)>1,0,1) -> 0 | O64: =DSUM(MercadoBase,O$53,INDIRECT("r"&5+2*(ROW()-54)&":r"&6+2*(ROW()-54)))*IF(VLOOKUP("MesesAdin",TabPostergacao[#All],2,FALSE)>1,0,1) -> 0 | P64: =DSUM(MercadoBase,P$53,INDIRECT("r"&5+2*(ROW()-54)&":r"&6+2*(ROW()-54)))*IF(VLOOKUP("MesesAdin",TabPostergacao[#All],2,FALSE)>1,0,1) -> -408450.4155 | Q64: =DSUM(MercadoBase,Q$53,INDIRECT("r"&5+2*(ROW()-54)&":r"&6+2*(ROW()-54)))*IF(VLOOKUP("MesesAdin",TabPostergacao[#All],2,FALSE)>1,0,1) -> 8056.668266 | R64: =VLOOKUP(CAPA!$C$15,Índices!B:F,5,FALSE)/VLOOKUP(DATE(YEAR(B64),MONTH(B64),1),Índices!B:F,5,FALSE) -> 1.007322703 | S64: 0 | T64: 0 | U64: 0 | V64: 0 | W64: 0 | X64: -264386.8117 | Y64: 0 | Z64: 7994953.314 | AA64: 0 | AB64: 0 | AC64: 319133.5929 | AD64: 80964.28431 | AE64: -264386.8117
B65: =DATE(YEAR(CAPA!C10),MONTH(CAPA!C10)-1,1) -> 44562 | D65: 235709.7387 | E65: 2754.82592 | F65: 447158.9497 | G65: 511999.3542 | H65: 1172014.5 | I65: 33714.09572 | J65: 0 | K65: =DSUM(MercadoBase,K$53,INDIRECT("r"&5+2*(ROW()-54)&":r"&6+2*(ROW()-54)))*IF(VLOOKUP("MesesAdin",TabPostergacao[#All],2,FALSE)>0,0,1) -> 102202.7464 | L65: =DSUM(MercadoBase,L$53,INDIRECT("r"&5+2*(ROW()-54)&":r"&6+2*(ROW()-54)))*IF(VLOOKUP("MesesAdin",TabPostergacao[#All],2,FALSE)>0,0,1) -> 116323.1436 | M65: =DSUM(MercadoBase,M$53,INDIRECT("r"&5+2*(ROW()-54)&":r"&6+2*(ROW()-54)))*IF(VLOOKUP("MesesAdin",TabPostergacao[#All],2,FALSE)>0,0,1) -> 28438.20314 | N65: =DSUM(MercadoBase,N$53,INDIRECT("r"&5+2*(ROW()-54)&":r"&6+2*(ROW()-54)))*IF(VLOOKUP("MesesAdin",TabPostergacao[#All],2,FALSE)>0,0,1) -> 0 | O65: =DSUM(MercadoBase,O$53,INDIRECT("r"&5+2*(ROW()-54)&":r"&6+2*(ROW()-54)))*IF(VLOOKUP("MesesAdin",TabPostergacao[#All],2,FALSE)>0,0,1) -> 0 | P65: =DSUM(MercadoBase,P$53,INDIRECT("r"&5+2*(ROW()-54)&":r"&6+2*(ROW()-54)))*IF(VLOOKUP("MesesAdin",TabPostergacao[#All],2,FALSE)>0,0,1) -> -408450.4155 | Q65: =DSUM(MercadoBase,Q$53,INDIRECT("r"&5+2*(ROW()-54)&":r"&6+2*(ROW()-54)))*IF(VLOOKUP("MesesAdin",TabPostergacao[#All],2,FALSE)>0,0,1) -> 8056.668266 | R65: =VLOOKUP(CAPA!$C$15,Índices!B:F,5,FALSE)/VLOOKUP(DATE(YEAR(B65),MONTH(B65),1),Índices!B:F,5,FALSE) -> 1 | S65: 0 | T65: 0 | U65: 0 | V65: 0 | W65: 0 | X65: -264386.8117 | Y65: 0 | Z65: 7994953.314 | AA65: 0 | AB65: 0 | AC65: 319133.5929 | AD65: 80964.28431 | AE65: -264386.8117
B66: Total Bruto | D66: =SUM(D54:D65) -> 2701737.292 | E66: 31599.83074 | F66: 5158028.228 | G66: 5875211.666 | H66: 13442689.37 | I66: 386232.3714 | J66: 0 | K66: 1177562.421 | L66: 1336336.443 | M66: 326178.4995 | N66: 0 | O66: 0 | P66: -4711520.979 | Q66: 92450.56853 | S66: =SUM(S54:S65) -> 0 | T66: 0 | U66: 0 | V66: 0 | W66: 0 | X66: -3049731.284 | Y66: 0 | Z66: 91474152.45 | AA66: 0 | AB66: 0 | AC66: =SUM(AC54:AC65) -> 3681241.496 | AD66: =SUM(AD54:AD65) -> 928638.446 | AE66: =SUM(AE54:AE65) -> -3049731.284
B67: Total Atualizado pelo SELIC | D67: =SUMPRODUCT(D54:D65,$R$54:$R$65) -> 2781391.183 | E67: 32527.89014 | F67: 5310265.458 | G67: 6047723.689 | H67: 13837684.4 | I67: 397607.0153 | J67: 0 | K67: 1212309.68 | L67: 1375636.194 | M67: 335762.8083 | N67: 0 | O67: 0 | P67: -4850579.718 | Q67: 95165.16597 | R67: 12.72362009 | S67: 0 | T67: 0 | U67: 0 | V67: 0 | W67: 0 | X67: -3139742.936 | Y67: 0 | Z67: 94168787.85 | AA67: 0 | AB67: 0 | AC67: =SUMPRODUCT(AC54:AC65,$R$54:$R$65) -> 3789891.93 | AD67: =SUMPRODUCT(AD54:AD65,$R$54:$R$65) -> 955925.2157 | AE67: =SUMPRODUCT(AE54:AE65,$R$54:$R$65) -> -3139742.936
B71: =B53 -> Competência | C71: 0 | D71: PeD | E71: ONS | F71: ESSERR | G71: PROINFA | H71: CDE | I71: TFSEE | J71: CFURH | K71: CVA_Energia | L71: CVA_RB | M71: CVA_CDE | N71: CVA_CFURH | O71: CVA_TranItaipu | P71: CVA_ESSERR | Q71: CVA_PROINFA | R71: Fator Selic | S71: RTE_Energia | T71: RTE_CDE_USO | U71: RTE_CDE_E | V71: RTE_CUSD | W71: RTE_PeD | X71: CVA_CDE_E | Y71: CVA_CCC | Z71: DISTRIBUICAO | AA71: cDE_E_ACR | AB71: CDE_E_Dec | AC71: =AC53 -> covidteeco | AD71: =AD53 -> covidtusdeco | AE71: Fator Selic
AE72: =IFERROR(VLOOKUP(CAPA!$C$15,Índices!B:F,5,FALSE)/VLOOKUP(DATE(YEAR(B72),MONTH(B72),1),Índices!B:F,5,FALSE),0) -> 0
AE73: =IFERROR(VLOOKUP(CAPA!$C$15,Índices!B:F,5,FALSE)/VLOOKUP(DATE(YEAR(B73),MONTH(B73),1),Índices!B:F,5,FALSE),0) -> 0
AE74: =IFERROR(VLOOKUP(CAPA!$C$15,Índices!B:F,5,FALSE)/VLOOKUP(DATE(YEAR(B74),MONTH(B74),1),Índices!B:F,5,FALSE),0) -> 0
B75: Total Bruto | D75: =SUM(D72:D74) -> 0 | E75: 0 | F75: 0 | G75: 0 | H75: 0 | I75: 0 | J75: 0 | K75: 0 | L75: 0 | M75: 0 | N75: 0 | O75: 0 | P75: 0 | Q75: 0 | R75: 0 | S75: 0 | T75: 0 | U75: 0 | V75: 0 | W75: 0 | X75: 0 | Y75: 0 | Z75: 0 | AA75: 0 | AB75: 0 | AC75: =SUM(AC72:AC74) -> 0 | AD75: =SUM(AD72:AD74) -> 0
B76: Total Atualizado pelo SELIC | D76: =SUMPRODUCT(D72:D74,$AE$72:$AE$74) -> 0 | E76: 0 | F76: 0 | G76: 0 | H76: 0 | I76: 0 | J76: 0 | K76: 0 | L76: 0 | M76: 0 | N76: 0 | O76: 0 | P76: 0 | Q76: 0 | S76: =SUMPRODUCT(S72:S74,$AE$72:$AE$74) -> 0 | T76: 0 | U76: 0 | V76: 0 | W76: 0 | X76: 0 | Y76: 0 | Z76: 0 | AA76: 0 | AB76: 0 | AC76: =SUMPRODUCT(AC72:AC74,$AE$72:$AE$74) -> 0 | AD76: =SUMPRODUCT(AD72:AD74,$AE$72:$AE$74) -> 0

Sheet Mercado_Receita
A1: Código | B1: TipoMercado | C1: Modalidade | D1: Subgrupo | E1: Classe | F1: Subclasse | G1: Detalhe | H1: Agente | I1: Posto | J1: OPÇÃO | K1: AnoMes | L1: D | M1: Daj | N1: TUSD_E | O1: TUSD_Eaj | P1: TE_E | Q1: TE_Eaj | R1: TUSD/KW | S1: TUSD/MWh | T1: TE | U1: ReceitaD | V1: ReceitaE | W1: Total | X1: Total com Tar de aplicação | Y1: CCC | Z1: CDE | AA1: CFURH | AB1: Conexao_D | AC1: Conexao_T | AD1: CUSD | AE1: DISTRIBUICAO | AF1: EnergiaRevenda | AG1: ESSERR | AH1: ITAIPU | AI1: ONS | AJ1: OUTROS | AK1: PeD | AL1: PROINFA | AM1: RGR | AN1: TFSEE | AO1: TUST_FR | AP1: TUST_RB | AQ1: TUSDG_ONS | AR1: TUSDG_T | AS1: TUST_CI | AT1: TUST_ITAIPU | AU1: CVA_CCC | AV1: CVA_CDE | AW1: CVA_PROINFA | AX1: CVA_TranItaipu | AY1: CVA_ESSERR | AZ1: CVA_CFURH | BA1: CVA_CDE_E | BB1: CVA_Energia | BC1: CVA_RB | BD1: perdasnt | BE1: perdasrb_d | BF1: perdasrb_c | BG1: perdastec | BH1: RI | BI1: PisPasep | BJ1: Cofins | BK1: ICMS | BL1: UC | BM1: total_dummy | BN1: Subs_CarFI | BO1: Subs_GerFI | BP1: Subs_Dist | BQ1: Subs_AguaEsgoto | BR1: Subs_Rural | BS1: Subs_Irrigante | BT1: Subs_BaixaRenda | BU1: CDE_E | BV1: DespesaEnergia | BW1: RTE_CUSD | BX1: RTE_Energia | BY1: RTE_CDE_USO | BZ1: RTE_CDE_E | CA1: RTE_PeD | CB1: Dif_Subs_Car | CC1: Dif_Subs_Ger | CD1: Dif_Subs_D | CE1: Dif_Subs_Agua | CF1: Dif_Subs_Ru | CG1: Dif_Subs_Irr | CH1: dif_subs_baixa | CI1: FinTotAj | CJ1: FinAj | CK1: RTE_CDE_E_Dec | CL1: RTE_CDE_E_ACR | CM1: CDE_E_Dec | CN1: CDE_E_ACR | CO1: FinPostTUSD | CP1: FinPostTE | CQ1: FinPostQtddias | CR1: FinCT_Geral | CS1: finCT_TUST_FR | CT1: finCT_TUST_RB | CU1: FINCT_TUSDG_ONS | CV1: FINCT_TUSDG_T | CW1: FINCT_TUST_CI | CX1: FINCT_TUST_ITAIPU | CY1: FinCT_Itaipu | CZ1: FinCT_CUSD | DA1: FinCT_Conexao_D | DB1: FinCT_Conexao_T | DC1: FinCT_EnergiaRevenda | DD1: FINCT_perdasrb_c | DE1: FINCT_perdasrb_d | DF1: FinCT_perdasnt | DG1: FinCT_perdastec | DH1: FinCT_CCC | DI1: FinCT_CDE | DJ1: FinCT_CDE_E | DK1: FinCT_CFURH | DL1: FinCT_ONS | DM1: FinCT_ESSERR | DN1: FinCT_Ped | DO1: finCT_PROINFA | DP1: finCT_TFSEE | DQ1: FINCT_Liminar | DR1: FinCT_Posterg | DS1: FINCT_RGR | DT1: Tipo_ato | DU1: DIST_D | DV1: DIST_E | DW1: FIN_RI | DX1: FINCT_RI | DY1: Fin_TUSD | DZ1: Fin_TE | EA1: CVA_TUSD | EB1: CVA_TE | EC1: FinCT_ParcelaB | ED1: CVA_EnergiaRevenda | EE1: CVA_perdasnt | EF1: CVA_perdasrb_d | EG1: CVA_perdasrb_c | EH1: CVA_perdastec | EI1: CVA_TUST_RB | EJ1: CVA_TUST_FR | EK1: CVA_TUSDG_ONS | EL1: CVA_TUSDG_T | EM1: CVA_TUST_CI | EN1: CVA_TUST_ITAIPU | EO1: CVA_liminar | EP1: covidTusdEco | EQ1: covidTeEco | ER1: CVA_CovidTusd | ES1: CVA_CovidTe_ou_CVA_CDE_E | ET1: FinCT_CDECOVIDTUSD | EU1: FinCT_CDECOVIDTE_ou_FinCT_CDE_E | EV1: idsreag | EW1: FinCTAn3En | EX1: An3En | EY1: CVA_An3En | EZ1: Fin_An3En | FA1: FIN_CFURH | FB1: TEAngra | FC1: TUSDAngra | FD1: teCheia | FE1: tusdcheia | FF1: AngraIII_TE | FG1: AngraIII_TUSD | FH1: AngraIII_Desc_TE | FI1: AngraIII_Desc_TUSD
A2: 1133 | B2: Regular | C2: Azul | D2: A3 | E2: Industrial | F2: Não se aplica | G2: Não se aplica | H2: Não se aplica | I2: Fora ponta | J2: LIVRE | K2: 2021-02-01 | L2: 9989 | M2: 9989 | N2: 0 | O2: 0 | P2: 0 | Q2: 0 | R2: 6.53 | U2: 65228.17 | W2: 65228.17 | X2: 67126.08 | Y2: 0 | Z2: 0 | AA2: 0 | AB2: 0 | AC2: 977.490757 | AD2: 16968.06949 | AE2: 2689.483152 | AI2: 0 | AJ2: 0 | AK2: 0 | AL2: 0 | AN2: 0 | AO2: 11525.29515 | AP2: 33056.82123 | AQ2: 0 | AR2: 0 | AU2: 0 | AV2: 0 | AW2: 0 | AZ2: 0 | BB2: 0 | BC2: 2755.908905 | BD2: 0 | BE2: 0 | BG2: 0 | BH2: 0 | BI2: 0 | BJ2: 0 | BK2: 0 | BL2: 0 | BV2: 0 | CI2: 67126.08 | CJ2: 1897.88 | CO2: 1897.91 | CP2: 0 | CQ2: 29 | CR2: -865.1534215 | CS2: -5.456968211e-12 | CT2: -2057.53293 | CU2: 0 | CV2: 0 | CZ2: 1192.379509 | DA2: 0 | DB2: 0 | DE2: 0 | DF2: 0 | DG2: 0 | DH2: 0 | DI2: 0 | DK2: 0 | DL2: 0 | DN2: 0 | DO2: 0 | DP2: 0 | DQ2: 0 | DR2: 0 | DU2: 2689.483152 | DW2: 0 | DX2: 0 | DY2: -899.01 | EA2: 2796.92 | EC2: -6.867155322 | EE2: 0 | EF2: 0 | EH2: 0 | EI2: 2043.455883 | EJ2: 712.4530218 | EK2: 0 | EL2: 0 | EO2: 0 | EP2: 0 | ER2: 0 | ET2: 0 | EV2: 140 | FA2: 0 | FB2: -83.4197843 | FD2: -83.4197843 | FF2: 0 | FG2: 0 | FH2: 0 | FI2: 0
A3: 1163 | B3: Regular | C3: Azul | D3: A3 | E3: Industrial | F3: Não se aplica | G3: Não se aplica | H3: Não se aplica | I3: Fora ponta | J3: LIVRE | K3: 2021-03-01 | L3: 9976 | M3: 9976 | N3: 0 | O3: 0 | P3: 0 | Q3: 0 | R3: 6.53 | U3: 65143.28 | W3: 65143.28 | X3: 67038.72 | Y3: 0 | Z3: 0 | AA3: 0 | AB3: 0 | AC3: 976.2186197 | AD3: 16945.98671 | AE3: 2685.982973 | AI3: 0 | AJ3: 0 | AK3: 0 | AL3: 0 | AN3: 0 | AO3: 11510.29577 | AP3: 33013.80004 | AQ3: 0 | AR3: 0 | AU3: 0 | AV3: 0 | AW3: 0 | AZ3: 0 | BB3: 0 | BC3: 2752.322278 | BD3: 0 | BE3: 0 | BG3: 0 | BH3: 0 | BI3: 0 | BJ3: 0 | BK3: 0 | BL3: 0 | BV3: 0 | CI3: 67038.72 | CJ3: 1895.41 | CO3: 1895.44 | CP3: 0 | CQ3: 31 | CR3: -864.0274835 | CS3: -5.456968211e-12 | CT3: -2054.855192 | CU3: 0 | CV3: 0 | CZ3: 1190.827709 | DA3: 0 | DB3: 0 | DE3: 0 | DF3: 0 | DG3: 0 | DH3: 0 | DI3: 0 | DK3: 0 | DL3: 0 | DN3: 0 | DO3: 0 | DP3: 0 | DQ3: 0 | DR3: 0 | DU3: 2685.982973 | DW3: 0 | DX3: 0 | DY3: -897.84 | EA3: 2793.28 | EC3: -6.858218189 | EE3: 0 | EF3: 0 | EH3: 0 | EI3: 2040.796465 | EJ3: 711.5258129 | EK3: 0 | EL3: 0 | EO3: 0 | EP3: 0 | ER3: 0 | ET3: 0 | EV3: 140 | FA3: 0 | FB3: -83.4197843 | FD3: -83.4197843 | FF3: 0 | FG3: 0 | FH3: 0 | FI3: 0
A4: 1194 | B4: Regular | C4: Azul | D4: A3 | E4: Industrial | F4: Não se aplica | G4: Não se aplica | H4: Não se aplica | I4: Fora ponta | J4: LIVRE | K4: 2021-04-01 | L4: 9903 | M4: 9903 | N4: 0 | O4: 0 | P4: 0 | Q4: 0 | R4: 6.53 | U4: 64666.59 | W4: 64666.59 | X4: 66548.16 | Y4: 0 | Z4: 0 | AA4: 0 | AB4: 0 | AC4: 969.0750793 | AD4: 16821.9834 | AE4: 2666.328126 | AI4: 0 | AJ4: 0 | AK4: 0 | AL4: 0 | AN4: 0 | AO4: 11426.06846 | AP4: 32772.21951 | AQ4: 0 | AR4: 0 | AU4: 0 | AV4: 0 | AW4: 0 | AZ4: 0 | BB4: 0 | BC4: 2732.181988 | BD4: 0 | BE4: 0 | BG4: 0 | BH4: 0 | BI4: 0 | BJ4: 0 | BK4: 0 | BL4: 0 | BV4: 0 | CI4: 66548.16 | CJ4: 1881.54 | CO4: 1881.57 | CP4: 0 | CQ4: 30 | CR4: -857.7049087 | CS4: -5.456968211e-12 | CT4: -2039.818661 | CU4: 0 | CV4: 0 | CZ4: 1182.113753 | DA4: 0 | DB4: 0 | DE4: 0 | DF4: 0 | DG4: 0 | DH4: 0 | DI4: 0 | DK4: 0 | DL4: 0 | DN4: 0 | DO4: 0 | DP4: 0 | DQ4: 0 | DR4: 0 | DU4: 2666.328126 | DW4: 0 | DX4: 0 | DY4: -891.27 | EA4: 2772.84 | EC4: -6.808032751 | EE4: 0 | EF4: 0 | EH4: 0 | EI4: 2025.86281 | EJ4: 706.3191786 | EK4: 0 | EL4: 0 | EO4: 0 | EP4: 0 | ER4: 0 | ET4: 0 | EV4: 140 | FA4: 0 | FB4: -83.4197843 | FD4: -83.4197843 | FF4: 0 | FG4: 0 | FH4: 0 | FI4: 0
A5: 1248 | B5: Regular | C5: Azul | D5: A3 | E5: Industrial | F5: Não se aplica | G5: Não se aplica | H5: Não se aplica | I5: Fora ponta | J5: LIVRE | K5: 2021-05-01 | L5: 9799 | M5: 9799 | N5: 0 | O5: 0 | P5: 0 | Q5: 0 | R5: 6.53 | U5: 63987.47 | W5: 63987.47 | X5: 65849.28 | Y5: 0 | Z5: 0 | AA5: 0 | AB5: 0 | AC5: 958.8979806 | AD5: 16645.32115 | AE5: 2638.3267 | AI5: 0 | AJ5: 0 | AK5: 0 | AL5: 0 | AN5: 0 | AO5: 11306.0734 | AP5: 32428.04998 | AQ5: 0 | AR5: 0 | AU5: 0 | AV5: 0 | AW5: 0 | AZ5: 0 | BB5: 0 | BC5: 2703.488973 | BD5: 0 | BE5: 0 | BG5: 0 | BH5: 0 | BI5: 0 | BJ5: 0 | BK5: 0 | BL5: 0 | BV5: 0 | CI5: 65849.28 | CJ5: 1861.78 | CO5: 1861.81 | CP5: 0 | CQ5: 31 | CR5: -848.6974048 | CS5: -5.456968211e-12 | CT5: -2018.396755 | CU5: 0 | CV5: 0 | CZ5: 1169.69935 | DA5: 0 | DB5: 0 | DE5: 0 | DF5: 0 | DG5: 0 | DH5: 0 | DI5: 0 | DK5: 0 | DL5: 0 | DN5: 0 | DO5: 0 | DP5: 0 | DQ5: 0 | DR5: 0 | DU5: 2638.3267 | DW5: 0 | DX5: 0 | DY5: -881.91 | EA5: 2743.72 | EC5: -6.736535689 | EE5: 0 | EF5: 0 | EH5: 0 | EI5: 2004.587466 | EJ5: 698.9015077 | EK5: 0 | EL5: 0 | EO5: 0 | EP5: 0 | ER5: 0 | ET5: 0 | EV5: 140 | FA5: 0 | FB5: -83.4197843 | FD5: -83.4197843 | FF5: 0 | FG5: 0 | FH5: 0 | FI5: 0
A6: 1301 | B6: Regular | C6: Azul | D6: A3 | E6: Industrial | F6: Não se aplica | G6: Não se aplica | H6: Não se aplica | I6: Fora ponta | J6: LIVRE | K6: 2021-06-01 | L6: 10067 | M6: 10067 | N6: 0 | O6: 0 | P6: 0 | Q6: 0 | R6: 6.53 | U6: 65737.51 | W6: 65737.51 | X6: 67650.24 | Y6: 0 | Z6: 0 | AA6: 0 | AB6: 0 | AC6: 985.123581 | AD6: 17100.56618 | AE6: 2710.484221 | AI6: 0 | AJ6: 0 | AK6: 0 | AL6: 0 | AN6: 0 | AO6: 11615.29145 | AP6: 33314.94838 | AQ6: 0 | AR6: 0 | AU6: 0 | AV6: 0 | AW6: 0 | AZ6: 0 | BB6: 0 | BC6: 2777.428666 | BD6: 0 | BE6: 0 | BG6: 0 | BH6: 0 | BI6: 0 | BJ6: 0 | BK6: 0 | BL6: 0 | BV6: 0 | CI6: 67650.24 | CJ6: 1912.7 | CO6: 1912.73 | CP6: 0 | CQ6: 30 | CR6: -871.9090493 | CS6: -5.456968211e-12 | CT6: -2073.59936 | CU6: 0 | CV6: 0 | CZ6: 1201.690311 | DA6: 0 | DB6: 0 | DE6: 0 | DF6: 0 | DG6: 0 | DH6: 0 | DI6: 0 | DK6: 0 | DL6: 0 | DN6: 0 | DO6: 0 | DP6: 0 | DQ6: 0 | DR6: 0 | DU6: 2710.484221 | DW6: 0 | DX6: 0 | DY6: -906.03 | EA6: 2818.76 | EC6: -6.920778118 | EE6: 0 | EF6: 0 | EH6: 0 | EI6: 2059.412391 | EJ6: 718.0162749 | EK6: 0 | EL6: 0 | EO6: 0 | EP6: 0 | ER6: 0 | ET6: 0 | EV6: 140 | FA6: 0 | FB6: -83.4197843 | FD6: -83.4197843 | FF6: 0 | FG6: 0 | FH6: 0 | FI6: 0
A7: 1332 | B7: Regular | C7: Azul | D7: A3 | E7: Industrial | F7: Não se aplica | G7: Não se aplica | H7: Não se aplica | I7: Fora ponta | J7: LIVRE | K7: 2021-07-01 | L7: 9594 | M7: 9594 | N7: 0 | O7: 0 | P7: 0 | Q7: 0 | R7: 6.53 | U7: 62648.82 | W7: 62648.82 | X7: 64471.68 | Y7: 0 | Z7: 0 | AA7: 0 | AB7: 0 | AC7: 938.8373534 | AD7: 16297.09267 | AE7: 2583.13158 | AI7: 0 | AJ7: 0 | AK7: 0 | AL7: 0 | AN7: 0 | AO7: 11069.54467 | AP7: 31749.63889 | AQ7: 0 | AR7: 0 | AU7: 0 | AV7: 0 | AW7: 0 | AZ7: 0 | BB7: 0 | BC7: 2646.930627 | BD7: 0 | BE7: 0 | BG7: 0 | BH7: 0 | BI7: 0 | BJ7: 0 | BK7: 0 | BL7: 0 | BV7: 0 | CI7: 64471.68 | CJ7: 1822.83 | CO7: 1822.86 | CP7: 0 | CQ7: 31 | CR7: -830.942229 | CS7: -5.456968211e-12 | CT7: -1976.170881 | CU7: 0 | CV7: 0 | CZ7: 1145.228652 | DA7: 0 | DB7: 0 | DE7: 0 | DF7: 0 | DG7: 0 | DH7: 0 | DI7: 0 | DK7: 0 | DL7: 0 | DN7: 0 | DO7: 0 | DP7: 0 | DQ7: 0 | DR7: 0 | DU7: 2583.13158 | DW7: 0 | DX7: 0 | DY7: -863.46 | EA7: 2686.32 | EC7: -6.59560398 | EE7: 0 | EF7: 0 | EH7: 0 | EI7: 1962.650489 | EJ7: 684.2801373 | EK7: 0 | EL7: 0 | EO7: 0 | EP7: 0 | ER7: 0 | ET7: 0 | EV7: 140 | FA7: 0 | FB7: -83.4197843 | FD7: -83.4197843 | FF7: 0 | FG7: 0 | FH7: 0 | FI7: 0
A8: 1385 | B8: Regular | C8: Azul | D8: A3 | E8: Industrial | F8: Não se aplica | G8: Não se aplica | H8: Não se aplica | I8: Fora ponta | J8: LIVRE | K8: 2021-08-01 | L8: 9718 | M8: 9718 | N8: 0 | O8: 0 | P8: 0 | Q8: 0 | R8: 6.53 | U8: 63458.54 | W8: 63458.54 | X8: 65304.96 | Y8: 0 | Z8: 0 | AA8: 0 | AB8: 0 | AC8: 950.9715864 | AD8: 16507.72843 | AE8: 2616.517896 | AI8: 0 | AJ8: 0 | AK8: 0 | AL8: 0 | AN8: 0 | AO8: 11212.61571 | AP8: 32159.99487 | AQ8: 0 | AR8: 0 | AU8: 0 | AV8: 0 | AW8: 0 | AZ8: 0 | BB8: 0 | BC8: 2681.141529 | BD8: 0 | BE8: 0 | BG8: 0 | BH8: 0 | BI8: 0 | BJ8: 0 | BK8: 0 | BL8: 0 | BV8: 0 | CI8: 65304.96 | CJ8: 1846.39 | CO8: 1846.42 | CP8: 0 | CQ8: 31 | CR8: -841.6819451 | CS8: -5.456968211e-12 | CT8: -2001.712385 | CU8: 0 | CV8: 0 | CZ8: 1160.03044 | DA8: 0 | DB8: 0 | DE8: 0 | DF8: 0 | DG8: 0 | DH8: 0 | DI8: 0 | DK8: 0 | DL8: 0 | DN8: 0 | DO8: 0 | DP8: 0 | DQ8: 0 | DR8: 0 | DU8: 2616.517896 | DW8: 0 | DX8: 0 | DY8: -874.62 | EA8: 2721.04 | EC8: -6.680850477 | EE8: 0 | EF8: 0 | EH8: 0 | EI8: 1988.017246 | EJ8: 693.1242833 | EK8: 0 | EL8: 0 | EO8: 0 | EP8: 0 | ER8: 0 | ET8: 0 | EV8: 140 | FA8: 0 | FB8: -83.4197843 | FD8: -83.4197843 | FF8: 0 | FG8: 0 | FH8: 0 | FI8: 0
A9: 1415 | B9: Regular | C9: Azul | D9: A3 | E9: Industrial | F9: Não se aplica | G9: Não se aplica | H9: Não se aplica | I9: Fora ponta | J9: LIVRE | K9: 2021-09-01 | L9: 9617 | M9: 9617 | N9: 0 | O9: 0 | P9: 0 | Q9: 0 | R9: 6.53 | U9: 62799.01 | W9: 62799.01 | X9: 64626.24 | Y9: 0 | Z9: 0 | AA9: 0 | AB9: 0 | AC9: 941.0880579 | AD9: 16336.16221 | AE9: 2589.324204 | AI9: 0 | AJ9: 0 | AK9: 0 | AL9: 0 | AN9: 0 | AO9: 11096.08204 | AP9: 31825.75331 | AQ9: 0 | AR9: 0 | AU9: 0 | AV9: 0 | AW9: 0 | AZ9: 0 | BB9: 0 | BC9: 2653.276197 | BD9: 0 | BE9: 0 | BG9: 0 | BH9: 0 | BI9: 0 | BJ9: 0 | BK9: 0 | BL9: 0 | BV9: 0 | CI9: 64626.24 | CJ9: 1827.2 | CO9: 1827.23 | CP9: 0 | CQ9: 30 | CR9: -832.9342731 | CS9: -3.637978807e-12 | CT9: -1980.908418 | CU9: 0 | CV9: 0 | CZ9: 1147.974145 | DA9: 0 | DB9: 0 | DE9: 0 | DF9: 0 | DG9: 0 | DH9: 0 | DI9: 0 | DK9: 0 | DL9: 0 | DN9: 0 | DO9: 0 | DP9: 0 | DQ9: 0 | DR9: 0 | DU9: 2589.324204 | DW9: 0 | DX9: 0 | DY9: -865.53 | EA9: 2692.76 | EC9: -6.61141583 | EE9: 0 | EF9: 0 | EH9: 0 | EI9: 1967.355614 | EJ9: 685.9205837 | EK9: 0 | EL9: 0 | EO9: 0 | EP9: 0 | ER9: 0 | ET9: 0 | EV9: 140 | FA9: 0 | FB9: -83.4197843 | FD9: -83.4197843 | FF9: 0 | FG9: 0 | FH9: 0 | FI9: 0
A10: 1445 | B10: Regular | C10: Azul | D10: A3 | E10: Industrial | F10: Não se aplica | G10: Não se aplica | H10: Não se aplica | I10: Fora ponta | J10: LIVRE | K10: 2021-10-01 | L10: 9570 | M10: 9570 | N10: 0 | O10: 0 | P10: 0 | Q10: 0 | R10: 6.53 | U10: 62492.1 | W10: 62492.1 | X10: 64310.4 | Y10: 0 | Z10: 0 | AA10: 0 | AB10: 0 | AC10: 936.4887921 | AD10: 16256.32446 | AE10: 2576.669713 | AI10: 0 | AJ10: 0 | AK10: 0 | AL10: 0 | AN10: 0 | AO10: 11041.8535 | AP10: 31670.21516 | AQ10: 0 | AR10: 0 | AU10: 0 | AV10: 0 | AW10: 0 | AZ10: 0 | BB10: 0 | BC10: 2640.309162 | BD10: 0 | BE10: 0 | BG10: 0 | BH10: 0 | BI10: 0 | BJ10: 0 | BK10: 0 | BL10: 0 | BV10: 0 | CI10: 64310.4 | CJ10: 1818.27 | CO10: 1818.3 | CP10: 0 | CQ10: 31 | CR10: -828.8635743 | CS10: -5.456968211e-12 | CT10: -1971.227364 | CU10: 0 | CV10: 0 | CZ10: 1142.36379 | DA10: 0 | DB10: 0 | DE10: 0 | DF10: 0 | DG10: 0 | DH10: 0 | DI10: 0 | DK10: 0 | DL10: 0 | DN10: 0 | DO10: 0 | DP10: 0 | DQ10: 0 | DR10: 0 | DU10: 2576.669713 | DW10: 0 | DX10: 0 | DY10: -861.3 | EA10: 2679.6 | EC10: -6.579104658 | EE10: 0 | EF10: 0 | EH10: 0 | EI10: 1957.740795 | EJ10: 682.5683671 | EK10: 0 | EL10: 0 | EO10: 0 | EP10: 0 | ER10: 0 | ET10: 0 | EV10: 140 | FA10: 0 | FB10: -83.4197843 | FD10: -83.4197843 | FF10: 0 | FG10: 0 | FH10: 0 | FI10: 0
A11: 1475 | B11: Regular | C11: Azul | D11: A3 | E11: Industrial | F11: Não se aplica | G11: Não se aplica | H11: Não se aplica | I11: Fora ponta | J11: LIVRE | K11: 2021-11-01 | L11: 9835 | M11: 9835 | N11: 0 | O11: 0 | P11: 0 | Q11: 0 | R11: 6.53 | U11: 64222.55 | W11: 64222.55 | X11: 66091.2 | Y11: 0 | Z11: 0 | AA11: 0 | AB11: 0 | AC11: 962.4208224 | AD11: 16706.47346 | AE11: 2648.019501 | AI11: 0 | AJ11: 0 | AK11: 0 | AL11: 0 | AN11: 0 | AO11: 11347.61015 | AP11: 32547.18559 | AQ11: 0 | AR11: 0 | AU11: 0 | AV11: 0 | AW11: 0 | AZ11: 0 | BB11: 0 | BC11: 2713.421171 | BD11: 0 | BE11: 0 | BG11: 0 | BH11: 0 | BI11: 0 | BJ11: 0 | BK11: 0 | BL11: 0 | BV11: 0 | CI11: 66091.2 | CJ11: 1868.62 | CO11: 1868.65 | CP11: 0 | CQ11: 30 | CR11: -851.8153869 | CS11: -5.456968211e-12 | CT11: -2025.81203 | CU11: 0 | CV11: 0 | CZ11: 1173.996643 | DA11: 0 | DB11: 0 | DE11: 0 | DF11: 0 | DG11: 0 | DH11: 0 | DI11: 0 | DK11: 0 | DL11: 0 | DN11: 0 | DO11: 0 | DP11: 0 | DQ11: 0 | DR11: 0 | DU11: 2648.019501 | DW11: 0 | DX11: 0 | DY11: -885.15 | EA11: 2753.8 | EC11: -6.761284672 | EE11: 0 | EF11: 0 | EH11: 0 | EI11: 2011.952008 | EJ11: 701.469163 | EK11: 0 | EL11: 0 | EO11: 0 | EP11: 0 | ER11: 0 | ET11: 0 | EV11: 140 | FA11: 0 | FB11: -83.4197843 | FD11: -83.4197843 | FF11: 0 | FG11: 0 | FH11: 0 | FI11: 0
A12: 1506 | B12: Regular | C12: Azul | D12: A3 | E12: Industrial | F12: Não se aplica | G12: Não se aplica | H12: Não se aplica | I12: Fora ponta | J12: LIVRE | K12: 2021-12-01 | L12: 9890 | M12: 9890 | N12: 0 | O12: 0 | P12: 0 | Q12: 0 | R12: 6.53 | U12: 64581.7 | W12: 64581.7 | X12: 66460.8 | Y12: 0 | Z12: 0 | AA12: 0 | AB12: 0 | AC12: 967.8029419 | AD12: 16799.90062 | AE12: 2662.827948 | AI12: 0 | AJ12: 0 | AK12: 0 | AL12: 0 | AN12: 0 | AO12: 11411.06908 | AP12: 32729.19832 | AQ12: 0 | AR12: 0 | AU12: 0 | AV12: 0 | AW12: 0 | AZ12: 0 | BB12: 0 | BC12: 2728.595362 | BD12: 0 | BE12: 0 | BG12: 0 | BH12: 0 | BI12: 0 | BJ12: 0 | BK12: 0 | BL12: 0 | BV12: 0 | CI12: 66460.8 | CJ12: 1879.07 | CO12: 1879.1 | CP12: 0 | CR12: -856.5789707 | CS12: -5.456968211e-12 | CT12: -2037.140923 | CU12: 0 | CV12: 0 | CZ12: 1180.561952 | DA12: 0 | DB12: 0 | DE12: 0 | DF12: 0 | DG12: 0 | DH12: 0 | DI12: 0 | DK12: 0 | DL12: 0 | DN12: 0 | DO12: 0 | DP12: 0 | DQ12: 0 | DR12: 0 | DU12: 2662.827948 | DW12: 0 | DX12: 0 | DY12: -890.1 | EA12: 2769.2 | EC12: -6.799095618 | EE12: 0 | EF12: 0 | EH12: 0 | EI12: 2023.203392 | EJ12: 705.3919697 | EK12: 0 | EL12: 0 | EO12: 0 | EP12: 0 | ER12: 0 | ET12: 0 | EV12: 140 | FA12: 0 | FB12: -83.4197843 | FD12: -83.4197843 | FF12: 0 | FG12: 0 | FH12: 0 | FI12: 0
A13: 1560 | B13: PROJETADO | C13: Azul | D13: A3 | E13: Industrial | F13: Não se aplica | G13: Não se aplica | H13: Não se aplica | I13: Fora ponta | J13: LIVRE | K13: 2022-01-01 | L13: 9890 | M13: 9890 | N13: 0 | O13: 0 | P13: 0 | Q13: 0 | R13: 6.53 | U13: 64581.7 | W13: 64581.7 | X13: 66460.8 | Y13: 0 | Z13: 0 | AA13: 0 | AB13: 0 | AC13: 967.8029419 | AD13: 16799.90062 | AE13: 2662.827948 | AI13: 0 | AJ13: 0 | AK13: 0 | AL13: 0 | AN13: 0 | AO13: 11411.06908 | AP13: 32729.19832 | AQ13: 0 | AR13: 0 | AU13: 0 | AV13: 0 | AW13: 0 | AZ13: 0 | BB13: 0 | BC13: 2728.595362 | BD13: 0 | BE13: 0 | BG13: 0 | BH13: 0 | BI13: 0 | BJ13: 0 | BK13: 0 | BL13: 0 | BV13: 0 | CI13: 66460.8 | CJ13: 1879.07 | CO13: 1879.1 | CP13: 0 | CQ13: 31 | CR13: -856.5789707 | CS13: -5.456968211e-12 | CT13: -2037.140923 | CU13: 0 | CV13: 0 | CZ13: 1180.561952 | DA13: 0 | DB13: 0 | DE13: 0 | DF13: 0 | DG13: 0 | DH13: 0 | DI13: 0 | DK13: 0 | DL13: 0 | DN13: 0 | DO13: 0 | DP13: 0 | DQ13: 0 | DR13: 0 | DU13: 2662.827948 | DW13: 0 | DX13: 0 | DY13: -890.1 | EA13: 2769.2 | EC13: -6.799095618 | EE13: 0 | EF13: 0 | EH13: 0 | EI13: 2023.203392 | EJ13: 705.3919697 | EK13: 0 | EL13: 0 | EO13: 0 | EP13: 0 | ER13: 0 | ET13: 0 | EV13: 140 | FA13: 0 | FB13: -83.4197843 | FD13: -83.4197843 | FF13: 0 | FG13: 0 | FH13: 0 | FI13: 0
A14: 1134 | B14: Regular | C14: Azul | D14: A3 | E14: Industrial | F14: Não se aplica | G14: Não se aplica | H14: Não se aplica | I14: Não se aplica | J14: LIVRE | K14: 2021-02-01 | L14: 0 | M14: 0 | N14: 5486.087 | O14: 5486.087 | P14: 0 | Q14: 0 | S14: 29.93 | V14: 164198.5839 | W14: 164198.5839 | X14: 182467.2536 | Y14: 0 | Z14: 85974.22336 | AA14: 0 | AB14: 0 | AC14: 0 | AD14: 0 | AE14: 0 | AI14: 250.2034238 | AJ14: 0 | AK14: 596.0677837 | AL14: 51685.11921 | AN14: 313.2796281 | AO14: 0 | AP14: 0 | AQ14: 0 | AR14: 0 | AU14: 0 | AV14: 2086.111075 | AW14: 813.3015332 | AZ14: 0 | BB14: 178.7964437 | BC14: 0 | BD14: 3951.586098 | BE14: 369.1061967 | BG14: 15099.0509 | BH14: 0 | BI14: 12942.62 | BJ14: 0 | BK14: 113689.52 | BL14: 1 | BV14: 19419.7432 | CI14: 182467.3534 | CJ14: 18268.73949 | CO14: 18268.66971 | CP14: 0 | CQ14: 29 | CR14: 15192.93562 | CS14: 0 | CT14: 0 | CU14: 0 | CV14: 0 | CZ14: 0 | DA14: 0 | DB14: 0 | DE14: 2.49448731 | DF14: 26.70554291 | DG14: 102.0421526 | DH14: 0 | DI14: 15051.70528 | DK14: 0 | DL14: 4.095649432 | DN14: 0 | DO14: 5.741414132 | DP14: 0.1510947725 | DQ14: 0 | DR14: 0 | DV14: 0 | DW14: 0 | DX14: 0 | DY14: 15196.46099 | EA14: 3072.20872 | EC14: 0 | EE14: 36.38202287 | EF14: 3.398339239 | EH14: 139.0160815 | EI14: 0 | EJ14: 0 | EK14: 0 | EL14: 0 | EO14: 0 | EP14: 5939.211046 | ER14: 0 | ET14: 0 | EV14: 140 | FA14: 0 | FB14: -83.4197843 | FD14: -83.4197843 | FF14: 0 | FG14: 0 | FH14: 0 | FI14: 0
A15: 1164 | B15: Regular | C15: Azul | D15: A3 | E15: Industrial | F15: Não se aplica | G15: Não se aplica | H15: Não se aplica | I15: Não se aplica | J15: LIVRE | K15: 2021-03-01 | L15: 0 | M15: 0 | N15: 5492.001 | O15: 5492.001 | P15: 0 | Q15: 0 | S15: 29.93 | V15: 164375.5899 | W15: 164375.5899 | X15: 182663.9533 | Y15: 0 | Z15: 86066.90355 | AA15: 0 | AB15: 0 | AC15: 0 | AD15: 0 | AE15: 0 | AI15: 250.473143 | AJ15: 0 | AK15: 596.7103446 | AL15: 51740.83575 | AN15: 313.6173435 | AO15: 0 | AP15: 0 | AQ15: 0 | AR15: 0 | AU15: 0 | AV15: 2088.359902 | AW15: 814.1782719 | AZ15: 0 | BB15: 178.9891862 | BC15: 0 | BD15: 3955.845906 | BE15: 369.5040931 | BG15: 15115.32767 | BH15: 0 | BI15: 14987.65 | BJ15: 0 | BK15: 132731.72 | BL15: 1 | BV15: 19440.67767 | CI15: 182663.92 | CJ15: 18288.30007 | CO15: 18288.36333 | CP15: 0 | CQ15: 31 | CR15: 15209.3136 | CS15: 0 | CT15: 0 | CU15: 0 | CV15: 0 | CZ15: 0 | DA15: 0 | DB15: 0 | DE15: 2.497176366 | DF15: 26.73433147 | DG15: 102.152154 | DH15: 0 | DI15: 15067.93101 | DK15: 0 | DL15: 4.100064541 | DN15: 0 | DO15: 5.747603375 | DP15: 0.1512576526 | DQ15: 0 | DR15: 0 | DV15: 0 | DW15: 0 | DX15: 0 | DY15: 15212.84277 | EA15: 3075.52056 | EC15: 0 | EE15: 36.42124268 | EF15: 3.402002647 | EH15: 139.1659408 | EI15: 0 | EJ15: 0 | EK15: 0 | EL15: 0 | EO15: 0 | EP15: 5945.613513 | ER15: 0 | ET15: 0 | EV15: 140 | FA15: 0 | FB15: -83.4197843 | FD15: -83.4197843 | FF15: 0 | FG15: 0 | FH15: 0 | FI15: 0
A16: 1196 | B16: Regular | C16: Azul | D16: A3 | E16: Industrial | F16: Não se aplica | G16: Não se aplica | H16: Não se aplica | I16: Não se aplica | J16: LIVRE | K16: 2021-04-01 | L16: 0 | M16: 0 | N16: 5592.416 | O16: 5592.416 | P16: 0 | Q16: 0 | S16: 29.93 | V16: 167381.0109 | W16: 167381.0109 | X16: 186003.7562 | Y16: 0 | Z16: 87640.53912 | AA16: 0 | AB16: 0 | AC16: 0 | AD16: 0 | AE16: 0 | AI16: 255.0527599 | AJ16: 0 | AK16: 607.6205154 | AL16: 52686.85816 | AN16: 319.3514804 | AO16: 0 | AP16: 0 | AQ16: 0 | AR16: 0 | AU16: 0 | AV16: 2126.543191 | AW16: 829.0645968 | AZ16: 0 | BB16: 182.2618001 | BC16: 0 | BD16: 4028.174055 | BE16: 376.2600557 | BG16: 15391.69427 | BH16: 0 | BI16: 15363.85 | BJ16: 0 | BK16: 133693.98 | BL16: 1 | BV16: 19796.12838 | CI16: 186003.8892 | CJ16: 18622.84832 | CO16: 18622.74528 | CP16: 0 | CQ16: 30 | CR16: 15487.39862 | CS16: 0 | CT16: 0 | CU16: 0 | CV16: 0 | CZ16: 0 | DA16: 0 | DB16: 0 | DE16: 2.5428344 | DF16: 27.22313836 | DG16: 104.0198901 | DH16: 0 | DI16: 15343.43102 | DK16: 0 | DL16: 4.175029563 | DN16: 0 | DO16: 5.852691774 | DP16: 0.154023227 | DQ16: 0 | DR16: 0 | DV16: 0 | DW16: 0 | DX16: 0 | DY16: 15490.99232 | EA16: 3131.75296 | EC16: 0 | EE16: 37.08716373 | EF16: 3.464204402 | EH16: 141.710432 | EI16: 0 | EJ16: 0 | EK16: 0 | EL16: 0 | EO16: 0 | EP16: 6054.322303 | ER16: 0 | ET16: 0 | EV16: 140 | FA16: 0 | FB16: -83.4197843 | FD16: -83.4197843 | FF16: 0 | FG16: 0 | FH16: 0 | FI16: 0
A17: 1250 | B17: Regular | C17: Azul | D17: A3 | E17: Industrial | F17: Não se aplica | G17: Não se aplica | H17: Não se aplica | I17: Não se aplica | J17: LIVRE | K17: 2021-05-01 | L17: 0 | M17: 0 | N17: 5484.381 | O17: 5484.381 | P17: 0 | Q17: 0 | S17: 29.93 | V17: 164147.5233 | W17: 164147.5233 | X17: 182410.5121 | Y17: 0 | Z17: 85947.48809 | AA17: 0 | AB17: 0 | AC17: 0 | AD17: 0 | AE17: 0 | AI17: 250.1256184 | AJ17: 0 | AK17: 595.8824254 | AL17: 51669.04677 | AN17: 313.1822081 | AO17: 0 | AP17: 0 | AQ17: 0 | AR17: 0 | AU17: 0 | AV17: 2085.46236 | AW17: 813.048622 | AZ17: 0 | BB17: 178.7408436 | BC17: 0 | BD17: 3950.357279 | BE17: 368.9914164 | BG17: 15094.35557 | BH17: 0 | BI17: 14994.15 | BJ17: 0 | BK17: 131358.49 | BL17: 1 | BV17: 19413.70427 | CI17: 182410.4788 | CJ17: 18262.92547 | CO17: 18262.98873 | CP17: 0 | CQ17: 31 | CR17: 15188.2111 | CS17: 0 | CT17: 0 | CU17: 0 | CV17: 0 | CZ17: 0 | DA17: 0 | DB17: 0 | DE17: 2.493711603 | DF17: 26.69723833 | DG17: 102.0104207 | DH17: 0 | DI17: 15047.02467 | DK17: 0 | DL17: 4.094375814 | DN17: 0 | DO17: 5.739628734 | DP17: 0.1510477868 | DQ17: 0 | DR17: 0 | DV17: 0 | DW17: 0 | DX17: 0 | DY17: 15191.73537 | EA17: 3071.25336 | EC17: 0 | EE17: 36.37070921 | EF17: 3.397282462 | EH17: 138.9728519 | EI17: 0 | EJ17: 0 | EK17: 0 | EL17: 0 | EO17: 0 | EP17: 5937.364138 | ER17: 0 | ET17: 0 | EV17: 140 | FA17: 0 | FB17: -83.4197843 | FD17: -83.4197843 | FF17: 0 | FG17: 0 | FH17: 0 | FI17: 0
A18: 1302 | B18: Regular | C18: Azul | D18: A3 | E18: Industrial | F18: Não se aplica | G18: Não se aplica | H18: Não se aplica | I18: Não se aplica | J18: LIVRE | K18: 2021-06-01 | L18: 0 | M18: 0 | N18: 5812.688 | O18: 5812.688 | P18: 0 | Q18: 0 | S18: 29.93 | V18: 173973.7518 | W18: 173973.7518 | X18: 193330.0029 | Y18: 0 | Z18: 91092.49205 | AA18: 0 | AB18: 0 | AC18: 0 | AD18: 0 | AE18: 0 | AI18: 265.0986831 | AJ18: 0 | AK18: 631.5532462 | AL18: 54762.06852 | AN18: 331.9299776 | AO18: 0 | AP18: 0 | AQ18: 0 | AR18: 0 | AU18: 0 | AV18: 2210.302683 | AW18: 861.7194846 | AZ18: 0 | BB18: 189.4406601 | BC18: 0 | BD18: 4186.834276 | BE18: 391.0800468 | BG18: 15997.9366 | BH18: 0 | BI18: 15802.23 | BJ18: 0 | BK18: 138857.36 | BL18: 1 | BV18: 20575.85092 | CI18: 193330.0694 | CJ18: 19356.28756 | CO18: 19356.25104 | CP18: 0 | CQ18: 30 | CR18: 16097.41052 | CS18: 0 | CT18: 0 | CU18: 0 | CV18: 0 | CZ18: 0 | DA18: 0 | DB18: 0 | DE18: 2.642990615 | DF18: 28.2953932 | DG18: 108.1169869 | DH18: 0 | DI18: 15947.77237 | DK18: 0 | DL18: 4.339474074 | DN18: 0 | DO18: 6.083215419 | DP18: 0.1600898365 | DQ18: 0 | DR18: 0 | DV18: 0 | DW18: 0 | DX18: 0 | DY18: 16101.14576 | EA18: 3255.10528 | EC18: 0 | EE18: 38.54793913 | EF18: 3.600651195 | EH18: 147.2920697 | EI18: 0 | EJ18: 0 | EK18: 0 | EL18: 0 | EO18: 0 | EP18: 6292.787696 | ER18: 0 | ET18: 0 | EV18: 140 | FA18: 0 | FB18: -83.4197843 | FD18: -83.4197843 | FF18: 0 | FG18: 0 | FH18: 0 | FI18: 0
A19: 1334 | B19: Regular | C19: Azul | D19: A3 | E19: Industrial | F19: Não se aplica | G19: Não se aplica | H19: Não se aplica | I19: Não se aplica | J19: LIVRE | K19: 2021-07-01 | L19: 0 | M19: 0 | N19: 5507.185 | O19: 5507.185 | P19: 0 | Q19: 0 | S19: 29.93 | V19: 164830.0471 | W19: 164830.0471 | X19: 183168.9731 | Y19: 0 | Z19: 86304.85687 | AA19: 0 | AB19: 0 | AC19: 0 | AD19: 0 | AE19: 0 | AI19: 251.1656381 | AJ19: 0 | AK19: 598.3600984 | AL19: 51883.88614 | AN19: 314.4844165 | AO19: 0 | AP19: 0 | AQ19: 0 | AR19: 0 | AU19: 0 | AV19: 2094.133692 | AW19: 816.4292699 | AZ19: 0 | BB19: 179.4840462 | BC19: 0 | BD19: 3966.782824 | BE19: 370.5256789 | BG19: 15157.11775 | BH19: 0 | BI19: 14611.99 | BJ19: 0 | BK19: 130032.7 | BL19: 1 | BV19: 19494.42625 | CI19: 183169.1394 | CJ19: 18339.06235 | CO19: 18338.92605 | CP19: 0 | CQ19: 31 | CR19: 15251.36352 | CS19: 0 | CT19: 0 | CU19: 0 | CV19: 0 | CZ19: 0 | DA19: 0 | DB19: 0 | DE19: 2.50408043 | DF19: 26.80824517 | DG19: 102.434579 | DH19: 0 | DI19: 15109.59005 | DK19: 0 | DL19: 4.111400187 | DN19: 0 | DO19: 5.763494051 | DP19: 0.1516758419 | DQ19: 0 | DR19: 0 | DV19: 0 | DW19: 0 | DX19: 0 | DY19: 15254.90245 | EA19: 3084.0236 | EC19: 0 | EE19: 36.52193825 | EF19: 3.411408328 | EH19: 139.5506996 | EI19: 0 | EJ19: 0 | EK19: 0 | EL19: 0 | EO19: 0 | EP19: 5962.051637 | ER19: 0 | ET19: 0 | EV19: 140 | FA19: 0 | FB19: -83.4197843 | FD19: -83.4197843 | FF19: 0 | FG19: 0 | FH19: 0 | FI19: 0
A20: 1386 | B20: Regular | C20: Azul | D20: A3 | E20: Industrial | F20: Não se aplica | G20: Não se aplica | H20: Não se aplica | I20: Não se aplica | J20: LIVRE | K20: 2021-08-01 | L20: 0 | M20: 0 | N20: 6117.554 | O20: 6117.554 | P20: 0 | Q20: 0 | S20: 29.93 | V20: 183098.3912 | W20: 183098.3912 | X20: 203469.846 | Y20: 0 | Z20: 95870.14461 | AA20: 0 | AB20: 0 | AC20: 0 | AD20: 0 | AE20: 0 | AI20: 279.0026764 | AJ20: 0 | AK20: 664.6771833 | AL20: 57634.24965 | AN20: 349.3391633 | AO20: 0 | AP20: 0 | AQ20: 0 | AR20: 0 | AU20: 0 | AV20: 2326.229451 | AW20: 906.9152653 | AZ20: 0 | BB20: 199.3765135 | BC20: 0 | BD20: 4406.426901 | BE20: 411.591557 | BG20: 16837.00226 | BH20: 0 | BI20: 15453.61 | BJ20: 0 | BK20: 137732.84 | BL20: 1 | BV20: 21655.02072 | CI20: 203469.713 | CJ20: 20371.29178 | CO20: 20371.45482 | CP20: 0 | CQ20: 31 | CR20: 16941.69343 | CS20: 0 | CT20: 0 | CU20: 0 | CV20: 0 | CZ20: 0 | DA20: 0 | DB20: 0 | DE20: 2.781611159 | DF20: 29.7794404 | DG20: 113.7875464 | DH20: 0 | DI20: 16784.207 | DK20: 0 | DL20: 4.567072408 | DN20: 0 | DO20: 6.402270141 | DP20: 0.1684862872 | DQ20: 0 | DR20: 0 | DV20: 0 | DW20: 0 | DX20: 0 | DY20: 16945.62458 | EA20: 3425.83024 | EC20: 0 | EE20: 40.56971564 | EF20: 3.789499475 | EH20: 155.0172984 | EI20: 0 | EJ20: 0 | EK20: 0 | EL20: 0 | EO20: 0 | EP20: 6622.834142 | ER20: 0 | ET20: 0 | EV20: 140 | FA20: 0 | FB20: -83.4197843 | FD20: -83.4197843 | FF20: 0 | FG20: 0 | FH20: 0 | FI20: 0
A21: 1416 | B21: Regular | C21: Azul | D21: A3 | E21: Industrial | F21: Não se aplica | G21: Não se aplica | H21: Não se aplica | I21: Não se aplica | J21: LIVRE | K21: 2021-09-01 | L21: 0 | M21: 0 | N21: 5970.955 | O21: 5970.955 | P21: 0 | Q21: 0 | S21: 29.93 | V21: 178710.6831 | W21: 178710.6831 | X21: 198593.9633 | Y21: 0 | Z21: 93572.74481 | AA21: 0 | AB21: 0 | AC21: 0 | AD21: 0 | AE21: 0 | AI21: 272.3167504 | AJ21: 0 | AK21: 648.7490835 | AL21: 56253.12194 | AN21: 340.9677174 | AO21: 0 | AP21: 0 | AQ21: 0 | AR21: 0 | AU21: 0 | AV21: 2270.484474 | AW21: 885.1822539 | AZ21: 0 | BB21: 194.598722 | BC21: 0 | BD21: 4300.832774 | BE21: 401.7283158 | BG21: 16433.52602 | BH21: 0 | BI21: 15217.29 | BJ21: 0 | BK21: 134744.85 | BL21: 1 | BV21: 21136.08711 | CI21: 198594.1296 | CJ21: 19883.41645 | CO21: 19883.28015 | CP21: 0 | CQ21: 30 | CR21: 16535.7084 | CS21: 0 | CT21: 0 | CU21: 0 | CV21: 0 | CZ21: 0 | DA21: 0 | DB21: 0 | DE21: 2.714953568 | DF21: 29.06581594 | DG21: 111.06078 | DH21: 0 | DI21: 16381.99593 | DK21: 0 | DL21: 4.457628625 | DN21: 0 | DO21: 6.2488483 | DP21: 0.1644487387 | DQ21: 0 | DR21: 0 | DV21: 0 | DW21: 0 | DX21: 0 | DY21: 16539.54535 | EA21: 3343.7348 | EC21: 0 | EE21: 39.59751666 | EF21: 3.698689188 | EH21: 151.3025162 | EI21: 0 | EJ21: 0 | EK21: 0 | EL21: 0 | EO21: 0 | EP21: 6464.126779 | ER21: 0 | ET21: 0 | EV21: 140 | FA21: 0 | FB21: -83.4197843 | FD21: -83.4197843 | FF21: 0 | FG21: 0 | FH21: 0 | FI21: 0
A22: 1446 | B22: Regular | C22: Azul | D22: A3 | E22: Industrial | F22: Não se aplica | G22: Não se aplica | H22: Não se aplica | I22: Não se aplica | J22: LIVRE | K22: 2021-10-01 | L22: 0 | M22: 0 | N22: 5870.564 | O22: 5870.564 | P22: 0 | Q22: 0 | S22: 29.93 | V22: 175705.9805 | W22: 175705.9805 | X22: 195254.9586 | Y22: 0 | Z22: 91999.48535 | AA22: 0 | AB22: 0 | AC22: 0 | AD22: 0 | AE22: 0 | AI22: 267.738228 | AJ22: 0 | AK22: 637.8415203 | AL22: 55307.32564 | AN22: 335.2349511 | AO22: 0 | AP22: 0 | AQ22: 0 | AR22: 0 | AU22: 0 | AV22: 2232.310311 | AW22: 870.299487 | AZ22: 0 | BB22: 191.3268903 | BC22: 0 | BD22: 4228.521912 | BE22: 394.9739679 | BG22: 16157.22548 | BH22: 0 | BI22: 15088.38 | BJ22: 0 | BK22: 134477.62 | BL22: 1 | BV22: 20780.72136 | CI22: 195254.8256 | CJ22: 19548.81508 | CO22: 19548.97812 | CP22: 0 | CQ22: 31 | CR22: 16257.68985 | CS22: 0 | CT22: 0 | CU22: 0 | CV22: 0 | CZ22: 0 | DA22: 0 | DB22: 0 | DE22: 2.669306447 | DF22: 28.57712588 | DG22: 109.1934903 | DH22: 0 | DI22: 16106.56177 | DK22: 0 | DL22: 4.38268152 | DN22: 0 | DO22: 6.143785017 | DP22: 0.1616838253 | DQ22: 0 | DR22: 0 | DV22: 0 | DW22: 0 | DX22: 0 | DY22: 16261.46228 | EA22: 3287.51584 | EC22: 0 | EE22: 38.93175477 | EF22: 3.6365023 | EH22: 148.7586332 | EI22: 0 | EJ22: 0 | EK22: 0 | EL22: 0 | EO22: 0 | EP22: 6355.443972 | ER22: 0 | ET22: 0 | EV22: 140 | FA22: 0 | FB22: -83.4197843 | FD22: -83.4197843 | FF22: 0 | FG22: 0 | FH22: 0 | FI22: 0
A23: 1476 | B23: Regular | C23: Azul | D23: A3 | E23: Industrial | F23: Não se aplica | G23: Não se aplica | H23: Não se aplica | I23: Não se aplica | J23: LIVRE | K23: 2021-11-01 | L23: 0 | M23: 0 | N23: 6109.452 | O23: 6109.452 | P23: 0 | Q23: 0 | S23: 29.93 | V23: 182855.8984 | W23: 182855.8984 | X23: 203200.3735 | Y23: 0 | Z23: 95743.17558 | AA23: 0 | AB23: 0 | AC23: 0 | AD23: 0 | AE23: 0 | AI23: 278.6331693 | AJ23: 0 | AK23: 663.7968945 | AL23: 57557.91969 | AN23: 348.8765036 | AO23: 0 | AP23: 0 | AQ23: 0 | AR23: 0 | AU23: 0 | AV23: 2323.148627 | AW23: 905.7141599 | AZ23: 0 | BB23: 199.1124622 | BC23: 0 | BD23: 4400.591093 | BE23: 411.0464511 | BG23: 16814.70358 | BH23: 0 | BI23: 15468.3 | BJ23: 0 | BK23: 137863.75 | BL23: 1 | BV23: 21626.34113 | CI23: 203200.307 | CJ23: 20344.37864 | CO23: 20344.47516 | CP23: 0 | CQ23: 30 | CR23: 16919.2561 | CS23: 0 | CT23: 0 | CU23: 0 | CV23: 0 | CZ23: 0 | DA23: 0 | DB23: 0 | DE23: 2.777927234 | DF23: 29.74000094 | DG23: 113.6368478 | DH23: 0 | DI23: 16761.97824 | DK23: 0 | DL23: 4.561023843 | DN23: 0 | DO23: 6.393791067 | DP23: 0.1682631464 | DQ23: 0 | DR23: 0 | DV23: 0 | DW23: 0 | DX23: 0 | DY23: 16923.18204 | EA23: 3421.29312 | EC23: 0 | EE23: 40.51598569 | EF23: 3.784480716 | EH23: 154.8119958 | EI23: 0 | EJ23: 0 | EK23: 0 | EL23: 0 | EO23: 0 | EP23: 6614.062956 | ER23: 0 | ET23: 0 | EV23: 140 | FA23: 0 | FB23: -83.4197843 | FD23: -83.4197843 | FF23: 0 | FG23: 0 | FH23: 0 | FI23: 0
A24: 1508 | B24: Regular | C24: Azul | D24: A3 | E24: Industrial | F24: Não se aplica | G24: Não se aplica | H24: Não se aplica | I24: Não se aplica | J24: LIVRE | K24: 2021-12-01 | L24: 0 | M24: 0 | N24: 5940.814 | O24: 5940.814 | P24: 0 | Q24: 0 | S24: 29.93 | V24: 177808.563 | W24: 177808.563 | X24: 197591.4736 | Y24: 0 | Z24: 93100.39556 | AA24: 0 | AB24: 0 | AC24: 0 | AD24: 0 | AE24: 0 | AI24: 270.9421128 | AJ24: 0 | AK24: 645.4742395 | AL24: 55969.15977 | AN24: 339.2465342 | AO24: 0 | AP24: 0 | AQ24: 0 | AR24: 0 | AU24: 0 | AV24: 2259.023213 | AW24: 880.7139104 | AZ24: 0 | BB24: 193.6164001 | BC24: 0 | BD24: 4279.122444 | BE24: 399.7004169 | BG24: 16350.57063 | BH24: 0 | BI24: 15331.61 | BJ24: 0 | BK24: 136645.5 | BL24: 1 | BV24: 21029.39349 | CI24: 197591.3406 | CJ24: 19782.74758 | CO24: 19782.91062 | CP24: 0 | CR24: 16452.2372 | CS24: 0 | CT24: 0 | CU24: 0 | CV24: 0 | CZ24: 0 | DA24: 0 | DB24: 0 | DE24: 2.701248655 | DF24: 28.91909355 | DG24: 110.5001523 | DH24: 0 | DI24: 16299.30066 | DK24: 0 | DL24: 4.4351268 | DN24: 0 | DO24: 6.217304512 | DP24: 0.1636186119 | DQ24: 0 | DR24: 0 | DV24: 0 | DW24: 0 | DX24: 0 | DY24: 16456.05478 | EA24: 3326.85584 | EC24: 0 | EE24: 39.39763092 | EF24: 3.680018441 | EH24: 150.5387507 | EI24: 0 | EJ24: 0 | EK24: 0 | EL24: 0 | EO24: 0 | EP24: 6431.496279 | ER24: 0 | ET24: 0 | EV24: 140 | FA24: 0 | FB24: -83.4197843 | FD24: -83.4197843 | FF24: 0 | FG24: 0 | FH24: 0 | FI24: 0
A25: 1562 | B25: PROJETADO | C25: Azul | D25: A3 | E25: Industrial | F25: Não se aplica | G25: Não se aplica | H25: Não se aplica | I25: Não se aplica | J25: LIVRE | K25: 2022-01-01 | L25: 0 | M25: 0 | N25: 5940.814 | O25: 5940.814 | P25: 0 | Q25: 0 | S25: 29.93 | V25: 177808.563 | W25: 177808.563 | X25: 197591.4736 | Y25: 0 | Z25: 93100.39556 | AA25: 0 | AB25: 0 | AC25: 0 | AD25: 0 | AE25: 0 | AI25: 270.9421128 | AJ25: 0 | AK25: 645.4742395 | AL25: 55969.15977 | AN25: 339.2465342 | AO25: 0 | AP25: 0 | AQ25: 0 | AR25: 0 | AU25: 0 | AV25: 2259.023213 | AW25: 880.7139104 | AZ25: 0 | BB25: 193.6164001 | BC25: 0 | BD25: 4279.122444 | BE25: 399.7004169 | BG25: 16350.57063 | BH25: 0 | BI25: 15331.61 | BJ25: 0 | BK25: 136645.5 | BL25: 1 | BV25: 21029.39349 | CI25: 197591.3406 | CJ25: 19782.74758 | CO25: 19782.91062 | CP25: 0 | CQ25: 31 | CR25: 16452.2372 | CS25: 0 | CT25: 0 | CU25: 0 | CV25: 0 | CZ25: 0 | DA25: 0 | DB25: 0 | DE25: 2.701248655 | DF25: 28.91909355 | DG25: 110.5001523 | DH25: 0 | DI25: 16299.30066 | DK25: 0 | DL25: 4.4351268 | DN25: 0 | DO25: 6.217304512 | DP25: 0.1636186119 | DQ25: 0 | DR25: 0 | DV25: 0 | DW25: 0 | DX25: 0 | DY25: 16456.05478 | EA25: 3326.85584 | EC25: 0 | EE25: 39.39763092 | EF25: 3.680018441 | EH25: 150.5387507 | EI25: 0 | EJ25: 0 | EK25: 0 | EL25: 0 | EO25: 0 | EP25: 6431.496279 | ER25: 0 | ET25: 0 | EV25: 140 | FA25: 0 | FB25: -83.4197843 | FD25: -83.4197843 | FF25: 0 | FG25: 0 | FH25: 0 | FI25: 0
A26: 1132 | B26: Regular | C26: Azul | D26: A3 | E26: Industrial | F26: Não se aplica | G26: Não se aplica | H26: Não se aplica | I26: Ponta | J26: LIVRE | K26: 2021-02-01 | L26: 9835 | M26: 9835 | N26: 0 | O26: 0 | P26: 0 | Q26: 0 | R26: 13.08 | U26: 128641.8 | W26: 128641.8 | X26: 132969.2 | Y26: 0 | Z26: 0 | AA26: 0 | AB26: 0 | AC26: 1290.461918 | AD26: 49318.58587 | AE26: 20904.42457 | AI26: 0 | AJ26: 0 | AK26: 0 | AL26: 0 | AN26: 0 | AO26: 14650.3725 | AP26: 42484.32071 | AQ26: 0 | AR26: 0 | AU26: 0 | AV26: 0 | AW26: 0 | AZ26: 0 | BB26: 0 | BC26: 3531.864849 | BD26: 0 | BE26: 0 | BG26: 0 | BH26: 0 | BI26: 0 | BJ26: 0 | BK26: 0 | BL26: 0 | BV26: 0 | CI26: 132969.2 | CJ26: 4327.37 | CO26: 4327.4 | CP26: 0 | CQ26: 29 | CR26: 821.3914381 | CS26: 4.183675628e-11 | CT26: -2644.32228 | CU26: 0 | CV26: 0 | CZ26: 3465.713718 | DA26: 0 | DB26: 0 | DE26: 0 | DF26: 0 | DG26: 0 | DH26: 0 | DI26: 0 | DK26: 0 | DL26: 0 | DN26: 0 | DO26: 0 | DP26: 0 | DQ26: 0 | DR26: 0 | DU26: 20904.42457 | DW26: 0 | DX26: 0 | DY26: 786.8 | EA26: 3540.6 | EC26: -53.37602891 | EE26: 0 | EF26: 0 | EH26: 0 | EI26: 2626.230589 | EJ26: 905.6342608 | EK26: 0 | EL26: 0 | EO26: 0 | EP26: 0 | ER26: 0 | ET26: 0 | EV26: 140 | FA26: 0 | FB26: -83.4197843 | FD26: -83.4197843 | FF26: 0 | FG26: 0 | FH26: 0 | FI26: 0
A27: 1162 | B27: Regular | C27: Azul | D27: A3 | E27: Industrial | F27: Não se aplica | G27: Não se aplica | H27: Não se aplica | I27: Ponta | J27: LIVRE | K27: 2021-03-01 | L27: 9888 | M27: 9888 | N27: 0 | O27: 0 | P27: 0 | Q27: 0 | R27: 13.08 | U27: 129335.04 | W27: 129335.04 | X27: 133685.76 | Y27: 0 | Z27: 0 | AA27: 0 | AB27: 0 | AC27: 1297.41611 | AD27: 49584.35964 | AE27: 21017.07678 | AI27: 0 | AJ27: 0 | AK27: 0 | AL27: 0 | AN27: 0 | AO27: 14729.32214 | AP27: 42713.2652 | AQ27: 0 | AR27: 0 | AU27: 0 | AV27: 0 | AW27: 0 | AZ27: 0 | BB27: 0 | BC27: 3550.897776 | BD27: 0 | BE27: 0 | BG27: 0 | BH27: 0 | BI27: 0 | BJ27: 0 | BK27: 0 | BL27: 0 | BV27: 0 | CI27: 133685.76 | CJ27: 4350.69 | CO27: 4350.72 | CP27: 0 | CQ27: 31 | CR27: 825.8178485 | CS27: 4.183675628e-11 | CT27: -2658.572314 | CU27: 0 | CV27: 0 | CZ27: 3484.390162 | DA27: 0 | DB27: 0 | DE27: 0 | DF27: 0 | DG27: 0 | DH27: 0 | DI27: 0 | DK27: 0 | DL27: 0 | DN27: 0 | DO27: 0 | DP27: 0 | DQ27: 0 | DR27: 0 | DU27: 21017.07678 | DW27: 0 | DX27: 0 | DY27: 791.04 | EA27: 3559.68 | EC27: -53.6636679 | EE27: 0 | EF27: 0 | EH27: 0 | EI27: 2640.383128 | EJ27: 910.5146488 | EK27: 0 | EL27: 0 | EO27: 0 | EP27: 0 | ER27: 0 | ET27: 0 | EV27: 140 | FA27: 0 | FB27: -83.4197843 | FD27: -83.4197843 | FF27: 0 | FG27: 0 | FH27: 0 | FI27: 0
A28: 1192 | B28: Regular | C28: Azul | D28: A3 | E28: Industrial | F28: Não se aplica | G28: Não se aplica | H28: Não se aplica | I28: Ponta | J28: LIVRE | K28: 2021-04-01 | L28: 9849 | M28: 9849 | N28: 0 | O28: 0 | P28: 0 | Q28: 0 | R28: 13.08 | U28: 128824.92 | W28: 128824.92 | X28: 133158.48 | Y28: 0 | Z28: 0 | AA28: 0 | AB28: 0 | AC28: 1292.298874 | AD28: 49388.79026 | AE28: 20934.18176 | AI28: 0 | AJ28: 0 | AK28: 0 | AL28: 0 | AN28: 0 | AO28: 14671.22712 | AP28: 42544.79662 | AQ28: 0 | AR28: 0 | AU28: 0 | AV28: 0 | AW28: 0 | AZ28: 0 | BB28: 0 | BC28: 3536.892415 | BD28: 0 | BE28: 0 | BG28: 0 | BH28: 0 | BI28: 0 | BJ28: 0 | BK28: 0 | BL28: 0 | BV28: 0 | CI28: 133158.48 | CJ28: 4333.53 | CO28: 4333.56 | CP28: 0 | CQ28: 30 | CR28: 822.5606786 | CS28: 4.001776688e-11 | CT28: -2648.08644 | CU28: 0 | CV28: 0 | CZ28: 3470.647118 | DA28: 0 | DB28: 0 | DE28: 0 | DF28: 0 | DG28: 0 | DH28: 0 | DI28: 0 | DK28: 0 | DL28: 0 | DN28: 0 | DO28: 0 | DP28: 0 | DQ28: 0 | DR28: 0 | DU28: 20934.18176 | DW28: 0 | DX28: 0 | DY28: 787.92 | EA28: 3545.64 | EC28: -53.45200902 | EE28: 0 | EF28: 0 | EH28: 0 | EI28: 2629.968995 | EJ28: 906.9234199 | EK28: 0 | EL28: 0 | EO28: 0 | EP28: 0 | ER28: 0 | ET28: 0 | EV28: 140 | FA28: 0 | FB28: -83.4197843 | FD28: -83.4197843 | FF28: 0 | FG28: 0 | FH28: 0 | FI28: 0
A29: 1246 | B29: Regular | C29: Azul | D29: A3 | E29: Industrial | F29: Não se aplica | G29: Não se aplica | H29: Não se aplica | I29: Ponta | J29: LIVRE | K29: 2021-05-01 | L29: 9675 | M29: 9675 | N29: 0 | O29: 0 | P29: 0 | Q29: 0 | R29: 13.08 | U29: 126549 | W29: 126549 | X29: 130806 | Y29: 0 | Z29: 0 | AA29: 0 | AB29: 0 | AC29: 1269.46813 | AD29: 48516.24995 | AE29: 20564.34242 | AI29: 0 | AJ29: 0 | AK29: 0 | AL29: 0 | AN29: 0 | AO29: 14412.03395 | AP29: 41793.16756 | AQ29: 0 | AR29: 0 | AU29: 0 | AV29: 0 | AW29: 0 | AZ29: 0 | BB29: 0 | BC29: 3474.406957 | BD29: 0 | BE29: 0 | BG29: 0 | BH29: 0 | BI29: 0 | BJ29: 0 | BK29: 0 | BL29: 0 | BV29: 0 | CI29: 130806 | CJ29: 4256.97 | CO29: 4257 | CP29: 0 | CQ29: 31 | CR29: 808.0286898 | CS29: 4.001776688e-11 | CT29: -2601.30331 | CU29: 0 | CV29: 0 | CZ29: 3409.332 | DA29: 0 | DB29: 0 | DE29: 0 | DF29: 0 | DG29: 0 | DH29: 0 | DI29: 0 | DK29: 0 | DL29: 0 | DN29: 0 | DO29: 0 | DP29: 0 | DQ29: 0 | DR29: 0 | DU29: 20564.34242 | DW29: 0 | DX29: 0 | DY29: 774 | EA29: 3483 | EC29: -52.50768477 | EE29: 0 | EF29: 0 | EH29: 0 | EI29: 2583.505943 | EJ29: 890.901014 | EK29: 0 | EL29: 0 | EO29: 0 | EP29: 0 | ER29: 0 | ET29: 0 | EV29: 140 | FA29: 0 | FB29: -83.4197843 | FD29: -83.4197843 | FF29: 0 | FG29: 0 | FH29: 0 | FI29: 0
A30: 1300 | B30: Regular | C30: Azul | D30: A3 | E30: Industrial | F30: Não se aplica | G30: Não se aplica | H30: Não se aplica | I30: Ponta | J30: LIVRE | K30: 2021-06-01 | L30: 9775 | M30: 9775 | N30: 0 | O30: 0 | P30: 0 | Q30: 0 | R30: 13.08 | U30: 127857 | W30: 127857 | X30: 132158 | Y30: 0 | Z30: 0 | AA30: 0 | AB30: 0 | AC30: 1282.589247 | AD30: 49017.7099 | AE30: 20776.89377 | AI30: 0 | AJ30: 0 | AK30: 0 | AL30: 0 | AN30: 0 | AO30: 14560.99554 | AP30: 42225.13828 | AQ30: 0 | AR30: 0 | AU30: 0 | AV30: 0 | AW30: 0 | AZ30: 0 | BB30: 0 | BC30: 3510.31814 | BD30: 0 | BE30: 0 | BG30: 0 | BH30: 0 | BI30: 0 | BJ30: 0 | BK30: 0 | BL30: 0 | BV30: 0 | CI30: 132158 | CJ30: 4300.97 | CO30: 4301 | CP30: 0 | CQ30: 30 | CR30: 816.3804075 | CS30: 4.183675628e-11 | CT30: -2628.190166 | CU30: 0 | CV30: 0 | CZ30: 3444.570574 | DA30: 0 | DB30: 0 | DE30: 0 | DF30: 0 | DG30: 0 | DH30: 0 | DI30: 0 | DK30: 0 | DL30: 0 | DN30: 0 | DO30: 0 | DP30: 0 | DQ30: 0 | DR30: 0 | DU30: 20776.89377 | DW30: 0 | DX30: 0 | DY30: 782 | EA30: 3519 | EC30: -53.05039985 | EE30: 0 | EF30: 0 | EH30: 0 | EI30: 2610.208846 | EJ30: 900.1092933 | EK30: 0 | EL30: 0 | EO30: 0 | EP30: 0 | ER30: 0 | ET30: 0 | EV30: 140 | FA30: 0 | FB30: -83.4197843 | FD30: -83.4197843 | FF30: 0 | FG30: 0 | FH30: 0 | FI30: 0
A31: 1330 | B31: Regular | C31: Azul | D31: A3 | E31: Industrial | F31: Não se aplica | G31: Não se aplica | H31: Não se aplica | I31: Ponta | J31: LIVRE | K31: 2021-07-01 | L31: 9500 | M31: 9500 | N31: 0 | O31: 0 | P31: 0 | Q31: 0 | R31: 13.08 | U31: 124260 | W31: 124260 | X31: 128440 | Y31: 0 | Z31: 0 | AA31: 0 | AB31: 0 | AC31: 1246.506174 | AD31: 47638.69504 | AE31: 20192.37757 | AI31: 0 | AJ31: 0 | AK31: 0 | AL31: 0 | AN31: 0 | AO31: 14151.35117 | AP31: 41037.21879 | AQ31: 0 | AR31: 0 | AU31: 0 | AV31: 0 | AW31: 0 | AZ31: 0 | BB31: 0 | BC31: 3411.562386 | BD31: 0 | BE31: 0 | BG31: 0 | BH31: 0 | BI31: 0 | BJ31: 0 | BK31: 0 | BL31: 0 | BV31: 0 | CI31: 128440 | CJ31: 4179.97 | CO31: 4180 | CP31: 0 | CQ31: 31 | CR31: 793.4131838 | CS31: 4.001776688e-11 | CT31: -2554.251313 | CU31: 0 | CV31: 0 | CZ31: 3347.664496 | DA31: 0 | DB31: 0 | DE31: 0 | DF31: 0 | DG31: 0 | DH31: 0 | DI31: 0 | DK31: 0 | DL31: 0 | DN31: 0 | DO31: 0 | DP31: 0 | DQ31: 0 | DR31: 0 | DU31: 20192.37757 | DW31: 0 | DX31: 0 | DY31: 760 | EA31: 3420 | EC31: -51.55793336 | EE31: 0 | EF31: 0 | EH31: 0 | EI31: 2536.775861 | EJ31: 874.7865254 | EK31: 0 | EL31: 0 | EO31: 0 | EP31: 0 | ER31: 0 | ET31: 0 | EV31: 140 | FA31: 0 | FB31: -83.4197843 | FD31: -83.4197843 | FF31: 0 | FG31: 0 | FH31: 0 | FI31: 0
A32: 1384 | B32: Regular | C32: Azul | D32: A3 | E32: Industrial | F32: Não se aplica | G32: Não se aplica | H32: Não se aplica | I32: Ponta | J32: LIVRE | K32: 2021-08-01 | L32: 9539 | M32: 9539 | N32: 0 | O32: 0 | P32: 0 | Q32: 0 | R32: 13.08 | U32: 124770.12 | W32: 124770.12 | X32: 128967.28 | Y32: 0 | Z32: 0 | AA32: 0 | AB32: 0 | AC32: 1251.62341 | AD32: 47834.26442 | AE32: 20275.2726 | AI32: 0 | AJ32: 0 | AK32: 0 | AL32: 0 | AN32: 0 | AO32: 14209.44619 | AP32: 41205.68737 | AQ32: 0 | AR32: 0 | AU32: 0 | AV32: 0 | AW32: 0 | AZ32: 0 | BB32: 0 | BC32: 3425.567748 | BD32: 0 | BE32: 0 | BG32: 0 | BH32: 0 | BI32: 0 | BJ32: 0 | BK32: 0 | BL32: 0 | BV32: 0 | CI32: 128967.28 | CJ32: 4197.13 | CO32: 4197.16 | CP32: 0 | CQ32: 31 | CR32: 796.6703537 | CS32: 4.183675628e-11 | CT32: -2564.737186 | CU32: 0 | CV32: 0 | CZ32: 3361.40754 | DA32: 0 | DB32: 0 | DE32: 0 | DF32: 0 | DG32: 0 | DH32: 0 | DI32: 0 | DK32: 0 | DL32: 0 | DN32: 0 | DO32: 0 | DP32: 0 | DQ32: 0 | DR32: 0 | DU32: 20275.2726 | DW32: 0 | DX32: 0 | DY32: 763.12 | EA32: 3434.04 | EC32: -51.76959225 | EE32: 0 | EF32: 0 | EH32: 0 | EI32: 2547.189993 | EJ32: 878.3777543 | EK32: 0 | EL32: 0 | EO32: 0 | EP32: 0 | ER32: 0 | ET32: 0 | EV32: 140 | FA32: 0 | FB32: -83.4197843 | FD32: -83.4197843 | FF32: 0 | FG32: 0 | FH32: 0 | FI32: 0
A33: 1414 | B33: Regular | C33: Azul | D33: A3 | E33: Industrial | F33: Não se aplica | G33: Não se aplica | H33: Não se aplica | I33: Ponta | J33: LIVRE | K33: 2021-09-01 | L33: 9500 | M33: 9500 | N33: 0 | O33: 0 | P33: 0 | Q33: 0 | R33: 13.08 | U33: 124260 | W33: 124260 | X33: 128440 | Y33: 0 | Z33: 0 | AA33: 0 | AB33: 0 | AC33: 1246.506174 | AD33: 47638.69504 | AE33: 20192.37757 | AI33: 0 | AJ33: 0 | AK33: 0 | AL33: 0 | AN33: 0 | AO33: 14151.35117 | AP33: 41037.21879 | AQ33: 0 | AR33: 0 | AU33: 0 | AV33: 0 | AW33: 0 | AZ33: 0 | BB33: 0 | BC33: 3411.562386 | BD33: 0 | BE33: 0 | BG33: 0 | BH33: 0 | BI33: 0 | BJ33: 0 | BK33: 0 | BL33: 0 | BV33: 0 | CI33: 128440 | CJ33: 4179.97 | CO33: 4180 | CP33: 0 | CQ33: 30 | CR33: 793.4131838 | CS33: 4.001776688e-11 | CT33: -2554.251313 | CU33: 0 | CV33: 0 | CZ33: 3347.664496 | DA33: 0 | DB33: 0 | DE33: 0 | DF33: 0 | DG33: 0 | DH33: 0 | DI33: 0 | DK33: 0 | DL33: 0 | DN33: 0 | DO33: 0 | DP33: 0 | DQ33: 0 | DR33: 0 | DU33: 20192.37757 | DW33: 0 | DX33: 0 | DY33: 760 | EA33: 3420 | EC33: -51.55793336 | EE33: 0 | EF33: 0 | EH33: 0 | EI33: 2536.775861 | EJ33: 874.7865254 | EK33: 0 | EL33: 0 | EO33: 0 | EP33: 0 | ER33: 0 | ET33: 0 | EV33: 140 | FA33: 0 | FB33: -83.4197843 | FD33: -83.4197843 | FF33: 0 | FG33: 0 | FH33: 0 | FI33: 0
A34: 1444 | B34: Regular | C34: Azul | D34: A3 | E34: Industrial | F34: Não se aplica | G34: Não se aplica | H34: Não se aplica | I34: Ponta | J34: LIVRE | K34: 2021-10-01 | L34: 9524 | M34: 9524 | N34: 0 | O34: 0 | P34: 0 | Q34: 0 | R34: 13.08 | U34: 124573.92 | W34: 124573.92 | X34: 128764.48 | Y34: 0 | Z34: 0 | AA34: 0 | AB34: 0 | AC34: 1249.655242 | AD34: 47759.04543 | AE34: 20243.3899 | AI34: 0 | AJ34: 0 | AK34: 0 | AL34: 0 | AN34: 0 | AO34: 14187.10195 | AP34: 41140.89176 | AQ34: 0 | AR34: 0 | AU34: 0 | AV34: 0 | AW34: 0 | AZ34: 0 | BB34: 0 | BC34: 3420.18107 | BD34: 0 | BE34: 0 | BG34: 0 | BH34: 0 | BI34: 0 | BJ34: 0 | BK34: 0 | BL34: 0 | BV34: 0 | CI34: 128764.48 | CJ34: 4190.53 | CO34: 4190.56 | CP34: 0 | CQ34: 31 | CR34: 795.417596 | CS34: 4.001776688e-11 | CT34: -2560.704158 | CU34: 0 | CV34: 0 | CZ34: 3356.121754 | DA34: 0 | DB34: 0 | DE34: 0 | DF34: 0 | DG34: 0 | DH34: 0 | DI34: 0 | DK34: 0 | DL34: 0 | DN34: 0 | DO34: 0 | DP34: 0 | DQ34: 0 | DR34: 0 | DU34: 20243.3899 | DW34: 0 | DX34: 0 | DY34: 761.92 | EA34: 3428.64 | EC34: -51.68818498 | EE34: 0 | EF34: 0 | EH34: 0 | EI34: 2543.184558 | EJ34: 876.9965124 | EK34: 0 | EL34: 0 | EO34: 0 | EP34: 0 | ER34: 0 | ET34: 0 | EV34: 140 | FA34: 0 | FB34: -83.4197843 | FD34: -83.4197843 | FF34: 0 | FG34: 0 | FH34: 0 | FI34: 0
A35: 1474 | B35: Regular | C35: Azul | D35: A3 | E35: Industrial | F35: Não se aplica | G35: Não se aplica | H35: Não se aplica | I35: Ponta | J35: LIVRE | K35: 2021-11-01 | L35: 9528 | M35: 9528 | N35: 0 | O35: 0 | P35: 0 | Q35: 0 | R35: 13.08 | U35: 124626.24 | W35: 124626.24 | X35: 128818.56 | Y35: 0 | Z35: 0 | AA35: 0 | AB35: 0 | AC35: 1250.180087 | AD35: 47779.10383 | AE35: 20251.89195 | AI35: 0 | AJ35: 0 | AK35: 0 | AL35: 0 | AN35: 0 | AO35: 14193.06041 | AP35: 41158.17059 | AQ35: 0 | AR35: 0 | AU35: 0 | AV35: 0 | AW35: 0 | AZ35: 0 | BB35: 0 | BC35: 3421.617518 | BD35: 0 | BE35: 0 | BG35: 0 | BH35: 0 | BI35: 0 | BJ35: 0 | BK35: 0 | BL35: 0 | BV35: 0 | CI35: 128818.56 | CJ35: 4192.29 | CO35: 4192.32 | CP35: 0 | CQ35: 30 | CR35: 795.7516647 | CS35: 4.001776688e-11 | CT35: -2561.779632 | CU35: 0 | CV35: 0 | CZ35: 3357.531297 | DA35: 0 | DB35: 0 | DE35: 0 | DF35: 0 | DG35: 0 | DH35: 0 | DI35: 0 | DK35: 0 | DL35: 0 | DN35: 0 | DO35: 0 | DP35: 0 | DQ35: 0 | DR35: 0 | DU35: 20251.89195 | DW35: 0 | DX35: 0 | DY35: 762.24 | EA35: 3430.08 | EC35: -51.70989359 | EE35: 0 | EF35: 0 | EH35: 0 | EI35: 2544.252674 | EJ35: 877.3648436 | EK35: 0 | EL35: 0 | EO35: 0 | EP35: 0 | ER35: 0 | ET35: 0 | EV35: 140 | FA35: 0 | FB35: -83.4197843 | FD35: -83.4197843 | FF35: 0 | FG35: 0 | FH35: 0 | FI35: 0
A36: 1504 | B36: Regular | C36: Azul | D36: A3 | E36: Industrial | F36: Não se aplica | G36: Não se aplica | H36: Não se aplica | I36: Ponta | J36: LIVRE | K36: 2021-12-01 | L36: 9656 | M36: 9656 | N36: 0 | O36: 0 | P36: 0 | Q36: 0 | R36: 13.08 | U36: 126300.48 | W36: 126300.48 | X36: 130549.12 | Y36: 0 | Z36: 0 | AA36: 0 | AB36: 0 | AC36: 1266.975117 | AD36: 48420.97256 | AE36: 20523.95767 | AI36: 0 | AJ36: 0 | AK36: 0 | AL36: 0 | AN36: 0 | AO36: 14383.73125 | AP36: 41711.09312 | AQ36: 0 | AR36: 0 | AU36: 0 | AV36: 0 | AW36: 0 | AZ36: 0 | BB36: 0 | BC36: 3467.583832 | BD36: 0 | BE36: 0 | BG36: 0 | BH36: 0 | BI36: 0 | BJ36: 0 | BK36: 0 | BL36: 0 | BV36: 0 | CI36: 130549.12 | CJ36: 4248.61 | CO36: 4248.64 | CP36: 0 | CR36: 806.4418634 | CS36: 4.183675628e-11 | CT36: -2596.194808 | CU36: 0 | CV36: 0 | CZ36: 3402.636671 | DA36: 0 | DB36: 0 | DE36: 0 | DF36: 0 | DG36: 0 | DH36: 0 | DI36: 0 | DK36: 0 | DL36: 0 | DN36: 0 | DO36: 0 | DP36: 0 | DQ36: 0 | DR36: 0 | DU36: 20523.95767 | DW36: 0 | DX36: 0 | DY36: 772.48 | EA36: 3476.16 | EC36: -52.4045689 | EE36: 0 | EF36: 0 | EH36: 0 | EI36: 2578.432391 | EJ36: 889.151441 | EK36: 0 | EL36: 0 | EO36: 0 | EP36: 0 | ER36: 0 | ET36: 0 | EV36: 140 | FA36: 0 | FB36: -83.4197843 | FD36: -83.4197843 | FF36: 0 | FG36: 0 | FH36: 0 | FI36: 0
A37: 1558 | B37: PROJETADO | C37: Azul | D37: A3 | E37: Industrial | F37: Não se aplica | G37: Não se aplica | H37: Não se aplica | I37: Ponta | J37: LIVRE | K37: 2022-01-01 | L37: 9656 | M37: 9656 | N37: 0 | O37: 0 | P37: 0 | Q37: 0 | R37: 13.08 | U37: 126300.48 | W37: 126300.48 | X37: 130549.12 | Y37: 0 | Z37: 0 | AA37: 0 | AB37: 0 | AC37: 1266.975117 | AD37: 48420.97256 | AE37: 20523.95767 | AI37: 0 | AJ37: 0 | AK37: 0 | AL37: 0 | AN37: 0 | AO37: 14383.73125 | AP37: 41711.09312 | AQ37: 0 | AR37: 0 | AU37: 0 | AV37: 0 | AW37: 0 | AZ37: 0 | BB37: 0 | BC37: 3467.583832 | BD37: 0 | BE37: 0 | BG37: 0 | BH37: 0 | BI37: 0 | BJ37: 0 | BK37: 0 | BL37: 0 | BV37: 0 | CI37: 130549.12 | CJ37: 4248.61 | CO37: 4248.64 | CP37: 0 | CQ37: 31 | CR37: 806.4418634 | CS37: 4.183675628e-11 | CT37: -2596.194808 | CU37: 0 | CV37: 0 | CZ37: 3402.636671 | DA37: 0 | DB37: 0 | DE37: 0 | DF37: 0 | DG37: 0 | DH37: 0 | DI37: 0 | DK37: 0 | DL37: 0 | DN37: 0 | DO37: 0 | DP37: 0 | DQ37: 0 | DR37: 0 | DU37: 20523.95767 | DW37: 0 | DX37: 0 | DY37: 772.48 | EA37: 3476.16 | EC37: -52.4045689 | EE37: 0 | EF37: 0 | EH37: 0 | EI37: 2578.432391 | EJ37: 889.151441 | EK37: 0 | EL37: 0 | EO37: 0 | EP37: 0 | ER37: 0 | ET37: 0 | EV37: 140 | FA37: 0 | FB37: -83.4197843 | FD37: -83.4197843 | FF37: 0 | FG37: 0 | FH37: 0 | FI37: 0
A38: 1157 | B38: Regular | C38: Distribuição | D38: A3 | E38: Não se aplica | F38: Não se aplica | G38: Não se aplica | H38: EPB | I38: Fora ponta | J38: DISTRIBUIÇÃO | K38: 2021-02-01 | L38: 18000 | M38: 18000 | N38: 0 | O38: 0 | P38: 0 | Q38: 0 | R38: 6.53 | U38: 117540 | W38: 117540 | X38: 120960 | Y38: 0 | Z38: 0 | AA38: 0 | AB38: 0 | AC38: 1761.420926 | AD38: 30576.15885 | AE38: 4846.400714 | AI38: 0 | AJ38: 0 | AK38: 0 | AL38: 0 | AN38: 0 | AO38: 20768.37649 | AP38: 59567.8028 | AQ38: 0 | AR38: 0 | AU38: 0 | AV38: 0 | AW38: 0 | AZ38: 0 | BB38: 0 | BC38: 4966.098737 | BD38: 0 | BE38: 0 | BG38: 0 | BH38: 0 | BI38: 0 | BJ38: 0 | BK38: 0 | BL38: 0 | BV38: 0 | CI38: 120960 | CJ38: 3419.97 | CO38: 3420 | CP38: 0 | CQ38: 29 | CR38: -1558.991049 | CS38: -1.091393642e-11 | CT38: -3707.637676 | CU38: 0 | CV38: 0 | CZ38: 2148.646627 | DA38: 0 | DB38: 0 | DE38: 0 | DF38: 0 | DG38: 0 | DH38: 0 | DI38: 0 | DK38: 0 | DL38: 0 | DN38: 0 | DO38: 0 | DP38: 0 | DQ38: 0 | DR38: 0 | DT38: C | DU38: 4846.400714 | DW38: 0 | DX38: 0 | DY38: -1620 | EA38: 5040 | EC38: -12.37449152 | EE38: 0 | EF38: 0 | EH38: 0 | EI38: 3682.271087 | EJ38: 1283.82765 | EK38: 0 | EL38: 0 | EO38: 0 | EP38: 0 | ER38: 0 | ET38: 0 | EV38: 140 | FA38: 0 | FB38: -83.4197843 | FD38: -83.4197843 | FF38: 0 | FG38: 0 | FH38: 0 | FI38: 0
A39: 1187 | B39: Regular | C39: Distribuição | D39: A3 | E39: Não se aplica | F39: Não se aplica | G39: Não se aplica | H39: EPB | I39: Fora ponta | J39: DISTRIBUIÇÃO | K39: 2021-03-01 | L39: 18000 | M39: 18000 | N39: 0 | O39: 0 | P39: 0 | Q39: 0 | R39: 6.53 | U39: 117540 | W39: 117540 | X39: 120960 | Y39: 0 | Z39: 0 | AA39: 0 | AB39: 0 | AC39: 1761.420926 | AD39: 30576.15885 | AE39: 4846.400714 | AI39: 0 | AJ39: 0 | AK39: 0 | AL39: 0 | AN39: 0 | AO39: 20768.37649 | AP39: 59567.8028 | AQ39: 0 | AR39: 0 | AU39: 0 | AV39: 0 | AW39: 0 | AZ39: 0 | BB39: 0 | BC39: 4966.098737 | BD39: 0 | BE39: 0 | BG39: 0 | BH39: 0 | BI39: 0 | BJ39: 0 | BK39: 0 | BL39: 0 | BV39: 0 | CI39: 120960 | CJ39: 3419.97 | CO39: 3420 | CP39: 0 | CQ39: 31 | CR39: -1558.991049 | CS39: -1.091393642e-11 | CT39: -3707.637676 | CU39: 0 | CV39: 0 | CZ39: 2148.646627 | DA39: 0 | DB39: 0 | DE39: 0 | DF39: 0 | DG39: 0 | DH39: 0 | DI39: 0 | DK39: 0 | DL39: 0 | DN39: 0 | DO39: 0 | DP39: 0 | DQ39: 0 | DR39: 0 | DT39: C | DU39: 4846.400714 | DW39: 0 | DX39: 0 | DY39: -1620 | EA39: 5040 | EC39: -12.37449152 | EE39: 0 | EF39: 0 | EH39: 0 | EI39: 3682.271087 | EJ39: 1283.82765 | EK39: 0 | EL39: 0 | EO39: 0 | EP39: 0 | ER39: 0 | ET39: 0 | EV39: 140 | FA39: 0 | FB39: -83.4197843 | FD39: -83.4197843 | FF39: 0 | FG39: 0 | FH39: 0 | FI39: 0
A40: 1236 | B40: Regular | C40: Distribuição | D40: A3 | E40: Não se aplica | F40: Não se aplica | G40: Não se aplica | H40: EPB | I40: Fora ponta | J40: DISTRIBUIÇÃO | K40: 2021-04-01 | L40: 18000 | M40: 18000 | N40: 0 | O40: 0 | P40: 0 | Q40: 0 | R40: 6.53 | U40: 117540 | W40: 117540 | X40: 120960 | Y40: 0 | Z40: 0 | AA40: 0 | AB40: 0 | AC40: 1761.420926 | AD40: 30576.15885 | AE40: 4846.400714 | AI40: 0 | AJ40: 0 | AK40: 0 | AL40: 0 | AN40: 0 | AO40: 20768.37649 | AP40: 59567.8028 | AQ40: 0 | AR40: 0 | AU40: 0 | AV40: 0 | AW40: 0 | AZ40: 0 | BB40: 0 | BC40: 4966.098737 | BD40: 0 | BE40: 0 | BG40: 0 | BH40: 0 | BI40: 0 | BJ40: 0 | BK40: 0 | BL40: 0 | BV40: 0 | CI40: 120960 | CJ40: 3419.97 | CO40: 3420 | CP40: 0 | CQ40: 30 | CR40: -1558.991049 | CS40: -1.091393642e-11 | CT40: -3707.637676 | CU40: 0 | CV40: 0 | CZ40: 2148.646627 | DA40: 0 | DB40: 0 | DE40: 0 | DF40: 0 | DG40: 0 | DH40: 0 | DI40: 0 | DK40: 0 | DL40: 0 | DN40: 0 | DO40: 0 | DP40: 0 | DQ40: 0 | DR40: 0 | DT40: C | DU40: 4846.400714 | DW40: 0 | DX40: 0 | DY40: -1620 | EA40: 5040 | EC40: -12.37449152 | EE40: 0 | EF40: 0 | EH40: 0 | EI40: 3682.271087 | EJ40: 1283.82765 | EK40: 0 | EL40: 0 | EO40: 0 | EP40: 0 | ER40: 0 | ET40: 0 | EV40: 140 | FA40: 0 | FB40: -83.4197843 | FD40: -83.4197843 | FF40: 0 | FG40: 0 | FH40: 0 | FI40: 0
A41: 1290 | B41: Regular | C41: Distribuição | D41: A3 | E41: Não se aplica | F41: Não se aplica | G41: Não se aplica | H41: EPB | I41: Fora ponta | J41: DISTRIBUIÇÃO | K41: 2021-05-01 | L41: 18000 | M41: 18000 | N41: 0 | O41: 0 | P41: 0 | Q41: 0 | R41: 6.53 | U41: 117540 | W41: 117540 | X41: 120960 | Y41: 0 | Z41: 0 | AA41: 0 | AB41: 0 | AC41: 1761.420926 | AD41: 30576.15885 | AE41: 4846.400714 | AI41: 0 | AJ41: 0 | AK41: 0 | AL41: 0 | AN41: 0 | AO41: 20768.37649 | AP41: 59567.8028 | AQ41: 0 | AR41: 0 | AU41: 0 | AV41: 0 | AW41: 0 | AZ41: 0 | BB41: 0 | BC41: 4966.098737 | BD41: 0 | BE41: 0 | BG41: 0 | BH41: 0 | BI41: 0 | BJ41: 0 | BK41: 0 | BL41: 0 | BV41: 0 | CI41: 120960 | CJ41: 3419.97 | CO41: 3420 | CP41: 0 | CQ41: 31 | CR41: -1558.991049 | CS41: -1.091393642e-11 | CT41: -3707.637676 | CU41: 0 | CV41: 0 | CZ41: 2148.646627 | DA41: 0 | DB41: 0 | DE41: 0 | DF41: 0 | DG41: 0 | DH41: 0 | DI41: 0 | DK41: 0 | DL41: 0 | DN41: 0 | DO41: 0 | DP41: 0 | DQ41: 0 | DR41: 0 | DT41: C | DU41: 4846.400714 | DW41: 0 | DX41: 0 | DY41: -1620 | EA41: 5040 | EC41: -12.37449152 | EE41: 0 | EF41: 0 | EH41: 0 | EI41: 3682.271087 | EJ41: 1283.82765 | EK41: 0 | EL41: 0 | EO41: 0 | EP41: 0 | ER41: 0 | ET41: 0 | EV41: 140 | FA41: 0 | FB41: -83.4197843 | FD41: -83.4197843 | FF41: 0 | FG41: 0 | FH41: 0 | FI41: 0
A42: 1325 | B42: Regular | C42: Distribuição | D42: A3 | E42: Não se aplica | F42: Não se aplica | G42: Não se aplica | H42: EPB | I42: Fora ponta | J42: DISTRIBUIÇÃO | K42: 2021-06-01 | L42: 18000 | M42: 18000 | N42: 0 | O42: 0 | P42: 0 | Q42: 0 | R42: 6.53 | U42: 117540 | W42: 117540 | X42: 120960 | Y42: 0 | Z42: 0 | AA42: 0 | AB42: 0 | AC42: 1761.420926 | AD42: 30576.15885 | AE42: 4846.400714 | AI42: 0 | AJ42: 0 | AK42: 0 | AL42: 0 | AN42: 0 | AO42: 20768.37649 | AP42: 59567.8028 | AQ42: 0 | AR42: 0 | AU42: 0 | AV42: 0 | AW42: 0 | AZ42: 0 | BB42: 0 | BC42: 4966.098737 | BD42: 0 | BE42: 0 | BG42: 0 | BH42: 0 | BI42: 0 | BJ42: 0 | BK42: 0 | BL42: 0 | BV42: 0 | CI42: 120960 | CJ42: 3419.97 | CO42: 3420 | CP42: 0 | CQ42: 30 | CR42: -1558.991049 | CS42: -1.091393642e-11 | CT42: -3707.637676 | CU42: 0 | CV42: 0 | CZ42: 2148.646627 | DA42: 0 | DB42: 0 | DE42: 0 | DF42: 0 | DG42: 0 | DH42: 0 | DI42: 0 | DK42: 0 | DL42: 0 | DN42: 0 | DO42: 0 | DP42: 0 | DQ42: 0 | DR42: 0 | DT42: C | DU42: 4846.400714 | DW42: 0 | DX42: 0 | DY42: -1620 | EA42: 5040 | EC42: -12.37449152 | EE42: 0 | EF42: 0 | EH42: 0 | EI42: 3682.271087 | EJ42: 1283.82765 | EK42: 0 | EL42: 0 | EO42: 0 | EP42: 0 | ER42: 0 | ET42: 0 | EV42: 140 | FA42: 0 | FB42: -83.4197843 | FD42: -83.4197843 | FF42: 0 | FG42: 0 | FH42: 0 | FI42: 0
A43: 1374 | B43: Regular | C43: Distribuição | D43: A3 | E43: Não se aplica | F43: Não se aplica | G43: Não se aplica | H43: EPB | I43: Fora ponta | J43: DISTRIBUIÇÃO | K43: 2021-07-01 | L43: 18000 | M43: 18000 | N43: 0 | O43: 0 | P43: 0 | Q43: 0 | R43: 6.53 | U43: 117540 | W43: 117540 | X43: 120960 | Y43: 0 | Z43: 0 | AA43: 0 | AB43: 0 | AC43: 1761.420926 | AD43: 30576.15885 | AE43: 4846.400714 | AI43: 0 | AJ43: 0 | AK43: 0 | AL43: 0 | AN43: 0 | AO43: 20768.37649 | AP43: 59567.8028 | AQ43: 0 | AR43: 0 | AU43: 0 | AV43: 0 | AW43: 0 | AZ43: 0 | BB43: 0 | BC43: 4966.098737 | BD43: 0 | BE43: 0 | BG43: 0 | BH43: 0 | BI43: 0 | BJ43: 0 | BK43: 0 | BL43: 0 | BV43: 0 | CI43: 120960 | CJ43: 3419.97 | CO43: 3420 | CP43: 0 | CQ43: 31 | CR43: -1558.991049 | CS43: -1.091393642e-11 | CT43: -3707.637676 | CU43: 0 | CV43: 0 | CZ43: 2148.646627 | DA43: 0 | DB43: 0 | DE43: 0 | DF43: 0 | DG43: 0 | DH43: 0 | DI43: 0 | DK43: 0 | DL43: 0 | DN43: 0 | DO43: 0 | DP43: 0 | DQ43: 0 | DR43: 0 | DT43: C | DU43: 4846.400714 | DW43: 0 | DX43: 0 | DY43: -1620 | EA43: 5040 | EC43: -12.37449152 | EE43: 0 | EF43: 0 | EH43: 0 | EI43: 3682.271087 | EJ43: 1283.82765 | EK43: 0 | EL43: 0 | EO43: 0 | EP43: 0 | ER43: 0 | ET43: 0 | EV43: 140 | FA43: 0 | FB43: -83.4197843 | FD43: -83.4197843 | FF43: 0 | FG43: 0 | FH43: 0 | FI43: 0
A44: 1409 | B44: Regular | C44: Distribuição | D44: A3 | E44: Não se aplica | F44: Não se aplica | G44: Não se aplica | H44: EPB | I44: Fora ponta | J44: DISTRIBUIÇÃO | K44: 2021-08-01 | L44: 18000 | M44: 18000 | N44: 0 | O44: 0 | P44: 0 | Q44: 0 | R44: 6.53 | U44: 117540 | W44: 117540 | X44: 120960 | Y44: 0 | Z44: 0 | AA44: 0 | AB44: 0 | AC44: 1761.420926 | AD44: 30576.15885 | AE44: 4846.400714 | AI44: 0 | AJ44: 0 | AK44: 0 | AL44: 0 | AN44: 0 | AO44: 20768.37649 | AP44: 59567.8028 | AQ44: 0 | AR44: 0 | AU44: 0 | AV44: 0 | AW44: 0 | AZ44: 0 | BB44: 0 | BC44: 4966.098737 | BD44: 0 | BE44: 0 | BG44: 0 | BH44: 0 | BI44: 0 | BJ44: 0 | BK44: 0 | BL44: 0 | BV44: 0 | CI44: 120960 | CJ44: 3419.97 | CO44: 3420 | CP44: 0 | CQ44: 31 | CR44: -1558.991049 | CS44: -1.091393642e-11 | CT44: -3707.637676 | CU44: 0 | CV44: 0 | CZ44: 2148.646627 | DA44: 0 | DB44: 0 | DE44: 0 | DF44: 0 | DG44: 0 | DH44: 0 | DI44: 0 | DK44: 0 | DL44: 0 | DN44: 0 | DO44: 0 | DP44: 0 | DQ44: 0 | DR44: 0 | DT44: C | DU44: 4846.400714 | DW44: 0 | DX44: 0 | DY44: -1620 | EA44: 5040 | EC44: -12.37449152 | EE44: 0 | EF44: 0 | EH44: 0 | EI44: 3682.271087 | EJ44: 1283.82765 | EK44: 0 | EL44: 0 | EO44: 0 | EP44: 0 | ER44: 0 | ET44: 0 | EV44: 140 | FA44: 0 | FB44: -83.4197843 | FD44: -83.4197843 | FF44: 0 | FG44: 0 | FH44: 0 | FI44: 0
A45: 1439 | B45: Regular | C45: Distribuição | D45: A3 | E45: Não se aplica | F45: Não se aplica | G45: Não se aplica | H45: EPB | I45: Fora ponta | J45: DISTRIBUIÇÃO | K45: 2021-09-01 | L45: 18000 | M45: 18000 | N45: 0 | O45: 0 | P45: 0 | Q45: 0 | R45: 6.53 | U45: 117540 | W45: 117540 | X45: 120960 | Y45: 0 | Z45: 0 | AA45: 0 | AB45: 0 | AC45: 1761.420926 | AD45: 30576.15885 | AE45: 4846.400714 | AI45: 0 | AJ45: 0 | AK45: 0 | AL45: 0 | AN45: 0 | AO45: 20768.37649 | AP45: 59567.8028 | AQ45: 0 | AR45: 0 | AU45: 0 | AV45: 0 | AW45: 0 | AZ45: 0 | BB45: 0 | BC45: 4966.098737 | BD45: 0 | BE45: 0 | BG45: 0 | BH45: 0 | BI45: 0 | BJ45: 0 | BK45: 0 | BL45: 0 | BV45: 0 | CI45: 120960 | CJ45: 3419.97 | CO45: 3420 | CP45: 0 | CQ45: 30 | CR45: -1558.991049 | CS45: -1.091393642e-11 | CT45: -3707.637676 | CU45: 0 | CV45: 0 | CZ45: 2148.646627 | DA45: 0 | DB45: 0 | DE45: 0 | DF45: 0 | DG45: 0 | DH45: 0 | DI45: 0 | DK45: 0 | DL45: 0 | DN45: 0 | DO45: 0 | DP45: 0 | DQ45: 0 | DR45: 0 | DT45: C | DU45: 4846.400714 | DW45: 0 | DX45: 0 | DY45: -1620 | EA45: 5040 | EC45: -12.37449152 | EE45: 0 | EF45: 0 | EH45: 0 | EI45: 3682.271087 | EJ45: 1283.82765 | EK45: 0 | EL45: 0 | EO45: 0 | EP45: 0 | ER45: 0 | ET45: 0 | EV45: 140 | FA45: 0 | FB45: -83.4197843 | FD45: -83.4197843 | FF45: 0 | FG45: 0 | FH45: 0 | FI45: 0
A46: 1469 | B46: Regular | C46: Distribuição | D46: A3 | E46: Não se aplica | F46: Não se aplica | G46: Não se aplica | H46: EPB | I46: Fora ponta | J46: DISTRIBUIÇÃO | K46: 2021-10-01 | L46: 18000 | M46: 18000 | N46: 0 | O46: 0 | P46: 0 | Q46: 0 | R46: 6.53 | U46: 117540 | W46: 117540 | X46: 120960 | Y46: 0 | Z46: 0 | AA46: 0 | AB46: 0 | AC46: 1761.420926 | AD46: 30576.15885 | AE46: 4846.400714 | AI46: 0 | AJ46: 0 | AK46: 0 | AL46: 0 | AN46: 0 | AO46: 20768.37649 | AP46: 59567.8028 | AQ46: 0 | AR46: 0 | AU46: 0 | AV46: 0 | AW46: 0 | AZ46: 0 | BB46: 0 | BC46: 4966.098737 | BD46: 0 | BE46: 0 | BG46: 0 | BH46: 0 | BI46: 0 | BJ46: 0 | BK46: 0 | BL46: 0 | BV46: 0 | CI46: 120960 | CJ46: 3419.97 | CO46: 3420 | CP46: 0 | CQ46: 31 | CR46: -1558.991049 | CS46: -1.091393642e-11 | CT46: -3707.637676 | CU46: 0 | CV46: 0 | CZ46: 2148.646627 | DA46: 0 | DB46: 0 | DE46: 0 | DF46: 0 | DG46: 0 | DH46: 0 | DI46: 0 | DK46: 0 | DL46: 0 | DN46: 0 | DO46: 0 | DP46: 0 | DQ46: 0 | DR46: 0 | DT46: C | DU46: 4846.400714 | DW46: 0 | DX46: 0 | DY46: -1620 | EA46: 5040 | EC46: -12.37449152 | EE46: 0 | EF46: 0 | EH46: 0 | EI46: 3682.271087 | EJ46: 1283.82765 | EK46: 0 | EL46: 0 | EO46: 0 | EP46: 0 | ER46: 0 | ET46: 0 | EV46: 140 | FA46: 0 | FB46: -83.4197843 | FD46: -83.4197843 | FF46: 0 | FG46: 0 | FH46: 0 | FI46: 0
A47: 1499 | B47: Regular | C47: Distribuição | D47: A3 | E47: Não se aplica | F47: Não se aplica | G47: Não se aplica | H47: EPB | I47: Fora ponta | J47: DISTRIBUIÇÃO | K47: 2021-11-01 | L47: 18000 | M47: 18000 | N47: 0 | O47: 0 | P47: 0 | Q47: 0 | R47: 6.53 | U47: 117540 | W47: 117540 | X47: 120960 | Y47: 0 | Z47: 0 | AA47: 0 | AB47: 0 | AC47: 1761.420926 | AD47: 30576.15885 | AE47: 4846.400714 | AI47: 0 | AJ47: 0 | AK47: 0 | AL47: 0 | AN47: 0 | AO47: 20768.37649 | AP47: 59567.8028 | AQ47: 0 | AR47: 0 | AU47: 0 | AV47: 0 | AW47: 0 | AZ47: 0 | BB47: 0 | BC47: 4966.098737 | BD47: 0 | BE47: 0 | BG47: 0 | BH47: 0 | BI47: 0 | BJ47: 0 | BK47: 0 | BL47: 0 | BV47: 0 | CI47: 120960 | CJ47: 3419.97 | CO47: 3420 | CP47: 0 | CQ47: 30 | CR47: -1558.991049 | CS47: -1.091393642e-11 | CT47: -3707.637676 | CU47: 0 | CV47: 0 | CZ47: 2148.646627 | DA47: 0 | DB47: 0 | DE47: 0 | DF47: 0 | DG47: 0 | DH47: 0 | DI47: 0 | DK47: 0 | DL47: 0 | DN47: 0 | DO47: 0 | DP47: 0 | DQ47: 0 | DR47: 0 | DT47: C | DU47: 4846.400714 | DW47: 0 | DX47: 0 | DY47: -1620 | EA47: 5040 | EC47: -12.37449152 | EE47: 0 | EF47: 0 | EH47: 0 | EI47: 3682.271087 | EJ47: 1283.82765 | EK47: 0 | EL47: 0 | EO47: 0 | EP47: 0 | ER47: 0 | ET47: 0 | EV47: 140 | FA47: 0 | FB47: -83.4197843 | FD47: -83.4197843 | FF47: 0 | FG47: 0 | FH47: 0 | FI47: 0
A48: 1548 | B48: Regular | C48: Distribuição | D48: A3 | E48: Não se aplica | F48: Não se aplica | G48: Não se aplica | H48: EPB | I48: Fora ponta | J48: DISTRIBUIÇÃO | K48: 2021-12-01 | L48: 19960 | M48: 19960 | N48: 0 | O48: 0 | P48: 0 | Q48: 0 | R48: 6.53 | U48: 130338.8 | W48: 130338.8 | X48: 134131.2 | Y48: 0 | Z48: 0 | AA48: 0 | AB48: 0 | AC48: 1953.220093 | AD48: 33905.56282 | AE48: 5374.119903 | AI48: 0 | AJ48: 0 | AK48: 0 | AL48: 0 | AN48: 0 | AO48: 23029.82193 | AP48: 66054.07466 | AQ48: 0 | AR48: 0 | AU48: 0 | AV48: 0 | AW48: 0 | AZ48: 0 | BB48: 0 | BC48: 5506.85171 | BD48: 0 | BE48: 0 | BG48: 0 | BH48: 0 | BI48: 0 | BJ48: 0 | BK48: 0 | BL48: 0 | BV48: 0 | CI48: 134131.2 | CJ48: 3792.37 | CO48: 3792.4 | CP48: 0 | CR48: -1728.747852 | CS48: -1.091393642e-11 | CT48: -4111.358223 | CU48: 0 | CV48: 0 | CZ48: 2382.610371 | DA48: 0 | DB48: 0 | DE48: 0 | DF48: 0 | DG48: 0 | DH48: 0 | DI48: 0 | DK48: 0 | DL48: 0 | DN48: 0 | DO48: 0 | DP48: 0 | DQ48: 0 | DR48: 0 | DT48: C | DU48: 5374.119903 | DW48: 0 | DX48: 0 | DY48: -1796.4 | EA48: 5588.8 | EC48: -13.72193615 | EE48: 0 | EF48: 0 | EH48: 0 | EI48: 4083.229494 | EJ48: 1423.622216 | EK48: 0 | EL48: 0 | EO48: 0 | EP48: 0 | ER48: 0 | ET48: 0 | EV48: 140 | FA48: 0 | FB48: -83.4197843 | FD48: -83.4197843 | FF48: 0 | FG48: 0 | FH48: 0 | FI48: 0
A49: 1602 | B49: PROJETADO | C49: Distribuição | D49: A3 | E49: Não se aplica | F49: Não se aplica | G49: Não se aplica | H49: EPB | I49: Fora ponta | J49: DISTRIBUIÇÃO | K49: 2022-01-01 | L49: 19960 | M49: 19960 | N49: 0 | O49: 0 | P49: 0 | Q49: 0 | R49: 6.53 | U49: 130338.8 | W49: 130338.8 | X49: 134131.2 | Y49: 0 | Z49: 0 | AA49: 0 | AB49: 0 | AC49: 1953.220093 | AD49: 33905.56282 | AE49: 5374.119903 | AI49: 0 | AJ49: 0 | AK49: 0 | AL49: 0 | AN49: 0 | AO49: 23029.82193 | AP49: 66054.07466 | AQ49: 0 | AR49: 0 | AU49: 0 | AV49: 0 | AW49: 0 | AZ49: 0 | BB49: 0 | BC49: 5506.85171 | BD49: 0 | BE49: 0 | BG49: 0 | BH49: 0 | BI49: 0 | BJ49: 0 | BK49: 0 | BL49: 0 | BV49: 0 | CI49: 134131.2 | CJ49: 3792.37 | CO49: 3792.4 | CP49: 0 | CQ49: 31 | CR49: -1728.747852 | CS49: -1.091393642e-11 | CT49: -4111.358223 | CU49: 0 | CV49: 0 | CZ49: 2382.610371 | DA49: 0 | DB49: 0 | DE49: 0 | DF49: 0 | DG49: 0 | DH49: 0 | DI49: 0 | DK49: 0 | DL49: 0 | DN49: 0 | DO49: 0 | DP49: 0 | DQ49: 0 | DR49: 0 | DT49: C | DU49: 5374.119903 | DW49: 0 | DX49: 0 | DY49: -1796.4 | EA49: 5588.8 | EC49: -13.72193615 | EE49: 0 | EF49: 0 | EH49: 0 | EI49: 4083.229494 | EJ49: 1423.622216 | EK49: 0 | EL49: 0 | EO49: 0 | EP49: 0 | ER49: 0 | ET49: 0 | EV49: 140 | FA49: 0 | FB49: -83.4197843 | FD49: -83.4197843 | FF49: 0 | FG49: 0 | FH49: 0 | FI49: 0
A50: 1158 | B50: Regular | C50: Distribuição | D50: A3 | E50: Não se aplica | F50: Não se aplica | G50: Não se aplica | H50: EPB | I50: Não se aplica | J50: DISTRIBUIÇÃO | K50: 2021-02-01 | L50: 0 | M50: 0 | N50: 3631.245 | O50: 3631.245 | P50: 0 | Q50: 0 | S50: 2.82 | V50: 10240.1109 | W50: 10240.1109 | X50: 10385.3607 | Y50: 0 | Z50: 0 | AA50: 0 | AB50: 0 | AC50: 0 | AD50: 0 | AE50: 0 | AI50: 0 | AJ50: 0 | AK50: 0 | AL50: 0 | AN50: 0 | AO50: 0 | AP50: 0 | AQ50: 0 | AR50: 0 | AU50: 0 | AV50: 0 | AW50: 0 | AZ50: 0 | BB50: 94.26420934 | BC50: 0 | BD50: 0 | BE50: 244.3116617 | BG50: 9994.072841 | BH50: 0 | BI50: 13158.21 | BJ50: 0 | BK50: 0 | BL50: 0 | BV50: 10238.3845 | CI50: 10385.375 | CJ50: 145.2341 | CO50: 145.2498 | CP50: 0 | CQ50: 29 | CR50: 69.19287847 | CS50: 0 | CT50: 0 | CU50: 0 | CV50: 0 | CZ50: 0 | DA50: 0 | DB50: 0 | DE50: 1.651102976 | DF50: 0 | DG50: 67.5417755 | DH50: 0 | DI50: 0 | DK50: 0 | DL50: 0 | DN50: 0 | DO50: 0 | DP50: 0 | DQ50: 0 | DR50: 0 | DT50: C | DV50: 0 | DW50: 0 | DX50: 0 | DY50: 36.31245 | EA50: 108.93735 | EC50: 0 | EE50: 0 | EF50: 2.249363229 | EH50: 92.01484611 | EI50: 0 | EJ50: 0 | EK50: 0 | EL50: 0 | EO50: 0 | EP50: 0 | ER50: 0 | ET50: 0 | EV50: 140 | FA50: 0 | FB50: -83.4197843 | FD50: -83.4197843 | FF50: 0 | FG50: 0 | FH50: 0 | FI50: 0
A51: 1188 | B51: Regular | C51: Distribuição | D51: A3 | E51: Não se aplica | F51: Não se aplica | G51: Não se aplica | H51: EPB | I51: Não se aplica | J51: DISTRIBUIÇÃO | K51: 2021-03-01 | L51: 0 | M51: 0 | N51: 3521.292 | O51: 3521.292 | P51: 0 | Q51: 0 | S51: 2.82 | V51: 9930.04344 | W51: 9930.04344 | X51: 10070.89512 | Y51: 0 | Z51: 0 | AA51: 0 | AB51: 0 | AC51: 0 | AD51: 0 | AE51: 0 | AI51: 0 | AJ51: 0 | AK51: 0 | AL51: 0 | AN51: 0 | AO51: 0 | AP51: 0 | AQ51: 0 | AR51: 0 | AU51: 0 | AV51: 0 | AW51: 0 | AZ51: 0 | BB51: 91.4099176 | BC51: 0 | BD51: 0 | BE51: 236.9139785 | BG51: 9691.455339 | BH51: 0 | BI51: 14395.13 | BJ51: 0 | BK51: 0 | BL51: 0 | BV51: 9928.369318 | CI51: 10070.8894 | CJ51: 140.81596 | CO51: 140.85168 | CP51: 0 | CQ51: 31 | CR51: 67.09773905 | CS51: 0 | CT51: 0 | CU51: 0 | CV51: 0 | CZ51: 0 | DA51: 0 | DB51: 0 | DE51: 1.601108077 | DF51: 0 | DG51: 65.49663097 | DH51: 0 | DI51: 0 | DK51: 0 | DL51: 0 | DN51: 0 | DO51: 0 | DP51: 0 | DQ51: 0 | DR51: 0 | DT51: C | DV51: 0 | DW51: 0 | DX51: 0 | DY51: 35.21292 | EA51: 105.63876 | EC51: 0 | EE51: 0 | EF51: 2.181253191 | EH51: 89.22866441 | EI51: 0 | EJ51: 0 | EK51: 0 | EL51: 0 | EO51: 0 | EP51: 0 | ER51: 0 | ET51: 0 | EV51: 140 | FA51: 0 | FB51: -83.4197843 | FD51: -83.4197843 | FF51: 0 | FG51: 0 | FH51: 0 | FI51: 0
A52: 1238 | B52: Regular | C52: Distribuição | D52: A3 | E52: Não se aplica | F52: Não se aplica | G52: Não se aplica | H52: EPB | I52: Não se aplica | J52: DISTRIBUIÇÃO | K52: 2021-04-01 | L52: 0 | M52: 0 | N52: 3705.519 | O52: 3705.519 | P52: 0 | Q52: 0 | S52: 2.82 | V52: 10449.56358 | W52: 10449.56358 | X52: 10597.78434 | Y52: 0 | Z52: 0 | AA52: 0 | AB52: 0 | AC52: 0 | AD52: 0 | AE52: 0 | AI52: 0 | AJ52: 0 | AK52: 0 | AL52: 0 | AN52: 0 | AO52: 0 | AP52: 0 | AQ52: 0 | AR52: 0 | AU52: 0 | AV52: 0 | AW52: 0 | AZ52: 0 | BB52: 96.19230284 | BC52: 0 | BD52: 0 | BE52: 249.3088471 | BG52: 10198.49302 | BH52: 0 | BI52: 14566.71 | BJ52: 0 | BK52: 0 | BL52: 0 | BV52: 10447.80187 | CI52: 10597.7872 | CJ52: 148.19362 | CO52: 148.22076 | CP52: 0 | CQ52: 30 | CR52: 70.60815942 | CS52: 0 | CT52: 0 | CU52: 0 | CV52: 0 | CZ52: 0 | DA52: 0 | DB52: 0 | DE52: 1.68487487 | DF52: 0 | DG52: 68.92328455 | DH52: 0 | DI52: 0 | DK52: 0 | DL52: 0 | DN52: 0 | DO52: 0 | DP52: 0 | DQ52: 0 | DR52: 0 | DT52: C | DV52: 0 | DW52: 0 | DX52: 0 | DY52: 37.05519 | EA52: 111.16557 | EC52: 0 | EE52: 0 | EF52: 2.295372023 | EH52: 93.89693081 | EI52: 0 | EJ52: 0 | EK52: 0 | EL52: 0 | EO52: 0 | EP52: 0 | ER52: 0 | ET52: 0 | EV52: 140 | FA52: 0 | FB52: -83.4197843 | FD52: -83.4197843 | FF52: 0 | FG52: 0 | FH52: 0 | FI52: 0
A53: 1292 | B53: Regular | C53: Distribuição | D53: A3 | E53: Não se aplica | F53: Não se aplica | G53: Não se aplica | H53: EPB | I53: Não se aplica | J53: DISTRIBUIÇÃO | K53: 2021-05-01 | L53: 0 | M53: 0 | N53: 3171.585 | O53: 3171.585 | P53: 0 | Q53: 0 | S53: 2.82 | V53: 8943.8697 | W53: 8943.8697 | X53: 9070.7331 | Y53: 0 | Z53: 0 | AA53: 0 | AB53: 0 | AC53: 0 | AD53: 0 | AE53: 0 | AI53: 0 | AJ53: 0 | AK53: 0 | AL53: 0 | AN53: 0 | AO53: 0 | AP53: 0 | AQ53: 0 | AR53: 0 | AU53: 0 | AV53: 0 | AW53: 0 | AZ53: 0 | BB53: 82.33180421 | BC53: 0 | BD53: 0 | BE53: 213.3855473 | BG53: 8728.976291 | BH53: 0 | BI53: 14507.38 | BJ53: 0 | BK53: 0 | BL53: 0 | BV53: 8942.361838 | CI53: 9070.7474 | CJ53: 126.8477 | CO53: 126.8634 | CP53: 0 | CQ53: 31 | CR53: 60.43411983 | CS53: 0 | CT53: 0 | CU53: 0 | CV53: 0 | CZ53: 0 | DA53: 0 | DB53: 0 | DE53: 1.442098628 | DF53: 0 | DG53: 58.9920212 | DH53: 0 | DI53: 0 | DK53: 0 | DL53: 0 | DN53: 0 | DO53: 0 | DP53: 0 | DQ53: 0 | DR53: 0 | DT53: C | DV53: 0 | DW53: 0 | DX53: 0 | DY53: 31.71585 | EA53: 95.14755 | EC53: 0 | EE53: 0 | EF53: 1.964628296 | EH53: 80.36717591 | EI53: 0 | EJ53: 0 | EK53: 0 | EL53: 0 | EO53: 0 | EP53: 0 | ER53: 0 | ET53: 0 | EV53: 140 | FA53: 0 | FB53: -83.4197843 | FD53: -83.4197843 | FF53: 0 | FG53: 0 | FH53: 0 | FI53: 0
A54: 1326 | B54: Regular | C54: Distribuição | D54: A3 | E54: Não se aplica | F54: Não se aplica | G54: Não se aplica | H54: EPB | I54: Não se aplica | J54: DISTRIBUIÇÃO | K54: 2021-06-01 | L54: 0 | M54: 0 | N54: 3439.792 | O54: 3439.792 | P54: 0 | Q54: 0 | S54: 2.82 | V54: 9700.21344 | W54: 9700.21344 | X54: 9837.80512 | Y54: 0 | Z54: 0 | AA54: 0 | AB54: 0 | AC54: 0 | AD54: 0 | AE54: 0 | AI54: 0 | AJ54: 0 | AK54: 0 | AL54: 0 | AN54: 0 | AO54: 0 | AP54: 0 | AQ54: 0 | AR54: 0 | AU54: 0 | AV54: 0 | AW54: 0 | AZ54: 0 | BB54: 89.29424293 | BC54: 0 | BD54: 0 | BE54: 231.4306249 | BG54: 9467.14744 | BH54: 0 | BI54: 14537.18 | BJ54: 0 | BK54: 0 | BL54: 0 | BV54: 9698.578065 | CI54: 9837.7994 | CJ54: 137.55596 | CO54: 137.59168 | CP54: 0 | CQ54: 30 | CR54: 65.54476766 | CS54: 0 | CT54: 0 | CU54: 0 | CV54: 0 | CZ54: 0 | DA54: 0 | DB54: 0 | DE54: 1.564050569 | DF54: 0 | DG54: 63.98071709 | DH54: 0 | DI54: 0 | DK54: 0 | DL54: 0 | DN54: 0 | DO54: 0 | DP54: 0 | DQ54: 0 | DR54: 0 | DT54: C | DV54: 0 | DW54: 0 | DX54: 0 | DY54: 34.39792 | EA54: 103.19376 | EC54: 0 | EE54: 0 | EF54: 2.130768274 | EH54: 87.16347465 | EI54: 0 | EJ54: 0 | EK54: 0 | EL54: 0 | EO54: 0 | EP54: 0 | ER54: 0 | ET54: 0 | EV54: 140 | FA54: 0 | FB54: -83.4197843 | FD54: -83.4197843 | FF54: 0 | FG54: 0 | FH54: 0 | FI54: 0
A55: 1376 | B55: Regular | C55: Distribuição | D55: A3 | E55: Não se aplica | F55: Não se aplica | G55: Não se aplica | H55: EPB | I55: Não se aplica | J55: DISTRIBUIÇÃO | K55: 2021-07-01 | L55: 0 | M55: 0 | N55: 3213.227 | O55: 3213.227 | P55: 0 | Q55: 0 | S55: 2.82 | V55: 9061.30014 | W55: 9061.30014 | X55: 9189.82922 | Y55: 0 | Z55: 0 | AA55: 0 | AB55: 0 | AC55: 0 | AD55: 0 | AE55: 0 | AI55: 0 | AJ55: 0 | AK55: 0 | AL55: 0 | AN55: 0 | AO55: 0 | AP55: 0 | AQ55: 0 | AR55: 0 | AU55: 0 | AV55: 0 | AW55: 0 | AZ55: 0 | BB55: 83.41279715 | BC55: 0 | BD55: 0 | BE55: 216.1872382 | BG55: 8843.585242 | BH55: 0 | BI55: 14512.01 | BJ55: 0 | BK55: 0 | BL55: 0 | BV55: 9059.77248 | CI55: 9189.8378 | CJ55: 128.50766 | CO55: 128.52908 | CP55: 0 | CQ55: 31 | CR55: 61.22760247 | CS55: 0 | CT55: 0 | CU55: 0 | CV55: 0 | CZ55: 0 | DA55: 0 | DB55: 0 | DE55: 1.461032968 | DF55: 0 | DG55: 59.7665695 | DH55: 0 | DI55: 0 | DK55: 0 | DL55: 0 | DN55: 0 | DO55: 0 | DP55: 0 | DQ55: 0 | DR55: 0 | DT55: C | DV55: 0 | DW55: 0 | DX55: 0 | DY55: 32.13227 | EA55: 96.39681 | EC55: 0 | EE55: 0 | EF55: 1.990423301 | EH55: 81.42237385 | EI55: 0 | EJ55: 0 | EK55: 0 | EL55: 0 | EO55: 0 | EP55: 0 | ER55: 0 | ET55: 0 | EV55: 140 | FA55: 0 | FB55: -83.4197843 | FD55: -83.4197843 | FF55: 0 | FG55: 0 | FH55: 0 | FI55: 0
A56: 1410 | B56: Regular | C56: Distribuição | D56: A3 | E56: Não se aplica | F56: Não se aplica | G56: Não se aplica | H56: EPB | I56: Não se aplica | J56: DISTRIBUIÇÃO | K56: 2021-08-01 | L56: 0 | M56: 0 | N56: 3284.626 | O56: 3284.626 | P56: 0 | Q56: 0 | S56: 2.82 | V56: 9262.64532 | W56: 9262.64532 | X56: 9394.03036 | Y56: 0 | Z56: 0 | AA56: 0 | AB56: 0 | AC56: 0 | AD56: 0 | AE56: 0 | AI56: 0 | AJ56: 0 | AK56: 0 | AL56: 0 | AN56: 0 | AO56: 0 | AP56: 0 | AQ56: 0 | AR56: 0 | AU56: 0 | AV56: 0 | AW56: 0 | AZ56: 0 | BB56: 85.26625795 | BC56: 0 | BD56: 0 | BE56: 220.9909924 | BG56: 9040.092723 | BH56: 0 | BI56: 14519.94 | BJ56: 0 | BK56: 0 | BL56: 0 | BV56: 9261.083715 | CI56: 9394.0418 | CJ56: 131.36648 | CO56: 131.38504 | CP56: 0 | CQ56: 31 | CR56: 62.58810068 | CS56: 0 | CT56: 0 | CU56: 0 | CV56: 0 | CZ56: 0 | DA56: 0 | DB56: 0 | DE56: 1.493497619 | DF56: 0 | DG56: 61.09460306 | DH56: 0 | DI56: 0 | DK56: 0 | DL56: 0 | DN56: 0 | DO56: 0 | DP56: 0 | DQ56: 0 | DR56: 0 | DT56: C | DV56: 0 | DW56: 0 | DX56: 0 | DY56: 32.84626 | EA56: 98.53878 | EC56: 0 | EE56: 0 | EF56: 2.034651186 | EH56: 83.23160677 | EI56: 0 | EJ56: 0 | EK56: 0 | EL56: 0 | EO56: 0 | EP56: 0 | ER56: 0 | ET56: 0 | EV56: 140 | FA56: 0 | FB56: -83.4197843 | FD56: -83.4197843 | FF56: 0 | FG56: 0 | FH56: 0 | FI56: 0
A57: 1440 | B57: Regular | C57: Distribuição | D57: A3 | E57: Não se aplica | F57: Não se aplica | G57: Não se aplica | H57: EPB | I57: Não se aplica | J57: DISTRIBUIÇÃO | K57: 2021-09-01 | L57: 0 | M57: 0 | N57: 3266.642 | O57: 3266.642 | P57: 0 | Q57: 0 | S57: 2.82 | V57: 9211.93044 | W57: 9211.93044 | X57: 9342.59612 | Y57: 0 | Z57: 0 | AA57: 0 | AB57: 0 | AC57: 0 | AD57: 0 | AE57: 0 | AI57: 0 | AJ57: 0 | AK57: 0 | AL57: 0 | AN57: 0 | AO57: 0 | AP57: 0 | AQ57: 0 | AR57: 0 | AU57: 0 | AV57: 0 | AW57: 0 | AZ57: 0 | BB57: 84.79940773 | BC57: 0 | BD57: 0 | BE57: 219.7810215 | BG57: 8990.596364 | BH57: 0 | BI57: 14517.94 | BJ57: 0 | BK57: 0 | BL57: 0 | BV57: 9210.377385 | CI57: 9342.5904 | CJ57: 130.62996 | CO57: 130.66568 | CP57: 0 | CQ57: 30 | CR57: 62.24541801 | CS57: 0 | CT57: 0 | CU57: 0 | CV57: 0 | CZ57: 0 | DA57: 0 | DB57: 0 | DE57: 1.485320414 | DF57: 0 | DG57: 60.76009759 | DH57: 0 | DI57: 0 | DK57: 0 | DL57: 0 | DN57: 0 | DO57: 0 | DP57: 0 | DQ57: 0 | DR57: 0 | DT57: C | DV57: 0 | DW57: 0 | DX57: 0 | DY57: 32.66642 | EA57: 97.99926 | EC57: 0 | EE57: 0 | EF57: 2.023511054 | EH57: 82.77589667 | EI57: 0 | EJ57: 0 | EK57: 0 | EL57: 0 | EO57: 0 | EP57: 0 | ER57: 0 | ET57: 0 | EV57: 140 | FA57: 0 | FB57: -83.4197843 | FD57: -83.4197843 | FF57: 0 | FG57: 0 | FH57: 0 | FI57: 0
A58: 1470 | B58: Regular | C58: Distribuição | D58: A3 | E58: Não se aplica | F58: Não se aplica | G58: Não se aplica | H58: EPB | I58: Não se aplica | J58: DISTRIBUIÇÃO | K58: 2021-10-01 | L58: 0 | M58: 0 | N58: 3490.26 | O58: 3490.26 | P58: 0 | Q58: 0 | S58: 2.82 | V58: 9842.5332 | W58: 9842.5332 | X58: 9982.1436 | Y58: 0 | Z58: 0 | AA58: 0 | AB58: 0 | AC58: 0 | AD58: 0 | AE58: 0 | AI58: 0 | AJ58: 0 | AK58: 0 | AL58: 0 | AN58: 0 | AO58: 0 | AP58: 0 | AQ58: 0 | AR58: 0 | AU58: 0 | AV58: 0 | AW58: 0 | AZ58: 0 | BB58: 90.60435175 | BC58: 0 | BD58: 0 | BE58: 234.8261328 | BG58: 9606.047698 | BH58: 0 | BI58: 14870.58 | BJ58: 0 | BK58: 0 | BL58: 0 | BV58: 9840.873831 | CI58: 9982.1436 | CJ58: 139.5804 | CO58: 139.6104 | CP58: 0 | CQ58: 31 | CR58: 66.50642852 | CS58: 0 | CT58: 0 | CU58: 0 | CV58: 0 | CZ58: 0 | DA58: 0 | DB58: 0 | DE58: 1.586998033 | DF58: 0 | DG58: 64.91943048 | DH58: 0 | DI58: 0 | DK58: 0 | DL58: 0 | DN58: 0 | DO58: 0 | DP58: 0 | DQ58: 0 | DR58: 0 | DT58: C | DV58: 0 | DW58: 0 | DX58: 0 | DY58: 34.9026 | EA58: 104.7078 | EC58: 0 | EE58: 0 | EF58: 2.162030517 | EH58: 88.44232124 | EI58: 0 | EJ58: 0 | EK58: 0 | EL58: 0 | EO58: 0 | EP58: 0 | ER58: 0 | ET58: 0 | EV58: 140 | FA58: 0 | FB58: -83.4197843 | FD58: -83.4197843 | FF58: 0 | FG58: 0 | FH58: 0 | FI58: 0
A59: 1500 | B59: Regular | C59: Distribuição | D59: A3 | E59: Não se aplica | F59: Não se aplica | G59: Não se aplica | H59: EPB | I59: Não se aplica | J59: DISTRIBUIÇÃO | K59: 2021-11-01 | L59: 0 | M59: 0 | N59: 3623.963 | O59: 3623.963 | P59: 0 | Q59: 0 | S59: 2.82 | V59: 10219.57566 | W59: 10219.57566 | X59: 10364.53418 | Y59: 0 | Z59: 0 | AA59: 0 | AB59: 0 | AC59: 0 | AD59: 0 | AE59: 0 | AI59: 0 | AJ59: 0 | AK59: 0 | AL59: 0 | AN59: 0 | AO59: 0 | AP59: 0 | AQ59: 0 | AR59: 0 | AU59: 0 | AV59: 0 | AW59: 0 | AZ59: 0 | BB59: 94.07517445 | BC59: 0 | BD59: 0 | BE59: 243.8217258 | BG59: 9974.030999 | BH59: 0 | BI59: 14557.65 | BJ59: 0 | BK59: 0 | BL59: 0 | BV59: 10217.85272 | CI59: 10364.5256 | CJ59: 144.91994 | CO59: 144.95852 | CP59: 0 | CQ59: 30 | CR59: 69.05412095 | CS59: 0 | CT59: 0 | CU59: 0 | CV59: 0 | CZ59: 0 | DA59: 0 | DB59: 0 | DE59: 1.647791899 | DF59: 0 | DG59: 67.40632906 | DH59: 0 | DI59: 0 | DK59: 0 | DL59: 0 | DN59: 0 | DO59: 0 | DP59: 0 | DQ59: 0 | DR59: 0 | DT59: C | DV59: 0 | DW59: 0 | DX59: 0 | DY59: 36.23963 | EA59: 108.71889 | EC59: 0 | EE59: 0 | EF59: 2.244852417 | EH59: 91.83032204 | EI59: 0 | EJ59: 0 | EK59: 0 | EL59: 0 | EO59: 0 | EP59: 0 | ER59: 0 | ET59: 0 | EV59: 140 | FA59: 0 | FB59: -83.4197843 | FD59: -83.4197843 | FF59: 0 | FG59: 0 | FH59: 0 | FI59: 0
A60: 1550 | B60: Regular | C60: Distribuição | D60: A3 | E60: Não se aplica | F60: Não se aplica | G60: Não se aplica | H60: EPB | I60: Não se aplica | J60: DISTRIBUIÇÃO | K60: 2021-12-01 | L60: 0 | M60: 0 | N60: 3811.665 | O60: 3811.665 | P60: 0 | Q60: 0 | S60: 2.82 | V60: 10748.8953 | W60: 10748.8953 | X60: 10901.3619 | Y60: 0 | Z60: 0 | AA60: 0 | AB60: 0 | AC60: 0 | AD60: 0 | AE60: 0 | AI60: 0 | AJ60: 0 | AK60: 0 | AL60: 0 | AN60: 0 | AO60: 0 | AP60: 0 | AQ60: 0 | AR60: 0 | AU60: 0 | AV60: 0 | AW60: 0 | AZ60: 0 | BB60: 98.94776791 | BC60: 0 | BD60: 0 | BE60: 256.4503938 | BG60: 10490.63273 | BH60: 0 | BI60: 16113.73 | BJ60: 0 | BK60: 0 | BL60: 0 | BV60: 10747.08313 | CI60: 10901.3762 | CJ60: 152.4509 | CO60: 152.4666 | CP60: 0 | CR60: 72.63075698 | CS60: 0 | CT60: 0 | CU60: 0 | CV60: 0 | CZ60: 0 | DA60: 0 | DB60: 0 | DE60: 1.733138751 | DF60: 0 | DG60: 70.89761823 | DH60: 0 | DI60: 0 | DK60: 0 | DL60: 0 | DN60: 0 | DO60: 0 | DP60: 0 | DQ60: 0 | DR60: 0 | DT60: C | DV60: 0 | DW60: 0 | DX60: 0 | DY60: 38.11665 | EA60: 114.34995 | EC60: 0 | EE60: 0 | EF60: 2.361123827 | EH60: 96.58664408 | EI60: 0 | EJ60: 0 | EK60: 0 | EL60: 0 | EO60: 0 | EP60: 0 | ER60: 0 | ET60: 0 | EV60: 140 | FA60: 0 | FB60: -83.4197843 | FD60: -83.4197843 | FF60: 0 | FG60: 0 | FH60: 0 | FI60: 0
A61: 1604 | B61: PROJETADO | C61: Distribuição | D61: A3 | E61: Não se aplica | F61: Não se aplica | G61: Não se aplica | H61: EPB | I61: Não se aplica | J61: DISTRIBUIÇÃO | K61: 2022-01-01 | L61: 0 | M61: 0 | N61: 3811.665 | O61: 3811.665 | P61: 0 | Q61: 0 | S61: 2.82 | V61: 10748.8953 | W61: 10748.8953 | X61: 10901.3619 | Y61: 0 | Z61: 0 | AA61: 0 | AB61: 0 | AC61: 0 | AD61: 0 | AE61: 0 | AI61: 0 | AJ61: 0 | AK61: 0 | AL61: 0 | AN61: 0 | AO61: 0 | AP61: 0 | AQ61: 0 | AR61: 0 | AU61: 0 | AV61: 0 | AW61: 0 | AZ61: 0 | BB61: 98.94776791 | BC61: 0 | BD61: 0 | BE61: 256.4503938 | BG61: 10490.63273 | BH61: 0 | BI61: 16113.73 | BJ61: 0 | BK61: 0 | BL61: 0 | BV61: 10747.08313 | CI61: 10901.3762 | CJ61: 152.4509 | CO61: 152.4666 | CP61: 0 | CQ61: 31 | CR61: 72.63075698 | CS61: 0 | CT61: 0 | CU61: 0 | CV61: 0 | CZ61: 0 | DA61: 0 | DB61: 0 | DE61: 1.733138751 | DF61: 0 | DG61: 70.89761823 | DH61: 0 | DI61: 0 | DK61: 0 | DL61: 0 | DN61: 0 | DO61: 0 | DP61: 0 | DQ61: 0 | DR61: 0 | DT61: C | DV61: 0 | DW61: 0 | DX61: 0 | DY61: 38.11665 | EA61: 114.34995 | EC61: 0 | EE61: 0 | EF61: 2.361123827 | EH61: 96.58664408 | EI61: 0 | EJ61: 0 | EK61: 0 | EL61: 0 | EO61: 0 | EP61: 0 | ER61: 0 | ET61: 0 | EV61: 140 | FA61: 0 | FB61: -83.4197843 | FD61: -83.4197843 | FF61: 0 | FG61: 0 | FH61: 0 | FI61: 0
A62: 1156 | B62: Regular | C62: Distribuição | D62: A3 | E62: Não se aplica | F62: Não se aplica | G62: Não se aplica | H62: EPB | I62: Ponta | J62: DISTRIBUIÇÃO | K62: 2021-02-01 | L62: 18000 | M62: 18000 | N62: 0 | O62: 0 | P62: 0 | Q62: 0 | R62: 13.08 | U62: 235440 | W62: 235440 | X62: 243360 | Y62: 0 | Z62: 0 | AA62: 0 | AB62: 0 | AC62: 2361.801172 | AD62: 90262.79061 | AE62: 38259.24172 | AI62: 0 | AJ62: 0 | AK62: 0 | AL62: 0 | AN62: 0 | AO62: 26813.08642 | AP62: 77754.73034 | AQ62: 0 | AR62: 0 | AU62: 0 | AV62: 0 | AW62: 0 | AZ62: 0 | BB62: 0 | BC62: 6464.012943 | BD62: 0 | BE62: 0 | BG62: 0 | BH62: 0 | BI62: 0 | BJ62: 0 | BK62: 0 | BL62: 0 | BV62: 0 | CI62: 243360 | CJ62: 7919.97 | CO62: 7920 | CP62: 0 | CQ62: 29 | CR62: 1503.30919 | CS62: 7.639755495e-11 | CT62: -4839.634066 | CU62: 0 | CV62: 0 | CZ62: 6342.943256 | DA62: 0 | DB62: 0 | DE62: 0 | DF62: 0 | DG62: 0 | DH62: 0 | DI62: 0 | DK62: 0 | DL62: 0 | DN62: 0 | DO62: 0 | DP62: 0 | DQ62: 0 | DR62: 0 | DT62: C | DU62: 38259.24172 | DW62: 0 | DX62: 0 | DY62: 1440 | EA62: 6480 | EC62: -97.68871584 | EE62: 0 | EF62: 0 | EH62: 0 | EI62: 4806.522684 | EJ62: 1657.490259 | EK62: 0 | EL62: 0 | EO62: 0 | EP62: 0 | ER62: 0 | ET62: 0 | EV62: 140 | FA62: 0 | FB62: -83.4197843 | FD62: -83.4197843 | FF62: 0 | FG62: 0 | FH62: 0 | FI62: 0
A63: 1186 | B63: Regular | C63: Distribuição | D63: A3 | E63: Não se aplica | F63: Não se aplica | G63: Não se aplica | H63: EPB | I63: Ponta | J63: DISTRIBUIÇÃO | K63: 2021-03-01 | L63: 18000 | M63: 18000 | N63: 0 | O63: 0 | P63: 0 | Q63: 0 | R63: 13.08 | U63: 235440 | W63: 235440 | X63: 243360 | Y63: 0 | Z63: 0 | AA63: 0 | AB63: 0 | AC63: 2361.801172 | AD63: 90262.79061 | AE63: 38259.24172 | AI63: 0 | AJ63: 0 | AK63: 0 | AL63: 0 | AN63: 0 | AO63: 26813.08642 | AP63: 77754.73034 | AQ63: 0 | AR63: 0 | AU63: 0 | AV63: 0 | AW63: 0 | AZ63: 0 | BB63: 0 | BC63: 6464.012943 | BD63: 0 | BE63: 0 | BG63: 0 | BH63: 0 | BI63: 0 | BJ63: 0 | BK63: 0 | BL63: 0 | BV63: 0 | CI63: 243360 | CJ63: 7919.97 | CO63: 7920 | CP63: 0 | CQ63: 31 | CR63: 1503.30919 | CS63: 7.639755495e-11 | CT63: -4839.634066 | CU63: 0 | CV63: 0 | CZ63: 6342.943256 | DA63: 0 | DB63: 0 | DE63: 0 | DF63: 0 | DG63: 0 | DH63: 0 | DI63: 0 | DK63: 0 | DL63: 0 | DN63: 0 | DO63: 0 | DP63: 0 | DQ63: 0 | DR63: 0 | DT63: C | DU63: 38259.24172 | DW63: 0 | DX63: 0 | DY63: 1440 | EA63: 6480 | EC63: -97.68871584 | EE63: 0 | EF63: 0 | EH63: 0 | EI63: 4806.522684 | EJ63: 1657.490259 | EK63: 0 | EL63: 0 | EO63: 0 | EP63: 0 | ER63: 0 | ET63: 0 | EV63: 140 | FA63: 0 | FB63: -83.4197843 | FD63: -83.4197843 | FF63: 0 | FG63: 0 | FH63: 0 | FI63: 0
A64: 1234 | B64: Regular | C64: Distribuição | D64: A3 | E64: Não se aplica | F64: Não se aplica | G64: Não se aplica | H64: EPB | I64: Ponta | J64: DISTRIBUIÇÃO | K64: 2021-04-01 | L64: 18000 | M64: 18000 | N64: 0 | O64: 0 | P64: 0 | Q64: 0 | R64: 13.08 | U64: 235440 | W64: 235440 | X64: 243360 | Y64: 0 | Z64: 0 | AA64: 0 | AB64: 0 | AC64: 2361.801172 | AD64: 90262.79061 | AE64: 38259.24172 | AI64: 0 | AJ64: 0 | AK64: 0 | AL64: 0 | AN64: 0 | AO64: 26813.08642 | AP64: 77754.73034 | AQ64: 0 | AR64: 0 | AU64: 0 | AV64: 0 | AW64: 0 | AZ64: 0 | BB64: 0 | BC64: 6464.012943 | BD64: 0 | BE64: 0 | BG64: 0 | BH64: 0 | BI64: 0 | BJ64: 0 | BK64: 0 | BL64: 0 | BV64: 0 | CI64: 243360 | CJ64: 7919.97 | CO64: 7920 | CP64: 0 | CQ64: 30 | CR64: 1503.30919 | CS64: 7.639755495e-11 | CT64: -4839.634066 | CU64: 0 | CV64: 0 | CZ64: 6342.943256 | DA64: 0 | DB64: 0 | DE64: 0 | DF64: 0 | DG64: 0 | DH64: 0 | DI64: 0 | DK64: 0 | DL64: 0 | DN64: 0 | DO64: 0 | DP64: 0 | DQ64: 0 | DR64: 0 | DT64: C | DU64: 38259.24172 | DW64: 0 | DX64: 0 | DY64: 1440 | EA64: 6480 | EC64: -97.68871584 | EE64: 0 | EF64: 0 | EH64: 0 | EI64: 4806.522684 | EJ64: 1657.490259 | EK64: 0 | EL64: 0 | EO64: 0 | EP64: 0 | ER64: 0 | ET64: 0 | EV64: 140 | FA64: 0 | FB64: -83.4197843 | FD64: -83.4197843 | FF64: 0 | FG64: 0 | FH64: 0 | FI64: 0
A65: 1288 | B65: Regular | C65: Distribuição | D65: A3 | E65: Não se aplica | F65: Não se aplica | G65: Não se aplica | H65: EPB | I65: Ponta | J65: DISTRIBUIÇÃO | K65: 2021-05-01 | L65: 18000 | M65: 18000 | N65: 0 | O65: 0 | P65: 0 | Q65: 0 | R65: 13.08 | U65: 235440 | W65: 235440 | X65: 243360 | Y65: 0 | Z65: 0 | AA65: 0 | AB65: 0 | AC65: 2361.801172 | AD65: 90262.79061 | AE65: 38259.24172 | AI65: 0 | AJ65: 0 | AK65: 0 | AL65: 0 | AN65: 0 | AO65: 26813.08642 | AP65: 77754.73034 | AQ65: 0 | AR65: 0 | AU65: 0 | AV65: 0 | AW65: 0 | AZ65: 0 | BB65: 0 | BC65: 6464.012943 | BD65: 0 | BE65: 0 | BG65: 0 | BH65: 0 | BI65: 0 | BJ65: 0 | BK65: 0 | BL65: 0 | BV65: 0 | CI65: 243360 | CJ65: 7919.97 | CO65: 7920 | CP65: 0 | CQ65: 31 | CR65: 1503.30919 | CS65: 7.639755495e-11 | CT65: -4839.634066 | CU65: 0 | CV65: 0 | CZ65: 6342.943256 | DA65: 0 | DB65: 0 | DE65: 0 | DF65: 0 | DG65: 0 | DH65: 0 | DI65: 0 | DK65: 0 | DL65: 0 | DN65: 0 | DO65: 0 | DP65: 0 | DQ65: 0 | DR65: 0 | DT65: C | DU65: 38259.24172 | DW65: 0 | DX65: 0 | DY65: 1440 | EA65: 6480 | EC65: -97.68871584 | EE65: 0 | EF65: 0 | EH65: 0 | EI65: 4806.522684 | EJ65: 1657.490259 | EK65: 0 | EL65: 0 | EO65: 0 | EP65: 0 | ER65: 0 | ET65: 0 | EV65: 140 | FA65: 0 | FB65: -83.4197843 | FD65: -83.4197843 | FF65: 0 | FG65: 0 | FH65: 0 | FI65: 0
A66: 1324 | B66: Regular | C66: Distribuição | D66: A3 | E66: Não se aplica | F66: Não se aplica | G66: Não se aplica | H66: EPB | I66: Ponta | J66: DISTRIBUIÇÃO | K66: 2021-06-01 | L66: 18000 | M66: 18000 | N66: 0 | O66: 0 | P66: 0 | Q66: 0 | R66: 13.08 | U66: 235440 | W66: 235440 | X66: 243360 | Y66: 0 | Z66: 0 | AA66: 0 | AB66: 0 | AC66: 2361.801172 | AD66: 90262.79061 | AE66: 38259.24172 | AI66: 0 | AJ66: 0 | AK66: 0 | AL66: 0 | AN66: 0 | AO66: 26813.08642 | AP66: 77754.73034 | AQ66: 0 | AR66: 0 | AU66: 0 | AV66: 0 | AW66: 0 | AZ66: 0 | BB66: 0 | BC66: 6464.012943 | BD66: 0 | BE66: 0 | BG66: 0 | BH66: 0 | BI66: 0 | BJ66: 0 | BK66: 0 | BL66: 0 | BV66: 0 | CI66: 243360 | CJ66: 7919.97 | CO66: 7920 | CP66: 0 | CQ66: 30 | CR66: 1503.30919 | CS66: 7.639755495e-11 | CT66: -4839.634066 | CU66: 0 | CV66: 0 | CZ66: 6342.943256 | DA66: 0 | DB66: 0 | DE66: 0 | DF66: 0 | DG66: 0 | DH66: 0 | DI66: 0 | DK66: 0 | DL66: 0 | DN66: 0 | DO66: 0 | DP66: 0 | DQ66: 0 | DR66: 0 | DT66: C | DU66: 38259.24172 | DW66: 0 | DX66: 0 | DY66: 1440 | EA66: 6480 | EC66: -97.68871584 | EE66: 0 | EF66: 0 | EH66: 0 | EI66: 4806.522684 | EJ66: 1657.490259 | EK66: 0 | EL66: 0 | EO66: 0 | EP66: 0 | ER66: 0 | ET66: 0 | EV66: 140 | FA66: 0 | FB66: -83.4197843 | FD66: -83.4197843 | FF66: 0 | FG66: 0 | FH66: 0 | FI66: 0
A67: 1372 | B67: Regular | C67: Distribuição | D67: A3 | E67: Não se aplica | F67: Não se aplica | G67: Não se aplica | H67: EPB | I67: Ponta | J67: DISTRIBUIÇÃO | K67: 2021-07-01 | L67: 18000 | M67: 18000 | N67: 0 | O67: 0 | P67: 0 | Q67: 0 | R67: 13.08 | U67: 235440 | W67: 235440 | X67: 243360 | Y67: 0 | Z67: 0 | AA67: 0 | AB67: 0 | AC67: 2361.801172 | AD67: 90262.79061 | AE67: 38259.24172 | AI67: 0 | AJ67: 0 | AK67: 0 | AL67: 0 | AN67: 0 | AO67: 26813.08642 | AP67: 77754.73034 | AQ67: 0 | AR67: 0 | AU67: 0 | AV67: 0 | AW67: 0 | AZ67: 0 | BB67: 0 | BC67: 6464.012943 | BD67: 0 | BE67: 0 | BG67: 0 | BH67: 0 | BI67: 0 | BJ67: 0 | BK67: 0 | BL67: 0 | BV67: 0 | CI67: 243360 | CJ67: 7919.97 | CO67: 7920 | CP67: 0 | CQ67: 31 | CR67: 1503.30919 | CS67: 7.639755495e-11 | CT67: -4839.634066 | CU67: 0 | CV67: 0 | CZ67: 6342.943256 | DA67: 0 | DB67: 0 | DE67: 0 | DF67: 0 | DG67: 0 | DH67: 0 | DI67: 0 | DK67: 0 | DL67: 0 | DN67: 0 | DO67: 0 | DP67: 0 | DQ67: 0 | DR67: 0 | DT67: C | DU67: 38259.24172 | DW67: 0 | DX67: 0 | DY67: 1440 | EA67: 6480 | EC67: -97.68871584 | EE67: 0 | EF67: 0 | EH67: 0 | EI67: 4806.522684 | EJ67: 1657.490259 | EK67: 0 | EL67: 0 | EO67: 0 | EP67: 0 | ER67: 0 | ET67: 0 | EV67: 140 | FA67: 0 | FB67: -83.4197843 | FD67: -83.4197843 | FF67: 0 | FG67: 0 | FH67: 0 | FI67: 0
A68: 1408 | B68: Regular | C68: Distribuição | D68: A3 | E68: Não se aplica | F68: Não se aplica | G68: Não se aplica | H68: EPB | I68: Ponta | J68: DISTRIBUIÇÃO | K68: 2021-08-01 | L68: 18000 | M68: 18000 | N68: 0 | O68: 0 | P68: 0 | Q68: 0 | R68: 13.08 | U68: 235440 | W68: 235440 | X68: 243360 | Y68: 0 | Z68: 0 | AA68: 0 | AB68: 0 | AC68: 2361.801172 | AD68: 90262.79061 | AE68: 38259.24172 | AI68: 0 | AJ68: 0 | AK68: 0 | AL68: 0 | AN68: 0 | AO68: 26813.08642 | AP68: 77754.73034 | AQ68: 0 | AR68: 0 | AU68: 0 | AV68: 0 | AW68: 0 | AZ68: 0 | BB68: 0 | BC68: 6464.012943 | BD68: 0 | BE68: 0 | BG68: 0 | BH68: 0 | BI68: 0 | BJ68: 0 | BK68: 0 | BL68: 0 | BV68: 0 | CI68: 243360 | CJ68: 7919.97 | CO68: 7920 | CP68: 0 | CQ68: 31 | CR68: 1503.30919 | CS68: 7.639755495e-11 | CT68: -4839.634066 | CU68: 0 | CV68: 0 | CZ68: 6342.943256 | DA68: 0 | DB68: 0 | DE68: 0 | DF68: 0 | DG68: 0 | DH68: 0 | DI68: 0 | DK68: 0 | DL68: 0 | DN68: 0 | DO68: 0 | DP68: 0 | DQ68: 0 | DR68: 0 | DT68: C | DU68: 38259.24172 | DW68: 0 | DX68: 0 | DY68: 1440 | EA68: 6480 | EC68: -97.68871584 | EE68: 0 | EF68: 0 | EH68: 0 | EI68: 4806.522684 | EJ68: 1657.490259 | EK68: 0 | EL68: 0 | EO68: 0 | EP68: 0 | ER68: 0 | ET68: 0 | EV68: 140 | FA68: 0 | FB68: -83.4197843 | FD68: -83.4197843 | FF68: 0 | FG68: 0 | FH68: 0 | FI68: 0
A69: 1438 | B69: Regular | C69: Distribuição | D69: A3 | E69: Não se aplica | F69: Não se aplica | G69: Não se aplica | H69: EPB | I69: Ponta | J69: DISTRIBUIÇÃO | K69: 2021-09-01 | L69: 18000 | M69: 18000 | N69: 0 | O69: 0 | P69: 0 | Q69: 0 | R69: 13.08 | U69: 235440 | W69: 235440 | X69: 243360 | Y69: 0 | Z69: 0 | AA69: 0 | AB69: 0 | AC69: 2361.801172 | AD69: 90262.79061 | AE69: 38259.24172 | AI69: 0 | AJ69: 0 | AK69: 0 | AL69: 0 | AN69: 0 | AO69: 26813.08642 | AP69: 77754.73034 | AQ69: 0 | AR69: 0 | AU69: 0 | AV69: 0 | AW69: 0 | AZ69: 0 | BB69: 0 | BC69: 6464.012943 | BD69: 0 | BE69: 0 | BG69: 0 | BH69: 0 | BI69: 0 | BJ69: 0 | BK69: 0 | BL69: 0 | BV69: 0 | CI69: 243360 | CJ69: 7919.97 | CO69: 7920 | CP69: 0 | CQ69: 30 | CR69: 1503.30919 | CS69: 7.639755495e-11 | CT69: -4839.634066 | CU69: 0 | CV69: 0 | CZ69: 6342.943256 | DA69: 0 | DB69: 0 | DE69: 0 | DF69: 0 | DG69: 0 | DH69: 0 | DI69: 0 | DK69: 0 | DL69: 0 | DN69: 0 | DO69: 0 | DP69: 0 | DQ69: 0 | DR69: 0 | DT69: C | DU69: 38259.24172 | DW69: 0 | DX69: 0 | DY69: 1440 | EA69: 6480 | EC69: -97.68871584 | EE69: 0 | EF69: 0 | EH69: 0 | EI69: 4806.522684 | EJ69: 1657.490259 | EK69: 0 | EL69: 0 | EO69: 0 | EP69: 0 | ER69: 0 | ET69: 0 | EV69: 140 | FA69: 0 | FB69: -83.4197843 | FD69: -83.4197843 | FF69: 0 | FG69: 0 | FH69: 0 | FI69: 0
A70: 1468 | B70: Regular | C70: Distribuição | D70: A3 | E70: Não se aplica | F70: Não se aplica | G70: Não se aplica | H70: EPB | I70: Ponta | J70: DISTRIBUIÇÃO | K70: 2021-10-01 | L70: 18624 | M70: 18624 | N70: 0 | O70: 0 | P70: 0 | Q70: 0 | R70: 13.08 | U70: 243601.92 | W70: 243601.92 | X70: 251796.48 | Y70: 0 | Z70: 0 | AA70: 0 | AB70: 0 | AC70: 2443.676946 | AD70: 93391.90068 | AE70: 39585.5621 | AI70: 0 | AJ70: 0 | AK70: 0 | AL70: 0 | AN70: 0 | AO70: 27742.60675 | AP70: 80450.22765 | AQ70: 0 | AR70: 0 | AU70: 0 | AV70: 0 | AW70: 0 | AZ70: 0 | BB70: 0 | BC70: 6688.098725 | BD70: 0 | BE70: 0 | BG70: 0 | BH70: 0 | BI70: 0 | BJ70: 0 | BK70: 0 | BL70: 0 | BV70: 0 | CI70: 251796.48 | CJ70: 8194.53 | CO70: 8194.56 | CP70: 0 | CQ70: 31 | CR70: 1555.423909 | CS70: 8.367351256e-11 | CT70: -5007.408047 | CU70: 0 | CV70: 0 | CZ70: 6562.831956 | DA70: 0 | DB70: 0 | DE70: 0 | DF70: 0 | DG70: 0 | DH70: 0 | DI70: 0 | DK70: 0 | DL70: 0 | DN70: 0 | DO70: 0 | DP70: 0 | DQ70: 0 | DR70: 0 | DT70: C | DU70: 39585.5621 | DW70: 0 | DX70: 0 | DY70: 1489.92 | EA70: 6704.64 | EC70: -101.075258 | EE70: 0 | EF70: 0 | EH70: 0 | EI70: 4973.148804 | EJ70: 1714.949921 | EK70: 0 | EL70: 0 | EO70: 0 | EP70: 0 | ER70: 0 | ET70: 0 | EV70: 140 | FA70: 0 | FB70: -83.4197843 | FD70: -83.4197843 | FF70: 0 | FG70: 0 | FH70: 0 | FI70: 0
A71: 1498 | B71: Regular | C71: Distribuição | D71: A3 | E71: Não se aplica | F71: Não se aplica | G71: Não se aplica | H71: EPB | I71: Ponta | J71: DISTRIBUIÇÃO | K71: 2021-11-01 | L71: 18000 | M71: 18000 | N71: 0 | O71: 0 | P71: 0 | Q71: 0 | R71: 13.08 | U71: 235440 | W71: 235440 | X71: 243360 | Y71: 0 | Z71: 0 | AA71: 0 | AB71: 0 | AC71: 2361.801172 | AD71: 90262.79061 | AE71: 38259.24172 | AI71: 0 | AJ71: 0 | AK71: 0 | AL71: 0 | AN71: 0 | AO71: 26813.08642 | AP71: 77754.73034 | AQ71: 0 | AR71: 0 | AU71: 0 | AV71: 0 | AW71: 0 | AZ71: 0 | BB71: 0 | BC71: 6464.012943 | BD71: 0 | BE71: 0 | BG71: 0 | BH71: 0 | BI71: 0 | BJ71: 0 | BK71: 0 | BL71: 0 | BV71: 0 | CI71: 243360 | CJ71: 7919.97 | CO71: 7920 | CP71: 0 | CQ71: 30 | CR71: 1503.30919 | CS71: 7.639755495e-11 | CT71: -4839.634066 | CU71: 0 | CV71: 0 | CZ71: 6342.943256 | DA71: 0 | DB71: 0 | DE71: 0 | DF71: 0 | DG71: 0 | DH71: 0 | DI71: 0 | DK71: 0 | DL71: 0 | DN71: 0 | DO71: 0 | DP71: 0 | DQ71: 0 | DR71: 0 | DT71: C | DU71: 38259.24172 | DW71: 0 | DX71: 0 | DY71: 1440 | EA71: 6480 | EC71: -97.68871584 | EE71: 0 | EF71: 0 | EH71: 0 | EI71: 4806.522684 | EJ71: 1657.490259 | EK71: 0 | EL71: 0 | EO71: 0 | EP71: 0 | ER71: 0 | ET71: 0 | EV71: 140 | FA71: 0 | FB71: -83.4197843 | FD71: -83.4197843 | FF71: 0 | FG71: 0 | FH71: 0 | FI71: 0
A72: 1546 | B72: Regular | C72: Distribuição | D72: A3 | E72: Não se aplica | F72: Não se aplica | G72: Não se aplica | H72: EPB | I72: Ponta | J72: DISTRIBUIÇÃO | K72: 2021-12-01 | L72: 18000 | M72: 18000 | N72: 0 | O72: 0 | P72: 0 | Q72: 0 | R72: 13.08 | U72: 235440 | W72: 235440 | X72: 243360 | Y72: 0 | Z72: 0 | AA72: 0 | AB72: 0 | AC72: 2361.801172 | AD72: 90262.79061 | AE72: 38259.24172 | AI72: 0 | AJ72: 0 | AK72: 0 | AL72: 0 | AN72: 0 | AO72: 26813.08642 | AP72: 77754.73034 | AQ72: 0 | AR72: 0 | AU72: 0 | AV72: 0 | AW72: 0 | AZ72: 0 | BB72: 0 | BC72: 6464.012943 | BD72: 0 | BE72: 0 | BG72: 0 | BH72: 0 | BI72: 0 | BJ72: 0 | BK72: 0 | BL72: 0 | BV72: 0 | CI72: 243360 | CJ72: 7919.97 | CO72: 7920 | CP72: 0 | CR72: 1503.30919 | CS72: 7.639755495e-11 | CT72: -4839.634066 | CU72: 0 | CV72: 0 | CZ72: 6342.943256 | DA72: 0 | DB72: 0 | DE72: 0 | DF72: 0 | DG72: 0 | DH72: 0 | DI72: 0 | DK72: 0 | DL72: 0 | DN72: 0 | DO72: 0 | DP72: 0 | DQ72: 0 | DR72: 0 | DT72: C | DU72: 38259.24172 | DW72: 0 | DX72: 0 | DY72: 1440 | EA72: 6480 | EC72: -97.68871584 | EE72: 0 | EF72: 0 | EH72: 0 | EI72: 4806.522684 | EJ72: 1657.490259 | EK72: 0 | EL72: 0 | EO72: 0 | EP72: 0 | ER72: 0 | ET72: 0 | EV72: 140 | FA72: 0 | FB72: -83.4197843 | FD72: -83.4197843 | FF72: 0 | FG72: 0 | FH72: 0 | FI72: 0
A73: 1600 | B73: PROJETADO | C73: Distribuição | D73: A3 | E73: Não se aplica | F73: Não se aplica | G73: Não se aplica | H73: EPB | I73: Ponta | J73: DISTRIBUIÇÃO | K73: 2022-01-01 | L73: 18000 | M73: 18000 | N73: 0 | O73: 0 | P73: 0 | Q73: 0 | R73: 13.08 | U73: 235440 | W73: 235440 | X73: 243360 | Y73: 0 | Z73: 0 | AA73: 0 | AB73: 0 | AC73: 2361.801172 | AD73: 90262.79061 | AE73: 38259.24172 | AI73: 0 | AJ73: 0 | AK73: 0 | AL73: 0 | AN73: 0 | AO73: 26813.08642 | AP73: 77754.73034 | AQ73: 0 | AR73: 0 | AU73: 0 | AV73: 0 | AW73: 0 | AZ73: 0 | BB73: 0 | BC73: 6464.012943 | BD73: 0 | BE73: 0 | BG73: 0 | BH73: 0 | BI73: 0 | BJ73: 0 | BK73: 0 | BL73: 0 | BV73: 0 | CI73: 243360 | CJ73: 7919.97 | CO73: 7920 | CP73: 0 | CQ73: 31 | CR73: 1503.30919 | CS73: 7.639755495e-11 | CT73: -4839.634066 | CU73: 0 | CV73: 0 | CZ73: 6342.943256 | DA73: 0 | DB73: 0 | DE73: 0 | DF73: 0 | DG73: 0 | DH73: 0 | DI73: 0 | DK73: 0 | DL73: 0 | DN73: 0 | DO73: 0 | DP73: 0 | DQ73: 0 | DR73: 0 | DT73: C | DU73: 38259.24172 | DW73: 0 | DX73: 0 | DY73: 1440 | EA73: 6480 | EC73: -97.68871584 | EE73: 0 | EF73: 0 | EH73: 0 | EI73: 4806.522684 | EJ73: 1657.490259 | EK73: 0 | EL73: 0 | EO73: 0 | EP73: 0 | ER73: 0 | ET73: 0 | EV73: 140 | FA73: 0 | FB73: -83.4197843 | FD73: -83.4197843 | FF73: 0 | FG73: 0 | FH73: 0 | FI73: 0
A74: 35 | B74: Regular | C74: Azul | D74: A4 | E74: Comercial | F74: Não se aplica | G74: Não se aplica | H74: Não se aplica | I74: Fora ponta | J74: CATIVO | K74: 2021-02-01 | L74: 2248 | M74: 2248 | N74: 785.98 | O74: 785.98 | P74: 785.98 | Q74: 785.98 | R74: 18.24 | S74: 39.32 | T74: 224.83 | U74: 41003.52 | V74: 207616.617 | W74: 248620.137 | X74: 248004.2664 | Y74: 0 | Z74: 15994.16294 | AA74: 0 | AB74: 0 | AC74: 264.4489003 | AD74: 5652.485835 | AE74: 23053.04338 | AF74: 158559.0703 | AG74: 7505.454549 | AH74: 0 | AI74: 35.84611163 | AJ74: 0 | AK74: 1990.064028 | AL74: 7404.816949 | AN74: 278.7011069 | AO74: 3113.670492 | AP74: 8930.192137 | AQ74: 0 | AR74: 0 | AS74: 1.476166256e-09 | AT74: 0 | AU74: 0 | AV74: 388.0884192 | AW74: 116.5199785 | AX74: 0 | AY74: -6855.741187 | AZ74: 0 | BB74: 1546.278975 | BC74: 744.5090309 | BD74: 1468.28806 | BE74: 106.3600239 | BF74: 3462.485199 | BG74: 4350.87633 | BH74: 0 | BI74: 0 | BJ74: 0 | BK74: 0 | BL74: 0 | BV74: 167947.0799 | CI74: 248004.2664 | CJ74: -615.9006 | CO74: 3942.8134 | CP74: -4558.684 | CQ74: 29 | CR74: 8111.397715 | CS74: -5.456968211e-12 | CT74: -555.8357915 | CU74: 0 | CV74: 0 | CW74: 0 | CX74: 0 | CY74: 0 | CZ74: 397.2112613 | DA74: 0 | DB74: 0 | DC74: 1071.57125 | DD74: 23.40010941 | DE74: 0.71880053 | DF74: 9.92295975 | DG74: 29.40401946 | DH74: 0 | DI74: 2800.134939 | DK74: 0 | DL74: 0.586774971 | DM74: 4333.326415 | DN74: 0 | DO74: 0.8225601745 | DP74: 0.1344175508 | DQ74: 0 | DR74: 0 | DU74: 23053.04338 | DV74: 0 | DW74: 0 | DX74: 0 | DY74: 2642.9276 | DZ74: 5242.4866 | EA74: 1299.8858 | EB74: -9801.1706 | EC74: -58.86217561 | ED74: 1459.844118 | EE74: 13.51844259 | EF74: 0.9792505403 | EG74: 31.8788994 | EH74: 40.05826476 | EI74: 552.0329232 | EJ74: 192.4761077 | EK74: 0 | EL74: 0 | EM74: 0 | EN74: 0 | EO74: 0 | EP74: 1104.897555 | EQ74: 5356.579977 | ER74: 0 | ES74: -4437.668529 | ET74: 0 | EU74: -184.0762867 | EV74: 140 | EW74: 0 | EX74: 0 | EY74: 0 | FA74: 0 | FB74: -83.4197843 | FD74: -83.4197843 | FF74: 0 | FG74: 0 | FH74: 0 | FI74: 0
A75: 36 | B75: Sistema de Compensação | C75: Azul | D75: A4 | E75: Comercial | F75: Não se aplica | G75: Não se aplica | H75: Não se aplica | I75: Fora ponta | J75: CATIVO | K75: 2021-02-01 | L75: 240 | M75: 240 | N75: 79.8 | O75: 79.8 | P75: 79.8 | Q75: 79.8 | R75: 18.24 | S75: 39.32 | T75: 224.83 | U75: 4377.6 | V75: 21079.17 | W75: 25456.77 | X75: 25397.064 | Y75: 0 | Z75: 1623.876183 | AA75: 0 | AB75: 0 | AC75: 28.23297868 | AD75: 603.4682386 | AE75: 2461.179009 | AF75: 16098.39157 | AG75: 762.023554 | AH75: 0 | AI75: 3.639430657 | AJ75: 0 | AK75: 202.0498097 | AL75: 751.8058888 | AN75: 28.29632857 | AO75: 332.4203373 | AP75: 953.4012957 | AQ75: 0 | AR75: 0 | AS75: 1.498741281e-10 | AT75: 0 | AU75: 0 | AV75: 39.40234593 | AW75: 11.83019196 | AX75: 0 | AY75: -696.0586105 | AZ75: 0 | BB75: 156.9926235 | BC75: 79.48494992 | BD75: 149.0742604 | BE75: 10.79865888 | BF75: 351.5437019 | BG75: 441.7414325 | BH75: 0 | BI75: 0 | BJ75: 0 | BK75: 0 | BL75: 0 | BV75: 17051.54962 | CI75: 25397.064 | CJ75: -59.736 | CO75: 403.134 | CP75: -462.84 | CQ75: 29 | CR75: 822.7145746 | CS75: -5.684341886e-13 | CT75: -59.34189945 | CU75: 0 | CV75: 0 | CW75: 0 | CX75: 0 | CY75: 0 | CZ75: 42.40689622 | DA75: 0 | DB75: 0 | DC75: 108.79588 | DD75: 2.375796752 | DE75: 0.07297931537 | DF75: 1.007471167 | DG75: 2.985369542 | DH75: 0 | DI75: 284.2957431 | DK75: 0 | DL75: 0.05957485265 | DM75: 439.9596019 | DN75: 0 | DO75: 0.08351395954 | DP75: 0.01364731998 | DQ75: 0 | DR75: 0 | DU75: 2461.179009 | DV75: 0 | DW75: 0 | DX75: 0 | DY75: 267.276 | DZ75: 532.266 | EA75: 135.858 | EB75: -995.106 | EC75: -6.284218036 | ED75: 148.2169528 | EE75: 1.372518027 | EF75: 0.09942262287 | EG75: 3.236642373 | EH75: 4.06708762 | EI75: 58.93589927 | EJ75: 20.54905065 | EK75: 0 | EL75: 0 | EM75: 0 | EN75: 0 | EO75: 0 | EP75: 112.1794764 | EQ75: 543.8498209 | ER75: 0 | ES75: -450.5533838 | ET75: 0 | EU75: -18.68913672 | EV75: 140 | EW75: 0 | EX75: 0 | EY75: 0 | FA75: 0 | FB75: -83.4197843 | FD75: -83.4197843 | FF75: 0 | FG75: 0 | FH75: 0 | FI75: 0
A76: 133 | B76: Regular | C76: Azul | D76: A4 | E76: Comercial | F76: Não se aplica | G76: Não se aplica | H76: Não se aplica | I76: Fora ponta | J76: CATIVO | K76: 2021-03-01 | L76: 2224 | M76: 2224 | N76: 828.036 | O76: 828.036 | P76: 828.036 | Q76: 828.036 | R76: 18.24 | S76: 39.32 | T76: 224.83 | U76: 40565.76 | V76: 218725.7094 | W76: 259291.4694 | X76: 258608.0165 | Y76: 0 | Z76: 16849.97417 | AA76: 0 | AB76: 0 | AC76: 261.6256024 | AD76: 5592.139011 | AE76: 22806.92548 | AF76: 167043.2051 | AG76: 7907.05433 | AH76: 0 | AI76: 37.76415543 | AJ76: 0 | AK76: 2096.547823 | AL76: 7801.031842 | AN76: 293.6137685 | AO76: 3080.428459 | AP76: 8834.852007 | AQ76: 0 | AR76: 0 | AS76: 1.555152551e-09 | AT76: 0 | AU76: 0 | AV76: 408.8541468 | AW76: 122.7546972 | AX76: 0 | AY76: -7222.576286 | AZ76: 0 | BB76: 1629.016842 | BC76: 736.5605359 | BD76: 1546.852811 | BE76: 112.0511066 | BF76: 3647.754897 | BG76: 4583.681814 | BH76: 0 | BI76: 0 | BJ76: 0 | BK76: 0 | BL76: 0 | BV76: 176933.5457 | CI76: 258609.0672 | CJ76: -682.4322 | CO76: 4119.15588 | CP76: -4802.6088 | CQ76: 31 | CR76: 8555.601274 | CS76: -5.00222086e-12 | CT76: -549.9016016 | CU76: 0 | CV76: 0 | CW76: 0 | CX76: 0 | CY76: 0 | CZ76: 392.9705717 | DA76: 0 | DB76: 0 | DC76: 1128.908587 | DD76: 24.65219598 | DE76: 0.7572619095 | DF76: 10.45391473 | DG76: 30.97736158 | DH76: 0 | DI76: 2949.963783 | DK76: 0 | DL76: 0.6181719635 | DM76: 4565.192843 | DN76: 0 | DO76: 0.8665734963 | DP76: 0.1416099279 | DQ76: 0 | DR76: 0 | DU76: 22806.92548 | DV76: 0 | DW76: 0 | DX76: 0 | DY76: 2797.33032 | DZ76: 5523.00012 | EA76: 1321.82556 | EB76: -10325.60892 | EC76: -58.2337538 | ED76: 1537.957052 | EE76: 14.24178367 | EF76: 1.031648007 | EG76: 33.58466671 | EH76: 42.20169129 | EI76: 546.1393332 | EJ76: 190.4212027 | EK76: 0 | EL76: 0 | EM76: 0 | EN76: 0 | EO76: 0 | EP76: 1164.018107 | EQ76: 5643.198374 | ER76: 0 | ES76: -4675.118066 | ET76: 0 | EU76: -193.9257896 | EV76: 140 | EW76: 0 | EX76: 0 | EY76: 0 | FA76: 0 | FB76: -83.4197843 | FD76: -83.4197843 | FF76: 0 | FG76: 0 | FH76: 0 | FI76: 0
A77: 134 | B77: Refaturamento - Regular | C77: Azul | D77: A4 | E77: Comercial | F77: Não se aplica | G77: Não se aplica | H77: Não se aplica | I77: Fora ponta | J77: CATIVO | K77: 2021-03-01 | L77: -237 | M77: -237 | N77: 0 | O77: 0 | P77: 0 | Q77: 0 | R77: 18.24 | U77: -4322.88 | W77: -4322.88 | X77: -4379.76 | Y77: 0 | Z77: 0 | AA77: 0 | AB77: 0 | AC77: -27.88006644 | AD77: -595.9248856 | AE77: -2430.414271 | AI77: 0 | AJ77: 0 | AK77: 0 | AL77: 0 | AN77: 0 | AO77: -328.265083 | AP77: -941.4837795 | AQ77: 0 | AR77: 0 | AU77: 0 | AV77: 0 | AW77: 0 | AZ77: 0 | BB77: 0 | BC77: -78.49138804 | BD77: 0 | BE77: 0 | BG77: 0 | BH77: 0 | BI77: 0 | BJ77: 0 | BK77: 0 | BL77: 0 | BV77: 0 | CI77: -4379.76 | CJ77: -56.91 | CO77: -56.88 | CP77: 0 | CQ77: 31 | CR77: 16.72331569 | CS77: 6.252776075e-13 | CT77: 58.60012571 | CU77: 0 | CV77: 0 | CZ77: -41.87681002 | DA77: 0 | DB77: 0 | DE77: 0 | DF77: 0 | DG77: 0 | DH77: 0 | DI77: 0 | DK77: 0 | DL77: 0 | DN77: 0 | DO77: 0 | DP77: 0 | DQ77: 0 | DR77: 0 | DU77: -2430.414271 | DW77: 0 | DX77: 0 | DY77: 21.33 | EA77: -78.21 | EC77: 6.205665311 | EE77: 0 | EF77: 0 | EH77: 0 | EI77: -58.19920053 | EJ77: -20.29218751 | EK77: 0 | EL77: 0 | EO77: 0 | EP77: 0 | ER77: 0 | ET77: 0 | EV77: 140 | FA77: 0 | FB77: -83.4197843 | FD77: -83.4197843 | FF77: 0 | FG77: 0 | FH77: 0 | FI77: 0
A78: 135 | B78: Sistema de Compensação | C78: Azul | D78: A4 | E78: Comercial | F78: Não se aplica | G78: Não se aplica | H78: Não se aplica | I78: Fora ponta | J78: CATIVO | K78: 2021-03-01 | L78: 240 | M78: 240 | N78: 89.32 | O78: 89.32 | P78: 89.32 | Q78: 89.32 | R78: 18.24 | S78: 39.32 | T78: 224.83 | U78: 4377.6 | V78: 23593.878 | W78: 27971.478 | X78: 27897.7776 | Y78: 0 | Z78: 1817.601763 | AA78: 0 | AB78: 0 | AC78: 28.23297868 | AD78: 603.4682386 | AE78: 2461.179009 | AF78: 18018.90144 | AG78: 852.9316271 | AH78: 0 | AI78: 4.07360835 | AJ78: 0 | AK78: 226.1539975 | AL78: 841.4950124 | AN78: 31.67203093 | AO78: 332.4203373 | AP78: 953.4012957 | AQ78: 0 | AR78: 0 | AS78: 1.677538487e-10 | AT78: 0 | AU78: 0 | AV78: 44.10297667 | AW78: 13.24151311 | AX78: 0 | AY78: -779.0971816 | AZ78: 0 | BB78: 175.721568 | BC78: 79.48494992 | BD78: 166.8585582 | BE78: 12.08691994 | BF78: 393.4822488 | BG78: 494.4404104 | BH78: 0 | BI78: 0 | BJ78: 0 | BK78: 0 | BL78: 0 | BV78: 19085.76958 | CI78: 27897.7776 | CJ78: -73.7304 | CO78: 444.3556 | CP78: -518.056 | CQ78: 31 | CR78: 922.8832962 | CS78: -5.684341886e-13 | CT78: -59.34189945 | CU78: 0 | CV78: 0 | CW78: 0 | CX78: 0 | CY78: 0 | CZ78: 42.40689622 | DA78: 0 | DB78: 0 | DC78: 121.7750376 | DD78: 2.659225136 | DE78: 0.08168561966 | DF78: 1.12766071 | DG78: 3.341518891 | DH78: 0 | DI78: 318.2117265 | DK78: 0 | DL78: 0.06668202805 | DM78: 492.4460105 | DN78: 0 | DO78: 0.0934770284 | DP78: 0.01527542131 | DQ78: 0 | DR78: 0 | DU78: 2461.179009 | DV78: 0 | DW78: 0 | DX78: 0 | DY78: 301.7384 | DZ78: 595.7644 | EA78: 142.6172 | EB78: -1113.8204 | EC78: -6.284218036 | ED78: 165.8989753 | EE78: 1.536257019 | EF78: 0.1112835673 | EG78: 3.622768129 | EH78: 4.552284038 | EI78: 58.93589927 | EJ78: 20.54905065 | EK78: 0 | EL78: 0 | EM78: 0 | EN78: 0 | EO78: 0 | EP78: 125.5622911 | EQ78: 608.7301504 | ER78: 0 | ES78: -504.303612 | ET78: 0 | EU78: -20.91871794 | EV78: 140 | EW78: 0 | EX78: 0 | EY78: 0 | FA78: 0 | FB78: -83.4197843 | FD78: -83.4197843 | FF78: 0 | FG78: 0 | FH78: 0 | FI78: 0
A79: 231 | B79: Regular | C79: Azul | D79: A4 | E79: Comercial | F79: Não se aplica | G79: Não se aplica | H79: Não se aplica | I79: Fora ponta | J79: CATIVO | K79: 2021-04-01 | L79: 2231 | M79: 2231 | N79: 821.194 | O79: 821.194 | P79: 821.194 | Q79: 821.194 | R79: 18.24 | S79: 39.32 | T79: 224.83 | U79: 40693.44 | V79: 216918.3951 | W79: 257611.8351 | X79: 256940.1199 | Y79: 0 | Z79: 16710.74409 | AA79: 0 | AB79: 0 | AC79: 262.4490643 | AD79: 5609.740168 | AE79: 22878.70987 | AF79: 165662.9394 | AG79: 7841.718928 | AH79: 0 | AI79: 37.45211302 | AJ79: 0 | AK79: 2079.224204 | AL79: 7736.572495 | AN79: 291.1876597 | AO79: 3090.124052 | AP79: 8862.659545 | AQ79: 0 | AR79: 0 | AS79: 1.542302441e-09 | AT79: 0 | AU79: 0 | AV79: 405.4758153 | AW79: 121.7403842 | AX79: 0 | AY79: -7162.896674 | AZ79: 0 | BB79: 1615.556397 | BC79: 738.8788469 | BD79: 1534.071281 | BE79: 111.1252366 | BF79: 3617.613769 | BG79: 4545.807192 | BH79: 0 | BI79: 0 | BJ79: 0 | BK79: 0 | BL79: 0 | BV79: 175471.5569 | CI79: 256939.0692 | CJ79: -672.7959 | CO79: 4091.21002 | CP79: -4762.9252 | CQ79: 30 | CR79: 8483.116329 | CS79: -5.456968211e-12 | CT79: -551.632407 | CU79: 0 | CV79: 0 | CW79: 0 | CX79: 0 | CY79: 0 | CZ79: 394.2074395 | DA79: 0 | DB79: 0 | DC79: 1119.5805 | DD79: 24.44849671 | DE79: 0.7510047106 | DF79: 10.36753481 | DG79: 30.72139794 | DH79: 0 | DI79: 2925.588452 | DK79: 0 | DL79: 0.6130640545 | DM79: 4527.470994 | DN79: 0 | DO79: 0.8594130638 | DP79: 0.1404398156 | DQ79: 0 | DR79: 0 | DU79: 22878.70987 | DV79: 0 | DW79: 0 | DX79: 0 | DY79: 2771.93228 | DZ79: 5477.36398 | EA79: 1319.27774 | EB79: -10240.28918 | EC79: -58.4170435 | ED79: 1525.249027 | EE79: 14.12410487 | EF79: 1.023123576 | EG79: 33.30715911 | EH79: 41.85298185 | EI79: 547.858297 | EJ79: 191.02055 | EK79: 0 | EL79: 0 | EM79: 0 | EN79: 0 | EO79: 0 | EP79: 1154.399912 | EQ79: 5596.569045 | ER79: 0 | ES79: -4636.487913 | ET79: 0 | EU79: -192.3233952 | EV79: 140 | EW79: 0 | EX79: 0 | EY79: 0 | FA79: 0 | FB79: -83.4197843 | FD79: -83.4197843 | FF79: 0 | FG79: 0 | FH79: 0 | FI79: 0
A80: 232 | B80: Sistema de Compensação | C80: Azul | D80: A4 | E80: Comercial | F80: Não se aplica | G80: Não se aplica | H80: Não se aplica | I80: Fora ponta | J80: CATIVO | K80: 2021-04-01 | L80: 235 | M80: 235 | N80: 93.24 | O80: 93.24 | P80: 93.24 | Q80: 93.24 | R80: 18.24 | S80: 39.32 | T80: 224.83 | U80: 4286.4 | V80: 24629.346 | W80: 28915.746 | X80: 28835.0832 | Y80: 0 | Z80: 1897.371119 | AA80: 0 | AB80: 0 | AC80: 27.64479162 | AD80: 590.8959836 | AE80: 2409.904446 | AF80: 18809.69963 | AG80: 890.3643631 | AH80: 0 | AI80: 4.2523874 | AJ80: 0 | AK80: 236.0792514 | AL80: 878.425828 | AN80: 33.06202601 | AO80: 325.4949136 | AP80: 933.5387687 | AQ80: 0 | AR80: 0 | AS80: 1.751160865e-10 | AT80: 0 | AU80: 0 | AV80: 46.03853051 | AW80: 13.82264535 | AX80: 0 | AY80: -813.2895344 | AZ80: 0 | BB80: 183.4334864 | BC80: 77.82901346 | BD80: 174.1815043 | BE80: 12.61738037 | BF80: 410.7510623 | BG80: 516.1399895 | BH80: 0 | BI80: 0 | BJ80: 0 | BK80: 0 | BL80: 0 | BV80: 19923.38956 | CI80: 28835.0832 | CJ80: -80.6928 | CO80: 460.1292 | CP80: -540.792 | CQ80: 30 | CR80: 964.4820529 | CS80: -6.252776075e-13 | CT80: -58.10560988 | CU80: 0 | CV80: 0 | CW80: 0 | CX80: 0 | CY80: 0 | CZ80: 41.52341922 | DA80: 0 | DB80: 0 | DC80: 127.1193966 | DD80: 2.775930942 | DE80: 0.08527056848 | DF80: 1.177150522 | DG80: 3.488168623 | DH80: 0 | DI80: 332.1771314 | DK80: 0 | DL80: 0.06960851204 | DM80: 514.0580611 | DN80: 0 | DO80: 0.09757946852 | DP80: 0.01594581597 | DQ80: 0 | DR80: 0 | DU80: 2409.904446 | DV80: 0 | DW80: 0 | DX80: 0 | DY80: 316.3788 | DZ80: 621.9108 | EA80: 143.7504 | EB80: -1162.7028 | EC80: -6.153296827 | ED80: 173.1798081 | EE80: 1.603678957 | EF80: 0.1161674857 | EG80: 3.781761088 | EH80: 4.752070799 | EI80: 57.70806804 | EJ80: 20.12094542 | EK80: 0 | EL80: 0 | EM80: 0 | EN80: 0 | EO80: 0 | EP80: 131.0728619 | EQ80: 635.4455802 | ER80: 0 | ES80: -526.4360589 | ET80: 0 | EU80: -21.8367808 | EV80: 140 | EW80: 0 | EX80: 0 | EY80: 0 | FA80: 0 | FB80: -83.4197843 | FD80: -83.4197843 | FF80: 0 | FG80: 0 | FH80: 0 | FI80: 0
A81: 329 | B81: Regular | C81: Azul | D81: A4 | E81: Comercial | F81: Não se aplica | G81: Não se aplica | H81: Não se aplica | I81: Fora ponta | J81: CATIVO | K81: 2021-05-01 | L81: 2133 | M81: 2133 | N81: 806.961 | O81: 806.961 | P81: 806.961 | Q81: 806.961 | R81: 18.24 | S81: 39.32 | T81: 224.83 | U81: 38905.92 | V81: 213158.7482 | W81: 252064.6682 | X81: 251390.3555 | Y81: 0 | Z81: 16421.11214 | AA81: 0 | AB81: 0 | AC81: 250.920598 | AD81: 5363.32397 | AE81: 21873.72844 | AF81: 162791.6561 | AG81: 7705.805629 | AH81: 0 | AI81: 36.80299001 | AJ81: 0 | AK81: 2043.186924 | AL81: 7602.481602 | AN81: 286.1407719 | AO81: 2954.385747 | AP81: 8473.354016 | AQ81: 0 | AR81: 0 | AS81: 1.515571132e-09 | AT81: 0 | AU81: 0 | AV81: 398.4480761 | AW81: 119.6303702 | AX81: 0 | AY81: -7038.748777 | AZ81: 0 | BB81: 1587.555444 | BC81: 706.4224924 | BD81: 1507.482635 | BE81: 109.1992051 | BF81: 3554.912998 | BG81: 4467.018898 | BH81: 0 | BI81: 0 | BJ81: 0 | BK81: 0 | BL81: 0 | BV81: 172430.2699 | CI81: 251390.0928 | CJ81: -674.60535 | CO81: 4006.06113 | CP81: -4680.3738 | CQ81: 31 | CR81: 8340.272903 | CS81: -5.00222086e-12 | CT81: -527.4011314 | CU81: 0 | CV81: 0 | CW81: 0 | CX81: 0 | CY81: 0 | CZ81: 376.8912902 | DA81: 0 | DB81: 0 | DC81: 1100.175841 | DD81: 24.02475342 | DE81: 0.737988237 | DF81: 10.18784387 | DG81: 30.18893222 | DH81: 0 | DI81: 2874.881919 | DK81: 0 | DL81: 0.6024383793 | DM81: 4449.000505 | DN81: 0 | DO81: 0.844517648 | DP81: 0.1380057015 | DQ81: 0 | DR81: 0 | DU81: 21873.72844 | DV81: 0 | DW81: 0 | DX81: 0 | DY81: 2729.22882 | DZ81: 5382.42987 | EA81: 1276.83231 | EB81: -10062.80367 | EC81: -55.8509878 | ED81: 1498.813289 | EE81: 13.87930475 | EF81: 1.005390716 | EG81: 32.72987676 | EH81: 41.12758262 | EI81: 523.7928048 | EJ81: 182.6296876 | EK81: 0 | EL81: 0 | EM81: 0 | EN81: 0 | EO81: 0 | EP81: 1134.39176 | EQ81: 5499.568863 | ER81: 0 | ES81: -4556.127934 | ET81: 0 | EU81: -188.9900308 | EV81: 140 | EW81: 0 | EX81: 0 | EY81: 0 | FA81: 0 | FB81: -83.4197843 | FD81: -83.4197843 | FF81: 0 | FG81: 0 | FH81: 0 | FI81: 0
A82: 330 | B82: Sistema de Compensação | C82: Azul | D82: A4 | E82: Comercial | F82: Não se aplica | G82: Não se aplica | H82: Não se aplica | I82: Fora ponta | J82: CATIVO | K82: 2021-05-01 | L82: 243 | M82: 243 | N82: 98.56 | O82: 98.56 | P82: 98.56 | Q82: 98.56 | R82: 18.24 | S82: 39.32 | T82: 224.83 | U82: 4432.32 | V82: 26034.624 | W82: 30466.944 | X82: 30380.3808 | Y82: 0 | Z82: 2005.629531 | AA82: 0 | AB82: 0 | AC82: 28.58589091 | AD82: 611.0115916 | AE82: 2491.943747 | AF82: 19882.92573 | AG82: 941.1659334 | AH82: 0 | AI82: 4.49501611 | AJ82: 0 | AK82: 249.5492387 | AL82: 928.5462206 | AN82: 34.94844792 | AO82: 336.5755915 | AP82: 965.3188119 | AQ82: 0 | AR82: 0 | AS82: 1.851076951e-10 | AT82: 0 | AU82: 0 | AV82: 48.66535357 | AW82: 14.61132481 | AX82: 0 | AY82: -859.6934418 | AZ82: 0 | BB82: 193.8996613 | BC82: 80.47851179 | BD82: 184.1197883 | BE82: 13.33729097 | BF82: 434.1873091 | BG82: 545.5894184 | BH82: 0 | BI82: 0 | BJ82: 0 | BK82: 0 | BL82: 0 | BV82: 21060.15954 | CI82: 30380.3808 | CJ82: -86.5932 | CO82: 485.0848 | CP82: -571.648 | CQ82: 31 | CR82: 1019.894191 | CS82: -5.684341886e-13 | CT82: -60.08367319 | CU82: 0 | CV82: 0 | CW82: 0 | CX82: 0 | CY82: 0 | CZ82: 42.93698243 | DA82: 0 | DB82: 0 | DC82: 134.3724553 | DD82: 2.934317392 | DE82: 0.09013585618 | DF82: 1.244315266 | DG82: 3.687193259 | DH82: 0 | DI82: 351.1301809 | DK82: 0 | DL82: 0.07358016889 | DM82: 543.3887013 | DN82: 0 | DO82: 0.1031470658 | DP82: 0.01685563731 | DQ82: 0 | DR82: 0 | DU82: 2491.943747 | DV82: 0 | DW82: 0 | DX82: 0 | DY82: 334.9172 | DZ82: 657.3952 | EA82: 150.1676 | EB82: -1229.0432 | EC82: -6.362770762 | ED82: 183.0609382 | EE82: 1.695180159 | EF82: 0.1227956605 | EG82: 3.997537246 | EH82: 5.023209973 | EI82: 59.67259801 | EJ82: 20.80591378 | EK82: 0 | EL82: 0 | EM82: 0 | EN82: 0 | EO82: 0 | EP82: 138.5514937 | EQ82: 671.7022349 | ER82: 0 | ES82: -556.4729512 | ET82: 0 | EU82: -23.08272325 | EV82: 140 | EW82: 0 | EX82: 0 | EY82: 0 | FA82: 0 | FB82: -83.4197843 | FD82: -83.4197843 | FF82: 0 | FG82: 0 | FH82: 0 | FI82: 0
A83: 423 | B83: Regular | C83: Azul | D83: A4 | E83: Comercial | F83: Não se aplica | G83: Não se aplica | H83: Não se aplica | I83: Fora ponta | J83: CATIVO | K83: 2021-06-01 | L83: 2124 | M83: 2124 | N83: 767.542 | O83: 767.542 | P83: 767.542 | Q83: 767.542 | R83: 18.24 | S83: 39.32 | T83: 224.83 | U83: 38741.76 | V83: 202746.2193 | W83: 241487.9793 | X83: 240869.4526 | Y83: 0 | Z83: 15618.96207 | AA83: 0 | AB83: 0 | AC83: 249.8618613 | AD83: 5340.693911 | AE83: 21781.43423 | AF83: 154839.4945 | AG83: 7329.387001 | AH83: 0 | AI83: 35.0052116 | AJ83: 0 | AK83: 1943.379888 | AL83: 7231.11022 | AN83: 272.1631657 | AO83: 2941.919985 | AP83: 8437.601467 | AQ83: 0 | AR83: 0 | AS83: 1.441537444e-09 | AT83: 0 | AU83: 0 | AV83: 378.9844035 | AW83: 113.7865815 | AX83: 0 | AY83: -6694.915013 | AZ83: 0 | BB83: 1510.005416 | BC83: 703.4418068 | BD83: 1433.84406 | BE83: 103.8649653 | BF83: 3381.260101 | BG83: 4248.810809 | BH83: 0 | BI83: 0 | BJ83: 0 | BK83: 0 | BL83: 0 | BV83: 164007.2745 | CI83: 240868.9272 | CJ83: -619.0821 | CO83: 3833.21686 | CP83: -4451.7436 | CQ83: 30 | CR83: 7926.144222 | CS83: -5.456968211e-12 | CT83: -525.1758101 | CU83: 0 | CV83: 0 | CW83: 0 | CX83: 0 | CY83: 0 | CZ83: 375.3010316 | DA83: 0 | DB83: 0 | DC83: 1046.433676 | DD83: 22.85117532 | DE83: 0.7019384671 | DF83: 9.690180886 | DG83: 28.71424197 | DH83: 0 | DI83: 2734.447659 | DK83: 0 | DL83: 0.5730100445 | DM83: 4231.672591 | DN83: 0 | DO83: 0.8032640543 | DP83: 0.1312643016 | DQ83: 0 | DR83: 0 | DU83: 21781.43423 | DV83: 0 | DW83: 0 | DX83: 0 | DY83: 2587.34204 | DZ83: 5119.50514 | EA83: 1245.87482 | EB83: -9571.24874 | EC83: -55.61532962 | ED83: 1425.598201 | EE83: 13.20131869 | EF83: 0.9562786817 | EG83: 31.13106466 | EH83: 39.11855346 | EI83: 521.5827085 | EJ83: 181.8590982 | EK83: 0 | EL83: 0 | EM83: 0 | EN83: 0 | EO83: 0 | EP83: 1078.978192 | EQ83: 5230.922045 | ER83: 0 | ES83: -4333.566984 | ET83: 0 | EU83: -179.7581125 | EV83: 140 | EW83: 0 | EX83: 0 | EY83: 0 | FA83: 0 | FB83: -83.4197843 | FD83: -83.4197843 | FF83: 0 | FG83: 0 | FH83: 0 | FI83: 0
A84: 424 | B84: Sistema de Compensação | C84: Azul | D84: A4 | E84: Comercial | F84: Não se aplica | G84: Não se aplica | H84: Não se aplica | I84: Fora ponta | J84: CATIVO | K84: 2021-06-01 | L84: 246 | M84: 246 | N84: 91.28 | O84: 91.28 | P84: 91.28 | Q84: 91.28 | R84: 18.24 | S84: 39.32 | T84: 224.83 | U84: 4487.04 | V84: 24111.612 | W84: 28598.652 | X84: 28523.5104 | Y84: 0 | Z84: 1857.486441 | AA84: 0 | AB84: 0 | AC84: 28.93880314 | AD84: 618.5549445 | AE84: 2522.708484 | AF84: 18414.30053 | AG84: 871.6479951 | AH84: 0 | AI84: 4.162997875 | AJ84: 0 | AK84: 231.1166244 | AL84: 859.9604202 | AN84: 32.36702847 | AO84: 340.7308457 | AP84: 977.2363281 | AQ84: 0 | AR84: 0 | AS84: 1.714349676e-10 | AT84: 0 | AU84: 0 | AV84: 45.07075359 | AW84: 13.53207923 | AX84: 0 | AY84: -796.193358 | AZ84: 0 | BB84: 179.5775272 | BC84: 81.47207366 | BD84: 170.5200312 | BE84: 12.35215016 | BF84: 402.1166555 | BG84: 505.2902 | BH84: 0 | BI84: 0 | BJ84: 0 | BK84: 0 | BL84: 0 | BV84: 19504.57957 | CI84: 28523.5104 | CJ84: -75.1716 | CO84: 454.2824 | CP84: -529.424 | CQ84: 30 | CR84: 943.0828932 | CS84: -6.252776075e-13 | CT84: -60.82544694 | CU84: 0 | CV84: 0 | CW84: 0 | CX84: 0 | CY84: 0 | CZ84: 43.46706863 | DA84: 0 | DB84: 0 | DC84: 124.4472171 | DD84: 2.717578039 | DE84: 0.08347809407 | DF84: 1.152405616 | DG84: 3.414843757 | DH84: 0 | DI84: 325.1944289 | DK84: 0 | DL84: 0.06814527005 | DM84: 503.2520358 | DN84: 0 | DO84: 0.09552824846 | DP84: 0.01561061864 | DQ84: 0 | DR84: 0 | DU84: 2522.708484 | DV84: 0 | DW84: 0 | DX84: 0 | DY84: 308.2936 | DZ84: 608.8376 | EA84: 145.9888 | EB84: -1138.2616 | EC84: -6.441323487 | ED84: 169.5393917 | EE84: 1.569967988 | EF84: 0.1137255265 | EG84: 3.702264609 | EH84: 4.652177418 | EI84: 60.40929675 | EJ84: 21.06277691 | EK84: 0 | EL84: 0 | EM84: 0 | EN84: 0 | EO84: 0 | EP84: 128.3175765 | EQ84: 622.0878653 | ER84: 0 | ES84: -515.3698355 | ET84: 0 | EU84: -21.37774937 | EV84: 140 | EW84: 0 | EX84: 0 | EY84: 0 | FA84: 0 | FB84: -83.4197843 | FD84: -83.4197843 | FF84: 0 | FG84: 0 | FH84: 0 | FI84: 0
A85: 515 | B85: Regular | C85: Azul | D85: A4 | E85: Comercial | F85: Não se aplica | G85: Não se aplica | H85: Não se aplica | I85: Fora ponta | J85: CATIVO | K85: 2021-07-01 | L85: 2094 | M85: 2094 | N85: 764.072 | O85: 764.072 | P85: 764.072 | Q85: 764.072 | R85: 18.24 | S85: 39.32 | T85: 224.83 | U85: 38194.56 | V85: 201829.6188 | W85: 240024.1788 | X85: 239403.553 | Y85: 0 | Z85: 15548.34991 | AA85: 0 | AB85: 0 | AC85: 246.332739 | AD85: 5265.260382 | AE85: 21473.78685 | AF85: 154139.4767 | AG85: 7296.251391 | AH85: 0 | AI85: 34.84695565 | AJ85: 0 | AK85: 1934.594013 | AL85: 7198.418911 | AN85: 270.9327364 | AO85: 2900.367443 | AP85: 8318.426305 | AQ85: 0 | AR85: 0 | AS85: 1.435020361e-09 | AT85: 0 | AU85: 0 | AV85: 377.2710433 | AW85: 113.2721608 | AX85: 0 | AY85: -6664.647803 | AZ85: 0 | BB85: 1503.178795 | BC85: 693.506188 | BD85: 1427.361758 | BE85: 103.3953996 | BF85: 3365.973677 | BG85: 4229.602253 | BH85: 0 | BI85: 0 | BJ85: 0 | BK85: 0 | BL85: 0 | BV85: 163265.8098 | CI85: 239403.0276 | CJ85: -621.1812 | CO85: 3810.99176 | CP85: -4431.6176 | CQ85: 31 | CR85: 7891.75002 | CS85: -5.00222086e-12 | CT85: -517.7580727 | CU85: 0 | CV85: 0 | CW85: 0 | CX85: 0 | CY85: 0 | CZ85: 370.0001696 | DA85: 0 | DB85: 0 | DC85: 1041.702827 | DD85: 22.74786686 | DE85: 0.6987650558 | DF85: 9.646372302 | DG85: 28.58442703 | DH85: 0 | DI85: 2722.085426 | DK85: 0 | DL85: 0.570419509 | DM85: 4212.541515 | DN85: 0 | DO85: 0.7996325576 | DP85: 0.1306708655 | DQ85: 0 | DR85: 0 | DU85: 21473.78685 | DV85: 0 | DW85: 0 | DX85: 0 | DY85: 2577.48064 | DZ85: 5096.36024 | EA85: 1233.51112 | EB85: -9527.97784 | EC85: -54.82980237 | ED85: 1419.153178 | EE85: 13.14163651 | EF85: 0.9519554173 | EG85: 30.99032345 | EH85: 38.94170141 | EI85: 514.2157211 | EJ85: 179.2904669 | EK85: 0 | EL85: 0 | EM85: 0 | EN85: 0 | EO85: 0 | EP85: 1074.100212 | EQ85: 5207.273438 | ER85: 0 | ES85: -4313.975251 | ET85: 0 | EU85: -178.9454395 | EV85: 140 | EW85: 0 | EX85: 0 | EY85: 0 | FA85: 0 | FB85: -83.4197843 | FD85: -83.4197843 | FF85: 0 | FG85: 0 | FH85: 0 | FI85: 0
A86: 516 | B86: Sistema de Compensação | C86: Azul | D86: A4 | E86: Comercial | F86: Não se aplica | G86: Não se aplica | H86: Não se aplica | I86: Fora ponta | J86: CATIVO | K86: 2021-07-01 | L86: 226 | M86: 226 | N86: 88.76 | O86: 88.76 | P86: 88.76 | Q86: 88.76 | R86: 18.24 | S86: 39.32 | T86: 224.83 | U86: 4122.24 | V86: 23445.954 | W86: 27568.194 | X86: 27491.9568 | Y86: 0 | Z86: 1806.20614 | AA86: 0 | AB86: 0 | AC86: 26.58605492 | AD86: 568.2659247 | AE86: 2317.610234 | AF86: 17905.93027 | AG86: 847.5840934 | AH86: 0 | AI86: 4.048068485 | AJ86: 0 | AK86: 224.7361041 | AL86: 836.2191816 | AN86: 31.4734602 | AO86: 313.0291509 | AP86: 897.7862202 | AQ86: 0 | AR86: 0 | AS86: 1.667021004e-10 | AT86: 0 | AU86: 0 | AV86: 43.82646898 | AW86: 13.15849422 | AX86: 0 | AY86: -774.2125598 | AZ86: 0 | BB86: 174.6198654 | BC86: 74.84832784 | BD86: 165.812423 | BE86: 12.01113988 | BF86: 391.0152755 | BG86: 491.3404705 | BH86: 0 | BI86: 0 | BJ86: 0 | BK86: 0 | BL86: 0 | BV86: 18966.10958 | CI86: 27491.9568 | CJ86: -76.2672 | CO86: 438.5708 | CP86: -514.808 | CQ86: 31 | CR86: 917.9788936 | CS86: -5.684341886e-13 | CT86: -55.88028865 | CU86: 0 | CV86: 0 | CW86: 0 | CX86: 0 | CY86: 0 | CZ86: 39.93316061 | DA86: 0 | DB86: 0 | DC86: 121.0115577 | DD86: 2.642552878 | DE86: 0.08117348411 | DF86: 1.120590737 | DG86: 3.320568929 | DH86: 0 | DI86: 316.2166686 | DK86: 0 | DL86: 0.06626395891 | DM86: 489.3585747 | DN86: 0 | DO86: 0.09289096553 | DP86: 0.01517965064 | DQ86: 0 | DR86: 0 | DU86: 2317.610234 | DV86: 0 | DW86: 0 | DX86: 0 | DY86: 300.9712 | DZ86: 592.0292 | EA86: 137.5996 | EB86: -1106.8372 | EC86: -5.917638651 | ED86: 164.8588563 | EE86: 1.526625314 | EF86: 0.1105858647 | EG86: 3.60005485 | EH86: 4.523743072 | EI86: 55.49797181 | EJ86: 19.35035602 | EK86: 0 | EL86: 0 | EM86: 0 | EN86: 0 | EO86: 0 | EP86: 124.7750668 | EQ86: 604.9136604 | ER86: 0 | ES86: -501.1418339 | ET86: 0 | EU86: -20.78756611 | EV86: 140 | EW86: 0 | EX86: 0 | EY86: 0 | FA86: 0 | FB86: -83.4197843 | FD86: -83.4197843 | FF86: 0 | FG86: 0 | FH86: 0 | FI86: 0
